Workbook

Sheet BSC Summary
B2: Region | D2: =VLOOKUP($A$3,Lookup!$A:$D,4,FALSE) -> North
A3: 1 | B3: CCG:
A4: =VLOOKUP($A$3,Lookup!$A:$D,3,FALSE) -> 03L
B5: Last Refresh Date | D5: 2013-10-04T08:35:56
D6: 2013-06-17T16:06:32
B7: CCG Assurance Framework Balance Scorecard Summary
B13: Domain Buttons | D13: Domain Titles | G13: Domain RAG Status | I13: Domain RAG Summary | M13: Status
B15: Domain 1 | D15: Are local people getting good quality care? | G15: ='Domain 1'!C37 -> AMBER-GREEN | I15: =IF(G15="GREEN","All indicators met","The number of indicators triggering a") -> The number of indicators triggering a | J15: =IF(G15="GREEN","",G15) -> AMBER-GREEN | K15: =Support!J10 -> 2 | M15: ='Domain 1'!C41 -> Self-certification complete | O15: Red
D17: Are patient rights under the NHS Constitution being promoted? | G17: ='Domain 2'!F48 -> GREEN | I17: =IF(G17="GREEN","All indicators met","The number of indicators triggering a") -> All indicators met | J17: =IF(G17="GREEN","",G17) ->  | K17: =VLOOKUP($G$17,'Domain 2'!$N$51:$O$54,2,FALSE) -> 16 | M17: No self-certification data | O17: Amber-Red
B19: Domain 3 | D19: Are health outcomes improving for local people? | G19: ='Domain 3'!G45 -> GREEN | I19: =IF(G19="GREEN","All indicators met","The number of indicators triggering a") -> All indicators met | J19: =IF(G19="GREEN","",G19) ->  | K19: =VLOOKUP($G$19,'Domain 3'!$Q$48:$R$51,2,FALSE) -> 2 | M19: ='Domain 3'!G47 -> Self-certification complete | O19: Amber-Green
B21: Domain 4 | D21: Are CCGs delivering services within their financial plans? | G21: ='Domain 4'!D29 -> GREEN | I21: =IF(G21="GREEN","All indicators met","The number of indicators triggering a") -> All indicators met | J21: =IF(G21="GREEN","",G21) ->  | K21: =VLOOKUP($G$21,'Domain 4'!$D$49:$E$52,2,FALSE) -> 6 | M21: ='Domain 4'!D33 -> Self-certification complete | O21: Green
B23: Domain 5 | D23: Are conditions of CCG authorisation being addressed and removed (where relevant)? | G23: No RAG | I23: Total number of outstanding conditions | K23: ='Domain 5 '!N28 -> 0 | M23: ='Domain 5 '!N29 -> Fully Authorised
A31: Please select CCG patch | C31: Please select NCEL CCG | G31: Please select Yes/No | K31: Select type of package
A32: NCEL | C32: NHS Barking & Dagenham CCG | E32: Paul Bennett | G32: Yes | K32: Provide financial assistance | L32: Quarter/Year
A33: NWL | C33: NHS Barnet CCG | E33: lex GordonA | G33: No | K33: Provide model document/guidance | L33: Q1 2013/14
A34: SL | C34: NHS Camden CCG | E34: Claire Old | K34: Make advice/expertise available | L34: Q2 2013/14
C35: NHS City & Hackney CCG | K35: Facilitate peer review with other CCGs | L35: Q3 2013/14
C36: NHS Enfield CCG | K36: Other | L36: Q4 2013/14
C37: NHS Haringey CCG
C38: NHS Havering CCG
C39: NHS Islington CCG
C40: NHS Newham CCG
C41: NHS Redbridge CCG
C42: NHS Tower Hamlets CCG
C43: NHS Waltham Forest CCG
C45: Please select NWL CCG
C46: NHS Brent CCG
C47: NHS Central London CCG
C48: NHS Ealing CCG
C49: NHS Hammersmith & Fulham CCG
C50: NHS Harrow CCG
C51: NHS Hillingdon CCG
C52: NHS Hounslow CCG
C53: NHS West London CCG
C55: Please select SL CCG
C56: NHS Bexley CCG
C57: NHS Bromley CCG
C58: NHS Croydon CCG
C59: NHS Greenwich CCG
C60: NHS Kingston CCG
C61: NHS Lambeth CCG
C62: NHS Lewisham CCG
C63: NHS Merton CCG
C64: NHS Richmond CCG
C65: NHS Southwark CCG
C66: NHS Sutton CCG
C67: NHS Wandsworth CCG

Sheet Reporting
A5: Balances Scorecard All Indicator Domain RAG Criteria
A7: Domain | B7: Category | C7: Indicator | D7: Indicator Detail (incl. Numerator and Denominator where applicable) | E7: Freq | F7: Period | G7: Data Source | H7: Basis | I7: RAG Criteria | J7: Comments
A8: 1 | B8: Providers | C8: Has local provider been subject to local enforcement action by the CQC? | E8: Quarterly | G8: Unify2 | H8: Provider | I8: By providers 1-10; Yes/No/Enforcement Action | J8: Any Enforcement Action takes Domain rating to RED
A9: 1 | B9: Providers | C9: Has local provider been flagged as a 'quality compliance risk' by Monitor and/or are requirements in place around breaches of provider licence conditions? | E9: rterlyQua | G9: Unify2 | H9: Provider | I9: Yes/No
A10: 1 | B10: Providers | C10: Has local provider been subject to enforcement action by the NHS TDA based on 'quality' risk? | E10: Quarterly | G10: Unify2 | H10: Provider | I10: Yes/No
A11: 1 | B11: Providers | C11: Does feedback from the Friends and Family test (or any other patient feedback) indicate any causes for concern? | E11: Quarterly | G11: Unify2 | H11: Provider | I11: Yes/No
A12: 1 | B12: Providers | C12: Has the provider been identified as a 'negative outlier' on SMHI or HSMR? | E12: Quarterly | G12: Unify2 | H12: Provider | I12: Yes/No
A13: 1 | B13: Providers | C13: Do provider level indicators from the National Quality Dashboard show that MRSA cases are above zero? | E13: Quarterly | G13: Unify2 | H13: Provider | I13: Yes/No
A14: 1 | B14: Providers | C14: Do provider level indicators from the National Quality Dashboard show that the provider has reported more C difficile cases than trajectory? | E14: Quarterly | G14: Unify2 | H14: Provider | I14: Yes/No
A15: 1 | B15: Providers | C15: Do provider level indicators from the National Quality Dashboard show that MSA breaches are above zero? | E15: Quarterly | G15: Unify2 | H15: Provider | I15: Yes/No
A16: 1 | B16: Providers | C16: Does provider currently have any unclosed Serious Untoward Incidents (SUIs)? | E16: Quarterly | G16: Unify2 | H16: Provider | I16: Yes/No | J16: Indicator not part of the domain rating but pulls to the Support/Intervention tab if No
A17: 1 | B17: Providers | C17: Has the provider experienced any 'Never Events' during the last quarter? | E17: Quarterly | G17: Unify2 | H17: Provider | I17: Yes/No
A18: 1 | B18: CCG | C18: Does the CCG have any outstanding conditions of authorisation in place on clinical governance? | E18: Quarterly | G18: Unify2 | H18: CCG | I18: Yes/No
A19: 1 | B19: CCG | C19: Has the CCG self assessed and identified any risks associated with concerns around quality issues discussed regularly by the CCG governing body? | E19: Quarterly | G19: Unify2 | H19: CCG | I19: Yes/No
A20: 1 | B20: CCG | C20: Has the CCG self assessed and identified any risks associated with concerns around the arrangements in place to proactively identify early warnings of a failing service? | E20: Quarterly | G20: Unify2 | H20: CCG | I20: Yes/No
A21: 1 | B21: CCG | C21: Has the CCG self assessed and identified any risks associated with concerns around the arrangements in place to deal with and learn from serious untoward incidents and never events? | E21: Quarterly | G21: Unify2 | H21: CCG | I21: Yes/No
A22: 1 | B22: CCG | C22: Has the CCG self assessed and identified any risks associated with concerns around being an active participant in its Quality Surveillance Group? | E22: Quarterly | G22: Unify2 | H22: CCG | I22: Yes/No
A23: 1 | B23: CCG | C23: If there was an emergency event in the last quarter, has the CCG self assessed and identified any areas of concern on the arrangements in place for dealing with such an event? | E23: Quarterly | G23: Unify2 | H23: CCG | I23: Yes/No
A24: 1 | B24: CCG | C24: Has the CCG self assessed and identified any risk to progress against its Winterbourne View action plan? | E24: Quarterly | G24: Unify2 | H24: CCG | I24: Yes/No
A25: For Support/Intervention: Any Yes or Enforcement Action Domain 1 RAG Criteria Green - all 'No' responses Amber-Green - One or more 'Yes - Action in place' Amber-Red - One or more 'Yes - No action in place' Red - One or more 'Yes - Enforcement action'
A26: 2 | B26: Referral to Treatment waiting times for non urgent consultant led treatment | C26: Admitted patients to start treatment within a maximum of 18 weeks from referral | D26: Numerator: Total number of completed admitted pathways where the patient waited 18 weeks or less Denominator: Total number of completed admitted pathways | E26: Monthly | F26: Quarter actual | G26: RTT collection, Unify 2 | H26: Commissioner | I26: GREEN: Greater than or Equal to 90% AMBER: between 85% and 90% RED: less than 85%
A27: 2 | B27: Referral to Treatment waiting times for non urgent consultant led treatment | C27: Non-admitted patients to start treatment within a maximum of 18 weeks from referral | D27: Numerator: Total number of completed non-admitted pathways where the patient waited 18 weeks or less Denominator: Total number of completed non-admitted pathways | E27: Monthly | F27: Quarter actual | G27: RTT collection, Unify 2 | H27: Commissioner | I27: GREEN: Greater than or Equal to 95% AMBER: between 90% and 95% RED: less than 90%
A28: 2 | B28: Referral to Treatment waiting times for non urgent consultant led treatment | C28: Patients on incomplete non emergency pathways (yet to start treatment) should have been waiting no more | D28: Numerator: Total number of incomplete pathways where the patient was still waiting 18 weeks or less Denominator: The total number of incomplete pathways at the end of the period | E28: Monthly | F28: Quarter actual | G28: RTT collection, Unify 2 | H28: Commissioner | I28: GREEN: Greater than or Equal to 92% AMBER: between 87% and 92% RED: less than 87%
A29: 2 | B29: Referral to Treatment waiting times for non urgent consultant led treatment | C29: Number of patients waiting more than 52 weeks | D29: Numerator: Total number of incomplete pathways where the patient was still waiting 52 weeks or more | E29: Monthly | F29: Last month in the quarter | G29: RTT collection, Unify 2 | H29: Commissioner | I29: GREEN: is Zero AMBER: 10 or fewer RED: more than 10
A30: 2 | B30: Diagnostic test waiting times | C30: Patients waiting for a diagnostic test should have been waiting less than 6 weeks from referral | D30: Numerator: The number of patients waiting 6 weeks or more for a diagnostic test (15 key diagnostic tests) at the end of the period Denominator: The total number of patients waiting at the end of the period | E30: Monthly | F30: Last month in the quarter | G30: Diagnostics collection (DM01), Unify 2 | H30: Commissioner | I30: GREEN: lessor equal to 1% AMBER: between 1% and 6% RED: greater than 6%
A31: 2 | B31: A&E waits | C31: Patients should be admitted, transferred or discharged within 4 hours of their arrival at an A & E department | D31: Numerator: The number of patients spending four hours or less in all types of A&E departments Denominator: The total number of patients attending all types of A&E departments | E31: Weekly | F31: Quarter actual | G31: SitReps collection, Unify 2 | H31: Provider | I31: GREEN: Greater than or Equal to 95% AMBER: between 90% and 95% RED: less than 90% | J31: Data not collected on a commissioner basis. But the performance of the 1st three providers in Domain 3 will be used instead.
A32: 2 | B32: Cancer patients - 2 wk waits | C32: Maximum two-week wait for first outpatient appointment for patients referred urgently with suspected cancer by a GP | D32: Numerator: Patients urgently referred with suspected cancer by their GP (GMP or GDP) who were first seen within 14 calendar days within a period Denominator: All patients urgently referred with suspected cancer by their GP (GMP or GDP) who were first seen within a period | E32: Quarterly | F32: Quarter actual | G32: Cancer waits database | H32: Commissioner | I32: GREEN: Greater than or Equal to 93% AMBER: between 88% and 93% RED: less than 93%
A33: 2 | B33: Cancer patients - 2 wk waits | C33: Maximum two week wait for first out patient appointment for patients referred urgently with breast symptoms (where cancer was not initially suspected) | D33: Numerator: Patients urgently referred for evaluation/investigation of "breast symptoms" by a primary or secondary care professional during a period (excluding those referred urgently for suspected breast cancer) who were first seen within 14 calendar days during the period Denominator: All patients urgently referred for evaluation/investigation of "breast symptoms" by a primary or secondary care professional within a period, excluding those referred urgently for suspected breast cancer who were first seen within the period | E33: rterlyQua | F33: Quarter actual | G33: Cancer waits database | H33: Commissioner | I33: GREEN: Greater than or Equal to 93% AMBER: between 88% and 93% RED: less than 93%
A34: 2 | B34: Cancer waits - 31 days | C34: Maximum one month (31 day) wait from diagnosis to first definitive treatment for all cancers | D34: Numerator: Number of patients receiving first definitive treatment for cancer within 31 days of receiving a diagnosis (decision to treat) within a given period for all cancers (ICD-10 C00 to C97 and D05) Denominator: Total number of patients receiving first definitive treatment for cancer within a given period for all cancers (ICD-10 C00 to C97 and D05) | E34: Quarterly | F34: Quarter actual | G34: Cancer waits database | H34: Commissioner | I34: GREEN: Greater than or Equal to 96% AMBER: between 91% and 96% RED: less than 91%
A35: 2 | B35: Cancer waits - 31 days | C35: Maximum 31 day wait for subsequent treatment where that treatment is surgery | D35: Numerator: Number of patients receiving subsequent surgery within a maximum waiting time of 31-days during a given period, including patients with recurrent cancer Denominator: Total number of patients receiving subsequent surgery within a given period, including patients with recurrent cancer | E35: Quarterly | F35: Quarter actual | G35: Cancer waits database | H35: Commissioner | I35: GREEN: Greater than or Equal to 94% AMBER: between 89% and 94% RED: less than 89%
A36: 2 | B36: Cancer waits - 31 days | C36: Maximum 31 day wait for subsequent treatment where the treatment is an anti-cancer drug regimen | D36: Numerator: Number of patients receiving a subsequent/adjuvant anti-cancer drug regimen within a maximum waiting time of 31-days during a given period, including patients with recurrent cancer Denominator: Total number of patients receiving a subsequent/adjuvant anti-cancer drug regimen within a given period, including patients with recurrent cancer | E36: Quarterly | F36: Quarter actual | G36: Cancer waits database | H36: Commissioner | I36: GREEN: Greater than or Equal to 98% AMBER: between 93% and 98% RED: less than 93%
A37: 2 | B37: Cancer waits - 31 days | C37: Maximum 31 day wait for subsequent treatment where the treatment is a course of radiotherapy | D37: Numerator: Number of patients receiving subsequent /adjuvant radiotherapy treatment within a maximum waiting time of 31-days during a given period, including patients with recurrent cancer Denominator: Total number of patients receiving subsequent/adjuvant radiotherapy treatment within a given period, including patients with recurrent cancer | E37: Quarterly | F37: Quarter actual | G37: Cancer waits database | H37: Commissioner | I37: GREEN: Greater than or Equal to 94% AMBER: between 89% and 94% RED: less than 89%
A38: 2 | B38: Cancer waits - 62 days | C38: Maximum two month (62 day) wait from urgent GP referral to first definitive treatment for cancer | D38: Numerator: Number of patients receiving first definitive treatment for cancer within 62-days following an urgent GP (GDP or GMP) referral for suspected cancer within a given period, for all cancers (ICD-10 C00 to C97 abd D05) Denominator: Total number of patients receiving first definitive treatment for cancer following an urgent GP (GDP or GMP) referral for suspected cancer within a given period, for all cancers (ICD-10 C00 to C97 abd D05) | E38: Quarterly | F38: Quarter actual | G38: Cancer waits database | H38: Commissioner | I38: GREEN: Greater than or Equal to 85% AMBER: between 80% and 85% RED: less than 80%
A39: 2 | B39: Cancer waits - 62 days | C39: Maximum 62 day wait from referral from an NHS screening service to first definitive treatment for all cancers | D39: Numerator: Number of patients receiving first definitive treatment for cancer within 62-days following referral from an NHS Cancer Screening Service during a given period (covers any cancer ICD-10 C00 to C97 and D05) Denominator: Total number of patients receiving first definitive treatment for cancer following referral from an NHS Cancer Screening Service within a given period (covers any cancer ICD-10 C00 to C97 and D05) | E39: Quarterly | F39: Quarter actual | G39: Cancer waits database | H39: Commissioner | I39: GREEN: Greater than or Equal to 90% AMBER: between 85% and 90% RED: less than 85%
A40: 2 | B40: Cancer waits - 62 days | C40: Maximum 62 day wait for first definitive treatment following a consultants decision to upgrade the priority of the patient (all cancers) | E40: Quarterly | F40: Quarter actual | G40: Cancer waits database | H40: Commissioner | I40: No threshold
A41: 2 | B41: Category A Ambulance calls | C41: Category A calls resulting in an emergency response arriving within 8 minutes (Red 1) | D41: Numerator: The total number of Category A (Red 1) incidents, which resulted in an emergency response arriving at the scene of the incident within 8 minutes Denominator: The total number of Category A (Red 1) incidents, which resulted in an emergency response arriving at the scene | E41: Monthly | F41: Quarter actual | G41: AmbSys collection, Unify 2 | H41: Provider | I41: GREEN: Greater than or Equal to 75% AMBER: between 70% and 75% RED: less than 70% | J41: Data not collected on a commissioner basis. CCGs will be allocated the overall performance of the Ambulance Trust that they are covered by.
A42: 2 | B42: Category A Ambulance calls | C42: Category A calls resulting in an emergency response arriving within 8 minutes (Red 2) | D42: Numerator: The total number of Category A (Red 2) incidents, which resulted in an emergency response arriving at the scene of the incident within 8 minutes Denominator: The total number of Category A (Red 2) incidents, which resulted in an emergency response arriving at the scene | E42: Monthly | F42: Quarter actual | G42: AmbSys collection, Unify 2 | H42: Provider | I42: GREEN: Greater than or Equal to 75% AMBER: between 70% and 75% RED: less than 70% | J42: Data not collected on a commissioner basis. CCGs will be allocated the overall performance of the Ambulance Trust that they are covered by.
A43: 2 | B43: Category A Ambulance calls | C43: Category A calls resulting in an ambulance arriving at the scene within 19 minutes | D43: Numerator: The total number of calls resulting in an ambulance arriving at the scene of the incident within 19 minutes Denominator: The total number of Category A incidents with ambulance response arriving | E43: Monthly | F43: Quarter actual | G43: AmbSys collection, Unify 2 | H43: Provider | I43: GREEN: Greater than or Equal to 95% AMBER: between 90% and 95% RED: less than 90% | J43: Data not collected on a commissioner basis. CCGs will be allocated the overall performance of the Ambulance Trust that they are covered by.
A44: 2 | B44: Mixed sex accommodation breaches | C44: Minimise breaches | D44: Numerator: The number of MSA breaches for the reporting month in question | E44: Monthly | F44: Quarter actual | G44: MSA collection, Unify 2 | H44: Commissioner | I44: GREEN = zero Amber = 10 or fewer breaches RED = more than 10 breaches | J44: The threshold is the last Month of the Quarter
A45: 2 | B45: Cancelled operations | C45: All patients who have operations cancelled, on or after the day of admission (including the day of surgery), for non-clinical reasons to be offered another binding date within 28 days, or the patient's treatment to be funded at the time and hospital of the patient's choice | I45: (Not rated) | J45: Data not collected on a commissioner basis and cannot be mapped to CCG.
A46: 2 | B46: Mental Health | C46: Care Programme Approach (CPA): The proportion of people under adult mntal illness specialities on CPA | D46: Numerator: The number of people under adult mental illness specialities on Care Programme Approach receiving follow up (by phone or face to face contact) within seven days of discharge from psychiatric in-patient care during the reference period Denominator: The number of people under adult mental illness specialities on Care Programme Approach discharged from psychiatric in-patient care during the reference period | E46: Quarterly | F46: Quarter actual | G46: MH Community Teams Activity Return | H46: Commissioner | I46: GREEN: Greater than or Equal to 95% AMBER: between 90% and 95% RED: less than 90%
A47: 2 | B47: Future Concerns | E47: Quarterly | F47: Quarter actual | H47: CCG | I47: Green: Yes Red: No | J47: Yes triggers the overall domain Rating to Amber Green, while No has no effect
A48: Domain 2 RAG Criteria Green - No indicators rated Red Amber-Green - No indicators rated Red but future concerns Amber-Red - One indicator rated Red Red - Two or more indicators rated Red
A49: 3 | B49: Preventing people from dying prematurely | C49: Potential years of life lost (PYLL) from causes considered amendable to healthcare | D49: Potential years of life lost (PYLL) from causes considered amenable to health care expressed as a rate per 100,000 population. The PYLL rate uses the average age-specific period life expectancy for each five-year age band for the relevant calendar year as the age to which a person in that age band who died from one of the amenable causes might have been expected to live in the presence of timely and effective health care. the age-specific period life expectancy is different from each calendar year, and will be published at alongside the data. These age-specific life expectancies are used to weight the number of deaths in that age band to give the number of years of life lost for that age band. | F49: Annual Assurance only | G49: ONS mortality and population estimates | H49: Commissioner | I49: Data will not be used for Quarterly Reporting | J49: 2011 mortality data were released in November 201. The ONS Statistical Bulletin on avoidable mortality for 2011 will be published in March 2013. Mid-year population estimates for 2011 were released in September 2012.
A50: 3 | B50: Preventing people from dying prematurely | C50: Under 75 mortality rate from cardiovascular disease | I50: Data will not be used for Quarterly Reporting
A51: 3 | B51: Preventing people from dying prematurely | C51: Under 75 mortality rate from respiratory disease | I51: Data will not be used for Quarterly Reporting
A52: 3 | B52: Preventing people from dying prematurely | C52: Under 75 mortality rate from liver disease | I52: Data will not be used for Quarterly Reporting
A53: 3 | B53: Preventing people from dying prematurely | C53: Under 75 mortality rate from cancer | I53: Data will not be used for Quarterly Reporting
A54: 3 | B54: Enhancing quality of life for people with long term conditions | C54: Health-related quality of life for people with long-term conditions | D54: The measure is the proportion of persons admitted to hospital for conditions aggregated across the four indicators, expressed as a rate per 100,000 population. The NHS Outcome Framework contains four indicators measuring emergency admissions for those conditions (sometimes referred to as 'ambulatory care sensitive conditions') that could usually have been avoided through better management in primary or community care. These are indicators 2.3i and 2.3ii focusing on chronic (i.e. long term) conditions and indicators 3a and 3.2 focusing on acute conditions. For the purpose of the quality premium these complementary measures are being combined to crease a single composite measure. | E54: HES reports provisional data monthly, annual data by financial year is available in the autumn/winter after the end of the period. ONS population estimates available annually (calendar year). | F54: Quarterly and annual assurance | G54: HES, ONS population estimates | H54: Commissioner | I54: Not used for Q1 assessment | J54: See indicator CB_A6 in Everyone Counts: Planning for Patients 2013/14 - Technical Definitions for further details, including details of the ICD-10 codes included in this measure.
A55: 3 | B55: Enhancing quality of life for people with long term conditions | C55: Proportion of people feeling supported to manage their condition
A56: 3 | B56: Enhancing quality of life for people with long term conditions | C56: Unplanned hospitalisation for chronic ambulatory care sensitive conditions (adult)
A57: 3 | B57: Enhancing quality of life for people with long term conditions | C57: Unplanned hospitalisation for asthma, diabetes and epilepsy in under 19s
A58: 3 | B58: Enhancing quality of life for people with long term conditions | C58: Estimated diagnosis rate for people with dementia
A59: 3 | B59: Helping people to recover from ill health or following injury | C59: Emergency admissions for acute conditions that should not usually require hospital admission
A60: 3 | B60: Helping people to recover from ill health or following injury | C60: Emergency readmissions within 30 days of discharge from hospital
A61: 3 | B61: Helping people to recover from ill health or following injury | C61: Total health gain assessed by patients i) Hip replacement, ii) Knee replacement, iii) Groin hernia, iv) Vericose veins
A62: 3 | B62: Helping people to recover from ill health or following injury | C62: Emergency admissions for children with Lower Respiratory Tract Infections (LRTI)
A63: 3 | B63: Ensuring that people have a positive experience of care | C63: Patient experience of primary care i) GP Services, ii) GP Out of Hours services | I63: Not used for Q1 assessment
A64: 3 | B64: Ensuring that people have a positive experience of care | C64: Patient experience of hospital care | I64: Not used for Q1 assessment
A65: 3 | B65: Ensuring that people have a positive experience of care | C65: Friends and Family Test | D65: The Family and Friends Test is a simple, comparable test which, when combined with follow-up questions, providers a mechanism to identify poor performance and encourage staff to make improvements where services do not live up to the expectations of patients. this leads to a more positive experience of care for patients. Patients will be asked a standard question at the point of discharge from hospital. They will be asked to record a response against a six point scale: Extremely likely/Likely/Neither likely or unlikely/Unlikely/Extremely Unlikely/Don't know. The comparability of the data (through the use of a standardised questions and methodology) will allow commissioners to understand overarching levels of patient experience for the services that they commission. | E65: Monthly (from April 2013 for inpatient wards and A&E departments, and from October 2013 for maternity services) | F65: Quarterly and annual assurance | G65: FFT collection, Unify 2 | H65: Commissioner | I65: Not used for Q1 assessment instead the Self cert question is used - "Are providers (defined in Domain 1) meeting the 15% response rates on FFT?" Green: Yes Red: No | J65: Not part of the overall domain scoring but if 'No' pulls into the support/intervention tab.
A66: 3 | B66: Treating and caring for people in a safe environment an protecting them from avoidable harm | C66: Incidence of healthcare associated infection (HCAI) i) MRSA | D66: The total number of MRSA cases assigned to CCGs | E66: Monthly | F66: Quarterly and annual assurance | G66: Public Health England | H66: Commissioner | I66: GREEN = 0 cases RED: Greater than Zero
A67: 3 | B67: Treating and caring for people in a safe environment an protecting them from avoidable harm | C67: Incidence of healthcare associated infection (HCAI) i) C difficile | D67: The total number of C. difficile cases assigned to CCGs | E67: Monthly | F67: Quarterly and annual assurance | G67: Public Health England | H67: Commissioner | I67: GREEN: less or equal to target RED: greater than target
A68: 3 | B68: Others | C68: IAPT Coverage - performance against plan | D68: The primary purpose of this indicator is to measure improved access to psychological services (IAPS) for people with depression and/or anxiety disorders. This is done using two indicators: 1) The proportion of people that enter treatment against the level of need in the general population (the level of prevalence addressed or 'captured' by referral routs); and 2) The proportion of people who complete treatment who are moving to recovery. | E68: Quarterly | F68: Quarterly assurance only | G68: Omnibus returns, NHSIC | H68: Commissioner | I68: IAPT rated red/green against the yes/no self assessment answers | J68: Not part of the overall domain scoring but if 'No' pulls into the support/intervention tab.
A69: 3 | B69: Local priorities | C69: Local Priority 1 | I69: Green: Yes Red: No | J69: Not part of the overall domain scoring but if 'No' pulls into the support/intervention tab.
A70: 3 | B70: Local priorities | C70: Local Priority 2 | I70: Green: Yes Red: No
A71: 3 | B71: Local priorities | C71: Local Priority 3 | I71: Green: Yes Red: No
A72: Domain 3 - RAG rating Green:- No indicators rated Red Amber-Green: one indicator rating amber and one green Amber-Red: - Two indicator rated Amber Red or one rated red Red:- Two or more indicators rated Red
A73: 4 | B73: Financial Performance | C73: Underlying recurrent surplus
A74: 4 | B74: Financial Performance | C74: Surplus - year to date performance | G74: Unify2 | H74: Finance Team | J74: RAG rated by Finance Team through the Unify collection and part of the overall Domain calculation
A75: 4 | B75: Financial Performance | C75: Surplus - full year forecast | G75: Unify2 | H75: Finance Team
A76: 4 | B76: Financial Performance | C76: Management of 2% NR funds within agreed processes | G76: Unify2 | H76: Finance Team
A77: 4 | B77: Financial Performance | C77: QIPP** - year to date delivery | G77: Unify2 | H77: Finance Team
A78: 4 | B78: Financial Performance | C78: QIPP** - full year forecast | G78: Unify2 | H78: Finance Team
A79: 4 | B79: Financial Performance | C79: Activity trends - year to date
A80: 4 | B80: Financial Performance | C80: Activity trends - full year forecast
A81: 4 | B81: Financial Performance | C81: Running costs | G81: Unify2 | H81: Finance Team | J81: RAG rated by Finance Team through the Unify collection and part of the overall Domain calculation
A82: 4 | B82: Financial Performance | C82: Clear identification of risks against financial delivery and mitigations | G82: Unify2 | H82: Finance Team
A83: 4 | B83: Financial Management | C83: This covers internal and external audit opinions, and an assessment of the timeliness and quality of returns | G83: Unify2 | H83: CCG | J83: Collected through the CCG Self Cert Collection
A84: 4 | B84: Financial Management | C84: Balance sheet indicators including cash management and BPCC
A85: Domain 4 - RAG rating Green - No indicators rated Red Amber-Green - <= 3 primary indicator are amber-red Amber-Red - One indicator rated Red or > 3 are amber-red Red - Two or more indicators rated Red

Sheet Domain 1
B5: =VLOOKUP('BSC Summary'!$A$3,Lookup!$A:$C,2,FALSE) -> NHS Rotherham CCG
B6: Domain 1 - Are local people getting good quality care?
B8: Please note that this Domain will be pre-populated through the self-certification carried out by the CCG
C9: PROV1 | D9: PROV2 | E9: PROV3 | F9: PROV4 | G9: PROV5 | H9: PROV6 | I9: PROV7 | J9: PROV8 | K9: PROV9 | L9: PROV10
B10: Indicator | C10: =IFERROR(VLOOKUP('BSC Summary'!$A$4&"_"&C9,CCG_PROV_SELFCERT_DOMAIN1!$B:$U,3,FALSE),"No Provider") -> THE ROTHERHAM NHS FOUNDATION TRUST | D10: =IFERROR(VLOOKUP('BSC Summary'!$A$4&"_"&D9,CCG_PROV_SELFCERT_DOMAIN1!$B:$U,3,FALSE),"No Provider") -> ROTHERHAM, DONCASTER AND SOUTH HUMBER NHS FOUNDATION TRUST | E10: =IFERROR(VLOOKUP('BSC Summary'!$A$4&"_"&E9,CCG_PROV_SELFCERT_DOMAIN1!$B:$U,3,FALSE),"No Provider") -> No Provider | F10: =IFERROR(VLOOKUP('BSC Summary'!$A$4&"_"&F9,CCG_PROV_SELFCERT_DOMAIN1!$B:$U,3,FALSE),"No Provider") -> No Provider | G10: =IFERROR(VLOOKUP('BSC Summary'!$A$4&"_"&G9,CCG_PROV_SELFCERT_DOMAIN1!$B:$U,3,FALSE),"No Provider") -> No Provider | H10: =IFERROR(VLOOKUP('BSC Summary'!$A$4&"_"&H9,CCG_PROV_SELFCERT_DOMAIN1!$B:$U,3,FALSE),"No Provider") -> No Provider | I10: =IFERROR(VLOOKUP('BSC Summary'!$A$4&"_"&I9,CCG_PROV_SELFCERT_DOMAIN1!$B:$U,3,FALSE),"No Provider") -> No Provider | J10: =IFERROR(VLOOKUP('BSC Summary'!$A$4&"_"&J9,CCG_PROV_SELFCERT_DOMAIN1!$B:$U,3,FALSE),"No Provider") -> No Provider | K10: =IFERROR(VLOOKUP('BSC Summary'!$A$4&"_"&K9,CCG_PROV_SELFCERT_DOMAIN1!$B:$U,3,FALSE),"No Provider") -> No Provider | L10: =IFERROR(VLOOKUP('BSC Summary'!$A$4&"_"&L9,CCG_PROV_SELFCERT_DOMAIN1!$B:$U,3,FALSE),"No Provider") -> No Provider
B11: Providers (where CCG commissioning constitutes more than 5% of the providers income): | C11: =IFERROR(VLOOKUP('BSC Summary'!$A$4&"_"&C9,CCG_PROV_SELFCERT_DOMAIN1!$B:$U,2,FALSE),"No Provider") -> RFR | D11: =IFERROR(VLOOKUP('BSC Summary'!$A$4&"_"&D9,CCG_PROV_SELFCERT_DOMAIN1!$B:$U,2,FALSE),"No Provider") -> RXE | E11: =IFERROR(VLOOKUP('BSC Summary'!$A$4&"_"&E9,CCG_PROV_SELFCERT_DOMAIN1!$B:$U,2,FALSE),"No Provider") -> No Provider | F11: =IFERROR(VLOOKUP('BSC Summary'!$A$4&"_"&F9,CCG_PROV_SELFCERT_DOMAIN1!$B:$U,2,FALSE),"No Provider") -> No Provider | G11: =IFERROR(VLOOKUP('BSC Summary'!$A$4&"_"&G9,CCG_PROV_SELFCERT_DOMAIN1!$B:$U,2,FALSE),"No Provider") -> No Provider | H11: =IFERROR(VLOOKUP('BSC Summary'!$A$4&"_"&H9,CCG_PROV_SELFCERT_DOMAIN1!$B:$U,2,FALSE),"No Provider") -> No Provider | I11: =IFERROR(VLOOKUP('BSC Summary'!$A$4&"_"&I9,CCG_PROV_SELFCERT_DOMAIN1!$B:$U,2,FALSE),"No Provider") -> No Provider | J11: =IFERROR(VLOOKUP('BSC Summary'!$A$4&"_"&J9,CCG_PROV_SELFCERT_DOMAIN1!$B:$U,2,FALSE),"No Provider") -> No Provider | K11: =IFERROR(VLOOKUP('BSC Summary'!$A$4&"_"&K9,CCG_PROV_SELFCERT_DOMAIN1!$B:$U,2,FALSE),"No Provider") -> No Provider | L11: =IFERROR(VLOOKUP('BSC Summary'!$A$4&"_"&L9,CCG_PROV_SELFCERT_DOMAIN1!$B:$U,2,FALSE),"No Provider") -> No Provider
B12: Please identify the percentage of provider income for CCG: | C12: =IFERROR(VLOOKUP('BSC Summary'!$A$4&"_"&C9,CCG_PROV_SELFCERT_DOMAIN1!$B:$U,4,FALSE),"No Provider") -> 67 | D12: =IFERROR(VLOOKUP('BSC Summary'!$A$4&"_"&D9,CCG_PROV_SELFCERT_DOMAIN1!$B:$U,4,FALSE),"No Provider") -> 17 | E12: =IFERROR(VLOOKUP('BSC Summary'!$A$4&"_"&E9,CCG_PROV_SELFCERT_DOMAIN1!$B:$U,4,FALSE),"No Provider") -> No Provider | F12: =IFERROR(VLOOKUP('BSC Summary'!$A$4&"_"&F9,CCG_PROV_SELFCERT_DOMAIN1!$B:$U,4,FALSE),"No Provider") -> No Provider | G12: =IFERROR(VLOOKUP('BSC Summary'!$A$4&"_"&G9,CCG_PROV_SELFCERT_DOMAIN1!$B:$U,4,FALSE),"No Provider") -> No Provider | H12: =IFERROR(VLOOKUP('BSC Summary'!$A$4&"_"&H9,CCG_PROV_SELFCERT_DOMAIN1!$B:$U,4,FALSE),"No Provider") -> No Provider | I12: =IFERROR(VLOOKUP('BSC Summary'!$A$4&"_"&I9,CCG_PROV_SELFCERT_DOMAIN1!$B:$U,4,FALSE),"No Provider") -> No Provider | J12: =IFERROR(VLOOKUP('BSC Summary'!$A$4&"_"&J9,CCG_PROV_SELFCERT_DOMAIN1!$B:$U,4,FALSE),"No Provider") -> No Provider | K12: =IFERROR(VLOOKUP('BSC Summary'!$A$4&"_"&K9,CCG_PROV_SELFCERT_DOMAIN1!$B:$U,4,FALSE),"No Provider") -> No Provider | L12: =IFERROR(VLOOKUP('BSC Summary'!$A$4&"_"&L9,CCG_PROV_SELFCERT_DOMAIN1!$B:$U,4,FALSE),"No Provider") -> No Provider
B13: Is this CCG the lead or associate commissioner? | C13: =IFERROR(VLOOKUP('BSC Summary'!$A$4&"_"&C9,CCG_PROV_SELFCERT_DOMAIN1!$B:$U,5,FALSE),"No Provider") -> Lead | D13: =IFERROR(VLOOKUP('BSC Summary'!$A$4&"_"&D9,CCG_PROV_SELFCERT_DOMAIN1!$B:$U,5,FALSE),"No Provider") -> Lead | E13: =IFERROR(VLOOKUP('BSC Summary'!$A$4&"_"&E9,CCG_PROV_SELFCERT_DOMAIN1!$B:$U,5,FALSE),"No Provider") -> No Provider | F13: =IFERROR(VLOOKUP('BSC Summary'!$A$4&"_"&F9,CCG_PROV_SELFCERT_DOMAIN1!$B:$U,5,FALSE),"No Provider") -> No Provider | G13: =IFERROR(VLOOKUP('BSC Summary'!$A$4&"_"&G9,CCG_PROV_SELFCERT_DOMAIN1!$B:$U,5,FALSE),"No Provider") -> No Provider | H13: =IFERROR(VLOOKUP('BSC Summary'!$A$4&"_"&H9,CCG_PROV_SELFCERT_DOMAIN1!$B:$U,5,FALSE),"No Provider") -> No Provider | I13: =IFERROR(VLOOKUP('BSC Summary'!$A$4&"_"&I9,CCG_PROV_SELFCERT_DOMAIN1!$B:$U,5,FALSE),"No Provider") -> No Provider | J13: =IFERROR(VLOOKUP('BSC Summary'!$A$4&"_"&J9,CCG_PROV_SELFCERT_DOMAIN1!$B:$U,5,FALSE),"No Provider") -> No Provider | K13: =IFERROR(VLOOKUP('BSC Summary'!$A$4&"_"&K9,CCG_PROV_SELFCERT_DOMAIN1!$B:$U,5,FALSE),"No Provider") -> No Provider | L13: =IFERROR(VLOOKUP('BSC Summary'!$A$4&"_"&L9,CCG_PROV_SELFCERT_DOMAIN1!$B:$U,5,FALSE),"No Provider") -> No Provider
A14: Has local provider been subject to local enforcement action by the CQC? | B14: Has local provider been subject to local enforcement action by the CQC? | C14: =IFERROR(VLOOKUP('BSC Summary'!$A$4&"_"&C9,CCG_PROV_SELFCERT_DOMAIN1!$B:$U,6,FALSE),"No Provider") -> No | D14: =IFERROR(VLOOKUP('BSC Summary'!$A$4&"_"&D9,CCG_PROV_SELFCERT_DOMAIN1!$B:$U,6,FALSE),"No Provider") -> No | E14: =IFERROR(VLOOKUP('BSC Summary'!$A$4&"_"&E9,CCG_PROV_SELFCERT_DOMAIN1!$B:$U,6,FALSE),"No Provider") -> No Provider | F14: =IFERROR(VLOOKUP('BSC Summary'!$A$4&"_"&F9,CCG_PROV_SELFCERT_DOMAIN1!$B:$U,6,FALSE),"No Provider") -> No Provider | G14: =IFERROR(VLOOKUP('BSC Summary'!$A$4&"_"&G9,CCG_PROV_SELFCERT_DOMAIN1!$B:$U,6,FALSE),"No Provider") -> No Provider | H14: =IFERROR(VLOOKUP('BSC Summary'!$A$4&"_"&H9,CCG_PROV_SELFCERT_DOMAIN1!$B:$U,6,FALSE),"No Provider") -> No Provider | I14: =IFERROR(VLOOKUP('BSC Summary'!$A$4&"_"&I9,CCG_PROV_SELFCERT_DOMAIN1!$B:$U,6,FALSE),"No Provider") -> No Provider | J14: =IFERROR(VLOOKUP('BSC Summary'!$A$4&"_"&J9,CCG_PROV_SELFCERT_DOMAIN1!$B:$U,6,FALSE),"No Provider") -> No Provider | K14: =IFERROR(VLOOKUP('BSC Summary'!$A$4&"_"&K9,CCG_PROV_SELFCERT_DOMAIN1!$B:$U,6,FALSE),"No Provider") -> No Provider | L14: =IFERROR(VLOOKUP('BSC Summary'!$A$4&"_"&L9,CCG_PROV_SELFCERT_DOMAIN1!$B:$U,6,FALSE),"No Provider") -> No Provider
A15: Has local provider been flagged as a 'quality compliance risk' by Monitor and/or are requirements in place around breaches of provider licence conditions? | B15: Has local provider been flagged as a 'quality compliance risk' by Monitor and/or are requirements in place around breaches of provider licence conditions? | C15: =IFERROR(VLOOKUP('BSC Summary'!$A$4&"_"&C9,CCG_PROV_SELFCERT_DOMAIN1!$B:$U,7,FALSE),"No Provider") -> Yes – Action plan in place | D15: =IFERROR(VLOOKUP('BSC Summary'!$A$4&"_"&D9,CCG_PROV_SELFCERT_DOMAIN1!$B:$U,7,FALSE),"No Provider") -> No | E15: =IFERROR(VLOOKUP('BSC Summary'!$A$4&"_"&E9,CCG_PROV_SELFCERT_DOMAIN1!$B:$U,7,FALSE),"No Provider") -> No Provider | F15: =IFERROR(VLOOKUP('BSC Summary'!$A$4&"_"&F9,CCG_PROV_SELFCERT_DOMAIN1!$B:$U,7,FALSE),"No Provider") -> No Provider | G15: =IFERROR(VLOOKUP('BSC Summary'!$A$4&"_"&G9,CCG_PROV_SELFCERT_DOMAIN1!$B:$U,7,FALSE),"No Provider") -> No Provider | H15: =IFERROR(VLOOKUP('BSC Summary'!$A$4&"_"&H9,CCG_PROV_SELFCERT_DOMAIN1!$B:$U,7,FALSE),"No Provider") -> No Provider | I15: =IFERROR(VLOOKUP('BSC Summary'!$A$4&"_"&I9,CCG_PROV_SELFCERT_DOMAIN1!$B:$U,7,FALSE),"No Provider") -> No Provider | J15: =IFERROR(VLOOKUP('BSC Summary'!$A$4&"_"&J9,CCG_PROV_SELFCERT_DOMAIN1!$B:$U,7,FALSE),"No Provider") -> No Provider | K15: =IFERROR(VLOOKUP('BSC Summary'!$A$4&"_"&K9,CCG_PROV_SELFCERT_DOMAIN1!$B:$U,7,FALSE),"No Provider") -> No Provider | L15: =IFERROR(VLOOKUP('BSC Summary'!$A$4&"_"&L9,CCG_PROV_SELFCERT_DOMAIN1!$B:$U,7,FALSE),"No Provider") -> No Provider
A16: Has local provider been subject to enforcement action by the NHS TDA based on 'quality' risk? | B16: Has local provider been subject to enforcement action by the NHS TDA based on 'quality' risk? | C16: =IFERROR(VLOOKUP('BSC Summary'!$A$4&"_"&C9,CCG_PROV_SELFCERT_DOMAIN1!$B:$U,8,FALSE),"No Provider") -> No | D16: =IFERROR(VLOOKUP('BSC Summary'!$A$4&"_"&D9,CCG_PROV_SELFCERT_DOMAIN1!$B:$U,8,FALSE),"No Provider") -> No | E16: =IFERROR(VLOOKUP('BSC Summary'!$A$4&"_"&E9,CCG_PROV_SELFCERT_DOMAIN1!$B:$U,8,FALSE),"No Provider") -> No Provider | F16: =IFERROR(VLOOKUP('BSC Summary'!$A$4&"_"&F9,CCG_PROV_SELFCERT_DOMAIN1!$B:$U,8,FALSE),"No Provider") -> No Provider | G16: =IFERROR(VLOOKUP('BSC Summary'!$A$4&"_"&G9,CCG_PROV_SELFCERT_DOMAIN1!$B:$U,8,FALSE),"No Provider") -> No Provider | H16: =IFERROR(VLOOKUP('BSC Summary'!$A$4&"_"&H9,CCG_PROV_SELFCERT_DOMAIN1!$B:$U,8,FALSE),"No Provider") -> No Provider | I16: =IFERROR(VLOOKUP('BSC Summary'!$A$4&"_"&I9,CCG_PROV_SELFCERT_DOMAIN1!$B:$U,8,FALSE),"No Provider") -> No Provider | J16: =IFERROR(VLOOKUP('BSC Summary'!$A$4&"_"&J9,CCG_PROV_SELFCERT_DOMAIN1!$B:$U,8,FALSE),"No Provider") -> No Provider | K16: =IFERROR(VLOOKUP('BSC Summary'!$A$4&"_"&K9,CCG_PROV_SELFCERT_DOMAIN1!$B:$U,8,FALSE),"No Provider") -> No Provider | L16: =IFERROR(VLOOKUP('BSC Summary'!$A$4&"_"&L9,CCG_PROV_SELFCERT_DOMAIN1!$B:$U,8,FALSE),"No Provider") -> No Provider
A17: Does feedback from the Friends and Family test (or any other patient feedback) indicate any causes for concern? | B17: Does feedback from the Friends and Family test (or any other patient feedback) indicate any causes for concern? | C17: =IFERROR(VLOOKUP('BSC Summary'!$A$4&"_"&C9,CCG_PROV_SELFCERT_DOMAIN1!$B:$U,9,FALSE),"No Provider") -> Yes – Action plan in place | D17: =IFERROR(VLOOKUP('BSC Summary'!$A$4&"_"&D9,CCG_PROV_SELFCERT_DOMAIN1!$B:$U,9,FALSE),"No Provider") -> No | E17: =IFERROR(VLOOKUP('BSC Summary'!$A$4&"_"&E9,CCG_PROV_SELFCERT_DOMAIN1!$B:$U,9,FALSE),"No Provider") -> No Provider | F17: =IFERROR(VLOOKUP('BSC Summary'!$A$4&"_"&F9,CCG_PROV_SELFCERT_DOMAIN1!$B:$U,9,FALSE),"No Provider") -> No Provider | G17: =IFERROR(VLOOKUP('BSC Summary'!$A$4&"_"&G9,CCG_PROV_SELFCERT_DOMAIN1!$B:$U,9,FALSE),"No Provider") -> No Provider | H17: =IFERROR(VLOOKUP('BSC Summary'!$A$4&"_"&H9,CCG_PROV_SELFCERT_DOMAIN1!$B:$U,9,FALSE),"No Provider") -> No Provider | I17: =IFERROR(VLOOKUP('BSC Summary'!$A$4&"_"&I9,CCG_PROV_SELFCERT_DOMAIN1!$B:$U,9,FALSE),"No Provider") -> No Provider | J17: =IFERROR(VLOOKUP('BSC Summary'!$A$4&"_"&J9,CCG_PROV_SELFCERT_DOMAIN1!$B:$U,9,FALSE),"No Provider") -> No Provider | K17: =IFERROR(VLOOKUP('BSC Summary'!$A$4&"_"&K9,CCG_PROV_SELFCERT_DOMAIN1!$B:$U,9,FALSE),"No Provider") -> No Provider | L17: =IFERROR(VLOOKUP('BSC Summary'!$A$4&"_"&L9,CCG_PROV_SELFCERT_DOMAIN1!$B:$U,9,FALSE),"No Provider") -> No Provider
A18: Has the provider been identified as a 'negative outlier' on SMHI or HSMR? | B18: Has the provider been identified as a 'negative outlier' on SMHI or HSMR? | C18: =IFERROR(VLOOKUP('BSC Summary'!$A$4&"_"&C9,CCG_PROV_SELFCERT_DOMAIN1!$B:$U,10,FALSE),"No Provider") -> No | D18: =IFERROR(VLOOKUP('BSC Summary'!$A$4&"_"&D9,CCG_PROV_SELFCERT_DOMAIN1!$B:$U,10,FALSE),"No Provider") -> No | E18: =IFERROR(VLOOKUP('BSC Summary'!$A$4&"_"&E9,CCG_PROV_SELFCERT_DOMAIN1!$B:$U,10,FALSE),"No Provider") -> No Provider | F18: =IFERROR(VLOOKUP('BSC Summary'!$A$4&"_"&F9,CCG_PROV_SELFCERT_DOMAIN1!$B:$U,10,FALSE),"No Provider") -> No Provider | G18: =IFERROR(VLOOKUP('BSC Summary'!$A$4&"_"&G9,CCG_PROV_SELFCERT_DOMAIN1!$B:$U,10,FALSE),"No Provider") -> No Provider | H18: =IFERROR(VLOOKUP('BSC Summary'!$A$4&"_"&H9,CCG_PROV_SELFCERT_DOMAIN1!$B:$U,10,FALSE),"No Provider") -> No Provider | I18: =IFERROR(VLOOKUP('BSC Summary'!$A$4&"_"&I9,CCG_PROV_SELFCERT_DOMAIN1!$B:$U,10,FALSE),"No Provider") -> No Provider | J18: =IFERROR(VLOOKUP('BSC Summary'!$A$4&"_"&J9,CCG_PROV_SELFCERT_DOMAIN1!$B:$U,10,FALSE),"No Provider") -> No Provider | K18: =IFERROR(VLOOKUP('BSC Summary'!$A$4&"_"&K9,CCG_PROV_SELFCERT_DOMAIN1!$B:$U,10,FALSE),"No Provider") -> No Provider | L18: =IFERROR(VLOOKUP('BSC Summary'!$A$4&"_"&L9,CCG_PROV_SELFCERT_DOMAIN1!$B:$U,10,FALSE),"No Provider") -> No Provider
A19: Do provider level indicators from the National Quality Dashboard show that MRSA cases are above zero? | B19: Do provider level indicators from the National Quality Dashboard show that MRSA cases are above zero? | C19: =IFERROR(VLOOKUP('BSC Summary'!$A$4&"_"&C9,CCG_PROV_SELFCERT_DOMAIN1!$B:$U,11,FALSE),"No Provider") -> No | D19: =IFERROR(VLOOKUP('BSC Summary'!$A$4&"_"&D9,CCG_PROV_SELFCERT_DOMAIN1!$B:$U,11,FALSE),"No Provider") -> No | E19: =IFERROR(VLOOKUP('BSC Summary'!$A$4&"_"&E9,CCG_PROV_SELFCERT_DOMAIN1!$B:$U,11,FALSE),"No Provider") -> No Provider | F19: =IFERROR(VLOOKUP('BSC Summary'!$A$4&"_"&F9,CCG_PROV_SELFCERT_DOMAIN1!$B:$U,11,FALSE),"No Provider") -> No Provider | G19: =IFERROR(VLOOKUP('BSC Summary'!$A$4&"_"&G9,CCG_PROV_SELFCERT_DOMAIN1!$B:$U,11,FALSE),"No Provider") -> No Provider | H19: =IFERROR(VLOOKUP('BSC Summary'!$A$4&"_"&H9,CCG_PROV_SELFCERT_DOMAIN1!$B:$U,11,FALSE),"No Provider") -> No Provider | I19: =IFERROR(VLOOKUP('BSC Summary'!$A$4&"_"&I9,CCG_PROV_SELFCERT_DOMAIN1!$B:$U,11,FALSE),"No Provider") -> No Provider | J19: =IFERROR(VLOOKUP('BSC Summary'!$A$4&"_"&J9,CCG_PROV_SELFCERT_DOMAIN1!$B:$U,11,FALSE),"No Provider") -> No Provider | K19: =IFERROR(VLOOKUP('BSC Summary'!$A$4&"_"&K9,CCG_PROV_SELFCERT_DOMAIN1!$B:$U,11,FALSE),"No Provider") -> No Provider | L19: =IFERROR(VLOOKUP('BSC Summary'!$A$4&"_"&L9,CCG_PROV_SELFCERT_DOMAIN1!$B:$U,11,FALSE),"No Provider") -> No Provider
A20: Do provider level indicators from the National Quality Dashboard show that the provider has reported more C difficile cases than trajectory? | B20: Do provider level indicators from the National Quality Dashboard show that the provider has reported more C difficile cases than trajectory? | C20: =IFERROR(VLOOKUP('BSC Summary'!$A$4&"_"&C9,CCG_PROV_SELFCERT_DOMAIN1!$B:$U,12,FALSE),"No Provider") -> No | D20: =IFERROR(VLOOKUP('BSC Summary'!$A$4&"_"&D9,CCG_PROV_SELFCERT_DOMAIN1!$B:$U,12,FALSE),"No Provider") -> No | E20: =IFERROR(VLOOKUP('BSC Summary'!$A$4&"_"&E9,CCG_PROV_SELFCERT_DOMAIN1!$B:$U,12,FALSE),"No Provider") -> No Provider | F20: =IFERROR(VLOOKUP('BSC Summary'!$A$4&"_"&F9,CCG_PROV_SELFCERT_DOMAIN1!$B:$U,12,FALSE),"No Provider") -> No Provider | G20: =IFERROR(VLOOKUP('BSC Summary'!$A$4&"_"&G9,CCG_PROV_SELFCERT_DOMAIN1!$B:$U,12,FALSE),"No Provider") -> No Provider | H20: =IFERROR(VLOOKUP('BSC Summary'!$A$4&"_"&H9,CCG_PROV_SELFCERT_DOMAIN1!$B:$U,12,FALSE),"No Provider") -> No Provider | I20: =IFERROR(VLOOKUP('BSC Summary'!$A$4&"_"&I9,CCG_PROV_SELFCERT_DOMAIN1!$B:$U,12,FALSE),"No Provider") -> No Provider | J20: =IFERROR(VLOOKUP('BSC Summary'!$A$4&"_"&J9,CCG_PROV_SELFCERT_DOMAIN1!$B:$U,12,FALSE),"No Provider") -> No Provider | K20: =IFERROR(VLOOKUP('BSC Summary'!$A$4&"_"&K9,CCG_PROV_SELFCERT_DOMAIN1!$B:$U,12,FALSE),"No Provider") -> No Provider | L20: =IFERROR(VLOOKUP('BSC Summary'!$A$4&"_"&L9,CCG_PROV_SELFCERT_DOMAIN1!$B:$U,12,FALSE),"No Provider") -> No Provider
A21: Do provider level indicators from the National Quality Dashboard show that MSA breaches are above zero? | B21: Do provider level indicators from the National Quality Dashboard show that MSA breaches are above zero? | C21: =IFERROR(VLOOKUP('BSC Summary'!$A$4&"_"&C9,CCG_PROV_SELFCERT_DOMAIN1!$B:$U,13,FALSE),"No Provider") -> No | D21: =IFERROR(VLOOKUP('BSC Summary'!$A$4&"_"&D9,CCG_PROV_SELFCERT_DOMAIN1!$B:$U,13,FALSE),"No Provider") -> No | E21: =IFERROR(VLOOKUP('BSC Summary'!$A$4&"_"&E9,CCG_PROV_SELFCERT_DOMAIN1!$B:$U,13,FALSE),"No Provider") -> No Provider | F21: =IFERROR(VLOOKUP('BSC Summary'!$A$4&"_"&F9,CCG_PROV_SELFCERT_DOMAIN1!$B:$U,13,FALSE),"No Provider") -> No Provider | G21: =IFERROR(VLOOKUP('BSC Summary'!$A$4&"_"&G9,CCG_PROV_SELFCERT_DOMAIN1!$B:$U,13,FALSE),"No Provider") -> No Provider | H21: =IFERROR(VLOOKUP('BSC Summary'!$A$4&"_"&H9,CCG_PROV_SELFCERT_DOMAIN1!$B:$U,13,FALSE),"No Provider") -> No Provider | I21: =IFERROR(VLOOKUP('BSC Summary'!$A$4&"_"&I9,CCG_PROV_SELFCERT_DOMAIN1!$B:$U,13,FALSE),"No Provider") -> No Provider | J21: =IFERROR(VLOOKUP('BSC Summary'!$A$4&"_"&J9,CCG_PROV_SELFCERT_DOMAIN1!$B:$U,13,FALSE),"No Provider") -> No Provider | K21: =IFERROR(VLOOKUP('BSC Summary'!$A$4&"_"&K9,CCG_PROV_SELFCERT_DOMAIN1!$B:$U,13,FALSE),"No Provider") -> No Provider | L21: =IFERROR(VLOOKUP('BSC Summary'!$A$4&"_"&L9,CCG_PROV_SELFCERT_DOMAIN1!$B:$U,13,FALSE),"No Provider") -> No Provider
A22: Does provider currently have any unclosed Serious Untoward Incidents (SUIs)? | B22: Does provider currently have any unclosed Serious Untoward Incidents (SUIs)? | C22: =IFERROR(VLOOKUP('BSC Summary'!$A$4&"_"&C9,CCG_PROV_SELFCERT_DOMAIN1!$B:$U,14,FALSE),"No Provider") -> Yes – Action plan in place | D22: =IFERROR(VLOOKUP('BSC Summary'!$A$4&"_"&D9,CCG_PROV_SELFCERT_DOMAIN1!$B:$U,14,FALSE),"No Provider") -> Yes – Action plan in place | E22: =IFERROR(VLOOKUP('BSC Summary'!$A$4&"_"&E9,CCG_PROV_SELFCERT_DOMAIN1!$B:$U,14,FALSE),"No Provider") -> No Provider | F22: =IFERROR(VLOOKUP('BSC Summary'!$A$4&"_"&F9,CCG_PROV_SELFCERT_DOMAIN1!$B:$U,14,FALSE),"No Provider") -> No Provider | G22: =IFERROR(VLOOKUP('BSC Summary'!$A$4&"_"&G9,CCG_PROV_SELFCERT_DOMAIN1!$B:$U,14,FALSE),"No Provider") -> No Provider | H22: =IFERROR(VLOOKUP('BSC Summary'!$A$4&"_"&H9,CCG_PROV_SELFCERT_DOMAIN1!$B:$U,14,FALSE),"No Provider") -> No Provider | I22: =IFERROR(VLOOKUP('BSC Summary'!$A$4&"_"&I9,CCG_PROV_SELFCERT_DOMAIN1!$B:$U,14,FALSE),"No Provider") -> No Provider | J22: =IFERROR(VLOOKUP('BSC Summary'!$A$4&"_"&J9,CCG_PROV_SELFCERT_DOMAIN1!$B:$U,14,FALSE),"No Provider") -> No Provider | K22: =IFERROR(VLOOKUP('BSC Summary'!$A$4&"_"&K9,CCG_PROV_SELFCERT_DOMAIN1!$B:$U,14,FALSE),"No Provider") -> No Provider | L22: =IFERROR(VLOOKUP('BSC Summary'!$A$4&"_"&L9,CCG_PROV_SELFCERT_DOMAIN1!$B:$U,14,FALSE),"No Provider") -> No Provider
A23: Has the provider experienced any 'Never Events' during the last quarter? | B23: Has the provider experienced any 'Never Events' during the last quarter? | C23: =IFERROR(VLOOKUP('BSC Summary'!$A$4&"_"&C9,CCG_PROV_SELFCERT_DOMAIN1!$B:$U,15,FALSE),"No Provider") -> No | D23: =IFERROR(VLOOKUP('BSC Summary'!$A$4&"_"&D9,CCG_PROV_SELFCERT_DOMAIN1!$B:$U,15,FALSE),"No Provider") -> No | E23: =IFERROR(VLOOKUP('BSC Summary'!$A$4&"_"&E9,CCG_PROV_SELFCERT_DOMAIN1!$B:$U,15,FALSE),"No Provider") -> No Provider | F23: =IFERROR(VLOOKUP('BSC Summary'!$A$4&"_"&F9,CCG_PROV_SELFCERT_DOMAIN1!$B:$U,15,FALSE),"No Provider") -> No Provider | G23: =IFERROR(VLOOKUP('BSC Summary'!$A$4&"_"&G9,CCG_PROV_SELFCERT_DOMAIN1!$B:$U,15,FALSE),"No Provider") -> No Provider | H23: =IFERROR(VLOOKUP('BSC Summary'!$A$4&"_"&H9,CCG_PROV_SELFCERT_DOMAIN1!$B:$U,15,FALSE),"No Provider") -> No Provider | I23: =IFERROR(VLOOKUP('BSC Summary'!$A$4&"_"&I9,CCG_PROV_SELFCERT_DOMAIN1!$B:$U,15,FALSE),"No Provider") -> No Provider | J23: =IFERROR(VLOOKUP('BSC Summary'!$A$4&"_"&J9,CCG_PROV_SELFCERT_DOMAIN1!$B:$U,15,FALSE),"No Provider") -> No Provider | K23: =IFERROR(VLOOKUP('BSC Summary'!$A$4&"_"&K9,CCG_PROV_SELFCERT_DOMAIN1!$B:$U,15,FALSE),"No Provider") -> No Provider | L23: =IFERROR(VLOOKUP('BSC Summary'!$A$4&"_"&L9,CCG_PROV_SELFCERT_DOMAIN1!$B:$U,15,FALSE),"No Provider") -> No Provider
B25: CCG:
A26: 13 | B26: Clinical Governance
A27: Does the CCG have any outstanding conditions of authorisation in place on clinical governance? | B27: Concerns about quality issues being discussed regularly by the CCG governing body | C27: =IFERROR(VLOOKUP('BSC Summary'!$A$4,CCG_SELFCERT_DOMAIN1!$A:$P,3,FALSE),"No Data") -> No
B28: Has the CCG self-assessed and identified any risks associated with the following:
A29: Has the CCG self assessed and identified any risks associated with concerns around quality issues discussed regularly by the CCG governing body? | B29: Concerns about the arrangements in place to proactively identify early warnings of a failing service | C29: =IFERROR(VLOOKUP('BSC Summary'!$A$4,CCG_SELFCERT_DOMAIN1!$A:$P,4,FALSE),"No Data") -> No
A30: Has the CCG self assessed and identified any risks associated with concerns around the arrangements in place to proactively identify early warnings of a failing service? | B30: Concerns around the arrangements in place to deal with and learn from serious untoward incidents and never events? | C30: =IFERROR(VLOOKUP('BSC Summary'!$A$4,CCG_SELFCERT_DOMAIN1!$A:$P,5,FALSE),"No Data") -> No
A31: Has the CCG self assessed and identified any risks associated with concerns around the arrangements in place to deal with and learn from serious untoward incidents and never events? | B31: Concerns around being an active participant in its Quality Surveillance Group? | C31: =IFERROR(VLOOKUP('BSC Summary'!$A$4,CCG_SELFCERT_DOMAIN1!$A:$P,6,FALSE),"No Data") -> No
A32: 19 | B32: EPRR
A33: If there was an emergency event in the last quarter, has the CCG self assessed and identified any areas of concern on the arrangements in place for dealing with such an event? | B33: If there was an emergency event in the last quarter, has the CCG self assessed and identified any areas of concern on the arrangements in place for dealing with such an event? | C33: =IFERROR(VLOOKUP('BSC Summary'!$A$4,CCG_SELFCERT_DOMAIN1!$A:$P,7,FALSE),"No Data") -> No
A34: 21 | B34: Winterbourne View
A35: Has the CCG self assessed and identified any risk to progress against its Winterbourne View action plan? | B35: Has the CCG self assessed and identified any risk to progress against its Winterbourne View action plan? | C35: =IFERROR(VLOOKUP('BSC Summary'!$A$4,CCG_SELFCERT_DOMAIN1!$A:$P,8,FALSE),"No Data") -> No
C36: =COUNTIF(C26:C35,"Please select option") -> 0
B37: Domain 1 Status | C37: =IF($D$62>=1, "RED", IF($C$62>=1, "AMBER-RED", IF($B$62>=1, "AMBER-GREEN", IF($E$62>=0, "GREEN")))) -> AMBER-GREEN
B38: Domain 1 - RAG Criteria
B40: Please select option
B41: Yes - Action plan in place | C41: =IF(F62>=1,"Self-certification complete","Self-certification incomplete") -> Self-certification complete
B42: Yes - No action plan in place
B44: rr
F60: TOTAL
B61: Yes – Action plan in place | C61: Yes – No action plan in place | D61: Yes – Enforcement Action | E61: No
B62: =SUMPRODUCT(--ISNUMBER(SEARCH($B$61,C14:L21)))+SUMPRODUCT(--ISNUMBER(SEARCH($B$61,C23:L35))) -> 2 | C62: =SUMPRODUCT(--ISNUMBER(SEARCH($C$61,C14:L21)))+SUMPRODUCT(--ISNUMBER(SEARCH($C$61,C23:L35))) -> 0 | D62: =SUMPRODUCT(--ISNUMBER(SEARCH($D$61,C14:L14))) -> 0 | E62: =COUNTIF(C14:L21,"No")+COUNTIF(C23:L35,"No") -> 22 | F62: =SUM(B62:E62) -> 24
B63: =IF(B62>=1, "AMBER GREEN", "") -> AMBER GREEN | C63: =IF(C62>=1, "AMBER RED", "") ->  | D63: =IF(D62>=1, "RED", "") ->  | E63: =IF(E62>=0, "GREEN", "") -> GREEN
B65: TOTAL | C65: =IF($D$62>=1, "RED", IF($C$62>=1, "AMBER-RED", IF($B$62>=1, "AMBER GREEN", IF($E$62>=0, "GREEN")))) -> AMBER GREEN | D65: =SUM(B62+C62+D62) -> 2
A67: Provider 1 | B67: =SUMPRODUCT(--ISNUMBER(SEARCH($B$61,C14:C23))) -> 3 | C67: =SUMPRODUCT(--ISNUMBER(SEARCH($C$61,$C$14:$C$23))) -> 0 | D67: =SUMPRODUCT(--ISNUMBER(SEARCH($D$61,$C$14:$C$23))) -> 0 | E67: =COUNTIF($C$14:$C$23,"No") -> 7
A68: Provider 2 | B68: =SUMPRODUCT(--ISNUMBER(SEARCH($B$61,$D$14:$D$24))) -> 1 | C68: =SUMPRODUCT(--ISNUMBER(SEARCH($C$61,$D$14:$D$24))) -> 0 | D68: =SUMPRODUCT(--ISNUMBER(SEARCH($D$61,$D$14:$D$24))) -> 0 | E68: =COUNTIF($D$14:$D$24,"No") -> 9
A69: Provider 3 | B69: =SUMPRODUCT(--ISNUMBER(SEARCH($B$61,$E$14:$E$24))) -> 0 | C69: =SUMPRODUCT(--ISNUMBER(SEARCH($C$61,$E$14:$E$24))) -> 0 | D69: =SUMPRODUCT(--ISNUMBER(SEARCH($D$61,$E$14:$E$24))) -> 0 | E69: =COUNTIF($E$14:$E$24,"No") -> 0
A70: Provider 4 | B70: =SUMPRODUCT(--ISNUMBER(SEARCH($B$61,$F$14:$F$24))) -> 0 | C70: =SUMPRODUCT(--ISNUMBER(SEARCH($C$61,$F$14:$F$24))) -> 0 | D70: =SUMPRODUCT(--ISNUMBER(SEARCH($D$61,$F$14:$F$24))) -> 0 | E70: =COUNTIF($F$14:$F$24,"No") -> 0
A71: Provider 5 | B71: =SUMPRODUCT(--ISNUMBER(SEARCH($B$61,$G$14:$G$24))) -> 0 | C71: =SUMPRODUCT(--ISNUMBER(SEARCH($C$61,$G$14:$G$24))) -> 0 | D71: =SUMPRODUCT(--ISNUMBER(SEARCH($D$61,$G$14:$G$24))) -> 0 | E71: =COUNTIF($G$14:$G$24,"No") -> 0
A72: Provider 6 | B72: =SUMPRODUCT(--ISNUMBER(SEARCH($B$61,$H$14:$H$24))) -> 0 | C72: =SUMPRODUCT(--ISNUMBER(SEARCH($C$61,$H$14:$H$24))) -> 0 | D72: =SUMPRODUCT(--ISNUMBER(SEARCH($D$61,$H$14:$H$24))) -> 0 | E72: =COUNTIF($H$14:$H$24,"No") -> 0
A73: Provider 7 | B73: =SUMPRODUCT(--ISNUMBER(SEARCH($B$61,$I$14:$I$24))) -> 0 | C73: =SUMPRODUCT(--ISNUMBER(SEARCH($C$61,$I$14:$I$24))) -> 0 | D73: =SUMPRODUCT(--ISNUMBER(SEARCH($D$61,$I$14:$I$24))) -> 0 | E73: =COUNTIF($I$14:$I$24,"No") -> 0
A74: Provider 8 | B74: =SUMPRODUCT(--ISNUMBER(SEARCH($B$61,$J$14:$J$24))) -> 0 | C74: =SUMPRODUCT(--ISNUMBER(SEARCH($C$61,$J$14:$J$24))) -> 0 | D74: =SUMPRODUCT(--ISNUMBER(SEARCH($D$61,$J$14:$J$24))) -> 0 | E74: =COUNTIF($J$14:$J$24,"No") -> 0
A75: Provider 9 | B75: =SUMPRODUCT(--ISNUMBER(SEARCH($B$61,$K$14:$K$24))) -> 0 | C75: =SUMPRODUCT(--ISNUMBER(SEARCH($C$61,$K$14:$K$24))) -> 0 | D75: =SUMPRODUCT(--ISNUMBER(SEARCH($D$61,$K$14:$K$24))) -> 0 | E75: =COUNTIF($K$14:$K$24,"No") -> 0
A76: Provider 10 | B76: =SUMPRODUCT(--ISNUMBER(SEARCH($B$61,$L$14:$L$24))) -> 0 | C76: =SUMPRODUCT(--ISNUMBER(SEARCH($C$61,$L$14:$L$24))) -> 0 | D76: =SUMPRODUCT(--ISNUMBER(SEARCH($D$61,$L$14:$L$24))) -> 0 | E76: =COUNTIF($L$14:$L$24,"No") -> 0
A77: CCG | B77: =SUMPRODUCT(--ISNUMBER(SEARCH($B$61,$C$27:$C$35))) -> 0 | C77: =SUMPRODUCT(--ISNUMBER(SEARCH($C$61,$C$27:$C$35))) -> 0 | D77: =SUMPRODUCT(--ISNUMBER(SEARCH($D$61,$C$27:$C$35))) -> 0 | E77: =COUNTIF($C$27:$C$35,"No") -> 6
A78: TOTAL | B78: =SUM(B67:B77) -> 4 | C78: =SUM(C67:C77) -> 0 | D78: =SUM(D67:D77) -> 0 | E78: =SUM(E67:E77) -> 22
B79: =IF(B78>=1, "AMBER GREEN", "") -> AMBER GREEN | C79: =IF(C78>=1, "AMBER RED", "") ->  | D79: =IF(D78>=1, "RED", "") ->  | E79: =IF(E78>=0, "GREEN", "") -> GREEN
C80: =IF($D$78>=1, "RED", IF($C$78>=1, "AMBER-RED", IF($B$78>=1, "AMBER GREEN", IF($E$78>=0, "GREEN")))) -> AMBER GREEN

Sheet Domain 2
C6: Domain 2 - Are patient rights under the NHS Constitution being promoted?
D7: =VLOOKUP('BSC Summary'!$A$3,Lookup!$A:$C,2,FALSE) -> NHS Rotherham CCG | F7: 2013-14 | G7: 2013-14 | H7: June
C8: Indicator | D8: Operational Standard | E8: Lower Threshold | F8: Current QTD Performance | G8: YTD Performance | I8: 13-14 Q1 | J8: 13-14 YTD
C9: Referral to Treatment waiting times for non urgent consultant led treatment | I9: 2013-14 Q1
A10: Admitted patients to start treatment within a maximum of 18 weeks from referral | C10: Admitted patients to start treatment within a maximum of 18 weeks from referral | D10: 0.9 | E10: 0.85 | F10: =IF(ISERROR(VLOOKUP('BSC Summary'!$A$4&"_"&$I$8,CUBE_EXTRACT_RTT!$A:$G,2,FALSE)),0,VLOOKUP('BSC Summary'!$A$4&"_"&$I$8,CUBE_EXTRACT_RTT!$A:$G,2,FALSE)) -> 0.9471432167 | G10: =IF(ISERROR(VLOOKUP('BSC Summary'!$A$4&"_"&$J$8,CUBE_EXTRACT_RTT!$A:$G,2,FALSE)),0,VLOOKUP('BSC Summary'!$A$4&"_"&$J$8,CUBE_EXTRACT_RTT!$A:$G,2,FALSE)) -> 0.9471432167 | N10: =IF(F10>=D10,"GREEN",IF(F10=0%,"NA",IF(AND(F10<D10,F10>=E10),"AMBER",IF(F10<E10,"RED")))) -> GREEN | O10: =F10 -> 0.9471432167 | P10: =IF(O10>=90%,"GREEN",IF(F10=0%,"NA",IF(AND(O10<90%,O10>=85%),"AMBER",IF(O10<85%,"RED")))) -> GREEN
A11: Non-admitted patients to start treatment within a maximum of 18 weeks from referral | C11: Non-admitted patients to start treatment within a maximum of 18 weeks from referral | D11: 0.95 | E11: 0.9 | F11: =IF(ISERROR(VLOOKUP('BSC Summary'!$A$4&"_"&$I$8,CUBE_EXTRACT_RTT!$A:$G,3,FALSE)),0,VLOOKUP('BSC Summary'!$A$4&"_"&$I$8,CUBE_EXTRACT_RTT!$A:$G,3,FALSE)) -> 0.9777195282 | G11: =IF(ISERROR(VLOOKUP('BSC Summary'!$A$4&"_"&$J$8,CUBE_EXTRACT_RTT!$A:$G,3,FALSE)),0,VLOOKUP('BSC Summary'!$A$4&"_"&$J$8,CUBE_EXTRACT_RTT!$A:$G,3,FALSE)) -> 0.9777195282 | N11: =IF(F11>=D11,"GREEN",IF(F11=0%,"NA",IF(AND(F11<D11,F11>=E11),"AMBER",IF(F11<E11,"RED")))) -> GREEN | O11: =F11 -> 0.9777195282 | P11: =IF(O11>=95%,"GREEN",IF(F11=0%,"NA",IF(AND(O11<95%,O11>=90%),"AMBER",IF(O11<90%,"RED")))) -> GREEN
A12: Patients on incomplete non emergency pathways (yet to start treatment) should have been waiting no more | C12: Patients on incomplete non emergency pathways (yet to start treatment) should have been waiting no more | D12: 0.92 | E12: 0.87 | F12: =IF(ISERROR(VLOOKUP('BSC Summary'!$A$4&"_"&$I$8,CUBE_EXTRACT_RTT!$A:$G,4,FALSE)),0,VLOOKUP('BSC Summary'!$A$4&"_"&$I$8,CUBE_EXTRACT_RTT!$A:$G,4,FALSE)) -> 0.9647023927 | G12: =IF(ISERROR(VLOOKUP('BSC Summary'!$A$4&"_"&$J$8,CUBE_EXTRACT_RTT!$A:$G,4,FALSE)),0,VLOOKUP('BSC Summary'!$A$4&"_"&$J$8,CUBE_EXTRACT_RTT!$A:$G,4,FALSE)) -> 0.9647023927 | N12: =IF(F12>=D12,"GREEN",IF(F12=0%,"NA",IF(AND(F12<D12,F12>=E12),"AMBER",IF(F12<E12,"RED")))) -> GREEN | O12: =F12 -> 0.9647023927 | P12: =IF(O12>=92%,"GREEN",IF(F12=0%,"NA",IF(AND(O12<92%,O12>=87%),"AMBER",IF(O12<87%,"RED")))) -> GREEN
A13: Number of patients waiting more than 52 weeks | C13: Number of patients waiting more than 52 weeks | D13: 0 | E13: 10 | F13: =IF(ISERROR(VLOOKUP('BSC Summary'!$A$4&"_"&$I$8,CUBE_EXTRACT_RTT!$A:$G,5,FALSE)),0,VLOOKUP('BSC Summary'!$A$4&"_"&$I$8,CUBE_EXTRACT_RTT!$A:$G,5,FALSE)) -> 1 | G13: =IF(ISERROR(VLOOKUP('BSC Summary'!$A$4&"_"&$J$8,CUBE_EXTRACT_RTT!$A:$G,5,FALSE)),0,VLOOKUP('BSC Summary'!$A$4&"_"&$J$8,CUBE_EXTRACT_RTT!$A:$G,5,FALSE)) -> 1 | N13: =IF(F13=D13,"GREEN",IF(AND(F13>D13,F13<=E13),"AMBER",IF(F13>=E13,"RED"))) -> AMBER | O13: =F13 -> 1 | P13: =IF(F13=0,"GREEN",IF(F13=0%,"NA",IF(AND(F13>0,F13<=10),"AMBER",IF(F13>10,"RED")))) -> AMBER
C14: Diagnostic test waiting times
A15: Patients waiting for a diagnostic test should have been waiting less than 6 weeks from referral | C15: Percentage of Patients waiting 6 weeks or more for a diagnostic test | D15: 0.01 | E15: 0.06 | F15: =IF(ISERROR(VLOOKUP('BSC Summary'!$A$4&"_"&$I$8,CUBE_EXTRACT_DIAGNOSTICS!$A:$D,2,FALSE)),0,VLOOKUP('BSC Summary'!$A$4&"_"&$I$8,CUBE_EXTRACT_DIAGNOSTICS!$A:$D,2,FALSE)) -> 0.004062038405 | G15: =IF(ISERROR(VLOOKUP('BSC Summary'!$A$4&"_"&$J$8,CUBE_EXTRACT_DIAGNOSTICS!$A:$D,2,FALSE)),0,VLOOKUP('BSC Summary'!$A$4&"_"&$J$8,CUBE_EXTRACT_DIAGNOSTICS!$A:$D,2,FALSE)) -> 0.004062038405 | N15: =IF(F15>E15,"RED",IF(F15=0%,"NA",IF(F15<=D15,"GREEN",IF(AND(F15>D15,F15<E15),"AMBER")))) -> GREEN | O15: =F15 -> 0.004062038405 | P15: =IF(O15>6%,"RED",IF(F15=0,"NA",IF(O15<=1%,"GREEN",IF(AND(O15>1%,O15<6%),"AMBER")))) -> GREEN
C16: A & E waits
A17: [Provider 1]Patients should be admitted, transferred or discharged within 4 hours of their arrival at an A&E department | C17: [Provider 1]Patients should be admitted, transferred or discharged within 4 hours of their arrival at an A&E department | D17: 0.95 | E17: 0.9 | F17: =IF(ISERROR(VLOOKUP($I$9&"_"&'Domain 1'!$C$11,CUBE_EXTRACT_AE!$A:$E,2,FALSE)),0,VLOOKUP($I$9&"_"&'Domain 1'!$C$11,CUBE_EXTRACT_AE!$A:$E,2,FALSE)) -> 0.9417779191 | G17: =IF(ISERROR(VLOOKUP($J$8&"_"&'Domain 1'!$C$11,CUBE_EXTRACT_AE!$A:$E,2,FALSE)),0,VLOOKUP($J$8&"_"&'Domain 1'!$C$11,CUBE_EXTRACT_AE!$A:$E,2,FALSE)) -> 0.9417779191 | H17: =IFERROR(VLOOKUP('Domain 1'!$C$11,CCG_PROV_SELFCERT_DOMAIN1!$C:$E,2,FALSE),"No Provider") -> THE ROTHERHAM NHS FOUNDATION TRUST | N17: =IF(F17>=D17,"GREEN",IF(F17=0%,"NA",IF(AND(F17<D17,F17>=E17),"AMBER",IF(F17<E17,"RED")))) -> AMBER | O17: =F17 -> 0.9417779191 | P17: =IF(O17>=95%,"GREEN",IF(F17=0%,"NA",IF(AND(O17<95%,O17>=90%),"AMBER",IF(O17<90%,"RED")))) -> AMBER
A18: [Provider 2]Patients should be admitted, transferred or discharged within 4 hours of their arrival at an A&E department | C18: [Provider 2]Patients should be admitted, transferred or discharged within 4 hours of their arrival at an A&E department | D18: 0.95 | E18: 0.9 | F18: =IF(ISERROR(VLOOKUP($I$9&"_"&'Domain 1'!$D$11,CUBE_EXTRACT_AE!$A:$E,2,FALSE)),0,VLOOKUP($I$9&"_"&'Domain 1'!$D$11,CUBE_EXTRACT_AE!$A:$E,2,FALSE)) -> 0 | G18: =IF(ISERROR(VLOOKUP($J$8&"_"&'Domain 1'!$D$11,CUBE_EXTRACT_AE!$A:$E,2,FALSE)),0,VLOOKUP($J$8&"_"&'Domain 1'!$D$11,CUBE_EXTRACT_AE!$A:$E,2,FALSE)) -> 0 | H18: =IFERROR(VLOOKUP('Domain 1'!$D$11,CCG_PROV_SELFCERT_DOMAIN1!$C:$E,2,FALSE),"No Provider") -> ROTHERHAM, DONCASTER AND SOUTH HUMBER NHS FOUNDATION TRUST | N18: =IF(F18>=D18,"GREEN",IF(F18=0%,"NA",IF(AND(F18<D18,F18>=E18),"AMBER",IF(F18<E18,"RED")))) -> NA | O18: =F18 -> 0 | P18: =IF(O18>=95%,"GREEN",IF(F18=0%,"NA",IF(AND(O18<95%,O18>=90%),"AMBER",IF(O18<90%,"RED")))) -> NA
A19: [Provider 3]Patients should be admitted, transferred or discharged within 4 hours of their arrival at an A&E department | C19: [Provider 3]Patients should be admitted, transferred or discharged within 4 hours of their arrival at an A&E department | D19: 0.95 | E19: 0.9 | F19: =IF(ISERROR(VLOOKUP($I$9&"_"&'Domain 1'!$E$11,CUBE_EXTRACT_AE!$A:$E,2,FALSE)),0,VLOOKUP($I$9&"_"&'Domain 1'!$E$11,CUBE_EXTRACT_AE!$A:$E,2,FALSE)) -> 0 | G19: =IF(ISERROR(VLOOKUP($J$8&"_"&'Domain 1'!$E$11,CUBE_EXTRACT_AE!$A:$E,2,FALSE)),0,VLOOKUP($J$8&"_"&'Domain 1'!$E$11,CUBE_EXTRACT_AE!$A:$E,2,FALSE)) -> 0 | H19: =IFERROR(VLOOKUP('Domain 1'!$E$11,CCG_PROV_SELFCERT_DOMAIN1!$C:$E,2,FALSE),"No Provider") -> No Provider | N19: =IF(F19>=D19,"GREEN",IF(F19=0%,"NA",IF(AND(F19<D19,F19>=E19),"AMBER",IF(F19<E19,"RED")))) -> NA | O19: =F19 -> 0 | P19: =IF(O19>=95%,"GREEN",IF(F19=0%,"NA",IF(AND(O19<95%,O19>=90%),"AMBER",IF(O19<90%,"RED")))) -> NA
C20: Cancer patients - 2 week wait
A21: Maximum two-week wait for first outpatient appointment for patients referred urgently with suspected cancer by a GP | B21: 6.1Total% meeting standard | C21: Maximum two-week wait for first outpatient appointment for patients referred urgently with suspected cancer by a GP | D21: 0.93 | E21: 0.88 | F21: =IF(ISERROR(VLOOKUP('BSC Summary'!$A$4&"_"&$I$8,CUBE_EXTRACT_CANCER!$A:$L,2,FALSE)),0,VLOOKUP('BSC Summary'!$A$4&"_"&$I$8,CUBE_EXTRACT_CANCER!$A:$L,2,FALSE)) -> 0.954787234 | G21: =IF(ISERROR(VLOOKUP('BSC Summary'!$A$4&"_"&$J$8,CUBE_EXTRACT_CANCER!$A:$L,2,FALSE)),0,VLOOKUP('BSC Summary'!$A$4&"_"&$J$8,CUBE_EXTRACT_CANCER!$A:$L,2,FALSE)) -> 0.954787234 | N21: =IF(F21>=D21,"GREEN",IF(F21=0%,"NA",IF(AND(F21<D21,F21>=E21),"AMBER",IF(F21<E21,"RED")))) -> GREEN | O21: =F21 -> 0.954787234 | P21: =IF(O21>=93%,"GREEN",IF(F21=0%,"NA",IF(AND(O21<93%,O21>=88%),"AMBER",IF(O21<88%,"RED")))) -> GREEN
A22: Maximum two week wait for first out patient appointment for patients referred urgently with breast symptoms (where cancer was not initially suspected) | B22: 6.2Total% meeting standard | C22: Maximum two week wait for first out patient appointment for patients referred urgently with breast symptoms (where cancer was not initially suspected) | D22: 0.93 | E22: 0.88 | F22: =IF(ISERROR(VLOOKUP('BSC Summary'!$A$4&"_"&$I$8,CUBE_EXTRACT_CANCER!$A:$L,3,FALSE)),0,VLOOKUP('BSC Summary'!$A$4&"_"&$I$8,CUBE_EXTRACT_CANCER!$A:$L,3,FALSE)) -> 0.9272727273 | G22: =IF(ISERROR(VLOOKUP('BSC Summary'!$A$4&"_"&$J$8,CUBE_EXTRACT_CANCER!$A:$L,3,FALSE)),0,VLOOKUP('BSC Summary'!$A$4&"_"&$J$8,CUBE_EXTRACT_CANCER!$A:$L,3,FALSE)) -> 0.9272727273 | N22: =IF(F22>=D22,"GREEN",IF(F22=0%,"NA",IF(AND(F22<D22,F22>=E22),"AMBER",IF(F22<E22,"RED")))) -> AMBER | O22: =F22 -> 0.9272727273 | P22: =IF(O22>=93%,"GREEN",IF(F22=0%,"NA",IF(AND(O22<93%,O22>=88%),"AMBER",IF(O22<88%,"RED")))) -> AMBER
C23: Cancer waits - 31 days
A24: Maximum one month (31 day) wait from diagnosis to first definitive treatment for all cancers | B24: 7.2Total% meeting standard | C24: Maximum one month (31 day) wait from diagnosis to first definitive treatment for all cancers | D24: 0.96 | E24: 0.91 | F24: =IF(ISERROR(VLOOKUP('BSC Summary'!$A$4&"_"&$I$8,CUBE_EXTRACT_CANCER!$A:$L,4,FALSE)),0,VLOOKUP('BSC Summary'!$A$4&"_"&$I$8,CUBE_EXTRACT_CANCER!$A:$L,4,FALSE)) -> 0.9965397924 | G24: =IF(ISERROR(VLOOKUP('BSC Summary'!$A$4&"_"&$J$8,CUBE_EXTRACT_CANCER!$A:$L,4,FALSE)),0,VLOOKUP('BSC Summary'!$A$4&"_"&$J$8,CUBE_EXTRACT_CANCER!$A:$L,4,FALSE)) -> 0.9965397924 | N24: =IF(F24>=D24,"GREEN",IF(F24=0%,"NA",IF(AND(F24<D24,F24>=E24),"AMBER",IF(F24<E24,"RED")))) -> GREEN | O24: =F24 -> 0.9965397924 | P24: =IF(O24>=96%,"GREEN",IF(F24=0%,"NA",IF(AND(O24<96%,O24>=91%),"AMBER",IF(O24<91%,"RED")))) -> GREEN
A25: Maximum 31 day wait for subsequent treatment where that treatment is surgery | B25: 7.8Surgery% meeting standard | C25: Maximum 31 day wait for subsequent treatment where that treatment is surgery | D25: 0.94 | E25: 0.89 | F25: =IF(ISERROR(VLOOKUP('BSC Summary'!$A$4&"_"&$I$8,CUBE_EXTRACT_CANCER!$A:$L,5,FALSE)),0,VLOOKUP('BSC Summary'!$A$4&"_"&$I$8,CUBE_EXTRACT_CANCER!$A:$L,5,FALSE)) -> 1 | G25: =IF(ISERROR(VLOOKUP('BSC Summary'!$A$4&"_"&$J$8,CUBE_EXTRACT_CANCER!$A:$L,5,FALSE)),0,VLOOKUP('BSC Summary'!$A$4&"_"&$J$8,CUBE_EXTRACT_CANCER!$A:$L,5,FALSE)) -> 1 | N25: =IF(F25>=D25,"GREEN",IF(F25=0%,"NA",IF(AND(F25<D25,F25>=E25),"AMBER",IF(F25<E25,"RED")))) -> GREEN | O25: =F25 -> 1 | P25: =IF(O25>=94%,"GREEN",IF(F25=0%,"NA",IF(AND(O25<94%,O25>=89%),"AMBER",IF(O25<89%,"RED")))) -> GREEN
A26: Maximum 31 day wait for subsequent treatment where the treatment is an anti-cancer drug regimen | B26: 7.8Drug Treatments% meeting standard | C26: Maximum 31 day wait for subsequent treatment where the treatment is an anti-cancer drug regimen | D26: 0.98 | E26: 0.93 | F26: =IF(ISERROR(VLOOKUP('BSC Summary'!$A$4&"_"&$I$8,CUBE_EXTRACT_CANCER!$A:$L,6,FALSE)),0,VLOOKUP('BSC Summary'!$A$4&"_"&$I$8,CUBE_EXTRACT_CANCER!$A:$L,6,FALSE)) -> 1 | G26: =IF(ISERROR(VLOOKUP('BSC Summary'!$A$4&"_"&$J$8,CUBE_EXTRACT_CANCER!$A:$L,6,FALSE)),0,VLOOKUP('BSC Summary'!$A$4&"_"&$J$8,CUBE_EXTRACT_CANCER!$A:$L,6,FALSE)) -> 1 | N26: =IF(F26>=D26,"GREEN",IF(F26=0%,"NA",IF(AND(F26<D26,F26>=E26),"AMBER",IF(F26<E26,"RED")))) -> GREEN | O26: =F26 -> 1 | P26: =IF(O26>=98%,"GREEN",IF(F26=0%,"NA",IF(AND(O26<98%,O26>=93%),"AMBER",IF(O26<93%,"RED")))) -> GREEN
A27: Maximum 31 day wait for subsequent treatment where the treatment is a course of radiotherapy | B27: 7.8Radiotherapy Treatments% meeting standard | C27: Maximum 31 day wait for subsequent treatment where the treatment is a course of radiotherapy | D27: 0.94 | E27: 0.89 | F27: =IF(ISERROR(VLOOKUP('BSC Summary'!$A$4&"_"&$I$8,CUBE_EXTRACT_CANCER!$A:$L,7,FALSE)),0,VLOOKUP('BSC Summary'!$A$4&"_"&$I$8,CUBE_EXTRACT_CANCER!$A:$L,7,FALSE)) -> 0.9836065574 | G27: =IF(ISERROR(VLOOKUP('BSC Summary'!$A$4&"_"&$J$8,CUBE_EXTRACT_CANCER!$A:$L,7,FALSE)),0,VLOOKUP('BSC Summary'!$A$4&"_"&$J$8,CUBE_EXTRACT_CANCER!$A:$L,7,FALSE)) -> 0.9836065574 | N27: =IF(F27>=D27,"GREEN",IF(F27=0%,"NA",IF(AND(F27<D27,F27>=E27),"AMBER",IF(F27<E27,"RED")))) -> GREEN | O27: =F27 -> 0.9836065574 | P27: =IF(O27>=94%,"GREEN",IF(F26=0%,"NA",IF(AND(O27<94%,O27>=89%),"AMBER",IF(O27<89%,"RED")))) -> GREEN
C28: Cancer waits - 62 days
A29: Maximum two month (62 day) wait from urgent GP referral to first definitive treatment for cancer | B29: 8.2Total% meeting standard | C29: Maximum two month (62 day) wait from urgent GP referral to first definitive treatment for cancer | D29: 0.85 | E29: 0.8 | F29: =IF(ISERROR(VLOOKUP('BSC Summary'!$A$4&"_"&$I$8,CUBE_EXTRACT_CANCER!$A:$L,8,FALSE)),0,VLOOKUP('BSC Summary'!$A$4&"_"&$I$8,CUBE_EXTRACT_CANCER!$A:$L,8,FALSE)) -> 0.9365079365 | G29: =IF(ISERROR(VLOOKUP('BSC Summary'!$A$4&"_"&$J$8,CUBE_EXTRACT_CANCER!$A:$L,8,FALSE)),0,VLOOKUP('BSC Summary'!$A$4&"_"&$J$8,CUBE_EXTRACT_CANCER!$A:$L,8,FALSE)) -> 0.9365079365 | N29: =IF(F29>=$D$29,"GREEN",IF(F29=0%,"NA",IF(AND(F29<$D$29,F29>=$E$29),"AMBER",IF(F29<E29,"RED")))) -> GREEN | O29: =F29 -> 0.9365079365 | P29: =IF(O29>=85%,"GREEN",IF(F29=0%,"NA",IF(AND(O29<85%,O29>=80%),"AMBER",IF(O29<80%,"RED")))) -> GREEN
A30: Maximum 62 day wait from referral from an NHS screenng service to first definitive treatment for all cancers | B30: 9.2Total% meeting standard | C30: Maximum 62 day wait from referral from an NHS screening service to first definitive treatment for all cancers | D30: 0.9 | E30: 0.85 | F30: =IF(ISERROR(VLOOKUP('BSC Summary'!$A$4&"_"&$I$8,CUBE_EXTRACT_CANCER!$A:$L,9,FALSE)),0,VLOOKUP('BSC Summary'!$A$4&"_"&$I$8,CUBE_EXTRACT_CANCER!$A:$L,9,FALSE)) -> 1 | G30: =IF(ISERROR(VLOOKUP('BSC Summary'!$A$4&"_"&$J$8,CUBE_EXTRACT_CANCER!$A:$L,9,FALSE)),0,VLOOKUP('BSC Summary'!$A$4&"_"&$J$8,CUBE_EXTRACT_CANCER!$A:$L,9,FALSE)) -> 1 | N30: =IF(F30>=D30,"GREEN",IF(F30=0%,"NA",IF(AND(F30<D30,F30>=E30),"AMBER",IF(F30<E30,"RED")))) -> GREEN | O30: =F30 -> 1 | P30: =IF(O30>=90%,"GREEN",IF(F30=0%,"NA",IF(AND(O30<90%,O30>=85%),"AMBER",IF(O30<85%,"RED")))) -> GREEN
A31: Maximum 62 day wait for first definitive treatment following a consultants decision to upgrade the priority of the patients (all cancers) | B31: 10.2Total% meeting standard | C31: Maximum 62 day wait for first definitive treatment following a consultants decision to upgrade the priority of the patients (all cancers) | D31: No operational | E31: No operational | F31: =IF(ISERROR(VLOOKUP('BSC Summary'!$A$4&"_"&$I$8,CUBE_EXTRACT_CANCER!$A:$L,10,FALSE)),0,VLOOKUP('BSC Summary'!$A$4&"_"&$I$8,CUBE_EXTRACT_CANCER!$A:$L,10,FALSE)) -> 0.956043956 | G31: =IF(ISERROR(VLOOKUP('BSC Summary'!$A$4&"_"&$J$8,CUBE_EXTRACT_CANCER!$A:$L,10,FALSE)),0,VLOOKUP('BSC Summary'!$A$4&"_"&$J$8,CUBE_EXTRACT_CANCER!$A:$L,10,FALSE)) -> 0.956043956
C32: Category A ambulance calls | F32: =IFERROR(VLOOKUP('BSC Summary'!$A$4,CUBE_EXTRACT_AMBULANCE!$E:$F,2,FALSE),"No Ambulance Service") -> Yrkshr Amblnce
A33: Category A calls resulting in an emergency reponse arriving within 8 minutes (Red 1) | C33: Category A calls resulting in an emergency reponse arriving within 8 minutes (Red 1) | D33: 0.75 | E33: 0.7 | F33: =IF(ISERROR(VLOOKUP('BSC Summary'!$A$4&"_"&$I$8,CUBE_EXTRACT_AMBULANCE!$A:$D,2,FALSE)),0,VLOOKUP('BSC Summary'!$A$4&"_"&$I$8,CUBE_EXTRACT_AMBULANCE!$A:$D,2,FALSE)) -> 0.7592228234 | G33: =IF(ISERROR(VLOOKUP('BSC Summary'!$A$4&"_"&$J$8,CUBE_EXTRACT_AMBULANCE!$A:$D,2,FALSE)),0,VLOOKUP('BSC Summary'!$A$4&"_"&$J$8,CUBE_EXTRACT_AMBULANCE!$A:$D,2,FALSE)) -> 0.7592228234 | N33: =IF(F33>=D33,"GREEN",IF(F33=0%,"NA",IF(AND(F33<D33,F33>=E33),"AMBER",IF(F33<E33,"RED")))) -> GREEN | O33: =F33 -> 0.7592228234 | P33: =IF(O33>=75%,"GREEN",IF(F33=0%,"NA",IF(AND(O33<75%,O33>=70%),"AMBER",IF(O33<70%,"RED")))) -> GREEN
A34: Category A calls resulting in an emergency reponse arriving within 8 minutes (Red 2) | C34: Category A calls resulting in an emergency reponse arriving within 8 minutes (Red 2) | D34: 0.75 | E34: 0.7 | F34: =IF(ISERROR(VLOOKUP('BSC Summary'!$A$4&"_"&$I$8,CUBE_EXTRACT_AMBULANCE!$A:$D,3,FALSE)),0,VLOOKUP('BSC Summary'!$A$4&"_"&$I$8,CUBE_EXTRACT_AMBULANCE!$A:$D,3,FALSE)) -> 0.7845022249 | G34: =IF(ISERROR(VLOOKUP('BSC Summary'!$A$4&"_"&$J$8,CUBE_EXTRACT_AMBULANCE!$A:$D,3,FALSE)),0,VLOOKUP('BSC Summary'!$A$4&"_"&$J$8,CUBE_EXTRACT_AMBULANCE!$A:$D,3,FALSE)) -> 0.7845022249 | N34: =IF(F34>=D34,"GREEN",IF(F34=0%,"NA",IF(AND(F34<D34,F34>=E34),"AMBER",IF(F34<E34,"RED")))) -> GREEN | O34: =F34 -> 0.7845022249 | P34: =IF(O34>=75%,"GREEN",IF(F34=0%,"NA",IF(AND(O34<75%,O34>=70%),"AMBER",IF(O34<70%,"RED")))) -> GREEN
A35: Category A calls resulting in an ambulance arriving at the scene within 19 minutes | C35: Category A calls resulting in an ambulance arriving at the scene within 19 minutes | D35: 0.95 | E35: 0.9 | F35: =IF(ISERROR(VLOOKUP('BSC Summary'!$A$4&"_"&$I$8,CUBE_EXTRACT_AMBULANCE!$A:$D,4,FALSE)),0,VLOOKUP('BSC Summary'!$A$4&"_"&$I$8,CUBE_EXTRACT_AMBULANCE!$A:$D,4,FALSE)) -> 0.9767833476 | G35: =IF(ISERROR(VLOOKUP('BSC Summary'!$A$4&"_"&$J$8,CUBE_EXTRACT_AMBULANCE!$A:$D,4,FALSE)),0,VLOOKUP('BSC Summary'!$A$4&"_"&$J$8,CUBE_EXTRACT_AMBULANCE!$A:$D,4,FALSE)) -> 0.9767833476 | N35: =IF(F35>=D35,"GREEN",IF(F35=0%,"NA",IF(AND(F35<D35,F35>=E35),"AMBER",IF(F35<E35,"RED")))) -> GREEN | O35: =F35 -> 0.9767833476 | P35: =IF(O35>=95%,"GREEN",IF(F35=0%,"NA",IF(AND(O35<95%,O35>=90%),"AMBER",IF(O35<90%,"RED")))) -> GREEN
C36: Mixed sex accomodation breaches
A37: Minimise breaches | C37: Minimise breaches | D37: 0 | E37: 10 | F37: =IF(ISERROR(VLOOKUP('BSC Summary'!$A$4&"_"&$I$8,CUBE_EXTRACT_MSA!$A:$D,2,FALSE)),0,VLOOKUP('BSC Summary'!$A$4&"_"&$I$8,CUBE_EXTRACT_MSA!$A:$D,2,FALSE)) -> 0 | G37: =IF(ISERROR(VLOOKUP('BSC Summary'!$A$4&"_"&$J$8,CUBE_EXTRACT_MSA!$A:$D,2,FALSE)),0,VLOOKUP('BSC Summary'!$A$4&"_"&$J$8,CUBE_EXTRACT_MSA!$A:$D,2,FALSE)) -> 0 | N37: =IF(F37=D37,"GREEN",IF(AND(F37>D37,F37<=E37),"AMBER",IF(F37>E37,"RED"))) -> GREEN | O37: =F37 -> 0 | P37: =IF(O37=0,"GREEN",IF(F37=0%,"NA",IF(AND(O37>0,O37<=9),"AMBER",IF(O37>=10,"RED")))) -> GREEN
C38: Cancelled Operations | O38: =F38 -> 0
A39: All patients who have operations cancelled, on or after the day of admission (including the day of surgery), for non-clinical reasons to be offered another binding data within 28 days, or the patient's treatment to be funded at the time and hospital of the patient's choice | C39: All patients who have operations cancelled, on or after the day of admission (including the day of surgery), for non-clinical reasons to be offered another binding data within 28 days, or the patient's treatment to be funded at the time and hospital of the patient's choice | D39: Not Rated | E39: Not Rated | O39: =F39 -> 0
C40: Mental Health
A41: Care Programme Approach (CPA): The proportion of people under adult mental illness specialities on CPA who were followed up within 7 days of discharge from psychiatric in patient care during the period | C41: Care Programme Approach (CPA): The proportion of people under adult mental illness specialities on CPA who were followed up within 7 days of discharge from psychiatric in patient care during the period | D41: 0.95 | E41: 0.9 | F41: =IF(ISERROR(VLOOKUP('BSC Summary'!$A$4&"_"&$I$8,CUBE_EXTRACT_MH_CPA!$A:$D,2,FALSE)),0,VLOOKUP('BSC Summary'!$A$4&"_"&$I$8,CUBE_EXTRACT_MH_CPA!$A:$D,2,FALSE)) -> 0.9615384615 | G41: =IF(ISERROR(VLOOKUP('BSC Summary'!$A$4&"_"&$J$8,CUBE_EXTRACT_MH_CPA!$A:$D,2,FALSE)),0,VLOOKUP('BSC Summary'!$A$4&"_"&$J$8,CUBE_EXTRACT_MH_CPA!$A:$D,2,FALSE)) -> 0.9615384615 | N41: =IF(F41>=D41,"GREEN",IF(F41=0%,"NA",IF(AND(F41<D41,F41>=E41),"AMBER",IF(F41<E41,"RED")))) -> GREEN | O41: =F41 -> 0.9615384615 | P41: =IF(O41>=95%,"GREEN",IF(F41=0%,"NA",IF(AND(O41<95%,O41>=90%),"AMBER",IF(O41<90%,"RED")))) -> GREEN
C43: Future Concerns
C44: =IFERROR(VLOOKUP($F$7&"_"&$H$7&"_"&'BSC Summary'!$A$4,'DOMAIN 2 SUMMARY FUTURE CONCERN'!$A:$K,3,FALSE),"Do you have any future concerns on any of the above measures") -> Do you have any future concerns on any of the above measures | D44: =IF($C$44="Do you have any future concerns on any of the above measures? ","YES","NO") -> NO | N44: =COUNTIF($N$10:$N$41,"RED") -> 0 | O44: =COUNTIF($N$10:$N$41,"AMBER") -> 3 | P44: =COUNTIF($N$10:$N$41,"GREEN") -> 16
A45: Do you have any future concerns on any of the above measures? | C45: Do you have any future concerns on any of the above measures?
N46: =COUNTIF($P$10:$P$41,"RED") -> 0 | O46: =COUNTIF($P$10:$P$41,"AMBER") -> 3 | P46: =COUNTIF($P$10:$P$41,"GREEN") -> 16
F48: =VLOOKUP($F$7&"_"&$H$7&"_"&'BSC Summary'!$A$4,'DOMAIN 2 SUMMARY'!$A:$J,10,FALSE) -> GREEN | N48: =IF(F48="RED","2",IF(D44="Yes", "Future concerns", IF(F48="AMBER-RED", "1 RED", IF(F48="GREEN", "0")))) -> 0
E50: Domain 2- Indicator RAG Criteria
C51: Please select Y/N | E51: Domain 2- RAG Criteria | N51: RED | O51: =N44 -> 0
C52: Yes | N52: AMBER-RED | O52: =IF($N$44=1, "1 RED",) -> 0
C53: No | N53: AMBER-GREEN | O53: =IF(D46="Y", "Future concern", ) -> 0
N54: GREEN | O54: =P44 -> 16

Sheet Domain 3
B5: =VLOOKUP('BSC Summary'!$A$3,Lookup!$A:$C,2,FALSE) -> NHS Rotherham CCG
B6: Domain 3 - Are health outcomes improving for local people?
B8: NHS Outcomes Framework measures which the NHS Commissioning Board and CCGs will use in annual assurance as described in Annex A of Everyone Counts
D9: 2013-14 | E9: 13-14 Q1 | F9: 13-14 YTD | G9: June
B10: Indicator | C10: Baseline position | D10: Current QTD Indicator Value | E10: YTD Indicator Value | F10: Unit | G10: Indicator used in quarterly checkpoints | H10: Indicator included in Quality Premium | I10: Threshold
B11: 1. Preventing people from dying prematurely
B12: Potential years of life lost (PYLL) from causes considered amendable to healthcare | G12: No | H12: Yes | I12: To earn this portion of the quality premium, the potential years of life lost (adjusted for sex and age) from amenable mortality for a CCG population will need to reduce by at least 3.2% between 2013 and 2014. This is based on the 10-year average annual reduction in potential yesars of life lost from amenable mortality.
B13: Under 75 mortality rate from cardiovascular disease
B14: Under 75 mortality rate from respiratory disease
B15: Under 75 mortality rate from liver disease
B16: Under 75 mortality rate fro cancer
B17: Annual Assurance indiciators only
B18: 2. Enhancing quality of life for people with long term conditions
B19: Health-related quality of life for people with long-term conditions | G19: Combined measure: Unplanned hospitalisation for chronic ambulatory care sensitive conditions (adults), Unplanned hospitalisation for asthma, diabetes and epilepsy in under 19s, Emergency admissions for acute conditions that should not usually require hospital admission. Emergency admissions for children with LRTI, Emergency readmissions within 30 days of discharge from hospital. | H19: Combined measure: Unplanned hospitalisation for chronic ambulatory care sensitive conditions (adults), Unplanned hospitalisation for asthma, diabetes and epilepsy in under 19s, Emergency admissions for acute conditions that should not usually require hospital admission. Emergency admissions for children with LRTI, Emergency readmissions within 30 days of discharge from hospital. | I19: To earn this position of the quality premium, there will need t be a reduction or a zero percent change in emergency admissions for these conditions for a CCG population between 2012/13 and 2013/14. NHS England may apply an adjustment for CCGs with the highest baseline levesl of emergency admissions.
B20: Proportion of people feeling supported to manage their condition
B21: Unplanned hospitalisation for chronic ambulatory care sensitive conditions (adult) | F21: Per 100,000 population
B22: Unplanned hospitalisation for asthma, diabetes and epilepsy in under 19s | F22: Per 100,000 population
B23: Estimated diagnosis rate for people with dementia
B24: 3. Helping people to recover from ill health or following injury
B25: Emergency admissions for acute conditions that should not usually require hospital admission | F25: Per 100,000 population
B26: Emergency readmissions within 30 days of discharge from hospital
B27: Total health gain assessed by patients i) Hip replacement, ii) Knee replacement, iii) Groin hernia, iv) Vericose veins | F27: No. of individuals receiving the procedures multiplied by the assessed average risk-adjusted improvement in health status
B28: Emergency admissions for children with Lower Respiratory Tract Infections (LRTI) | F28: Per 100,000 population
B29: 4. Ensuring that people have a positive experience of care
B30: Patient experience of primary care i) GP Services, ii) GP Out of Hours services
B31: Patient experience of hospital care
A32: Friends and Family Test | B32: Friends and Family Test | C32: An improvement in average FFT scores for acute inpatient care and A&E services between Q1 2014-15 for acute hospitalsthat serve a CCG population | F32: Score out of 100 | G32: Yes | H32: Yes | I32: To earn this portion of the quality premium, there will need to be: 1) assurance that all relevant local providers of services commissioned by a CCG have delivered the nationally agreed roll-out plan to the national timetable 2) an improvement in average FFT scores for acute inpatient care and A&E services between Q1 2014/15 for acute hospitals that serve a CCG's population
B33: 5. Treating and caring for people in a safe environment an protecting them from avoidable harm
A34: Incidence of healthcare associated infection (HCAI) i) MRSA | B34: Incidence of healthcare associated infection (HCAI) i) MRSA | C34: 0 | D34: =IF(ISERROR(VLOOKUP('BSC Summary'!$A$4&"_"&$E$9,CUBE_EXTRACT_MRSA!$A:$D,2,FALSE)),0,VLOOKUP('BSC Summary'!$A$4&"_"&$E$9,CUBE_EXTRACT_MRSA!$A:$D,2,FALSE)) -> 0 | E34: =IF(ISERROR(VLOOKUP('BSC Summary'!$A$4&"_"&$F$9,CUBE_EXTRACT_MRSA!$A:$D,2,FALSE)),0,VLOOKUP('BSC Summary'!$A$4&"_"&$F$9,CUBE_EXTRACT_MRSA!$A:$D,2,FALSE)) -> 0 | F34: Number of Cases | G34: Yes | H34: Yes | I34: A CCG will earn this position of the quality premium if there are no cases of MRSA bacteraemia for the CCG's population. | J34: =IF(D34<=C34,"GREEN",IF(AND(D34>C34,C34=0),"RED",IF(D34>C34,"RED"))) -> GREEN
A35: Incidence of healthcare associated infection (HCAI) i) C difficile | B35: Incidence of healthcare associated infection (HCAI) i) C difficile | C35: =IF(ISERROR(VLOOKUP('BSC Summary'!$A$4&"_"&$E$9,CUBE_EXTRACT_CDIFF!$A:$E,3,FALSE)),0,VLOOKUP('BSC Summary'!$A$4&"_"&$E$9,CUBE_EXTRACT_CDIFF!$A:$E,3,FALSE)) -> 14.76 | D35: =IF(ISERROR(VLOOKUP('BSC Summary'!$A$4&"_"&$E$9,CUBE_EXTRACT_CDIFF!$A:$E,2,FALSE)),0,VLOOKUP('BSC Summary'!$A$4&"_"&$E$9,CUBE_EXTRACT_CDIFF!$A:$E,2,FALSE)) -> 13 | E35: =IF(ISERROR(VLOOKUP('BSC Summary'!$A$4&"_"&$F$9,CUBE_EXTRACT_CDIFF!$A:$E,2,FALSE)),0,VLOOKUP('BSC Summary'!$A$4&"_"&$F$9,CUBE_EXTRACT_CDIFF!$A:$E,2,FALSE)) -> 13 | F35: Number of Cases | G35: Yes | H35: Yes | I35: A CCG will earn this position of the quality premium if C. difficile cases are at or below defined thresholds for CCG's. | J35: =IF(D35<=C35,"GREEN",IF(AND(D35>C35,C35=0),"AMBER",IF(D35>C35,"RED"))) -> GREEN
B36: 6. Others
A37: Are providers (defined in Domain 1) meeting the 15% response rates on FFT ? | B37: Are providers (defined in Domain 1) meeting the 15% response rates on FFT ? | C37: =IF(ISERROR(VLOOKUP('BSC Summary'!$A$4&"_"&$G$9,ACUTE_CCG_PROV_SELFCERT_DOMAIN1!$A:$G,4,FALSE)),0,VLOOKUP('BSC Summary'!$A$4&"_"&$G$9,ACUTE_CCG_PROV_SELFCERT_DOMAIN1!$A:$G,4,FALSE)) -> No | D37: =IF(C37="YES",1,IF(C37="No",0,IF(C37="",0,IF(C37="",2,)))) -> 0 | G37: Yes | H37: No | I37: "To earn this portion of the quality premium, there will need to be: 1) assurance that all relevant local providers of services commissioned by a CCG have delivered the nationally agreed roll-out plan to the national timetable 2) an improvement in average FFT scores for acute inpatient care and A&E services between Q1 2014/15 for acute hospitals that serve a CCG's population" | J37: =IF(D37=2,"GREEN",IF(D37=1,"RED")) -> FALSE
A38: IAPT Coverage - Moving to Recovery | B38: Is the CCG progressing as expected in the IAPT tragectory submitted during the planning round? | C38: =IF(ISERROR(VLOOKUP('BSC Summary'!$A$4,CCG_SELFCERT_DOMAIN1!$A:$P,12,FALSE)),0,VLOOKUP('BSC Summary'!$A$4,CCG_SELFCERT_DOMAIN1!$A:$P,12,FALSE)) -> Yes | D38: =IF(C38="YES",1,IF(C38="No",0,IF(C38="Further development required",0,IF(C38="", 2,)))) -> 1 | G38: Yes | H38: No | J38: =IF(D38=1,"GREEN",IF(D38=0,"RED")) -> GREEN
B39: Local priorities (Self-Certification) | C39: Are you on track to deliver against this local priority?
A40: =B40 -> LOCAL PRIORITY 1 | B40: LOCAL PRIORITY 1 | C40: =IF(ISERROR(VLOOKUP('BSC Summary'!$A$4,CCG_SELFCERT_DOMAIN1!$A:$P,9,FALSE)),0,VLOOKUP('BSC Summary'!$A$4,CCG_SELFCERT_DOMAIN1!$A:$P,9,FALSE)) -> Yes
A41: =B41 -> LOCAL PRIORITY 2 | B41: LOCAL PRIORITY 2 | C41: =IF(ISERROR(VLOOKUP('BSC Summary'!$A$4,CCG_SELFCERT_DOMAIN1!$A:$P,10,FALSE)),0,VLOOKUP('BSC Summary'!$A$4,CCG_SELFCERT_DOMAIN1!$A:$P,10,FALSE)) -> Yes
A42: =B42 -> LOCAL PRIORITY 3 | B42: LOCAL PRIORITY 3 | C42: =IF(ISERROR(VLOOKUP('BSC Summary'!$A$4,CCG_SELFCERT_DOMAIN1!$A:$P,11,FALSE)),0,VLOOKUP('BSC Summary'!$A$4,CCG_SELFCERT_DOMAIN1!$A:$P,11,FALSE)) -> Yes
D45: =IF(ISERROR(VLOOKUP('BSC Summary'!$A$4&"_"&$G$9,ACUTE_CCG_PROV_SELFCERT_DOMAIN1!$A:$G,4,FALSE)),"No","Yes") -> Yes | F45: Domain Status | G45: =IF($Q$46=2, "GREEN", IF($S$46=1, "AMBER-RED",IF($R$46=2, "AMBER-RED", IF($R$46=1, "AMBER GREEN",IF($Q$46=1, "AMBER GREEN", IF($S$46=2, "RED")))))) -> GREEN | Q45: GREEN | R45: AMBER | S45: RED
D46: =MIN(IFERROR(VLOOKUP('BSC Summary'!$A$4&"_"&$G$9,ACUTE_CCG_PROV_SELFCERT_DOMAIN1!$A:$G,5,FALSE),"0")) -> 1 | E46: Domain 3 - RAG rating | Q46: =SUMPRODUCT(--ISNUMBER(SEARCH($Q$45,J34:J35))) -> 2 | R46: =SUMPRODUCT(--ISNUMBER(SEARCH($R$45,J34:J35))) -> 0 | S46: =SUMPRODUCT(--ISNUMBER(SEARCH($S$45,J34:J35))) -> 0
G47: =IF(OR(C40="",C41="", C42=""), "Self-certification incomplete", "Self-certification complete") -> Self-certification complete
Q48: RED | R48: =S46 -> 0
Q49: AMBER-RED | R49: =IF($S$46=1,"1 RED",) -> 0
Q50: GREEN | R50: =Q46 -> 2
R60: Please select
R61: Yes
F62: =#REF! ->  | G62: =AVERAGE($F$62:$F$65) ->  | R62: No
F63: =D34 -> 0 | G63: =AVERAGE($F$62:$F$65) ->  | R63: Further development required
F64: =D35 -> 13 | G64: =AVERAGE($F$62:$F$65) -> 
F65: =D37 -> 0 | G65: =AVERAGE($F$62:$F$65) -> 
E69: TTEST= | F69: =TTEST(F62:F65,G62:G65,1,2) -> 

Sheet Domain 4
B6: Domain 4 - Are CCGs delivering services within their financial plans?
C7: =VLOOKUP('BSC Summary'!$A$3,Lookup!$A:$C,2,FALSE) -> NHS Rotherham CCG | E7: 2013-14 | F7: June
B8: Financial Performance | F8: Individual indicator RAG rating threshold
B9: No. | C9: Indicator | D9: Primary/Supporting Indicator | E9: 2013/14 Q1 Performance | F9: Green | G9: Amber-Green | H9: Amber-Red | I9: Red
B10: 1 | C10: Undelying recurrent surplus | D10: Primary | F10: >= 2% | G10: 1% - 1.99% | H10: 0% - 0.99% | I10: < 0%
B11: 2 | C11: Surplus - year to date performance | D11: Primary | E11: =IF(ISERROR(VLOOKUP('BSC Summary'!$A$4&"_"&$E$7&"_"&$F$7,CCG_AF_FINANCE_DOMAIN4!$A:$N,3,FALSE)),0,VLOOKUP('BSC Summary'!$A$4&"_"&$E$7&"_"&$F$7,CCG_AF_FINANCE_DOMAIN4!$A:$N,3,FALSE)) -> G | F11: Variance <= 0.1% | G11: 0.1% > variance <= 0.25% | H11: 0.25% > variance < 0.5% | I11: Variance => 0.5%
B12: 3 | C12: Surplus - full year forecast | D12: Primary | E12: =IF(ISERROR(VLOOKUP('BSC Summary'!$A$4&"_"&$E$7&"_"&$F$7,CCG_AF_FINANCE_DOMAIN4!$A:$N,4,FALSE)),0,VLOOKUP('BSC Summary'!$A$4&"_"&$E$7&"_"&$F$7,CCG_AF_FINANCE_DOMAIN4!$A:$N,4,FALSE)) -> G | F12: Variance <= 0.1% | G12: 0.1% > variance <= 0.25% | H12: 0.25% > variance < 0.5% | I12: Variance => 0.5%
B13: 4 | C13: Management of 2% NR funds within agreed processes | D13: Supporting | E13: =IF(ISERROR(VLOOKUP('BSC Summary'!$A$4&"_"&$E$7&"_"&$F$7,CCG_AF_FINANCE_DOMAIN4!$A:$N,5,FALSE)),0,VLOOKUP('BSC Summary'!$A$4&"_"&$E$7&"_"&$F$7,CCG_AF_FINANCE_DOMAIN4!$A:$N,5,FALSE)) -> G | F13: Yes | I13: No
B14: 5 | C14: QIPP** - year to date delivery | D14: Primary | E14: =IF(ISERROR(VLOOKUP('BSC Summary'!$A$4&"_"&$E$7&"_"&$F$7,CCG_AF_FINANCE_DOMAIN4!$A:$N,6,FALSE)),0,VLOOKUP('BSC Summary'!$A$4&"_"&$E$7&"_"&$F$7,CCG_AF_FINANCE_DOMAIN4!$A:$N,6,FALSE)) -> G | F14: >= 95% of plan | G14: >= 80% of plan | H14: >= 50% of plan | I14: < 50% of plan
B15: 6 | C15: QIPP** - full year forecast | D15: Primary | E15: =IF(ISERROR(VLOOKUP('BSC Summary'!$A$4&"_"&$E$7&"_"&$F$7,CCG_AF_FINANCE_DOMAIN4!$A:$N,7,FALSE)),0,VLOOKUP('BSC Summary'!$A$4&"_"&$E$7&"_"&$F$7,CCG_AF_FINANCE_DOMAIN4!$A:$N,7,FALSE)) -> G | F15: >= 95% of plan | G15: >= 80% of plan | H15: >= 50% of plan | I15: < 50% of plan
B16: 7 | C16: Activity trends - year to date | D16: Supporting | F16: < 101% of plan | G16: < 102% of plan | H16: < 103% of plan | I16: >= 103% of plan
B17: 8 | C17: Activity trends - full year forecast | D17: Supporting | F17: < 101% of plan | G17: < 102% of plan | H17: < 103% of plan | I17: >= 103% of plan
B18: 9 | C18: Running costs | D18: Primary | E18: =IF(ISERROR(VLOOKUP('BSC Summary'!$A$4&"_"&$E$7&"_"&$F$7,CCG_AF_FINANCE_DOMAIN4!$A:$N,10,FALSE)),0,VLOOKUP('BSC Summary'!$A$4&"_"&$E$7&"_"&$F$7,CCG_AF_FINANCE_DOMAIN4!$A:$N,10,FALSE)) -> G | F18: <= RCA | I18: > RCA
B19: 10 | C19: Clear Identifications of risks against financial delivery and mitigations | D19: Primary | E19: =IF(ISERROR(VLOOKUP('BSC Summary'!$A$4&"_"&$E$7&"_"&$F$7,CCG_AF_FINANCE_DOMAIN4!$A:$N,11,FALSE)),0,VLOOKUP('BSC Summary'!$A$4&"_"&$E$7&"_"&$F$7,CCG_AF_FINANCE_DOMAIN4!$A:$N,11,FALSE)) -> G | F19: Indicator met in full | G19: Indicator partially met - limited uncovered risk | H19: Indicator partially met - material uncovered risk | I19: Indicator not met
C20: **QIPP to include transactional and transformational schemes
B22: Financial Management (Self-Certification) | F22: Individual indicator RAG rating threshold
B23: No. | C23: Indicator | D23: Primary/Supporting Indicator | E23: 2013/14 Q1 Performance | F23: Green | G23: Amber-Green | H23: Amber-Red | I23: Red
B24: 11 | C24: Assessment of internal and external audit opinions and on the timeliness and quality of returns | D24: Supporting | E24: =IF(ISERROR(VLOOKUP('BSC Summary'!$A$4&"_"&$E$7&"_"&$F$7,CCG_SELFCERT_DOMAIN1!$M:$N,2,FALSE)),0,VLOOKUP('BSC Summary'!$A$4&"_"&$E$7&"_"&$F$7,CCG_SELFCERT_DOMAIN1!$M:$N,2,FALSE)) -> G | F24: No non-satisfactory audit reports in relation to finance related systems and processes and all finance returns submited on time and of satisfactory quality. | G24: One or two non-satisfactory audit reports in relation to finance related systems and processes and/or finance returns sometimes submited late and/or of a poor quality. | H24: A number of non-satisfactory audit reports in relation to finance related systems and processes and/or finance returns often submited late and/or of a poor quality. | I24: Significant number of non-satisfactory audit reports in relation to finance related systems and processes and/or finance returns consistently submited late and/or of a poor quality.
B25: 12 | C25: Balance sheet indicators including performance against planned Cash Limit and BPPC performance | D25: Supporting | E25: Q2 | F25: To be defined | G25: To be defined | H25: To be defined | I25: To be defined
E26: =IF(OR(E24="", E25=""),"Self-certification incomplete", "Board satisfied") -> Board satisfied
C27: Overiding rule: Qualified audit opinion would lead to an overall RED rating | E27: =IF(AND(E19="Board satisfied", E26="Board satisfied"), "Board satisfied", "Self-certification incomplete") -> Self-certification incomplete
C29: Domain 4 Status | D29: =IF(ISERROR(VLOOKUP('BSC Summary'!$A$4&"_"&$E$7&"_"&$F$7,CCG_AF_FINANCE_DOMAIN4!$A:$N,13,FALSE)),0,VLOOKUP('BSC Summary'!$A$4&"_"&$E$7&"_"&$F$7,CCG_AF_FINANCE_DOMAIN4!$A:$N,13,FALSE)) -> GREEN
C30: Domain 4 - RAG rating
D33: =IF(OR(E24=""), "Self-certification incomplete", "Self-certification complete") -> Self-certification complete
C39: GREEN | D39: GREEN | E39: AG | F39: AR | G39: R
D40: =COUNTIF(E10:E12,"G") -> 2 | E40: =COUNTIF(E10:E12,"AG") -> 0 | F40: =COUNTIF(E10:E12,"AR") -> 0 | G40: =COUNTIF(E10:E12,"R") -> 0
D41: =COUNTIF(E14:E15,"G") -> 2 | E41: =COUNTIF(E14:E15,"AG") -> 0 | F41: =COUNTIF(E14:E15,"AR") -> 0 | G41: =COUNTIF(E14:E15,"R") -> 0
D42: =COUNTIF(E18:E19,"G") -> 2 | E42: =COUNTIF(E18:E19,"AG") -> 0 | F42: =COUNTIF(E18:E19,"AR") -> 0 | G42: =COUNTIF(E18:E19,"R") -> 0
D43: =SUM(D40:D42) -> 6 | E43: =SUM(E40:E42) -> 0 | F43: =SUM(F40:F42) -> 0 | G43: =SUM(G40:G42) -> 0
H44: FINAL CALCULATION
D45: =IF($D$43>=7,"GREEN",IF($G$43>=2,"RED",IF($F$43>3,"AMBER-RED",IF($G$43=1,"AMBER-RED",IF($F$43<=3,"AMBER-GREEN"))))) -> AMBER-GREEN | H45: =IF(AND(E11="G",E12="G",E14="G",E15="G",E18="G",E19="G"),"GREEN",IF(COUNTIFS($D$11:$D$24,"Primary",$E$11:$E$24,"R")>=2,"RED",IF(OR(COUNTIFS($E$11:$E$24,"Primary",$E$11:$E$24,"AR")>3,COUNTIFS($D$11:$D$24,"Primary",$E$11:$E$24,"R")=1),"AMBER-RED","AMBER-GREEN"))) -> GREEN
D46: =IF(AND(E11="G",E12="G",E14="G",E15="G",E18="G",E19="G"),"GREEN",IF($G$43>=2,"RED",IF($F$43>3,"AMBER-RED",IF($G$43=1,"AMBER-RED",IF($F$43<=3,"AMBER-GREEN"))))) -> GREEN
D49: GREEN | E49: =D43 -> 6
D50: AMBER-GREEN | E50: =E55&F55&"_"&E56&F56 -> 0AG_0AR
D51: AMBER-RED | E51: =IF(COUNTIFS($D$11:$D$24,"Primary",$E$11:$E$24,"R")=1,"1 RED","0") -> 0
D52: RED | E52: =G43 -> 0
E55: =E43 -> 0 | F55: AG
E56: =F43 -> 0 | F56: AR

Sheet Domain 5
N5: Please select
B6: Domain 5 - Are conditions of CCG authorisation being addressed and removed (where relevant)? | P6: EXAMPLE KEY:
C8: ='BSC Summary'!D2 -> North | D8: CCG: | E8: =VLOOKUP('BSC Summary'!$A$3,Lookup!$A:$C,2,FALSE) -> NHS Rotherham CCG | N8: 2013-14 Q1
N9: 2013-14_June | Q9: All No
A10: 1 | B10: Domain 1: A strong clinical and multi-professional focus which brings real added value | N10: Total number of outstanding conditions in Domain 1
B11: Quality is at the heart of governance, decision-making and planning arrangements, with examples of CCGs delivering local quality improvements. Member practices are involved in making and implementing decisions, and views and input are sought, heard and valued from a range of professionals across all providers, not just GPs. | N11: =IF(ISERROR(VLOOKUP('BSC Summary'!$A$4&"_"&$N$9,CCG_AF_CONDITIONS_DOMAIN5!$A:$H,2,FALSE)),0,VLOOKUP('BSC Summary'!$A$4&"_"&$N$9,CCG_AF_CONDITIONS_DOMAIN5!$A:$H,2,FALSE)) -> 0 | P11: Amber-Red | Q11: 2 yes
A13: 2 | B13: Domain 2: Meaningful engagement with patients, carers and their communities | N13: Total number of outstanding conditionsin Domain 2
B14: CCG is an active member of its Health and Wellbeing Board, and sees engagement with patients, carers and members of the public and developing an open and transparent culture, as intrinsic to what it does. Examples of how CCG systematically monitors and acts on patient feedback, particularly in identifying quality issues. | N14: =IF(ISERROR(VLOOKUP('BSC Summary'!$A$4&"_"&$N$9,CCG_AF_CONDITIONS_DOMAIN5!$A:$H,3,FALSE)),0,VLOOKUP('BSC Summary'!$A$4&"_"&$N$9,CCG_AF_CONDITIONS_DOMAIN5!$A:$H,3,FALSE)) -> 0
A16: 3 | B16: Domain 3: Clear and credible plans which continue to deliver the QIPP challenge within financial resources, in line with national requirements (including excellent outcomes) and local joint health and wellbeing strategies | N16: Total number of outstanding conditions in Domain 3
B17: CCG has detailed financial plan that delivers against the financial business rules, sets out how it will manage within its management allowance and is integrated with its commissioning plan, and CCG can demonstrate progress and delivery against its plan. There are ongoing discussions between CCG, its neighbouring CCGs and provider organisations about long-term strategy and plans, and member practices understand their local plans and priorities and are engaged in their delivery. | N17: =IF(ISERROR(VLOOKUP('BSC Summary'!$A$4&"_"&$N$9,CCG_AF_CONDITIONS_DOMAIN5!$A:$H,4,FALSE)),0,VLOOKUP('BSC Summary'!$A$4&"_"&$N$9,CCG_AF_CONDITIONS_DOMAIN5!$A:$H,4,FALSE)) -> 0
A19: 4 | B19: Domain 4: Proper constitutional and governance arrangements, with the capacity and capability to deliver all their duties and resposibilities including financial control, as well as effectively commission all the services for which they are responsible | N19: Total number of outstanding conditions in Domain 4
B20: a) ability to manage all aspects of quality b) ability to commission the full range of services c) use of information to deliver an open and transparent culture d) financial control and capacity | N20: =IF(ISERROR(VLOOKUP('BSC Summary'!$A$4&"_"&$N$9,CCG_AF_CONDITIONS_DOMAIN5!$A:$H,5,FALSE)),0,VLOOKUP('BSC Summary'!$A$4&"_"&$N$9,CCG_AF_CONDITIONS_DOMAIN5!$A:$H,5,FALSE)) -> 0
A22: 5 | B22: Domain 5: Collaborative arrangements for commissioning with other CCGs, local authorities and the NHS CB, as well as apporpriate external commissioning support | N22: Total number of outstanding conditions in Domain 5
B23: CCG has deep collaborative ties to their local authority, clinical senates and area teams, with shared governance of joint comissioning with area teams and, where relevant, strong integrated commissioning with their local authority partner. The CCG has developed a strong and insightful working partnership with their local Health and Wellbeing Board. CCG has contract in place with an assured commissioning support services provider, and can articulate clear plans for its commissioning support services between 2013 and 2016. | N23: =IF(ISERROR(VLOOKUP('BSC Summary'!$A$4&"_"&$N$9,CCG_AF_CONDITIONS_DOMAIN5!$A:$H,6,FALSE)),0,VLOOKUP('BSC Summary'!$A$4&"_"&$N$9,CCG_AF_CONDITIONS_DOMAIN5!$A:$H,6,FALSE)) -> 0
A25: 6 | B25: Domain 6: Great leaders who individually and collectively can make a real difference | N25: Total number of outstanding conditions
B26: CCG has individual and collective leadership who demonstrate commitment to partnership working and have the necessary skillset to lead commissioning and drive transformational change. Distributed leadership throughout the culture of the CCG and the governing body means that there is extensive engagement and communication across practices, with effectie processes for two-way accountability in use. | N26: =IF(ISERROR(VLOOKUP('BSC Summary'!$A$4&"_"&$N$9,CCG_AF_CONDITIONS_DOMAIN5!$A:$H,7,FALSE)),0,VLOOKUP('BSC Summary'!$A$4&"_"&$N$9,CCG_AF_CONDITIONS_DOMAIN5!$A:$H,7,FALSE)) -> 0 | P26: Red
M28: Total number of outstanding conditions | N28: =N11+N14+N17+N20+N23+N26 -> 0
N29: =IF(N28>=1,"Authorised with conditions", "Fully Authorised") -> Fully Authorised

Sheet Escalation Framework
B6: CCG Assurance Balanced Scorecard - Proposed Escalation Framework
B8: Note: The support and intervention rules should not delay or prevent a CCG as a commissioner from taking action to intervene in a provider if there are significant quality concerns. It should also not prevent NHS England from taking intervention action where the CCG cannot demonstrate the capacity to swiftly address quality concerns.

Sheet Support
A6: CCG Support/Intervention Discussion (by Domain & Indicator)
C7: 2013-14 | D7: June | H7: Area Team | I7: ='BSC Summary'!D2 -> North | J7: CCG: | K7: =VLOOKUP('BSC Summary'!$A$3,Lookup!$A:$C,2,FALSE) -> NHS Rotherham CCG
B8: Intervention should not be considered lightly and the threshold for use should be high. For each Red or Amber- Red Domain, Area Teams must to fill in additional questions highlighted in yellow below. For each Green or Amber – Green Domain, Area Teams may fill in additional questions highlighted in yellow, if proactive support is felt to be appropriate.
A9: DOMAIN 1 | B9: DOMAIN 1 | E9: For each Green or Amber – Green Domain, Area Teams may fill in additional questions highlighted in yellow, if proactive support is felt to be to be appropriate
B10: RAG STATUS | E10: ='Domain 1'!C37 -> AMBER-GREEN | F10: =IF(E10="GREEN","ALL INDICATIOR MET","THE NUMBER OF INDICATORS TRIGGERING") -> THE NUMBER OF INDICATORS TRIGGERING | I10: =IF(E10="GREEN","",E10) -> AMBER-GREEN | J10: ='Domain 1'!D65 -> 2 | L10: Assurance questions MUST BE DISCUSSED AT CHECKPOINT MEETINGS FOR ALL R/AR DOMAINS | AT10: Please Select Yes/No | AU10: Please Select | AV10: Please Select
B11: Indicator that has been breached | G11: ='Domain 1'!C10 -> THE ROTHERHAM NHS FOUNDATION TRUST | H11: ='Domain 1'!D10 -> ROTHERHAM, DONCASTER AND SOUTH HUMBER NHS FOUNDATION TRUST | I11: ='Domain 1'!E10 -> No Provider | J11: ='Domain 1'!F10 -> No Provider | K11: ='Domain 1'!G10 -> No Provider | L11: Does the CCG and Area team agree on the underlying cause/s? | N11: Is there an agreed plan for action/recovery | P11: Has a timeline for improvement been agreed? | R11: Support/Intervention agreed | AT11: Yes | AU11: Support | AV11: RED
B12: ='Domain 1'!B14 -> Has local provider been subject to local enforcement action by the CQC? | G12: =IF('Domain 1'!C14=Support!$O$29,"Yes - No action plan in place",IF('Domain 1'!C14=Support!$O$30,"Yes - Enforcement Action",IF('Domain 1'!C14=Support!$O$33,"Yes - Action plan in place",IF('Domain 1'!C14=" "," ")))) -> FALSE | H12: =IF('Domain 1'!D14=Support!$O$29,"Yes - No action plan in place",IF('Domain 1'!D14=Support!$O$30,"Yes - Enforcement Action",IF('Domain 1'!D14=Support!$O$33,"Yes - Action plan in place",IF('Domain 1'!D14=" "," ")))) -> FALSE | I12: =IF('Domain 1'!E14=Support!$O$29,"Yes - No action plan in place",IF('Domain 1'!E14=Support!$O$30,"Yes - Enforcement Action",IF('Domain 1'!E14=Support!$O$33,"Yes - Action plan in place",IF('Domain 1'!E14=" "," ")))) -> FALSE | J12: =IF('Domain 1'!F14=Support!$O$29,"Yes - No action plan in place",IF('Domain 1'!F14=Support!$O$30,"Yes - Enforcement Action",IF('Domain 1'!F14=Support!$O$33,"Yes - Action plan in place",IF('Domain 1'!F14=" "," ")))) -> FALSE | K12: =IF('Domain 1'!G14=Support!$O$29,"Yes - No action plan in place",IF('Domain 1'!G14=Support!$O$30,"Yes - Enforcement Action",IF('Domain 1'!G14=Support!$O$33,"Yes - Action plan in place",IF('Domain 1'!G14=" "," ")))) -> FALSE | L12: =VLOOKUP($C$7&"_"&$D$7&"_"&'BSC Summary'!$A$4,'DOMAIN 1 SUMMARY'!$A:$N,3,FALSE) -> Yes | N12: =VLOOKUP($C$7&"_"&$D$7&"_"&'BSC Summary'!$A$4,'DOMAIN 1 SUMMARY'!$A:$N,4,FALSE) -> Yes | P12: =VLOOKUP($C$7&"_"&$D$7&"_"&'BSC Summary'!$A$4,'DOMAIN 1 SUMMARY'!$A:$N,5,FALSE) -> Yes | R12: =VLOOKUP($C$7&"_"&$D$7&"_"&'BSC Summary'!$A$4,'DOMAIN 1 SUMMARY'!$A:$N,6,FALSE) -> None | AT12: No | AU12: Intervention | AV12: AMBER-RED
B13: ='Domain 1'!B15 -> Has local provider been flagged as a 'quality compliance risk' by Monitor and/or are requirements in place around breaches of provider licence conditions? | G13: =IF('Domain 1'!C15=Support!$O$29,"Yes - No action plan in place",IF('Domain 1'!C15=Support!$O$30,"Yes - Enforcement Action",IF('Domain 1'!C15=Support!$O$33,"Yes - Action plan in place",IF('Domain 1'!C15=" "," ")))) -> Yes - Action plan in place | H13: =IF('Domain 1'!D15=Support!$O$29,"Yes - No action plan in place",IF('Domain 1'!D15=Support!$O$30,"Yes - Enforcement Action",IF('Domain 1'!D15=Support!$O$33,"Yes - Action plan in place",IF('Domain 1'!D15=" "," ")))) -> FALSE | I13: =IF('Domain 1'!E15=Support!$O$29,"Yes - No action plan in place",IF('Domain 1'!E15=Support!$O$30,"Yes - Enforcement Action",IF('Domain 1'!E15=Support!$O$33,"Yes - Action plan in place",IF('Domain 1'!E15=" "," ")))) -> FALSE | J13: =IF('Domain 1'!F15=Support!$O$29,"Yes - No action plan in place",IF('Domain 1'!F15=Support!$O$30,"Yes - Enforcement Action",IF('Domain 1'!F15=Support!$O$33,"Yes - Action plan in place",IF('Domain 1'!F15=" "," ")))) -> FALSE | K13: =IF('Domain 1'!G15=Support!$O$29,"Yes - No action plan in place",IF('Domain 1'!G15=Support!$O$30,"Yes - Enforcement Action",IF('Domain 1'!G15=Support!$O$33,"Yes - Action plan in place",IF('Domain 1'!G15=" "," ")))) -> FALSE | AT13: Not Applicable | AU13: None | AV13: AMBER-GREEN
B14: ='Domain 1'!B16 -> Has local provider been subject to enforcement action by the NHS TDA based on 'quality' risk? | G14: =IF('Domain 1'!C16=Support!$O$29,"Yes - No action plan in place",IF('Domain 1'!C16=Support!$O$30,"Yes - Enforcement Action",IF('Domain 1'!C16=Support!$O$33,"Yes - Action plan in place",IF('Domain 1'!C16=" "," ")))) -> FALSE | H14: =IF('Domain 1'!D16=Support!$O$29,"Yes - No action plan in place",IF('Domain 1'!D16=Support!$O$30,"Yes - Enforcement Action",IF('Domain 1'!D16=Support!$O$33,"Yes - Action plan in place",IF('Domain 1'!D16=" "," ")))) -> FALSE | I14: =IF('Domain 1'!E16=Support!$O$29,"Yes - No action plan in place",IF('Domain 1'!E16=Support!$O$30,"Yes - Enforcement Action",IF('Domain 1'!E16=Support!$O$33,"Yes - Action plan in place",IF('Domain 1'!E16=" "," ")))) -> FALSE | J14: =IF('Domain 1'!F16=Support!$O$29,"Yes - No action plan in place",IF('Domain 1'!F16=Support!$O$30,"Yes - Enforcement Action",IF('Domain 1'!F16=Support!$O$33,"Yes - Action plan in place",IF('Domain 1'!F16=" "," ")))) -> FALSE | K14: =IF('Domain 1'!G16=Support!$O$29,"Yes - No action plan in place",IF('Domain 1'!G16=Support!$O$30,"Yes - Enforcement Action",IF('Domain 1'!G16=Support!$O$33,"Yes - Action plan in place",IF('Domain 1'!G16=" "," ")))) -> FALSE | AU14: Not Applicable | AV14: GREEN
B15: ='Domain 1'!B17 -> Does feedback from the Friends and Family test (or any other patient feedback) indicate any causes for concern? | G15: =IF('Domain 1'!C17=Support!$O$29,"Yes - No action plan in place",IF('Domain 1'!C17=Support!$O$30,"Yes - Enforcement Action",IF('Domain 1'!C17=Support!$O$33,"Yes - Action plan in place",IF('Domain 1'!C17=" "," ")))) -> Yes - Action plan in place | H15: =IF('Domain 1'!D17=Support!$O$29,"Yes - No action plan in place",IF('Domain 1'!D17=Support!$O$30,"Yes - Enforcement Action",IF('Domain 1'!D17=Support!$O$33,"Yes - Action plan in place",IF('Domain 1'!D17=" "," ")))) -> FALSE | I15: =IF('Domain 1'!E17=Support!$O$29,"Yes - No action plan in place",IF('Domain 1'!E17=Support!$O$30,"Yes - Enforcement Action",IF('Domain 1'!E17=Support!$O$33,"Yes - Action plan in place",IF('Domain 1'!E17=" "," ")))) -> FALSE | J15: =IF('Domain 1'!F17=Support!$O$29,"Yes - No action plan in place",IF('Domain 1'!F17=Support!$O$30,"Yes - Enforcement Action",IF('Domain 1'!F17=Support!$O$33,"Yes - Action plan in place",IF('Domain 1'!F17=" "," ")))) -> FALSE | K15: =IF('Domain 1'!G17=Support!$O$29,"Yes - No action plan in place",IF('Domain 1'!G17=Support!$O$30,"Yes - Enforcement Action",IF('Domain 1'!G17=Support!$O$33,"Yes - Action plan in place",IF('Domain 1'!G17=" "," ")))) -> FALSE
B16: ='Domain 1'!B18 -> Has the provider been identified as a 'negative outlier' on SMHI or HSMR? | G16: =IF('Domain 1'!C18=Support!$O$29,"Yes - No action plan in place",IF('Domain 1'!C18=Support!$O$30,"Yes - Enforcement Action",IF('Domain 1'!C18=Support!$O$33,"Yes - Action plan in place",IF('Domain 1'!C18=" "," ")))) -> FALSE | H16: =IF('Domain 1'!D18=Support!$O$29,"Yes - No action plan in place",IF('Domain 1'!D18=Support!$O$30,"Yes - Enforcement Action",IF('Domain 1'!D18=Support!$O$33,"Yes - Action plan in place",IF('Domain 1'!D18=" "," ")))) -> FALSE | I16: =IF('Domain 1'!E18=Support!$O$29,"Yes - No action plan in place",IF('Domain 1'!E18=Support!$O$30,"Yes - Enforcement Action",IF('Domain 1'!E18=Support!$O$33,"Yes - Action plan in place",IF('Domain 1'!E18=" "," ")))) -> FALSE | J16: =IF('Domain 1'!F18=Support!$O$29,"Yes - No action plan in place",IF('Domain 1'!F18=Support!$O$30,"Yes - Enforcement Action",IF('Domain 1'!F18=Support!$O$33,"Yes - Action plan in place",IF('Domain 1'!F18=" "," ")))) -> FALSE | K16: =IF('Domain 1'!G18=Support!$O$29,"Yes - No action plan in place",IF('Domain 1'!G18=Support!$O$30,"Yes - Enforcement Action",IF('Domain 1'!G18=Support!$O$33,"Yes - Action plan in place",IF('Domain 1'!G18=" "," ")))) -> FALSE
B17: ='Domain 1'!B19 -> Do provider level indicators from the National Quality Dashboard show that MRSA cases are above zero? | G17: =IF('Domain 1'!C19=Support!$O$29,"Yes - No action plan in place",IF('Domain 1'!C19=Support!$O$30,"Yes - Enforcement Action",IF('Domain 1'!C19=Support!$O$33,"Yes - Action plan in place",IF('Domain 1'!C19=" "," ")))) -> FALSE | H17: =IF('Domain 1'!D19=Support!$O$29,"Yes - No action plan in place",IF('Domain 1'!D19=Support!$O$30,"Yes - Enforcement Action",IF('Domain 1'!D19=Support!$O$33,"Yes - Action plan in place",IF('Domain 1'!D19=" "," ")))) -> FALSE | I17: =IF('Domain 1'!E19=Support!$O$29,"Yes - No action plan in place",IF('Domain 1'!E19=Support!$O$30,"Yes - Enforcement Action",IF('Domain 1'!E19=Support!$O$33,"Yes - Action plan in place",IF('Domain 1'!E19=" "," ")))) -> FALSE | J17: =IF('Domain 1'!F19=Support!$O$29,"Yes - No action plan in place",IF('Domain 1'!F19=Support!$O$30,"Yes - Enforcement Action",IF('Domain 1'!F19=Support!$O$33,"Yes - Action plan in place",IF('Domain 1'!F19=" "," ")))) -> FALSE | K17: =IF('Domain 1'!G19=Support!$O$29,"Yes - No action plan in place",IF('Domain 1'!G19=Support!$O$30,"Yes - Enforcement Action",IF('Domain 1'!G19=Support!$O$33,"Yes - Action plan in place",IF('Domain 1'!G19=" "," ")))) -> FALSE
B18: ='Domain 1'!B20 -> Do provider level indicators from the National Quality Dashboard show that the provider has reported more C difficile cases than trajectory? | G18: =IF('Domain 1'!C20=Support!$O$29,"Yes - No action plan in place",IF('Domain 1'!C20=Support!$O$30,"Yes - Enforcement Action",IF('Domain 1'!C20=Support!$O$33,"Yes - Action plan in place",IF('Domain 1'!C20=" "," ")))) -> FALSE | H18: =IF('Domain 1'!D20=Support!$O$29,"Yes - No action plan in place",IF('Domain 1'!D20=Support!$O$30,"Yes - Enforcement Action",IF('Domain 1'!D20=Support!$O$33,"Yes - Action plan in place",IF('Domain 1'!D20=" "," ")))) -> FALSE | I18: =IF('Domain 1'!E20=Support!$O$29,"Yes - No action plan in place",IF('Domain 1'!E20=Support!$O$30,"Yes - Enforcement Action",IF('Domain 1'!E20=Support!$O$33,"Yes - Action plan in place",IF('Domain 1'!E20=" "," ")))) -> FALSE | J18: =IF('Domain 1'!F20=Support!$O$29,"Yes - No action plan in place",IF('Domain 1'!F20=Support!$O$30,"Yes - Enforcement Action",IF('Domain 1'!F20=Support!$O$33,"Yes - Action plan in place",IF('Domain 1'!F20=" "," ")))) -> FALSE | K18: =IF('Domain 1'!G20=Support!$O$29,"Yes - No action plan in place",IF('Domain 1'!G20=Support!$O$30,"Yes - Enforcement Action",IF('Domain 1'!G20=Support!$O$33,"Yes - Action plan in place",IF('Domain 1'!G20=" "," ")))) -> FALSE
B19: ='Domain 1'!B21 -> Do provider level indicators from the National Quality Dashboard show that MSA breaches are above zero? | G19: =IF('Domain 1'!C21=Support!$O$29,"Yes - No action plan in place",IF('Domain 1'!C21=Support!$O$30,"Yes - Enforcement Action",IF('Domain 1'!C21=Support!$O$33,"Yes - Action plan in place",IF('Domain 1'!C21=" "," ")))) -> FALSE | H19: =IF('Domain 1'!D21=Support!$O$29,"Yes - No action plan in place",IF('Domain 1'!D21=Support!$O$30,"Yes - Enforcement Action",IF('Domain 1'!D21=Support!$O$33,"Yes - Action plan in place",IF('Domain 1'!D21=" "," ")))) -> FALSE | I19: =IF('Domain 1'!E21=Support!$O$29,"Yes - No action plan in place",IF('Domain 1'!E21=Support!$O$30,"Yes - Enforcement Action",IF('Domain 1'!E21=Support!$O$33,"Yes - Action plan in place",IF('Domain 1'!E21=" "," ")))) -> FALSE | J19: =IF('Domain 1'!F21=Support!$O$29,"Yes - No action plan in place",IF('Domain 1'!F21=Support!$O$30,"Yes - Enforcement Action",IF('Domain 1'!F21=Support!$O$33,"Yes - Action plan in place",IF('Domain 1'!F21=" "," ")))) -> FALSE | K19: =IF('Domain 1'!G21=Support!$O$29,"Yes - No action plan in place",IF('Domain 1'!G21=Support!$O$30,"Yes - Enforcement Action",IF('Domain 1'!G21=Support!$O$33,"Yes - Action plan in place",IF('Domain 1'!G21=" "," ")))) -> FALSE
B20: ='Domain 1'!B22 -> Does provider currently have any unclosed Serious Untoward Incidents (SUIs)? | G20: =IF('Domain 1'!C22=Support!$O$29,"Yes - No action plan in place",IF('Domain 1'!C22=Support!$O$30,"Yes - Enforcement Action",IF('Domain 1'!C22=Support!$O$33,"Yes - Action plan in place",IF('Domain 1'!C22=" "," ")))) -> Yes - Action plan in place | H20: =IF('Domain 1'!D22=Support!$O$29,"Yes - No action plan in place",IF('Domain 1'!D22=Support!$O$30,"Yes - Enforcement Action",IF('Domain 1'!D22=Support!$O$33,"Yes - Action plan in place",IF('Domain 1'!D22=" "," ")))) -> Yes - Action plan in place | I20: =IF('Domain 1'!E22=Support!$O$29,"Yes - No action plan in place",IF('Domain 1'!E22=Support!$O$30,"Yes - Enforcement Action",IF('Domain 1'!E22=Support!$O$33,"Yes - Action plan in place",IF('Domain 1'!E22=" "," ")))) -> FALSE | J20: =IF('Domain 1'!F22=Support!$O$29,"Yes - No action plan in place",IF('Domain 1'!F22=Support!$O$30,"Yes - Enforcement Action",IF('Domain 1'!F22=Support!$O$33,"Yes - Action plan in place",IF('Domain 1'!F22=" "," ")))) -> FALSE | K20: =IF('Domain 1'!G22=Support!$O$29,"Yes - No action plan in place",IF('Domain 1'!G22=Support!$O$30,"Yes - Enforcement Action",IF('Domain 1'!G22=Support!$O$33,"Yes - Action plan in place",IF('Domain 1'!G22=" "," ")))) -> FALSE
B21: ='Domain 1'!B23 -> Has the provider experienced any 'Never Events' during the last quarter? | G21: =IF('Domain 1'!C23=Support!$O$29,"Yes - No action plan in place",IF('Domain 1'!C23=Support!$O$30,"Yes - Enforcement Action",IF('Domain 1'!C23=Support!$O$33,"Yes - Action plan in place",IF('Domain 1'!C23=" "," ")))) -> FALSE | H21: =IF('Domain 1'!D23=Support!$O$29,"Yes - No action plan in place",IF('Domain 1'!D23=Support!$O$30,"Yes - Enforcement Action",IF('Domain 1'!D23=Support!$O$33,"Yes - Action plan in place",IF('Domain 1'!D23=" "," ")))) -> FALSE | I21: =IF('Domain 1'!E23=Support!$O$29,"Yes - No action plan in place",IF('Domain 1'!E23=Support!$O$30,"Yes - Enforcement Action",IF('Domain 1'!E23=Support!$O$33,"Yes - Action plan in place",IF('Domain 1'!E23=" "," ")))) -> FALSE | J21: =IF('Domain 1'!F23=Support!$O$29,"Yes - No action plan in place",IF('Domain 1'!F23=Support!$O$30,"Yes - Enforcement Action",IF('Domain 1'!F23=Support!$O$33,"Yes - Action plan in place",IF('Domain 1'!F23=" "," ")))) -> FALSE | K21: =IF('Domain 1'!G23=Support!$O$29,"Yes - No action plan in place",IF('Domain 1'!G23=Support!$O$30,"Yes - Enforcement Action",IF('Domain 1'!G23=Support!$O$33,"Yes - Action plan in place",IF('Domain 1'!G23=" "," ")))) -> FALSE
B22: CCG:
B23: ='Domain 1'!B27 -> Concerns about quality issues being discussed regularly by the CCG governing body | G23: =IF('Domain 1'!C27=Support!$O$29,"Yes - No action plan in place",IF('Domain 1'!C27=Support!$O$30,"Yes - Enforcement Action",IF('Domain 1'!C27=Support!$O$33,"Yes - Action plan in place",IF('Domain 1'!C27=" "," ")))) -> FALSE | L23: =VLOOKUP($C$7&"_"&$D$7&"_"&'BSC Summary'!$A$4,'DOMAIN 1 SUMMARY'!$A:$N,8,FALSE) -> Not Applicable | N23: =VLOOKUP($C$7&"_"&$D$7&"_"&'BSC Summary'!$A$4,'DOMAIN 1 SUMMARY'!$A:$N,9,FALSE) -> Not Applicable | P23: =VLOOKUP($C$7&"_"&$D$7&"_"&'BSC Summary'!$A$4,'DOMAIN 1 SUMMARY'!$A:$N,10,FALSE) -> Not Applicable | R23: =VLOOKUP($C$7&"_"&$D$7&"_"&'BSC Summary'!$A$4,'DOMAIN 1 SUMMARY'!$A:$N,11,FALSE) -> None
B24: ='Domain 1'!B29 -> Concerns about the arrangements in place to proactively identify early warnings of a failing service | G24: =IF('Domain 1'!C29=Support!$O$29,"Yes - No action plan in place",IF('Domain 1'!C29=Support!$O$30,"Yes - Enforcement Action",IF('Domain 1'!C29=Support!$O$33,"Yes - Action plan in place",IF('Domain 1'!C29=" "," ")))) -> FALSE
B25: ='Domain 1'!B30 -> Concerns around the arrangements in place to deal with and learn from serious untoward incidents and never events? | G25: =IF('Domain 1'!C30=Support!$O$29,"Yes - No action plan in place",IF('Domain 1'!C30=Support!$O$30,"Yes - Enforcement Action",IF('Domain 1'!C30=Support!$O$33,"Yes - Action plan in place",IF('Domain 1'!C30=" "," ")))) -> FALSE
B26: ='Domain 1'!B31 -> Concerns around being an active participant in its Quality Surveillance Group? | G26: =IF('Domain 1'!C31=Support!$O$29,"Yes - No action plan in place",IF('Domain 1'!C31=Support!$O$30,"Yes - Enforcement Action",IF('Domain 1'!C31=Support!$O$33,"Yes - Action plan in place",IF('Domain 1'!C31=" "," ")))) -> FALSE
B27: ='Domain 1'!B33 -> If there was an emergency event in the last quarter, has the CCG self assessed and identified any areas of concern on the arrangements in place for dealing with such an event? | G27: =IF('Domain 1'!C32=Support!$O$29,"Yes - No action plan in place",IF('Domain 1'!C33=Support!$O$30,"Yes - Enforcement Action",IF('Domain 1'!C33=Support!$O$33,"Yes - Action plan in place",IF('Domain 1'!C33=" "," ")))) -> FALSE
B28: ='Domain 1'!B35 -> Has the CCG self assessed and identified any risk to progress against its Winterbourne View action plan? | G28: =IF('Domain 1'!C33=Support!$O$29,"Yes - No action plan in place",IF('Domain 1'!C35=Support!$O$30,"Yes - Enforcement Action",IF('Domain 1'!C35=Support!$O$33,"Yes - Action plan in place",IF('Domain 1'!C35=" "," ")))) -> FALSE
O29: Yes – No action plan in place
O30: Yes – Enforcement Action
B33: DOMAIN 2 | E33: For each Green or Amber – Green Domain, Area Teams may fill in additional questions highlighted in yellow, if proactive support is felt to be to be appropriate | O33: Yes – Action plan in place
B34: RAG STATUS | E34: ='Domain 2'!F48 -> GREEN | F34: =IF(E34="GREEN","ALL INDICATOR MET","THE NUMBER OF INDICATORS TRIGGERING") -> ALL INDICATOR MET | I34: =IF(E34="GREEN","",E34) ->  | J34: =VLOOKUP($E$34,'Domain 2'!$N$51:$O$54,2,FALSE) -> 16 | M34: Y | N34: =IF(ISERROR(INDEX(A15:B$23,MATCH($C$92,C15,FALSE),1)),"",INDEX(A15:B$23,MATCH($C$92,C15,FALSE),1)) -> 
B35: Indicator that has been breached | G35: Does the CCG and Area team agree on the underlying cause/s? | I35: Is there an agreed plan for action/recovery? | K35: Has a timeline for improvement been agreed? | M35: Has Support/Intervention been agreed
B36: =IF(ISERROR(INDEX('Domain 2'!A10:$N$13,MATCH("RED",'Domain 2'!N10,FALSE),1)),"",INDEX('Domain 2'!A10:$N$13,MATCH("RED",'Domain 2'!N10,FALSE),1)) ->  | G36: =VLOOKUP($C$7&"_"&$D$7&"_"&'BSC Summary'!$A$4,'DOMAIN 2 SUMMARY'!$A:$H,4,FALSE) -> Not Applicable | I36: =VLOOKUP($C$7&"_"&$D$7&"_"&'BSC Summary'!$A$4,'DOMAIN 2 SUMMARY'!$A:$H,5,FALSE) -> Not Applicable | K36: =VLOOKUP($C$7&"_"&$D$7&"_"&'BSC Summary'!$A$4,'DOMAIN 2 SUMMARY'!$A:$H,6,FALSE) -> Not Applicable | M36: =VLOOKUP($C$7&"_"&$D$7&"_"&'BSC Summary'!$A$4,'DOMAIN 2 SUMMARY'!$A:$H,7,FALSE) -> None
B37: =IF(ISERROR(INDEX('Domain 2'!A11:$N$13,MATCH("RED",'Domain 2'!N11,FALSE),1)),"",INDEX('Domain 2'!A11:$N$13,MATCH("RED",'Domain 2'!N11,FALSE),1)) -> 
B38: =IF(ISERROR(INDEX('Domain 2'!A12:$N$13,MATCH("RED",'Domain 2'!N12,FALSE),1)),"",INDEX('Domain 2'!A12:$N$13,MATCH("RED",'Domain 2'!N12,FALSE),1)) -> 
B39: =IF(ISERROR(INDEX('Domain 2'!A13:$N$13,MATCH("RED",'Domain 2'!N13,FALSE),1)),"",INDEX('Domain 2'!A13:$N$13,MATCH("RED",'Domain 2'!N13,FALSE),1)) -> 
B40: =IF(ISERROR(INDEX('Domain 2'!$A$15:$N$15,MATCH("RED",'Domain 2'!$N$15,FALSE),1)),"",INDEX('Domain 2'!$A$15:$N$15,MATCH("RED",'Domain 2'!$N$15,FALSE),1)) -> 
B41: =IF(ISERROR(INDEX('Domain 2'!$A$17:$N$19,MATCH("RED",'Domain 2'!$N$17,FALSE),1)),"",INDEX('Domain 2'!$A$17:$N$19,MATCH("RED",'Domain 2'!$N$17,FALSE),1)) -> 
B42: =IF(ISERROR(INDEX('Domain 2'!$A$18:$N$19,MATCH("RED",'Domain 2'!$N$18,FALSE),1)),"",INDEX('Domain 2'!$A$18:$N$19,MATCH("RED",'Domain 2'!$N$18,FALSE),1)) -> 
B43: =IF(ISERROR(INDEX('Domain 2'!$A$19:$N$19,MATCH("RED",'Domain 2'!$N$19,FALSE),1)),"",INDEX('Domain 2'!$A$19:$N$19,MATCH("RED",'Domain 2'!$N$19,FALSE),1)) -> 
B44: =IF(ISERROR(INDEX('Domain 2'!$A$21:$N$22,MATCH("RED",'Domain 2'!$N$21,FALSE),1)),"",INDEX('Domain 2'!$A$21:$N$22,MATCH("RED",'Domain 2'!$N$21,FALSE),1)) -> 
B45: =IF(ISERROR(INDEX('Domain 2'!$A$22:$N$22,MATCH("RED",'Domain 2'!$N$22,FALSE),1)),"",INDEX('Domain 2'!$A$22:$N$22,MATCH("RED",'Domain 2'!$N$22,FALSE),1)) -> 
B46: =IF(ISERROR(INDEX('Domain 2'!$A$24:N27,MATCH("RED",'Domain 2'!$N$24,FALSE),1)),"",INDEX('Domain 2'!$A$24:N27,MATCH("RED",'Domain 2'!$N$24,FALSE),1)) -> 
B47: =IF(ISERROR(INDEX('Domain 2'!$A$25:$N$27,MATCH("RED",'Domain 2'!$N$25,FALSE),1)),"",INDEX('Domain 2'!$A$25:$N$27,MATCH("RED",'Domain 2'!$N$25,FALSE),1)) -> 
B48: =IF(ISERROR(INDEX('Domain 2'!$A$26:N27,MATCH("RED",'Domain 2'!$N$26,FALSE),1)),"",INDEX('Domain 2'!$A$26:N27,MATCH("RED",'Domain 2'!$N$26,FALSE),1)) -> 
B49: =IF(ISERROR(INDEX('Domain 2'!$A$27:$N$27,MATCH("RED",'Domain 2'!$N$27,FALSE),1)),"",INDEX('Domain 2'!$A$27:$N$27,MATCH("RED",'Domain 2'!$N$27,FALSE),1)) -> 
B50: =IF(ISERROR(INDEX('Domain 2'!$A$29:$N$31,MATCH("RED",'Domain 2'!$N$29,FALSE),1)),"",INDEX('Domain 2'!$A$29:$N$31,MATCH("RED",'Domain 2'!$N$29,FALSE),1)) -> 
B51: =IF(ISERROR(INDEX('Domain 2'!$A$30:$N$31,MATCH("RED",'Domain 2'!$N$30,FALSE),1)),"",INDEX('Domain 2'!$A$30:$N$31,MATCH("RED",'Domain 2'!$N$30,FALSE),1)) -> 
B52: =IF(ISERROR(INDEX('Domain 2'!$A$31:$N$31,MATCH("RED",'Domain 2'!$N$31,FALSE),1)),"",INDEX('Domain 2'!$A$31:$N$31,MATCH("RED",'Domain 2'!$N$31,FALSE),1)) -> 
B53: =IF(ISERROR(INDEX('Domain 2'!$A$33:$N$35,MATCH("RED",'Domain 2'!$N$33,FALSE),1)),"",INDEX('Domain 2'!$A$33:$N$35,MATCH("RED",'Domain 2'!$N$33,FALSE),1)) -> 
B54: =IF(ISERROR(INDEX('Domain 2'!$A$34:$N$35,MATCH("RED",'Domain 2'!$N$34,FALSE),1)),"",INDEX('Domain 2'!$A$34:$N$35,MATCH("RED",'Domain 2'!$N$34,FALSE),1)) -> 
B55: =IF(ISERROR(INDEX('Domain 2'!$A$35:$N$35,MATCH("RED",'Domain 2'!$N$35,FALSE),1)),"",INDEX('Domain 2'!$A$35:$N$35,MATCH("RED",'Domain 2'!$N$35,FALSE),1)) -> 
B56: =IF(ISERROR(INDEX('Domain 2'!$A$37:$N$37,MATCH("RED",'Domain 2'!$N$37,FALSE),1)),"",INDEX('Domain 2'!$A$37:$N$37,MATCH("RED",'Domain 2'!$N$37,FALSE),1)) -> 
B57: =IF(ISERROR(INDEX('Domain 2'!$A$41:$N$41,MATCH("RED",'Domain 2'!$N$41,FALSE),1)),"",INDEX('Domain 2'!$A$41:$N$41,MATCH("RED",'Domain 2'!$N$41,FALSE),1)) -> 
B58: =IF(ISERROR(INDEX('Domain 2'!$A$45:$D$45,MATCH("Y",'Domain 2'!$D$45,FALSE),1)),"",INDEX('Domain 2'!$A$45:$D$45,MATCH("Y",'Domain 2'!$D$45,FALSE),1)) -> 
B63: DOMAIN 3 | E63: For each Green or Amber – Green Domain, Area Teams may fill in additional questions highlighted in yellow, if proactive support is felt to be to be appropriate
B64: RAG STATUS | E64: ='Domain 3'!G45 -> GREEN | F64: =IF(E64="GREEN","ALL INDICATOR MET","THE NUMBER OF INDICATORS TRIGGERING") -> ALL INDICATOR MET | H64: =VLOOKUP($E$64,'Domain 3'!$Q$48:$R$51,2,FALSE) -> 2 | J64: =IF(E64="GREEN","",E64) -> 
B65: Indicator that has been breached | G65: Does the CCG and Area team agree on the underlying cause/s? | I65: Is there an agreed plan for action/recovery? | K65: Has a timeline for improvement been agreed? | M65: Has Support/Intervention been agreed
B66: =IF(ISERROR(INDEX('Domain 3'!A34:$J$35,MATCH("RED",'Domain 3'!J34,FALSE),1)),"",INDEX('Domain 3'!A34:$J$35,MATCH("RED",'Domain 3'!J34,FALSE),1)) ->  | G66: =VLOOKUP($C$7&"_"&$D$7&"_"&'BSC Summary'!$A$4,'DOMAIN 3 SUMMARY'!$A:$H,4,FALSE) -> Yes | I66: =VLOOKUP($C$7&"_"&$D$7&"_"&'BSC Summary'!$A$4,'DOMAIN 3 SUMMARY'!$A:$H,5,FALSE) -> Yes | K66: =VLOOKUP($C$7&"_"&$D$7&"_"&'BSC Summary'!$A$4,'DOMAIN 3 SUMMARY'!$A:$H,6,FALSE) -> Yes | M66: =VLOOKUP($C$7&"_"&$D$7&"_"&'BSC Summary'!$A$4,'DOMAIN 3 SUMMARY'!$A:$H,7,FALSE) -> None
B67: =IF(ISERROR(INDEX('Domain 3'!A35:$J$35,MATCH("RED",'Domain 3'!J35,FALSE),1)),"",INDEX('Domain 3'!A35:$J$35,MATCH("RED",'Domain 3'!J35,FALSE),1)) -> 
B68: =IF(ISERROR(INDEX('Domain 3'!A$37:$J37,MATCH("RED",'Domain 3'!J37,FALSE),1)),"",INDEX('Domain 3'!A$37:$J37,MATCH("RED",'Domain 3'!J37,FALSE),1)) -> 
B69: =IF(ISERROR(INDEX('Domain 3'!A$38:$J38,MATCH("RED",'Domain 3'!J38,FALSE),1)),"",INDEX('Domain 3'!A$38:$J38,MATCH("RED",'Domain 3'!J38,FALSE),1)) -> 
B70: =IF(ISERROR(INDEX('Domain 3'!A40:$C$42,MATCH("NO",'Domain 3'!$C$40,FALSE),1)),"",INDEX('Domain 3'!A40:$C$42,MATCH("NO",'Domain 3'!$C$40,FALSE),1)) -> 
B71: =IF(ISERROR(INDEX('Domain 3'!A41:$C$42,MATCH("NO",'Domain 3'!$C$41,FALSE),1)),"",INDEX('Domain 3'!A41:$C$42,MATCH("NO",'Domain 3'!$C$41,FALSE),1)) -> 
B72: =IF(ISERROR(INDEX('Domain 3'!A$43:$C43,MATCH("NO",'Domain 3'!$C$43,FALSE),1)),"",INDEX('Domain 3'!A$43:$C43,MATCH("NO",'Domain 3'!$C$43,FALSE),1)) -> 
B76: DOMAIN 4 | E76: For each Green or Amber – Green Domain, Area Teams may fill in additional questions highlighted in yellow, if proactive support is felt to be to be appropriate
B77: RAG STATUS | E77: ='Domain 4'!D29 -> GREEN | F77: =IF(E77="GREEN","ALL INDICATOR MET","THE NUMBER OF INDICATORS TRIGGERING") -> ALL INDICATOR MET | I77: =IF(E77="GREEN","",E77) ->  | J77: =VLOOKUP($E$77,'Domain 4'!$D$49:$E$52,2,FALSE) -> 6
B78: Indicator that has been breached | G78: Does the CCG and Area team agree on the underlying cause/s? | I78: Is there an agreed plan for action/recovery? | K78: Has a timeline for improvement been agreed? | M78: Has Support/Intervention been agreed
B79: =IF(ISERROR(INDEX('Domain 4'!C10:$E$19,MATCH("R",'Domain 4'!E10,FALSE),1)),"",INDEX('Domain 4'!C10:$E$19,MATCH("R",'Domain 4'!E10,FALSE),1)) ->  | G79: =VLOOKUP($C$7&"_"&$D$7&"_"&'BSC Summary'!$A$4,'DOMAIN 4 SUMMARY'!$A:$H,4,FALSE) -> Not Applicable | I79: =VLOOKUP($C$7&"_"&$D$7&"_"&'BSC Summary'!$A$4,'DOMAIN 4 SUMMARY'!$A:$H,5,FALSE) -> Not Applicable | K79: =VLOOKUP($C$7&"_"&$D$7&"_"&'BSC Summary'!$A$4,'DOMAIN 4 SUMMARY'!$A:$H,6,FALSE) -> Not Applicable | M79: =VLOOKUP($C$7&"_"&$D$7&"_"&'BSC Summary'!$A$4,'DOMAIN 4 SUMMARY'!$A:$H,7,FALSE) -> None
B80: =IF(ISERROR(INDEX('Domain 4'!C11:$E$19,MATCH("R",'Domain 4'!E11,FALSE),1)),"",INDEX('Domain 4'!C11:$E$19,MATCH("R",'Domain 4'!E11,FALSE),1)) -> 
B81: =IF(ISERROR(INDEX('Domain 4'!C12:$E$19,MATCH("R",'Domain 4'!E12,FALSE),1)),"",INDEX('Domain 4'!C12:$E$19,MATCH("R",'Domain 4'!E12,FALSE),1)) -> 
B82: =IF(ISERROR(INDEX('Domain 4'!C13:$E$19,MATCH("R",'Domain 4'!E13,FALSE),1)),"",INDEX('Domain 4'!C13:$E$19,MATCH("R",'Domain 4'!E13,FALSE),1)) -> 
B83: =IF(ISERROR(INDEX('Domain 4'!C14:$E$19,MATCH("R",'Domain 4'!E14,FALSE),1)),"",INDEX('Domain 4'!C14:$E$19,MATCH("R",'Domain 4'!E14,FALSE),1)) -> 
B84: =IF(ISERROR(INDEX('Domain 4'!C15:$E$19,MATCH("R",'Domain 4'!E15,FALSE),1)),"",INDEX('Domain 4'!C15:$E$19,MATCH("R",'Domain 4'!E15,FALSE),1)) -> 
B85: =IF(ISERROR(INDEX('Domain 4'!C16:$E$19,MATCH("R",'Domain 4'!E16,FALSE),1)),"",INDEX('Domain 4'!C16:$E$19,MATCH("R",'Domain 4'!E16,FALSE),1)) -> 
B86: =IF(ISERROR(INDEX('Domain 4'!C17:$E$19,MATCH("R",'Domain 4'!E17,FALSE),1)),"",INDEX('Domain 4'!C17:$E$19,MATCH("R",'Domain 4'!E17,FALSE),1)) -> 
B87: =IF(ISERROR(INDEX('Domain 4'!C18:$E$19,MATCH("R",'Domain 4'!E18,FALSE),1)),"",INDEX('Domain 4'!C18:$E$19,MATCH("R",'Domain 4'!E18,FALSE),1)) -> 
B88: =IF(ISERROR(INDEX('Domain 4'!C19:$E$19,MATCH("R",'Domain 4'!E19,FALSE),1)),"",INDEX('Domain 4'!C19:$E$19,MATCH("R",'Domain 4'!E19,FALSE),1)) -> 
B89: =IF(ISERROR(INDEX('Domain 4'!C$24:$E25,MATCH("R",'Domain 4'!E24,FALSE),1)),"",INDEX('Domain 4'!C$24:$E25,MATCH("R",'Domain 4'!E24,FALSE),1)) -> 
B90: =IF(ISERROR(INDEX('Domain 4'!C$24:$E25,MATCH("0",'Domain 4'!E24,FALSE),1)),"",INDEX('Domain 4'!C$24:$E25,MATCH("0",'Domain 4'!E24,FALSE),1)) -> 
B91: =IF(ISERROR(INDEX('Domain 4'!C$25:$E25,MATCH("R",'Domain 4'!E25,FALSE),1)),"",INDEX('Domain 4'!C$25:$E25,MATCH("R",'Domain 4'!E25,FALSE),1)) -> 

Sheet Lookup (hidden)
B1: Org_Name_Original | C1: OrgCode | D1: Cluster
A2: 1 | B2: NHS Rotherham CCG | C2: 03L | D2: North

Sheet CCG_AF_CONDITIONS_DOMAIN5 (hidden)
A1: ID | B1: Domain 1 | C1: Domain 2 | D1: Domain 3 | E1: Domain 4 | F1: Domain 5 | G1: Domain 6 | H1: Period
A2: 07L_2012-13_March | B2: 0 | C2: 0 | D2: 5 | E2: 1 | F2: 0 | G2: 1 | H2: 2012-13_March
A3: 07M_2012-13_March | B3: 0 | C3: 2 | D3: 4 | E3: 0 | F3: 1 | G3: 2 | H3: 2012-13_March
A4: 07N_2012-13_March | B4: 0 | C4: 0 | D4: 2 | E4: 0 | F4: 1 | G4: 0 | H4: 2012-13_March
A5: 07P_2012-13_March | B5: 0 | C5: 0 | D5: 0 | E5: 0 | F5: 0 | G5: 0 | H5: 2012-13_March
A6: 07Q_2012-13_March | B6: 0 | C6: 0 | D6: 1 | E6: 0 | F6: 0 | G6: 0 | H6: 2012-13_March
A7: 07R_2012-13_March | B7: 0 | C7: 0 | D7: 2 | E7: 2 | F7: 2 | G7: 1 | H7: 2012-13_March
A8: 09A_2012-13_March | B8: 0 | C8: 0 | D8: 0 | E8: 0 | F8: 0 | G8: 0 | H8: 2012-13_March
A9: 07T_2012-13_March | B9: 0 | C9: 0 | D9: 1 | E9: 0 | F9: 1 | G9: 0 | H9: 2012-13_March
A10: 07V_2012-13_March | B10: 0 | C10: 0 | D10: 4 | E10: 3 | F10: 0 | G10: 0 | H10: 2012-13_March
A11: 07W_2012-13_March | B11: 0 | C11: 0 | D11: 0 | E11: 0 | F11: 0 | G11: 0 | H11: 2012-13_March
A12: 07X_2012-13_March | B12: 0 | C12: 0 | D12: 2 | E12: 3 | F12: 1 | G12: 1 | H12: 2012-13_March
A13: 08A_2012-13_March | B13: 0 | C13: 0 | D13: 2 | E13: 0 | F13: 0 | G13: 0 | H13: 2012-13_March
A14: 08C_2012-13_March | B14: 0 | C14: 0 | D14: 0 | E14: 0 | F14: 0 | G14: 0 | H14: 2012-13_March
A15: 08D_2012-13_March | B15: 0 | C15: 0 | D15: 0 | E15: 1 | F15: 1 | G15: 0 | H15: 2012-13_March
A16: 08E_2012-13_March | B16: 0 | C16: 0 | D16: 3 | E16: 2 | F16: 0 | G16: 0 | H16: 2012-13_March
A17: 08F_2012-13_March | B17: 0 | C17: 0 | D17: 4 | E17: 1 | F17: 0 | G17: 1 | H17: 2012-13_March
A18: 08G_2012-13_March | B18: 0 | C18: 0 | D18: 5 | E18: 0 | F18: 0 | G18: 0 | H18: 2012-13_March
A19: 07Y_2012-13_March | B19: 0 | C19: 1 | D19: 2 | E19: 0 | F19: 0 | G19: 0 | H19: 2012-13_March
A20: 08H_2012-13_March | B20: 0 | C20: 0 | D20: 0 | E20: 0 | F20: 1 | G20: 0 | H20: 2012-13_March
A21: 08J_2012-13_March | B21: 0 | C21: 0 | D21: 0 | E21: 0 | F21: 0 | G21: 0 | H21: 2012-13_March
A22: 08K_2012-13_March | B22: 0 | C22: 0 | D22: 0 | E22: 0 | F22: 0 | G22: 0 | H22: 2012-13_March
A23: 08L_2012-13_March | B23: 0 | C23: 0 | D23: 0 | E23: 0 | F23: 0 | G23: 0 | H23: 2012-13_March
A24: 08R_2012-13_March | B24: 0 | C24: 0 | D24: 0 | E24: 1 | F24: 0 | G24: 0 | H24: 2012-13_March
A25: 08M_2012-13_March | B25: 1 | C25: 0 | D25: 2 | E25: 2 | F25: 3 | G25: 0 | H25: 2012-13_March
A26: 08N_2012-13_March | B26: 0 | C26: 0 | D26: 4 | E26: 1 | F26: 0 | G26: 1 | H26: 2012-13_March
A27: 08P_2012-13_March | B27: 0 | C27: 0 | D27: 0 | E27: 0 | F27: 0 | G27: 0 | H27: 2012-13_March
A28: 08Q_2012-13_March | B28: 0 | C28: 0 | D28: 0 | E28: 0 | F28: 0 | G28: 0 | H28: 2012-13_March
A29: 08T_2012-13_March | B29: 0 | C29: 1 | D29: 0 | E29: 1 | F29: 1 | G29: 0 | H29: 2012-13_March
A30: 08V_2012-13_March | B30: 0 | C30: 0 | D30: 3 | E30: 1 | F30: 1 | G30: 1 | H30: 2012-13_March
A31: 08W_2012-13_March | B31: 1 | C31: 4 | D31: 4 | E31: 7 | F31: 1 | G31: 8 | H31: 2012-13_March
A32: 08X_2013-14_March | B32: 0 | C32: 0 | D32: 0 | E32: 0 | F32: 0 | G32: 0 | H32: 2013-14_March
A33: 08Y_2013-14_March | B33: 0 | C33: 1 | D33: 0 | E33: 1 | F33: 0 | G33: 0 | H33: 2013-14_March
A34: 07L_2013-14_June | B34: 0 | C34: 0 | D34: 0 | E34: 0 | F34: 0 | G34: 0 | H34: 2013-14_June
A35: 07M_2013-14_June | B35: 0 | C35: 0 | D35: 2 | E35: 0 | F35: 1 | G35: 1 | H35: 2013-14_June
A36: 07N_2013-14_June | B36: 0 | C36: 0 | D36: 0 | E36: 0 | F36: 0 | G36: 0 | H36: 2013-14_June
A37: 07P_2013-14_June | B37: 0 | C37: 0 | D37: 0 | E37: 0 | F37: 0 | G37: 0 | H37: 2013-14_June
A38: 07Q_2013-14_June | B38: 0 | C38: 0 | D38: 1 | E38: 0 | F38: 0 | G38: 0 | H38: 2013-14_June
A39: 07R_2013-14_June | B39: 0 | C39: 0 | D39: 0 | E39: 1 | F39: 1 | G39: 0 | H39: 2013-14_June
A40: 09A_2013-14_June | B40: 0 | C40: 0 | D40: 0 | E40: 0 | F40: 0 | G40: 0 | H40: 2013-14_June
A41: 07T_2013-14_June | B41: 0 | C41: 0 | D41: 0 | E41: 0 | F41: 0 | G41: 0 | H41: 2013-14_June
A42: 07V_2013-14_June | B42: 0 | C42: 0 | D42: 3 | E42: 1 | F42: 0 | G42: 0 | H42: 2013-14_June
A43: 07W_2013-14_June | B43: 0 | C43: 0 | D43: 0 | E43: 0 | F43: 0 | G43: 0 | H43: 2013-14_June
A44: 07X_2013-14_June | B44: 0 | C44: 0 | D44: 2 | E44: 1 | F44: 1 | G44: 0 | H44: 2013-14_June
A45: 08A_2013-14_June | B45: 0 | C45: 0 | D45: 0 | E45: 0 | F45: 0 | G45: 0 | H45: 2013-14_June
A46: 08C_2013-14_June | B46: 0 | C46: 0 | D46: 0 | E46: 0 | F46: 0 | G46: 0 | H46: 2013-14_June
A47: 08D_2013-14_June | B47: 0 | C47: 0 | D47: 0 | E47: 0 | F47: 1 | G47: 0 | H47: 2013-14_June
A48: 08E_2013-14_June | B48: 0 | C48: 0 | D48: 1 | E48: 0 | F48: 0 | G48: 0 | H48: 2013-14_June
A49: 08F_2013-14_June | B49: 0 | C49: 0 | D49: 3 | E49: 0 | F49: 0 | G49: 0 | H49: 2013-14_June
A50: 08G_2013-14_June | B50: 0 | C50: 0 | D50: 1 | E50: 0 | F50: 0 | G50: 0 | H50: 2013-14_June
A51: 07Y_2013-14_June | B51: 0 | C51: 0 | D51: 0 | E51: 0 | F51: 0 | G51: 0 | H51: 2013-14_June
A52: 08H_2013-14_June | B52: 0 | C52: 0 | D52: 0 | E52: 0 | F52: 1 | G52: 0 | H52: 2013-14_June
A53: 08J_2013-14_June | B53: 0 | C53: 0 | D53: 0 | E53: 0 | F53: 0 | G53: 0 | H53: 2013-14_June
A54: 08K_2013-14_June | B54: 0 | C54: 0 | D54: 0 | E54: 0 | F54: 0 | G54: 0 | H54: 2013-14_June
A55: 08L_2013-14_June | B55: 0 | C55: 0 | D55: 0 | E55: 0 | F55: 0 | G55: 0 | H55: 2013-14_June
A56: 08R_2013-14_June | B56: 0 | C56: 0 | D56: 0 | E56: 0 | F56: 0 | G56: 0 | H56: 2013-14_June
A57: 08M_2013-14_June | B57: 0 | C57: 0 | D57: 0 | E57: 0 | F57: 0 | G57: 0 | H57: 2013-14_June
A58: 08N_2013-14_June | B58: 0 | C58: 0 | D58: 3 | E58: 0 | F58: 0 | G58: 0 | H58: 2013-14_June
A59: 08P_2013-14_June | B59: 0 | C59: 0 | D59: 0 | E59: 0 | F59: 0 | G59: 0 | H59: 2013-14_June
A60: 08Q_2013-14_June | B60: 0 | C60: 0 | D60: 0 | E60: 0 | F60: 0 | G60: 0 | H60: 2013-14_June
A61: 08T_2013-14_June | B61: 0 | C61: 0 | D61: 0 | E61: 0 | F61: 0 | G61: 0 | H61: 2013-14_June
A62: 08V_2013-14_June | B62: 0 | C62: 0 | D62: 0 | E62: 0 | F62: 0 | G62: 0 | H62: 2013-14_June
A63: 08W_2013-14_June | B63: 1 | C63: 4 | D63: 2 | E63: 7 | F63: 0 | G63: 8 | H63: 2013-14_June
A64: 08X_2013-14_June | B64: 0 | C64: 0 | D64: 0 | E64: 0 | F64: 0 | G64: 0 | H64: 2013-14_June
A65: 08Y_2013-14_June | B65: 0 | C65: 0 | D65: 0 | E65: 0 | F65: 0 | G65: 0 | H65: 2013-14_June
A66: 09C_2013-14_June | B66: 0 | C66: 1 | D66: 0 | E66: 1 | F66: 0 | G66: 1 | H66: 2013-14_June
A67: 09D_2013-14_June | B67: 0 | C67: 0 | D67: 0 | E67: 0 | F67: 0 | G67: 1 | H67: 2013-14_June
A68: 09E_2013-14_June | B68: 0 | C68: 0 | D68: 0 | E68: 0 | F68: 0 | G68: 0 | H68: 2013-14_June
A69: 09F_2013-14_June | B69: 0 | C69: 0 | D69: 4 | E69: 0 | F69: 0 | G69: 0 | H69: 2013-14_June
A70: 09G_2013-14_June | B70: 0 | C70: 0 | D70: 4 | E70: 0 | F70: 0 | G70: 0 | H70: 2013-14_June
A71: 09H_2013-14_June | B71: 0 | C71: 0 | D71: 2 | E71: 0 | F71: 0 | G71: 0 | H71: 2013-14_June
A72: 09J_2013-14_June | B72: 0 | C72: 0 | D72: 1 | E72: 0 | F72: 0 | G72: 0 | H72: 2013-14_June
A73: 09L_2013-14_June | B73: 0 | C73: 0 | D73: 2 | E73: 2 | F73: 1 | G73: 0 | H73: 2013-14_June
A74: 09N_2013-14_June | B74: 0 | C74: 0 | D74: 0 | E74: 0 | F74: 0 | G74: 0 | H74: 2013-14_June
A75: 09P_2013-14_June | B75: 0 | C75: 0 | D75: 2 | E75: 0 | F75: 0 | G75: 0 | H75: 2013-14_June
A76: 09W_2013-14_June | B76: 0 | C76: 0 | D76: 0 | E76: 0 | F76: 0 | G76: 0 | H76: 2013-14_June
A77: 09X_2013-14_June | B77: 0 | C77: 0 | D77: 2 | E77: 0 | F77: 0 | G77: 0 | H77: 2013-14_June
A78: 09Y_2013-14_June | B78: 0 | C78: 0 | D78: 0 | E78: 0 | F78: 0 | G78: 0 | H78: 2013-14_June
A79: 10A_2013-14_June | B79: 1 | C79: 1 | D79: 0 | E79: 1 | F79: 0 | G79: 1 | H79: 2013-14_June
A80: 10C_2013-14_June | B80: 0 | C80: 0 | D80: 0 | E80: 0 | F80: 0 | G80: 1 | H80: 2013-14_June
A81: 10D_2013-14_June | B81: 0 | C81: 1 | D81: 0 | E81: 0 | F81: 0 | G81: 0 | H81: 2013-14_June
A82: 10E_2013-14_June | B82: 1 | C82: 0 | D82: 0 | E82: 0 | F82: 0 | G82: 0 | H82: 2013-14_June
A83: 10G_2013-14_June | B83: 0 | C83: 0 | D83: 0 | E83: 0 | F83: 0 | G83: 0 | H83: 2013-14_June
A84: 10H_2013-14_June | B84: 0 | C84: 0 | D84: 0 | E84: 0 | F84: 0 | G84: 0 | H84: 2013-14_June
A85: 10J_2013-14_June | B85: 0 | C85: 0 | D85: 2 | E85: 0 | F85: 0 | G85: 0 | H85: 2013-14_June
A86: 10K_2013-14_June | B86: 1 | C86: 0 | D86: 0 | E86: 0 | F86: 0 | G86: 0 | H86: 2013-14_June
A87: 10L_2013-14_June | B87: 0 | C87: 0 | D87: 0 | E87: 0 | F87: 0 | G87: 0 | H87: 2013-14_June
A88: 10M_2013-14_June | B88: 0 | C88: 0 | D88: 0 | E88: 0 | F88: 0 | G88: 0 | H88: 2013-14_June
A89: 10N_2013-14_June | B89: 0 | C89: 0 | D89: 0 | E89: 0 | F89: 0 | G89: 0 | H89: 2013-14_June
A90: 10Q_2013-14_June | B90: 0 | C90: 0 | D90: 3 | E90: 0 | F90: 0 | G90: 0 | H90: 2013-14_June
A91: 10R_2013-14_June | B91: 0 | C91: 0 | D91: 0 | E91: 0 | F91: 0 | G91: 0 | H91: 2013-14_June
A92: 10T_2013-14_June | B92: 0 | C92: 0 | D92: 0 | E92: 0 | F92: 0 | G92: 0 | H92: 2013-14_June
A93: 10V_2013-14_June | B93: 0 | C93: 0 | D93: 0 | E93: 0 | F93: 0 | G93: 0 | H93: 2013-14_June
A94: 10W_2013-14_June | B94: 0 | C94: 0 | D94: 0 | E94: 0 | F94: 0 | G94: 0 | H94: 2013-14_June
A95: 10X_2013-14_June | B95: 0 | C95: 0 | D95: 0 | E95: 0 | F95: 0 | G95: 0 | H95: 2013-14_June
A96: 10Y_2013-14_June | B96: 0 | C96: 0 | D96: 0 | E96: 0 | F96: 0 | G96: 0 | H96: 2013-14_June
A97: 11A_2013-14_June | B97: 0 | C97: 0 | D97: 0 | E97: 0 | F97: 0 | G97: 0 | H97: 2013-14_June
A98: 11C_2013-14_June | B98: 0 | C98: 0 | D98: 0 | E98: 0 | F98: 0 | G98: 0 | H98: 2013-14_June
A99: 11D_2013-14_June | B99: 0 | C99: 0 | D99: 0 | E99: 0 | F99: 0 | G99: 0 | H99: 2013-14_June
A100: 11E_2013-14_June | B100: 0 | C100: 0 | D100: 0 | E100: 0 | F100: 0 | G100: 0 | H100: 2013-14_June
A101: 11H_2013-14_June | B101: 0 | C101: 0 | D101: 2 | E101: 0 | F101: 0 | G101: 1 | H101: 2013-14_June
A102: 11J_2013-14_June | B102: 0 | C102: 0 | D102: 0 | E102: 0 | F102: 0 | G102: 0 | H102: 2013-14_June
A103: 11M_2013-14_June | B103: 0 | C103: 0 | D103: 0 | E103: 0 | F103: 0 | G103: 0 | H103: 2013-14_June
A104: 11N_2013-14_June | B104: 0 | C104: 0 | D104: 0 | E104: 0 | F104: 0 | G104: 0 | H104: 2013-14_June
A105: 11T_2013-14_June | B105: 0 | C105: 0 | D105: 2 | E105: 2 | F105: 0 | G105: 0 | H105: 2013-14_June
A106: 11X_2013-14_June | B106: 0 | C106: 0 | D106: 0 | E106: 0 | F106: 0 | G106: 0 | H106: 2013-14_June
A107: 12A_2013-14_June | B107: 0 | C107: 0 | D107: 2 | E107: 0 | F107: 0 | G107: 0 | H107: 2013-14_June
A108: 12D_2013-14_June | B108: 0 | C108: 0 | D108: 0 | E108: 0 | F108: 0 | G108: 0 | H108: 2013-14_June
A109: 99H_2013-14_June | B109: 0 | C109: 0 | D109: 2 | E109: 0 | F109: 0 | G109: 0 | H109: 2013-14_June
A110: 99J_2013-14_June | B110: 0 | C110: 0 | D110: 2 | E110: 0 | F110: 0 | G110: 0 | H110: 2013-14_June
A111: 99K_2013-14_June | B111: 0 | C111: 1 | D111: 4 | E111: 0 | F111: 0 | G111: 1 | H111: 2013-14_June
A112: 99M_2013-14_June | B112: 0 | C112: 1 | D112: 0 | E112: 0 | F112: 0 | G112: 1 | H112: 2013-14_June
A113: 99N_2013-14_June | B113: 0 | C113: 0 | D113: 0 | E113: 0 | F113: 0 | G113: 0 | H113: 2013-14_June
A114: 99P_2013-14_June | B114: 0 | C114: 0 | D114: 0 | E114: 0 | F114: 0 | G114: 0 | H114: 2013-14_June
A115: 99Q_2013-14_June | B115: 0 | C115: 0 | D115: 0 | E115: 0 | F115: 0 | G115: 0 | H115: 2013-14_June
A116: 03T_2013-14_June | B116: 0 | C116: 0 | D116: 0 | E116: 0 | F116: 0 | G116: 0 | H116: 2013-14_June
A117: 03V_2013-14_June | B117: 0 | C117: 0 | D117: 0 | E117: 0 | F117: 0 | G117: 0 | H117: 2013-14_June
A118: 03W_2013-14_June | B118: 0 | C118: 0 | D118: 0 | E118: 0 | F118: 0 | G118: 0 | H118: 2013-14_June
A119: 03X_2013-14_June | B119: 0 | C119: 0 | D119: 0 | E119: 0 | F119: 0 | G119: 0 | H119: 2013-14_June
A120: 03Y_2013-14_June | B120: 0 | C120: 0 | D120: 0 | E120: 0 | F120: 0 | G120: 0 | H120: 2013-14_June
A121: 04C_2013-14_June | B121: 0 | C121: 0 | D121: 0 | E121: 0 | F121: 0 | G121: 0 | H121: 2013-14_June
A122: 04D_2013-14_June | B122: 0 | C122: 0 | D122: 0 | E122: 0 | F122: 0 | G122: 0 | H122: 2013-14_June
A123: 04E_2013-14_June | B123: 0 | C123: 0 | D123: 0 | E123: 0 | F123: 0 | G123: 0 | H123: 2013-14_June
A124: 04F_2013-14_June | B124: 0 | C124: 0 | D124: 0 | E124: 0 | F124: 0 | G124: 1 | H124: 2013-14_June
A125: 04G_2013-14_June | B125: 0 | C125: 0 | D125: 0 | E125: 0 | F125: 0 | G125: 0 | H125: 2013-14_June
A126: 04H_2013-14_June | B126: 0 | C126: 0 | D126: 0 | E126: 0 | F126: 0 | G126: 0 | H126: 2013-14_June
A127: 04J_2013-14_June | B127: 0 | C127: 0 | D127: 0 | E127: 0 | F127: 0 | G127: 0 | H127: 2013-14_June
A128: 04K_2013-14_June | B128: 0 | C128: 0 | D128: 0 | E128: 0 | F128: 0 | G128: 0 | H128: 2013-14_June
A129: 04L_2013-14_June | B129: 0 | C129: 0 | D129: 3 | E129: 0 | F129: 0 | G129: 0 | H129: 2013-14_June
A130: 04M_2013-14_June | B130: 0 | C130: 0 | D130: 0 | E130: 0 | F130: 0 | G130: 0 | H130: 2013-14_June
A131: 04N_2013-14_June | B131: 0 | C131: 0 | D131: 0 | E131: 0 | F131: 0 | G131: 0 | H131: 2013-14_June
A132: 04Q_2013-14_June | B132: 0 | C132: 0 | D132: 0 | E132: 0 | F132: 0 | G132: 0 | H132: 2013-14_June
A133: 04R_2013-14_June | B133: 0 | C133: 0 | D133: 0 | E133: 0 | F133: 0 | G133: 0 | H133: 2013-14_June
A134: 04V_2013-14_June | B134: 0 | C134: 0 | D134: 0 | E134: 0 | F134: 0 | G134: 0 | H134: 2013-14_June
A135: 04X_2013-14_June | B135: 0 | C135: 0 | D135: 0 | E135: 0 | F135: 0 | G135: 0 | H135: 2013-14_June
A136: 04Y_2013-14_June | B136: 0 | C136: 0 | D136: 3 | E136: 0 | F136: 0 | G136: 0 | H136: 2013-14_June
A137: 05A_2013-14_June | B137: 0 | C137: 0 | D137: 0 | E137: 1 | F137: 0 | G137: 0 | H137: 2013-14_June
A138: 05C_2013-14_June | B138: 0 | C138: 0 | D138: 0 | E138: 0 | F138: 0 | G138: 0 | H138: 2013-14_June
A139: 05D_2013-14_June | B139: 0 | C139: 0 | D139: 2 | E139: 0 | F139: 0 | G139: 0 | H139: 2013-14_June
A140: 05F_2013-14_June | B140: 0 | C140: 1 | D140: 0 | E140: 3 | F140: 0 | G140: 1 | H140: 2013-14_June
A141: 05G_2013-14_June | B141: 0 | C141: 0 | D141: 0 | E141: 0 | F141: 0 | G141: 0 | H141: 2013-14_June
A142: 05H_2013-14_June | B142: 0 | C142: 0 | D142: 2 | E142: 0 | F142: 0 | G142: 0 | H142: 2013-14_June
A143: 05J_2013-14_June | B143: 0 | C143: 0 | D143: 0 | E143: 0 | F143: 0 | G143: 0 | H143: 2013-14_June
A144: 05L_2013-14_June | B144: 0 | C144: 0 | D144: 0 | E144: 0 | F144: 0 | G144: 0 | H144: 2013-14_June
A145: 05N_2013-14_June | B145: 0 | C145: 0 | D145: 0 | E145: 0 | F145: 0 | G145: 0 | H145: 2013-14_June
A146: 05P_2013-14_June | B146: 0 | C146: 0 | D146: 1 | E146: 0 | F146: 0 | G146: 0 | H146: 2013-14_June
A147: 05Q_2013-14_June | B147: 0 | C147: 0 | D147: 3 | E147: 0 | F147: 0 | G147: 0 | H147: 2013-14_June
A148: 05R_2013-14_June | B148: 0 | C148: 0 | D148: 0 | E148: 0 | F148: 0 | G148: 0 | H148: 2013-14_June
A149: 05T_2013-14_June | B149: 0 | C149: 0 | D149: 0 | E149: 0 | F149: 0 | G149: 0 | H149: 2013-14_June
A150: 05V_2013-14_June | B150: 0 | C150: 0 | D150: 2 | E150: 0 | F150: 0 | G150: 0 | H150: 2013-14_June
A151: 05W_2013-14_June | B151: 0 | C151: 0 | D151: 0 | E151: 0 | F151: 0 | G151: 0 | H151: 2013-14_June
A152: 05X_2013-14_June | B152: 0 | C152: 0 | D152: 0 | E152: 0 | F152: 0 | G152: 0 | H152: 2013-14_June
A153: 05Y_2013-14_June | B153: 0 | C153: 0 | D153: 0 | E153: 0 | F153: 0 | G153: 0 | H153: 2013-14_June
A154: 06A_2013-14_June | B154: 0 | C154: 0 | D154: 1 | E154: 0 | F154: 0 | G154: 0 | H154: 2013-14_June
A155: 06D_2013-14_June | B155: 0 | C155: 0 | D155: 0 | E155: 0 | F155: 0 | G155: 0 | H155: 2013-14_June
A156: 06F_2013-14_June | B156: 0 | C156: 0 | D156: 0 | E156: 0 | F156: 0 | G156: 0 | H156: 2013-14_June
A157: 06H_2013-14_June | B157: 0 | C157: 0 | D157: 2 | E157: 0 | F157: 0 | G157: 0 | H157: 2013-14_June
A158: 06K_2013-14_June | B158: 0 | C158: 0 | D158: 0 | E158: 0 | F158: 0 | G158: 0 | H158: 2013-14_June
A159: 06L_2013-14_June | B159: 0 | C159: 0 | D159: 0 | E159: 0 | F159: 0 | G159: 0 | H159: 2013-14_June
A160: 06M_2013-14_June | B160: 0 | C160: 0 | D160: 0 | E160: 0 | F160: 0 | G160: 0 | H160: 2013-14_June
A161: 06N_2013-14_June | B161: 0 | C161: 0 | D161: 0 | E161: 0 | F161: 0 | G161: 0 | H161: 2013-14_June
A162: 06P_2013-14_June | B162: 0 | C162: 0 | D162: 0 | E162: 0 | F162: 0 | G162: 0 | H162: 2013-14_June
A163: 06Q_2013-14_June | B163: 0 | C163: 0 | D163: 2 | E163: 0 | F163: 0 | G163: 0 | H163: 2013-14_June
A164: 06T_2013-14_June | B164: 0 | C164: 0 | D164: 0 | E164: 0 | F164: 0 | G164: 0 | H164: 2013-14_June
A165: 06V_2013-14_June | B165: 0 | C165: 0 | D165: 0 | E165: 0 | F165: 0 | G165: 0 | H165: 2013-14_June
A166: 06W_2013-14_June | B166: 0 | C166: 0 | D166: 0 | E166: 0 | F166: 0 | G166: 0 | H166: 2013-14_June
A167: 06Y_2013-14_June | B167: 0 | C167: 0 | D167: 0 | E167: 1 | F167: 0 | G167: 0 | H167: 2013-14_June
A168: 07G_2013-14_June | B168: 2 | C168: 5 | D168: 0 | E168: 0 | F168: 1 | G168: 7 | H168: 2013-14_June
A169: 07H_2013-14_June | B169: 0 | C169: 0 | D169: 0 | E169: 0 | F169: 0 | G169: 0 | H169: 2013-14_June
A170: 07J_2013-14_June | B170: 0 | C170: 0 | D170: 0 | E170: 0 | F170: 0 | G170: 0 | H170: 2013-14_June
A171: 07K_2013-14_June | B171: 0 | C171: 0 | D171: 0 | E171: 0 | F171: 0 | G171: 0 | H171: 2013-14_June
A172: 13P_2013-14_June | B172: 0 | C172: 0 | D172: 0 | E172: 0 | F172: 0 | G172: 0 | H172: 2013-14_June
A173: 99D_2013-14_June | B173: 0 | C173: 0 | D173: 0 | E173: 0 | F173: 0 | G173: 0 | H173: 2013-14_June
A174: 99E_2013-14_June | B174: 1 | C174: 2 | D174: 6 | E174: 2 | F174: 2 | G174: 5 | H174: 2013-14_June
A175: 99F_2013-14_June | B175: 0 | C175: 0 | D175: 4 | E175: 1 | F175: 0 | G175: 1 | H175: 2013-14_June
A176: 99G_2013-14_June | B176: 0 | C176: 0 | D176: 0 | E176: 0 | F176: 0 | G176: 0 | H176: 2013-14_June
A177: 00C_2013-14_June | B177: 0 | C177: 0 | D177: 0 | E177: 0 | F177: 0 | G177: 0 | H177: 2013-14_June
A178: 00D_2013-14_June | B178: 0 | C178: 0 | D178: 0 | E178: 0 | F178: 0 | G178: 0 | H178: 2013-14_June
A179: 00F_2013-14_June | B179: 0 | C179: 0 | D179: 0 | E179: 0 | F179: 0 | G179: 0 | H179: 2013-14_June
A180: 00G_2013-14_June | B180: 0 | C180: 0 | D180: 0 | E180: 0 | F180: 0 | G180: 0 | H180: 2013-14_June
A181: 00H_2013-14_June | B181: 0 | C181: 0 | D181: 0 | E181: 0 | F181: 0 | G181: 0 | H181: 2013-14_June
A182: 00J_2013-14_June | B182: 0 | C182: 0 | D182: 0 | E182: 0 | F182: 0 | G182: 0 | H182: 2013-14_June
A183: 00K_2013-14_June | B183: 0 | C183: 0 | D183: 0 | E183: 0 | F183: 0 | G183: 0 | H183: 2013-14_June
A184: 00L_2013-14_June | B184: 0 | C184: 0 | D184: 0 | E184: 0 | F184: 0 | G184: 0 | H184: 2013-14_June
A185: 00M_2013-14_June | B185: 0 | C185: 0 | D185: 0 | E185: 0 | F185: 0 | G185: 0 | H185: 2013-14_June
A186: 00N_2013-14_June | B186: 0 | C186: 0 | D186: 0 | E186: 0 | F186: 0 | G186: 0 | H186: 2013-14_June
A187: 00P_2013-14_June | B187: 0 | C187: 0 | D187: 0 | E187: 0 | F187: 0 | G187: 0 | H187: 2013-14_June
A188: 00Q_2013-14_June | B188: 0 | C188: 0 | D188: 0 | E188: 0 | F188: 0 | G188: 0 | H188: 2013-14_June
A189: 00R_2013-14_June | B189: 0 | C189: 0 | D189: 0 | E189: 0 | F189: 0 | G189: 0 | H189: 2013-14_June
A190: 00T_2013-14_June | B190: 0 | C190: 0 | D190: 2 | E190: 0 | F190: 0 | G190: 0 | H190: 2013-14_June
A191: 00V_2013-14_June | B191: 0 | C191: 0 | D191: 0 | E191: 0 | F191: 0 | G191: 0 | H191: 2013-14_June
A192: 00W_2013-14_June | B192: 0 | C192: 0 | D192: 0 | E192: 0 | F192: 0 | G192: 0 | H192: 2013-14_June
A193: 00X_2013-14_June | B193: 0 | C193: 0 | D193: 0 | E193: 0 | F193: 0 | G193: 0 | H193: 2013-14_June
A194: 00Y_2013-14_June | B194: 0 | C194: 0 | D194: 0 | E194: 0 | F194: 0 | G194: 0 | H194: 2013-14_June
A195: 01A_2013-14_June | B195: 0 | C195: 0 | D195: 0 | E195: 0 | F195: 0 | G195: 0 | H195: 2013-14_June
A196: 01C_2013-14_June | B196: 0 | C196: 0 | D196: 0 | E196: 0 | F196: 0 | G196: 0 | H196: 2013-14_June
A197: 01D_2013-14_June | B197: 0 | C197: 0 | D197: 0 | E197: 0 | F197: 0 | G197: 0 | H197: 2013-14_June
A198: 01E_2013-14_June | B198: 0 | C198: 0 | D198: 0 | E198: 0 | F198: 0 | G198: 0 | H198: 2013-14_June
A199: 01F_2013-14_June | B199: 0 | C199: 0 | D199: 0 | E199: 0 | F199: 0 | G199: 0 | H199: 2013-14_June
A200: 01G_2013-14_June | B200: 0 | C200: 0 | D200: 0 | E200: 0 | F200: 0 | G200: 0 | H200: 2013-14_June
... 49 more rows

Sheet CUBE_EXTRACT_RTT (hidden)
A1: Column1 | B1: RTT Admitted | C1: Non-admitted | D1: Incomplete non emergency pathways | E1: Incomplete Pathways - Patients waiting more than 52 weeks | F1: Year | G1: Period
A2: 00C_13-14 Q1 | B2: 0.9439472445 | C2: 0.9900948367 | D2: 0.9514563107 | E2: 0 | F2: 2013-14 | G2: 13-14 Q1
A3: 00D_13-14 Q1 | B3: 0.931810433 | C3: 0.9859866604 | D3: 0.9439790927 | E3: 0 | F3: 2013-14 | G3: 13-14 Q1
A4: 00F_13-14 Q1 | B4: 0.9411764706 | C4: 0.9831125828 | D4: 0.9412576065 | E4: 0 | F4: 2013-14 | G4: 13-14 Q1
A5: 00G_13-14 Q1 | B5: 0.9294239751 | C5: 0.9782736348 | D5: 0.9503954954 | E5: 0 | F5: 2013-14 | G5: 13-14 Q1
A6: 00H_13-14 Q1 | B6: 0.9244071146 | C6: 0.9781428373 | D6: 0.956175802 | E6: 0 | F6: 2013-14 | G6: 13-14 Q1
A7: 00J_13-14 Q1 | B7: 0.9139384921 | C7: 0.9808336123 | D7: 0.9342196733 | E7: 0 | F7: 2013-14 | G7: 13-14 Q1
A8: 00K_13-14 Q1 | B8: 0.9396825397 | C8: 0.9921793853 | D8: 0.9691996403 | E8: 0 | F8: 2013-14 | G8: 13-14 Q1
A9: 00L_13-14 Q1 | B9: 0.9358466656 | C9: 0.9705517241 | D9: 0.9537368746 | E9: 0 | F9: 2013-14 | G9: 13-14 Q1
A10: 00M_13-14 Q1 | B10: 0.9082764505 | C10: 0.9949173261 | D10: 0.9550810015 | E10: 0 | F10: 2013-14 | G10: 13-14 Q1
A11: 00N_13-14 Q1 | B11: 0.9478467009 | C11: 0.9882751433 | D11: 0.9353729804 | E11: 0 | F11: 2013-14 | G11: 13-14 Q1
A12: 00P_13-14 Q1 | B12: 0.9392513807 | C12: 0.9853101509 | D12: 0.9488092815 | E12: 0 | F12: 2013-14 | G12: 13-14 Q1
A13: 00Q_13-14 Q1 | B13: 0.9221453287 | C13: 0.9866854637 | D13: 0.9525729956 | E13: 0 | F13: 2013-14 | G13: 13-14 Q1
A14: 00R_13-14 Q1 | B14: 0.943877551 | C14: 0.9640718563 | D14: 0.9498994332 | E14: 0 | F14: 2013-14 | G14: 13-14 Q1
A15: 00T_13-14 Q1 | B15: 0.9493039684 | C15: 0.969249845 | D15: 0.9571437419 | E15: 2 | F15: 2013-14 | G15: 13-14 Q1
A16: 00V_13-14 Q1 | B16: 0.9313456257 | C16: 0.9708225453 | D16: 0.9523381295 | E16: 0 | F16: 2013-14 | G16: 13-14 Q1
A17: 00W_13-14 Q1 | B17: 0.9293552812 | C17: 0.972937541 | D17: 0.9447310243 | E17: 0 | F17: 2013-14 | G17: 13-14 Q1
A18: 00X_13-14 Q1 | B18: 0.8797709924 | C18: 0.9716251075 | D18: 0.9429763561 | E18: 1 | F18: 2013-14 | G18: 13-14 Q1
A19: 00Y_13-14 Q1 | B19: 0.9544267743 | C19: 0.9775821758 | D19: 0.9577258138 | E19: 0 | F19: 2013-14 | G19: 13-14 Q1
A20: 01A_13-14 Q1 | B20: 0.9191737141 | C20: 0.9848204784 | D20: 0.9546026949 | E20: 0 | F20: 2013-14 | G20: 13-14 Q1
A21: 01C_13-14 Q1 | B21: 0.9224461906 | C21: 0.9722561314 | D21: 0.9358376108 | E21: 0 | F21: 2013-14 | G21: 13-14 Q1
A22: 01D_13-14 Q1 | B22: 0.940990213 | C22: 0.9742240111 | D22: 0.9522225303 | E22: 0 | F22: 2013-14 | G22: 13-14 Q1
A23: 01E_13-14 Q1 | B23: 0.8818718764 | C23: 0.9716455696 | D23: 0.9392601614 | E23: 0 | F23: 2013-14 | G23: 13-14 Q1
A24: 01F_13-14 Q1 | B24: 0.9247000414 | C24: 0.9799405646 | D24: 0.9601198709 | E24: 1 | F24: 2013-14 | G24: 13-14 Q1
A25: 01G_13-14 Q1 | B25: 0.9429695182 | C25: 0.9802739367 | D25: 0.9662942272 | E25: 0 | F25: 2013-14 | G25: 13-14 Q1
A26: 01H_13-14 Q1 | B26: 0.8793815423 | C26: 0.9655441425 | D26: 0.9358159143 | E26: 0 | F26: 2013-14 | G26: 13-14 Q1
A27: 01J_13-14 Q1 | B27: 0.9271899886 | C27: 0.9812054439 | D27: 0.9681576952 | E27: 1 | F27: 2013-14 | G27: 13-14 Q1
A28: 01K_13-14 Q1 | B28: 0.9059205191 | C28: 0.9718492153 | D28: 0.9539473684 | E28: 0 | F28: 2013-14 | G28: 13-14 Q1
A29: 01M_13-14 Q1 | B29: 0.9065321296 | C29: 0.9658797492 | D29: 0.9380108992 | E29: 0 | F29: 2013-14 | G29: 13-14 Q1
A30: 01N_13-14 Q1 | B30: 0.9359344894 | C30: 0.974776458 | D30: 0.9560095115 | E30: 1 | F30: 2013-14 | G30: 13-14 Q1
A31: 01R_13-14 Q1 | B31: 0.8921175685 | C31: 0.958315565 | D31: 0.9601797019 | E31: 2 | F31: 2013-14 | G31: 13-14 Q1
A32: 01T_13-14 Q1 | B32: 0.9358151476 | C32: 0.9808306709 | D32: 0.9770521899 | E32: 0 | F32: 2013-14 | G32: 13-14 Q1
A33: 01V_13-14 Q1 | B33: 0.9143819144 | C33: 0.9754695823 | D33: 0.9448212084 | E33: 1 | F33: 2013-14 | G33: 13-14 Q1
A34: 01W_13-14 Q1 | B34: 0.9307051412 | C34: 0.9722083818 | D34: 0.9604378421 | E34: 0 | F34: 2013-14 | G34: 13-14 Q1
A35: 01X_13-14 Q1 | B35: 0.9298780488 | C35: 0.9809102878 | D35: 0.9615384615 | E35: 1 | F35: 2013-14 | G35: 13-14 Q1
A36: 01Y_13-14 Q1 | B36: 0.9234357849 | C36: 0.9688786008 | D36: 0.9495884156 | E36: 0 | F36: 2013-14 | G36: 13-14 Q1
A37: 02A_13-14 Q1 | B37: 0.9382716049 | C37: 0.9769744416 | D37: 0.9541059603 | E37: 0 | F37: 2013-14 | G37: 13-14 Q1
A38: 02D_13-14 Q1 | B38: 0.878125 | C38: 0.9691202175 | D38: 0.9625657628 | E38: 0 | F38: 2013-14 | G38: 13-14 Q1
A39: 02E_13-14 Q1 | B39: 0.9129930394 | C39: 0.9704448057 | D39: 0.928583278 | E39: 1 | F39: 2013-14 | G39: 13-14 Q1
A40: 02F_13-14 Q1 | B40: 0.9444569373 | C40: 0.9943067918 | D40: 0.9539886694 | E40: 9 | F40: 2013-14 | G40: 13-14 Q1
A41: 02G_13-14 Q1 | B41: 0.9242105263 | C41: 0.974210187 | D41: 0.9508976523 | E41: 0 | F41: 2013-14 | G41: 13-14 Q1
A42: 02H_13-14 Q1 | B42: 0.9340459863 | C42: 0.9786261428 | D42: 0.9494729908 | E42: 1 | F42: 2013-14 | G42: 13-14 Q1
A43: 02M_13-14 Q1 | B43: 0.9293226756 | C43: 0.9688385269 | D43: 0.948320137 | E43: 0 | F43: 2013-14 | G43: 13-14 Q1
A44: 02N_13-14 Q1 | B44: 0.9221495005 | C44: 0.9599156118 | D44: 0.9379655966 | E44: 0 | F44: 2013-14 | G44: 13-14 Q1
A45: 02P_13-14 Q1 | B45: 0.9540553211 | C45: 0.9798980544 | D45: 0.9594439902 | E45: 3 | F45: 2013-14 | G45: 13-14 Q1
A46: 02Q_13-14 Q1 | B46: 0.8355555556 | C46: 0.9619797525 | D46: 0.9402783147 | E46: 1 | F46: 2013-14 | G46: 13-14 Q1
A47: 02R_13-14 Q1 | B47: 0.9422358138 | C47: 0.9601508916 | D47: 0.9599256736 | E47: 0 | F47: 2013-14 | G47: 13-14 Q1
A48: 02T_13-14 Q1 | B48: 0.9259366831 | C48: 0.9850952522 | D48: 0.9481870322 | E48: 0 | F48: 2013-14 | G48: 13-14 Q1
A49: 02V_13-14 Q1 | B49: 0.8837049743 | C49: 0.9652500855 | D49: 0.9520728929 | E49: 2 | F49: 2013-14 | G49: 13-14 Q1
A50: 02W_13-14 Q1 | B50: 0.9363434493 | C50: 0.9581373471 | D50: 0.9604578564 | E50: 0 | F50: 2013-14 | G50: 13-14 Q1
A51: 02X_13-14 Q1 | B51: 0.8438342731 | C51: 0.9645788034 | D51: 0.9261522791 | E51: 12 | F51: 2013-14 | G51: 13-14 Q1
A52: 02Y_13-14 Q1 | B52: 0.9339061467 | C52: 0.9561537949 | D52: 0.9328104881 | E52: 0 | F52: 2013-14 | G52: 13-14 Q1
A53: 03A_13-14 Q1 | B53: 0.9300877441 | C53: 0.9818435754 | D53: 0.9520547945 | E53: 0 | F53: 2013-14 | G53: 13-14 Q1
A54: 03C_13-14 Q1 | B54: 0.8791590494 | C54: 0.9629095405 | D54: 0.9466978821 | E54: 3 | F54: 2013-14 | G54: 13-14 Q1
A55: 03D_13-14 Q1 | B55: 0.9229553536 | C55: 0.9849749583 | D55: 0.9409360023 | E55: 0 | F55: 2013-14 | G55: 13-14 Q1
A56: 03E_13-14 Q1 | B56: 0.9369638195 | C56: 0.9726585224 | D56: 0.9643930121 | E56: 0 | F56: 2013-14 | G56: 13-14 Q1
A57: 03F_13-14 Q1 | B57: 0.9302577041 | C57: 0.9684101502 | D57: 0.9408955224 | E57: 0 | F57: 2013-14 | G57: 13-14 Q1
A58: 03G_13-14 Q1 | B58: 0.8745950949 | C58: 0.9582643259 | D58: 0.9497168461 | E58: 0 | F58: 2013-14 | G58: 13-14 Q1
A59: 03H_13-14 Q1 | B59: 0.8970588235 | C59: 0.9800796813 | D59: 0.9606551841 | E59: 0 | F59: 2013-14 | G59: 13-14 Q1
A60: 03J_13-14 Q1 | B60: 0.8855457227 | C60: 0.9625657628 | D60: 0.9270010469 | E60: 0 | F60: 2013-14 | G60: 13-14 Q1
A61: 03K_13-14 Q1 | B61: 0.9390329362 | C61: 0.9833798697 | D61: 0.9709948161 | E61: 0 | F61: 2013-14 | G61: 13-14 Q1
A62: 03L_13-14 Q1 | B62: 0.9471432167 | C62: 0.9777195282 | D62: 0.9647023927 | E62: 1 | F62: 2013-14 | G62: 13-14 Q1
A63: 03M_13-14 Q1 | B63: 0.8843825666 | C63: 0.9488997194 | D63: 0.9142272584 | E63: 0 | F63: 2013-14 | G63: 13-14 Q1
A64: 03N_13-14 Q1 | B64: 0.9154240447 | C64: 0.9663887856 | D64: 0.9362492133 | E64: 0 | F64: 2013-14 | G64: 13-14 Q1
A65: 03Q_13-14 Q1 | B65: 0.9184128399 | C65: 0.9626001144 | D65: 0.9368182754 | E65: 2 | F65: 2013-14 | G65: 13-14 Q1
A66: 03R_13-14 Q1 | B66: 0.9021632938 | C66: 0.9616658522 | D66: 0.9256915756 | E66: 3 | F66: 2013-14 | G66: 13-14 Q1
A67: 12F_13-14 Q1 | B67: 0.9384558688 | C67: 0.9765641953 | D67: 0.9382962394 | E67: 0 | F67: 2013-14 | G67: 13-14 Q1
A68: 99A_13-14 Q1 | B68: 0.9484137931 | C68: 0.9845503847 | D68: 0.9625560428 | E68: 2 | F68: 2013-14 | G68: 13-14 Q1
A69: 99C_13-14 Q1 | B69: 0.9411487759 | C69: 0.972324384 | D69: 0.9468690702 | E69: 0 | F69: 2013-14 | G69: 13-14 Q1
A70: 03T_13-14 Q1 | B70: 0.9156687898 | C70: 0.9630260277 | D70: 0.9494618965 | E70: 1 | F70: 2013-14 | G70: 13-14 Q1
A71: 03V_13-14 Q1 | B71: 0.9438596491 | C71: 0.9728884254 | D71: 0.9718923199 | E71: 0 | F71: 2013-14 | G71: 13-14 Q1
A72: 03W_13-14 Q1 | B72: 0.9096332302 | C72: 0.9684916007 | D72: 0.9509527413 | E72: 0 | F72: 2013-14 | G72: 13-14 Q1
A73: 03X_13-14 Q1 | B73: 0.9221658206 | C73: 0.9803641557 | D73: 0.9585308057 | E73: 0 | F73: 2013-14 | G73: 13-14 Q1
A74: 03Y_13-14 Q1 | B74: 0.9236749117 | C74: 0.980184582 | D74: 0.9739467849 | E74: 0 | F74: 2013-14 | G74: 13-14 Q1
A75: 04C_13-14 Q1 | B75: 0.8940744625 | C75: 0.9610165096 | D75: 0.9439257894 | E75: 0 | F75: 2013-14 | G75: 13-14 Q1
A76: 04D_13-14 Q1 | B76: 0.874879692 | C76: 0.9620029455 | D76: 0.936924456 | E76: 1 | F76: 2013-14 | G76: 13-14 Q1
A77: 04E_13-14 Q1 | B77: 0.9551782683 | C77: 0.9586985589 | D77: 0.9548211412 | E77: 0 | F77: 2013-14 | G77: 13-14 Q1
A78: 04F_13-14 Q1 | B78: 0.8960086886 | C78: 0.9821551923 | D78: 0.9548682152 | E78: 3 | F78: 2013-14 | G78: 13-14 Q1
A79: 04G_13-14 Q1 | B79: 0.952043707 | C79: 0.9817785479 | D79: 0.9652312292 | E79: 0 | F79: 2013-14 | G79: 13-14 Q1
A80: 04H_13-14 Q1 | B80: 0.9342560554 | C80: 0.9541226216 | D80: 0.9379575403 | E80: 1 | F80: 2013-14 | G80: 13-14 Q1
A81: 04J_13-14 Q1 | B81: 0.9221525601 | C81: 0.9832826748 | D81: 0.9754468545 | E81: 0 | F81: 2013-14 | G81: 13-14 Q1
A82: 04K_13-14 Q1 | B82: 0.9582685329 | C82: 0.9785774588 | D82: 0.9733585262 | E82: 0 | F82: 2013-14 | G82: 13-14 Q1
A83: 04L_13-14 Q1 | B83: 0.9441527446 | C83: 0.978523166 | D83: 0.9660050676 | E83: 2 | F83: 2013-14 | G83: 13-14 Q1
A84: 04M_13-14 Q1 | B84: 0.9478330658 | C84: 0.9806351665 | D84: 0.9699405802 | E84: 0 | F84: 2013-14 | G84: 13-14 Q1
A85: 04N_13-14 Q1 | B85: 0.9571759259 | C85: 0.9743991641 | D85: 0.971489665 | E85: 0 | F85: 2013-14 | G85: 13-14 Q1
A86: 04Q_13-14 Q1 | B86: 0.9173890872 | C86: 0.9551802533 | D86: 0.943654555 | E86: 1 | F86: 2013-14 | G86: 13-14 Q1
A87: 04R_13-14 Q1 | B87: 0.8730558097 | C87: 0.9727233677 | D87: 0.9508733624 | E87: 0 | F87: 2013-14 | G87: 13-14 Q1
A88: 04V_13-14 Q1 | B88: 0.8914968087 | C88: 0.9731846227 | D88: 0.9533033126 | E88: 0 | F88: 2013-14 | G88: 13-14 Q1
A89: 04X_13-14 Q1 | B89: 0.9222614841 | C89: 0.9790055249 | D89: 0.946125036 | E89: 4 | F89: 2013-14 | G89: 13-14 Q1
A90: 04Y_13-14 Q1 | B90: 0.9341894061 | C90: 0.9844091904 | D90: 0.9571320755 | E90: 1 | F90: 2013-14 | G90: 13-14 Q1
A91: 05A_13-14 Q1 | B91: 0.9159618741 | C91: 0.9787045744 | D91: 0.9420032023 | E91: 0 | F91: 2013-14 | G91: 13-14 Q1
A92: 05C_13-14 Q1 | B92: 0.951142006 | C92: 0.9892896713 | D92: 0.972379533 | E92: 4 | F92: 2013-14 | G92: 13-14 Q1
A93: 05D_13-14 Q1 | B93: 0.8233506944 | C93: 0.9885746394 | D93: 0.9577100897 | E93: 0 | F93: 2013-14 | G93: 13-14 Q1
A94: 05F_13-14 Q1 | B94: 0.9545454545 | C94: 0.9926211638 | D94: 0.9768642447 | E94: 2 | F94: 2013-14 | G94: 13-14 Q1
A95: 05G_13-14 Q1 | B95: 0.932885906 | C95: 0.9663997488 | D95: 0.9445563322 | E95: 0 | F95: 2013-14 | G95: 13-14 Q1
A96: 05H_13-14 Q1 | B96: 0.9174443647 | C96: 0.9634198824 | D96: 0.9466296039 | E96: 1 | F96: 2013-14 | G96: 13-14 Q1
A97: 05J_13-14 Q1 | B97: 0.9079445145 | C97: 0.9821925431 | D97: 0.9564333799 | E97: 0 | F97: 2013-14 | G97: 13-14 Q1
A98: 05L_13-14 Q1 | B98: 0.9258426966 | C98: 0.9765964379 | D98: 0.939207214 | E98: 1 | F98: 2013-14 | G98: 13-14 Q1
A99: 05N_13-14 Q1 | B99: 0.770617937 | C99: 0.9532827069 | D99: 0.9144816746 | E99: 12 | F99: 2013-14 | G99: 13-14 Q1
A100: 05P_13-14 Q1 | B100: 0.923180593 | C100: 0.9644184053 | D100: 0.9447945327 | E100: 2 | F100: 2013-14 | G100: 13-14 Q1
A101: 05Q_13-14 Q1 | B101: 0.8721351025 | C101: 0.9838473964 | D101: 0.9544366488 | E101: 1 | F101: 2013-14 | G101: 13-14 Q1
A102: 05R_13-14 Q1 | B102: 0.9073618259 | C102: 0.9669703872 | D102: 0.9317823073 | E102: 0 | F102: 2013-14 | G102: 13-14 Q1
A103: 05T_13-14 Q1 | B103: 0.8946875731 | C103: 0.9783281734 | D103: 0.9505417957 | E103: 2 | F103: 2013-14 | G103: 13-14 Q1
A104: 05V_13-14 Q1 | B104: 0.9429362881 | C104: 0.9807585053 | D104: 0.9540393948 | E104: 2 | F104: 2013-14 | G104: 13-14 Q1
A105: 05W_13-14 Q1 | B105: 0.9391837823 | C105: 0.9605263158 | D105: 0.9414024976 | E105: 3 | F105: 2013-14 | G105: 13-14 Q1
A106: 05X_13-14 Q1 | B106: 0.7725024728 | C106: 0.9681227863 | D106: 0.9187922239 | E106: 6 | F106: 2013-14 | G106: 13-14 Q1
A107: 05Y_13-14 Q1 | B107: 0.9271554813 | C107: 0.9905729378 | D107: 0.9626734726 | E107: 1 | F107: 2013-14 | G107: 13-14 Q1
A108: 06A_13-14 Q1 | B108: 0.9185648055 | C108: 0.9861507128 | D108: 0.961075481 | E108: 1 | F108: 2013-14 | G108: 13-14 Q1
A109: 06D_13-14 Q1 | B109: 0.9071925754 | C109: 0.9770052012 | D109: 0.9611278953 | E109: 2 | F109: 2013-14 | G109: 13-14 Q1
A110: 06F_13-14 Q1 | B110: 0.9013526438 | C110: 0.9753003187 | D110: 0.961707342 | E110: 0 | F110: 2013-14 | G110: 13-14 Q1
A111: 06H_13-14 Q1 | B111: 0.9295063146 | C111: 0.9824004855 | D111: 0.9705033576 | E111: 3 | F111: 2013-14 | G111: 13-14 Q1
A112: 06K_13-14 Q1 | B112: 0.8796176699 | C112: 0.9702712746 | D112: 0.9563272823 | E112: 2 | F112: 2013-14 | G112: 13-14 Q1
A113: 06L_13-14 Q1 | B113: 0.9145580589 | C113: 0.984223301 | D113: 0.979724445 | E113: 0 | F113: 2013-14 | G113: 13-14 Q1
A114: 06M_13-14 Q1 | B114: 0.8974909211 | C114: 0.9880853191 | D114: 0.9229218793 | E114: 0 | F114: 2013-14 | G114: 13-14 Q1
A115: 06N_13-14 Q1 | B115: 0.9216997412 | C115: 0.9661989018 | D115: 0.9267748775 | E115: 0 | F115: 2013-14 | G115: 13-14 Q1
A116: 06P_13-14 Q1 | B116: 0.9171195652 | C116: 0.9768640931 | D116: 0.9663143989 | E116: 0 | F116: 2013-14 | G116: 13-14 Q1
A117: 06Q_13-14 Q1 | B117: 0.9356640463 | C117: 0.9839590214 | D117: 0.9726986129 | E117: 1 | F117: 2013-14 | G117: 13-14 Q1
A118: 06T_13-14 Q1 | B118: 0.9520809469 | C118: 0.9889993785 | D118: 0.9823623436 | E118: 0 | F118: 2013-14 | G118: 13-14 Q1
A119: 06V_13-14 Q1 | B119: 0.8773690078 | C119: 0.9750681199 | D119: 0.9601484878 | E119: 0 | F119: 2013-14 | G119: 13-14 Q1
A120: 06W_13-14 Q1 | B120: 0.879567487 | C120: 0.9698901397 | D120: 0.9573424336 | E120: 0 | F120: 2013-14 | G120: 13-14 Q1
A121: 06Y_13-14 Q1 | B121: 0.8870342772 | C121: 0.9670093235 | D121: 0.9588176078 | E121: 0 | F121: 2013-14 | G121: 13-14 Q1
A122: 07G_13-14 Q1 | B122: 0.8526365348 | C122: 0.9457151571 | D122: 0.9183807153 | E122: 0 | F122: 2013-14 | G122: 13-14 Q1
A123: 07H_13-14 Q1 | B123: 0.9416315049 | C123: 0.9796744229 | D123: 0.9633243881 | E123: 1 | F123: 2013-14 | G123: 13-14 Q1
A124: 07K_13-14 Q1 | B124: 0.9672929715 | C124: 0.9924962481 | D124: 0.9888923172 | E124: 0 | F124: 2013-14 | G124: 13-14 Q1
A125: 13P_13-14 Q1 | B125: 0.9290998065 | C125: 0.9753019812 | D125: 0.9461632536 | E125: 6 | F125: 2013-14 | G125: 13-14 Q1
A126: 99D_13-14 Q1 | B126: 0.892981237 | C126: 0.9708306082 | D126: 0.9650682359 | E126: 2 | F126: 2013-14 | G126: 13-14 Q1
A127: 99E_13-14 Q1 | B127: 0.8724166437 | C127: 0.9594886922 | D127: 0.9266922322 | E127: 1 | F127: 2013-14 | G127: 13-14 Q1
A128: 99F_13-14 Q1 | B128: 0.8851032983 | C128: 0.9758049678 | D128: 0.9618763326 | E128: 1 | F128: 2013-14 | G128: 13-14 Q1
A129: 99G_13-14 Q1 | B129: 0.8817917876 | C129: 0.9775994356 | D129: 0.9653032901 | E129: 2 | F129: 2013-14 | G129: 13-14 Q1
A130: 07L_13-14 Q1 | B130: 0.9113667118 | C130: 0.9803344324 | D130: 0.9190248683 | E130: 1 | F130: 2013-14 | G130: 13-14 Q1
A131: 07M_13-14 Q1 | B131: 0.9092698288 | C131: 0.980726737 | D131: 0.9155550332 | E131: 1 | F131: 2013-14 | G131: 13-14 Q1
A132: 07N_13-14 Q1 | B132: 0.936873012 | C132: 0.9666727874 | D132: 0.9450496636 | E132: 1 | F132: 2013-14 | G132: 13-14 Q1
A133: 07P_13-14 Q1 | B133: 0.8822565543 | C133: 0.9722347484 | D133: 0.9509659807 | E133: 3 | F133: 2013-14 | G133: 13-14 Q1
A134: 07Q_13-14 Q1 | B134: 0.92314627 | C134: 0.9629424779 | D134: 0.9467361741 | E134: 2 | F134: 2013-14 | G134: 13-14 Q1
A135: 07R_13-14 Q1 | B135: 0.9126009126 | C135: 0.9735410221 | D135: 0.931142717 | E135: 0 | F135: 2013-14 | G135: 13-14 Q1
A136: 07T_13-14 Q1 | B136: 0.9350463954 | C136: 0.9693133343 | D136: 0.9137789625 | E136: 6 | F136: 2013-14 | G136: 13-14 Q1
A137: 07V_13-14 Q1 | B137: 0.9022825882 | C137: 0.9648510595 | D137: 0.9528003613 | E137: 3 | F137: 2013-14 | G137: 13-14 Q1
A138: 07W_13-14 Q1 | B138: 0.8954874912 | C138: 0.9795720369 | D138: 0.957856427 | E138: 0 | F138: 2013-14 | G138: 13-14 Q1
A139: 07X_13-14 Q1 | B139: 0.921509434 | C139: 0.9781349076 | D139: 0.9120093276 | E139: 1 | F139: 2013-14 | G139: 13-14 Q1
A140: 07Y_13-14 Q1 | B140: 0.9387417219 | C140: 0.976047367 | D140: 0.9613387595 | E140: 1 | F140: 2013-14 | G140: 13-14 Q1
A141: 08A_13-14 Q1 | B141: 0.9304761905 | C141: 0.9791171302 | D141: 0.9466656005 | E141: 3 | F141: 2013-14 | G141: 13-14 Q1
A142: 08C_13-14 Q1 | B142: 0.9045553145 | C142: 0.9730650155 | D142: 0.9573022804 | E142: 0 | F142: 2013-14 | G142: 13-14 Q1
A143: 08D_13-14 Q1 | B143: 0.9057206775 | C143: 0.9588794397 | D143: 0.8927946222 | E143: 11 | F143: 2013-14 | G143: 13-14 Q1
A144: 08E_13-14 Q1 | B144: 0.8956992889 | C144: 0.9774167987 | D144: 0.9422927629 | E144: 2 | F144: 2013-14 | G144: 13-14 Q1
A145: 08F_13-14 Q1 | B145: 0.9292851653 | C145: 0.9787081585 | D145: 0.9345294007 | E145: 1 | F145: 2013-14 | G145: 13-14 Q1
A146: 08G_13-14 Q1 | B146: 0.9330922242 | C146: 0.9849274994 | D146: 0.9680936348 | E146: 0 | F146: 2013-14 | G146: 13-14 Q1
A147: 08H_13-14 Q1 | B147: 0.8919365499 | C147: 0.9529503257 | D147: 0.9000993707 | E147: 11 | F147: 2013-14 | G147: 13-14 Q1
A148: 08J_13-14 Q1 | B148: 0.9392454679 | C148: 0.9720816076 | D148: 0.9416515973 | E148: 10 | F148: 2013-14 | G148: 13-14 Q1
A149: 08K_13-14 Q1 | B149: 0.9030989824 | C149: 0.9780496582 | D149: 0.9365726294 | E149: 4 | F149: 2013-14 | G149: 13-14 Q1
A150: 08L_13-14 Q1 | B150: 0.9207415991 | C150: 0.9783281734 | D150: 0.9407862234 | E150: 2 | F150: 2013-14 | G150: 13-14 Q1
A151: 08M_13-14 Q1 | B151: 0.9042102289 | C151: 0.9770857071 | D151: 0.9149433118 | E151: 11 | F151: 2013-14 | G151: 13-14 Q1
A152: 08N_13-14 Q1 | B152: 0.9130864198 | C152: 0.976208749 | D152: 0.9321631537 | E152: 2 | F152: 2013-14 | G152: 13-14 Q1
A153: 08P_13-14 Q1 | B153: 0.9382716049 | C153: 0.9832586906 | D153: 0.9575636018 | E153: 4 | F153: 2013-14 | G153: 13-14 Q1
A154: 08Q_13-14 Q1 | B154: 0.8971018346 | C154: 0.9744231304 | D154: 0.9373165776 | E154: 7 | F154: 2013-14 | G154: 13-14 Q1
A155: 08R_13-14 Q1 | B155: 0.9263622975 | C155: 0.9703081806 | D155: 0.9552142726 | E155: 1 | F155: 2013-14 | G155: 13-14 Q1
A156: 08T_13-14 Q1 | B156: 0.919469599 | C156: 0.9729061604 | D156: 0.9654921526 | E156: 3 | F156: 2013-14 | G156: 13-14 Q1
A157: 08V_13-14 Q1 | B157: 0.8894658754 | C157: 0.9492196336 | D157: 0.8513855129 | E157: 25 | F157: 2013-14 | G157: 13-14 Q1
A158: 08W_13-14 Q1 | B158: 0.8953918601 | C158: 0.9751633987 | D158: 0.9276828537 | E158: 1 | F158: 2013-14 | G158: 13-14 Q1
A159: 08X_13-14 Q1 | B159: 0.9248385203 | C159: 0.9782733888 | D159: 0.9467896798 | E159: 4 | F159: 2013-14 | G159: 13-14 Q1
A160: 08Y_13-14 Q1 | B160: 0.9223856209 | C160: 0.9684616833 | D160: 0.9552153733 | E160: 0 | F160: 2013-14 | G160: 13-14 Q1
A161: 09A_13-14 Q1 | B161: 0.9244244244 | C161: 0.9706766917 | D161: 0.9515335497 | E161: 0 | F161: 2013-14 | G161: 13-14 Q1
A162: 09C_13-14 Q1 | B162: 0.9042725798 | C162: 0.9807182454 | D162: 0.9495018116 | E162: 1 | F162: 2013-14 | G162: 13-14 Q1
A163: 09D_13-14 Q1 | B163: 0.9321401939 | C163: 0.9688663633 | D163: 0.941982603 | E163: 1 | F163: 2013-14 | G163: 13-14 Q1
A164: 09E_13-14 Q1 | B164: 0.9191527446 | C164: 0.9779874214 | D164: 0.9516968046 | E164: 6 | F164: 2013-14 | G164: 13-14 Q1
A165: 09F_13-14 Q1 | B165: 0.8592528236 | C165: 0.9647586501 | D165: 0.9519562474 | E165: 0 | F165: 2013-14 | G165: 13-14 Q1
A166: 09G_13-14 Q1 | B166: 0.9031012155 | C166: 0.9681632996 | D166: 0.9467311506 | E166: 0 | F166: 2013-14 | G166: 13-14 Q1
A167: 09H_13-14 Q1 | B167: 0.9195575666 | C167: 0.9766467066 | D167: 0.9640378549 | E167: 0 | F167: 2013-14 | G167: 13-14 Q1
A168: 09J_13-14 Q1 | B168: 0.9145815358 | C168: 0.9620946086 | D168: 0.9548359966 | E168: 3 | F168: 2013-14 | G168: 13-14 Q1
A169: 09L_13-14 Q1 | B169: 0.9284287617 | C169: 0.97236671 | D169: 0.9647572286 | E169: 0 | F169: 2013-14 | G169: 13-14 Q1
A170: 09N_13-14 Q1 | B170: 0.9253333333 | C170: 0.9746086957 | D170: 0.9229779707 | E170: 0 | F170: 2013-14 | G170: 13-14 Q1
A171: 09P_13-14 Q1 | B171: 0.8300380228 | C171: 0.9629793837 | D171: 0.950921399 | E171: 0 | F171: 2013-14 | G171: 13-14 Q1
A172: 09W_13-14 Q1 | B172: 0.9374862426 | C172: 0.9708154506 | D172: 0.9493073048 | E172: 0 | F172: 2013-14 | G172: 13-14 Q1
A173: 09X_13-14 Q1 | B173: 0.9295282469 | C173: 0.972204126 | D173: 0.9531176746 | E173: 0 | F173: 2013-14 | G173: 13-14 Q1
A174: 09Y_13-14 Q1 | B174: 0.9140863498 | C174: 0.982926987 | D174: 0.9741221024 | E174: 0 | F174: 2013-14 | G174: 13-14 Q1
A175: 10A_13-14 Q1 | B175: 0.9050798258 | C175: 0.9774831409 | D175: 0.94483063 | E175: 8 | F175: 2013-14 | G175: 13-14 Q1
A176: 10C_13-14 Q1 | B176: 0.922595333 | C176: 0.9807219032 | D176: 0.951880531 | E176: 0 | F176: 2013-14 | G176: 13-14 Q1
A177: 10D_13-14 Q1 | B177: 0.9092436975 | C177: 0.9692954784 | D177: 0.9508920008 | E177: 2 | F177: 2013-14 | G177: 13-14 Q1
A178: 10E_13-14 Q1 | B178: 0.8965941732 | C178: 0.9801891844 | D178: 0.9537706259 | E178: 6 | F178: 2013-14 | G178: 13-14 Q1
A179: 10G_13-14 Q1 | B179: 0.9165605096 | C179: 0.9779847587 | D179: 0.9278779473 | E179: 1 | F179: 2013-14 | G179: 13-14 Q1
A180: 10H_13-14 Q1 | B180: 0.9340245052 | C180: 0.9770391136 | D180: 0.8899949597 | E180: 4 | F180: 2013-14 | G180: 13-14 Q1
A181: 10J_13-14 Q1 | B181: 0.8498371336 | C181: 0.9751485683 | D181: 0.9411200767 | E181: 0 | F181: 2013-14 | G181: 13-14 Q1
A182: 10K_13-14 Q1 | B182: 0.9408177905 | C182: 0.9707376325 | D182: 0.9420090697 | E182: 0 | F182: 2013-14 | G182: 13-14 Q1
A183: 10L_13-14 Q1 | B183: 0.932987013 | C183: 0.9738483203 | D183: 0.9445809781 | E183: 0 | F183: 2013-14 | G183: 13-14 Q1
A184: 10M_13-14 Q1 | B184: 0.9406294707 | C184: 0.991663193 | D184: 0.9582995294 | E184: 0 | F184: 2013-14 | G184: 13-14 Q1
A185: 10N_13-14 Q1 | B185: 0.9558058925 | C185: 0.9965217391 | D185: 0.9486213393 | E185: 0 | F185: 2013-14 | G185: 13-14 Q1
A186: 10Q_13-14 Q1 | B186: 0.9348494836 | C186: 0.9732278016 | D186: 0.9425340768 | E186: 2 | F186: 2013-14 | G186: 13-14 Q1
A187: 10R_13-14 Q1 | B187: 0.9397466621 | C187: 0.9816221142 | D187: 0.957587644 | E187: 0 | F187: 2013-14 | G187: 13-14 Q1
A188: 10T_13-14 Q1 | B188: 0.9105851414 | C188: 0.9625979843 | D188: 0.903325033 | E188: 3 | F188: 2013-14 | G188: 13-14 Q1
A189: 07J_13-14 Q1 | B189: 0.9014131898 | C189: 0.9794447976 | D189: 0.9538813366 | E189: 1 | F189: 2013-14 | G189: 13-14 Q1
A190: 10V_13-14 Q1 | B190: 0.9169503063 | C190: 0.9749070632 | D190: 0.9454672245 | E190: 0 | F190: 2013-14 | G190: 13-14 Q1
A191: 10W_13-14 Q1 | B191: 0.9618717504 | C191: 0.9983633388 | D191: 0.9442274645 | E191: 0 | F191: 2013-14 | G191: 13-14 Q1
A192: 10X_13-14 Q1 | B192: 0.9629888268 | C192: 0.9764127764 | D192: 0.9460522335 | E192: 0 | F192: 2013-14 | G192: 13-14 Q1
A193: 10Y_13-14 Q1 | B193: 0.9122751657 | C193: 0.9754288363 | D193: 0.9348753534 | E193: 0 | F193: 2013-14 | G193: 13-14 Q1
A194: 11A_13-14 Q1 | B194: 0.9382510013 | C194: 0.9796683219 | D194: 0.9537386443 | E194: 0 | F194: 2013-14 | G194: 13-14 Q1
A195: 11C_13-14 Q1 | B195: 0.9233918129 | C195: 0.9652033178 | D195: 0.9035276074 | E195: 2 | F195: 2013-14 | G195: 13-14 Q1
A196: 11D_13-14 Q1 | B196: 0.9362808843 | C196: 0.9965220272 | D196: 0.9418427081 | E196: 0 | F196: 2013-14 | G196: 13-14 Q1
A197: 11E_13-14 Q1 | B197: 0.9408418658 | C197: 0.9673295455 | D197: 0.9348486436 | E197: 0 | F197: 2013-14 | G197: 13-14 Q1
A198: 11H_13-14 Q1 | B198: 0.926646326 | C198: 0.966881369 | D198: 0.9370531384 | E198: 0 | F198: 2013-14 | G198: 13-14 Q1
A199: 11J_13-14 Q1 | B199: 0.9338954884 | C199: 0.9845788849 | D199: 0.9660499537 | E199: 1 | F199: 2013-14 | G199: 13-14 Q1
A200: 11M_13-14 Q1 | B200: 0.9321223709 | C200: 0.979252081 | D200: 0.9585502684 | E200: 0 | F200: 2013-14 | G200: 13-14 Q1
... 287 more rows

Sheet CUBE_EXTRACT_MSA (hidden)
A1: ID | B1: Breaches | C1: Year | D1: Period
A2: 00C_13-14 Q1 | C2: 2013-14 | D2: 13-14 Q1
A3: 00D_13-14 Q1 | C3: 2013-14 | D3: 13-14 Q1
A4: 00F_13-14 Q1 | C4: 2013-14 | D4: 13-14 Q1
A5: 00G_13-14 Q1 | C5: 2013-14 | D5: 13-14 Q1
A6: 00H_13-14 Q1 | C6: 2013-14 | D6: 13-14 Q1
A7: 00J_13-14 Q1 | B7: 1 | C7: 2013-14 | D7: 13-14 Q1
A8: 00K_13-14 Q1 | C8: 2013-14 | D8: 13-14 Q1
A9: 00L_13-14 Q1 | B9: 1 | C9: 2013-14 | D9: 13-14 Q1
A10: 00M_13-14 Q1 | C10: 2013-14 | D10: 13-14 Q1
A11: 00N_13-14 Q1 | C11: 2013-14 | D11: 13-14 Q1
A12: 00P_13-14 Q1 | C12: 2013-14 | D12: 13-14 Q1
A13: 00Q_13-14 Q1 | C13: 2013-14 | D13: 13-14 Q1
A14: 00R_13-14 Q1 | B14: 3 | C14: 2013-14 | D14: 13-14 Q1
A15: 00T_13-14 Q1 | B15: 1 | C15: 2013-14 | D15: 13-14 Q1
A16: 00V_13-14 Q1 | C16: 2013-14 | D16: 13-14 Q1
A17: 00W_13-14 Q1 | C17: 2013-14 | D17: 13-14 Q1
A18: 00X_13-14 Q1 | C18: 2013-14 | D18: 13-14 Q1
A19: 00Y_13-14 Q1 | C19: 2013-14 | D19: 13-14 Q1
A20: 01A_13-14 Q1 | B20: 1 | C20: 2013-14 | D20: 13-14 Q1
A21: 01C_13-14 Q1 | C21: 2013-14 | D21: 13-14 Q1
A22: 01D_13-14 Q1 | B22: 1 | C22: 2013-14 | D22: 13-14 Q1
A23: 01E_13-14 Q1 | C23: 2013-14 | D23: 13-14 Q1
A24: 01F_13-14 Q1 | C24: 2013-14 | D24: 13-14 Q1
A25: 01G_13-14 Q1 | C25: 2013-14 | D25: 13-14 Q1
A26: 01H_13-14 Q1 | B26: 1 | C26: 2013-14 | D26: 13-14 Q1
A27: 01J_13-14 Q1 | C27: 2013-14 | D27: 13-14 Q1
A28: 01K_13-14 Q1 | C28: 2013-14 | D28: 13-14 Q1
A29: 01M_13-14 Q1 | C29: 2013-14 | D29: 13-14 Q1
A30: 01N_13-14 Q1 | C30: 2013-14 | D30: 13-14 Q1
A31: 01R_13-14 Q1 | B31: 8 | C31: 2013-14 | D31: 13-14 Q1
A32: 01T_13-14 Q1 | C32: 2013-14 | D32: 13-14 Q1
A33: 01V_13-14 Q1 | C33: 2013-14 | D33: 13-14 Q1
A34: 01W_13-14 Q1 | C34: 2013-14 | D34: 13-14 Q1
A35: 01X_13-14 Q1 | C35: 2013-14 | D35: 13-14 Q1
A36: 01Y_13-14 Q1 | C36: 2013-14 | D36: 13-14 Q1
A37: 02A_13-14 Q1 | C37: 2013-14 | D37: 13-14 Q1
A38: 02D_13-14 Q1 | B38: 3 | C38: 2013-14 | D38: 13-14 Q1
A39: 02E_13-14 Q1 | C39: 2013-14 | D39: 13-14 Q1
A40: 02F_13-14 Q1 | C40: 2013-14 | D40: 13-14 Q1
A41: 02G_13-14 Q1 | C41: 2013-14 | D41: 13-14 Q1
A42: 02H_13-14 Q1 | C42: 2013-14 | D42: 13-14 Q1
A43: 02M_13-14 Q1 | C43: 2013-14 | D43: 13-14 Q1
A44: 02N_13-14 Q1 | C44: 2013-14 | D44: 13-14 Q1
A45: 02P_13-14 Q1 | C45: 2013-14 | D45: 13-14 Q1
A46: 02Q_13-14 Q1 | C46: 2013-14 | D46: 13-14 Q1
A47: 02R_13-14 Q1 | C47: 2013-14 | D47: 13-14 Q1
A48: 02T_13-14 Q1 | C48: 2013-14 | D48: 13-14 Q1
A49: 02V_13-14 Q1 | C49: 2013-14 | D49: 13-14 Q1
A50: 02W_13-14 Q1 | C50: 2013-14 | D50: 13-14 Q1
A51: 02X_13-14 Q1 | C51: 2013-14 | D51: 13-14 Q1
A52: 02Y_13-14 Q1 | C52: 2013-14 | D52: 13-14 Q1
A53: 03A_13-14 Q1 | C53: 2013-14 | D53: 13-14 Q1
A54: 03C_13-14 Q1 | C54: 2013-14 | D54: 13-14 Q1
A55: 03D_13-14 Q1 | C55: 2013-14 | D55: 13-14 Q1
A56: 03E_13-14 Q1 | B56: 1 | C56: 2013-14 | D56: 13-14 Q1
A57: 03F_13-14 Q1 | C57: 2013-14 | D57: 13-14 Q1
A58: 03G_13-14 Q1 | C58: 2013-14 | D58: 13-14 Q1
A59: 03H_13-14 Q1 | C59: 2013-14 | D59: 13-14 Q1
A60: 03J_13-14 Q1 | C60: 2013-14 | D60: 13-14 Q1
A61: 03K_13-14 Q1 | C61: 2013-14 | D61: 13-14 Q1
A62: 03L_13-14 Q1 | C62: 2013-14 | D62: 13-14 Q1
A63: 03M_13-14 Q1 | C63: 2013-14 | D63: 13-14 Q1
A64: 03N_13-14 Q1 | C64: 2013-14 | D64: 13-14 Q1
A65: 03Q_13-14 Q1 | C65: 2013-14 | D65: 13-14 Q1
A66: 03R_13-14 Q1 | C66: 2013-14 | D66: 13-14 Q1
A67: 12F_13-14 Q1 | B67: 3 | C67: 2013-14 | D67: 13-14 Q1
A68: 99A_13-14 Q1 | B68: 1 | C68: 2013-14 | D68: 13-14 Q1
A69: 99C_13-14 Q1 | C69: 2013-14 | D69: 13-14 Q1
A70: 03T_13-14 Q1 | C70: 2013-14 | D70: 13-14 Q1
A71: 03V_13-14 Q1 | C71: 2013-14 | D71: 13-14 Q1
A72: 03W_13-14 Q1 | C72: 2013-14 | D72: 13-14 Q1
A73: 03X_13-14 Q1 | B73: 1 | C73: 2013-14 | D73: 13-14 Q1
A74: 03Y_13-14 Q1 | C74: 2013-14 | D74: 13-14 Q1
A75: 04C_13-14 Q1 | C75: 2013-14 | D75: 13-14 Q1
A76: 04D_13-14 Q1 | B76: 1 | C76: 2013-14 | D76: 13-14 Q1
A77: 04E_13-14 Q1 | C77: 2013-14 | D77: 13-14 Q1
A78: 04F_13-14 Q1 | B78: 1 | C78: 2013-14 | D78: 13-14 Q1
A79: 04G_13-14 Q1 | C79: 2013-14 | D79: 13-14 Q1
A80: 04H_13-14 Q1 | C80: 2013-14 | D80: 13-14 Q1
A81: 04J_13-14 Q1 | C81: 2013-14 | D81: 13-14 Q1
A82: 04K_13-14 Q1 | C82: 2013-14 | D82: 13-14 Q1
A83: 04L_13-14 Q1 | C83: 2013-14 | D83: 13-14 Q1
A84: 04M_13-14 Q1 | C84: 2013-14 | D84: 13-14 Q1
A85: 04N_13-14 Q1 | C85: 2013-14 | D85: 13-14 Q1
A86: 04Q_13-14 Q1 | C86: 2013-14 | D86: 13-14 Q1
A87: 04R_13-14 Q1 | B87: 4 | C87: 2013-14 | D87: 13-14 Q1
A88: 04V_13-14 Q1 | B88: 1 | C88: 2013-14 | D88: 13-14 Q1
A89: 04X_13-14 Q1 | B89: 2 | C89: 2013-14 | D89: 13-14 Q1
A90: 04Y_13-14 Q1 | B90: 4 | C90: 2013-14 | D90: 13-14 Q1
A91: 05A_13-14 Q1 | C91: 2013-14 | D91: 13-14 Q1
A92: 05C_13-14 Q1 | C92: 2013-14 | D92: 13-14 Q1
A93: 05D_13-14 Q1 | B93: 10 | C93: 2013-14 | D93: 13-14 Q1
A94: 05F_13-14 Q1 | C94: 2013-14 | D94: 13-14 Q1
A95: 05G_13-14 Q1 | C95: 2013-14 | D95: 13-14 Q1
A96: 05H_13-14 Q1 | C96: 2013-14 | D96: 13-14 Q1
A97: 05J_13-14 Q1 | C97: 2013-14 | D97: 13-14 Q1
A98: 05L_13-14 Q1 | C98: 2013-14 | D98: 13-14 Q1
A99: 05N_13-14 Q1 | B99: 4 | C99: 2013-14 | D99: 13-14 Q1
A100: 05P_13-14 Q1 | B100: 3 | C100: 2013-14 | D100: 13-14 Q1
A101: 05Q_13-14 Q1 | B101: 3 | C101: 2013-14 | D101: 13-14 Q1
A102: 05R_13-14 Q1 | C102: 2013-14 | D102: 13-14 Q1
A103: 05T_13-14 Q1 | C103: 2013-14 | D103: 13-14 Q1
A104: 05V_13-14 Q1 | B104: 3 | C104: 2013-14 | D104: 13-14 Q1
A105: 05W_13-14 Q1 | C105: 2013-14 | D105: 13-14 Q1
A106: 05X_13-14 Q1 | C106: 2013-14 | D106: 13-14 Q1
A107: 05Y_13-14 Q1 | C107: 2013-14 | D107: 13-14 Q1
A108: 06A_13-14 Q1 | B108: 3 | C108: 2013-14 | D108: 13-14 Q1
A109: 06D_13-14 Q1 | C109: 2013-14 | D109: 13-14 Q1
A110: 06F_13-14 Q1 | B110: 3 | C110: 2013-14 | D110: 13-14 Q1
A111: 06H_13-14 Q1 | B111: 10 | C111: 2013-14 | D111: 13-14 Q1
A112: 06K_13-14 Q1 | B112: 9 | C112: 2013-14 | D112: 13-14 Q1
A113: 06L_13-14 Q1 | C113: 2013-14 | D113: 13-14 Q1
A114: 06M_13-14 Q1 | C114: 2013-14 | D114: 13-14 Q1
A115: 06N_13-14 Q1 | C115: 2013-14 | D115: 13-14 Q1
A116: 06P_13-14 Q1 | B116: 4 | C116: 2013-14 | D116: 13-14 Q1
A117: 06Q_13-14 Q1 | B117: 3 | C117: 2013-14 | D117: 13-14 Q1
A118: 06T_13-14 Q1 | B118: 1 | C118: 2013-14 | D118: 13-14 Q1
A119: 06V_13-14 Q1 | C119: 2013-14 | D119: 13-14 Q1
A120: 06W_13-14 Q1 | C120: 2013-14 | D120: 13-14 Q1
A121: 06Y_13-14 Q1 | C121: 2013-14 | D121: 13-14 Q1
A122: 07G_13-14 Q1 | B122: 2 | C122: 2013-14 | D122: 13-14 Q1
A123: 07H_13-14 Q1 | B123: 3 | C123: 2013-14 | D123: 13-14 Q1
A124: 07J_13-14 Q1 | B124: 3 | C124: 2013-14 | D124: 13-14 Q1
A125: 07K_13-14 Q1 | B125: 3 | C125: 2013-14 | D125: 13-14 Q1
A126: 13P_13-14 Q1 | B126: 5 | C126: 2013-14 | D126: 13-14 Q1
A127: 99D_13-14 Q1 | B127: 1 | C127: 2013-14 | D127: 13-14 Q1
A128: 99E_13-14 Q1 | B128: 1 | C128: 2013-14 | D128: 13-14 Q1
A129: 99F_13-14 Q1 | B129: 1 | C129: 2013-14 | D129: 13-14 Q1
A130: 99G_13-14 Q1 | B130: 3 | C130: 2013-14 | D130: 13-14 Q1
A131: 07L_13-14 Q1 | B131: 12 | C131: 2013-14 | D131: 13-14 Q1
A132: 07M_13-14 Q1 | B132: 18 | C132: 2013-14 | D132: 13-14 Q1
A133: 07N_13-14 Q1 | B133: 5 | C133: 2013-14 | D133: 13-14 Q1
A134: 07P_13-14 Q1 | B134: 1 | C134: 2013-14 | D134: 13-14 Q1
A135: 07Q_13-14 Q1 | B135: 13 | C135: 2013-14 | D135: 13-14 Q1
A136: 07R_13-14 Q1 | B136: 2 | C136: 2013-14 | D136: 13-14 Q1
A137: 07T_13-14 Q1 | B137: 8 | C137: 2013-14 | D137: 13-14 Q1
A138: 07V_13-14 Q1 | B138: 22 | C138: 2013-14 | D138: 13-14 Q1
A139: 07W_13-14 Q1 | B139: 1 | C139: 2013-14 | D139: 13-14 Q1
A140: 07X_13-14 Q1 | B140: 21 | C140: 2013-14 | D140: 13-14 Q1
A141: 07Y_13-14 Q1 | C141: 2013-14 | D141: 13-14 Q1
A142: 08A_13-14 Q1 | B142: 7 | C142: 2013-14 | D142: 13-14 Q1
A143: 08C_13-14 Q1 | B143: 1 | C143: 2013-14 | D143: 13-14 Q1
A144: 08D_13-14 Q1 | B144: 13 | C144: 2013-14 | D144: 13-14 Q1
A145: 08E_13-14 Q1 | C145: 2013-14 | D145: 13-14 Q1
A146: 08F_13-14 Q1 | B146: 33 | C146: 2013-14 | D146: 13-14 Q1
A147: 08G_13-14 Q1 | C147: 2013-14 | D147: 13-14 Q1
A148: 08H_13-14 Q1 | B148: 2 | C148: 2013-14 | D148: 13-14 Q1
A149: 08J_13-14 Q1 | B149: 1 | C149: 2013-14 | D149: 13-14 Q1
A150: 08K_13-14 Q1 | B150: 30 | C150: 2013-14 | D150: 13-14 Q1
A151: 08L_13-14 Q1 | B151: 7 | C151: 2013-14 | D151: 13-14 Q1
A152: 08M_13-14 Q1 | B152: 30 | C152: 2013-14 | D152: 13-14 Q1
A153: 08N_13-14 Q1 | B153: 13 | C153: 2013-14 | D153: 13-14 Q1
A154: 08P_13-14 Q1 | C154: 2013-14 | D154: 13-14 Q1
A155: 08Q_13-14 Q1 | B155: 25 | C155: 2013-14 | D155: 13-14 Q1
A156: 08R_13-14 Q1 | B156: 11 | C156: 2013-14 | D156: 13-14 Q1
A157: 08T_13-14 Q1 | B157: 18 | C157: 2013-14 | D157: 13-14 Q1
A158: 08V_13-14 Q1 | B158: 24 | C158: 2013-14 | D158: 13-14 Q1
A159: 08W_13-14 Q1 | B159: 17 | C159: 2013-14 | D159: 13-14 Q1
A160: 08X_13-14 Q1 | B160: 13 | C160: 2013-14 | D160: 13-14 Q1
A161: 08Y_13-14 Q1 | C161: 2013-14 | D161: 13-14 Q1
A162: 09A_13-14 Q1 | B162: 3 | C162: 2013-14 | D162: 13-14 Q1
A163: 09C_13-14 Q1 | C163: 2013-14 | D163: 13-14 Q1
A164: 09D_13-14 Q1 | C164: 2013-14 | D164: 13-14 Q1
A165: 09E_13-14 Q1 | B165: 3 | C165: 2013-14 | D165: 13-14 Q1
A166: 09F_13-14 Q1 | C166: 2013-14 | D166: 13-14 Q1
A167: 09G_13-14 Q1 | C167: 2013-14 | D167: 13-14 Q1
A168: 09H_13-14 Q1 | C168: 2013-14 | D168: 13-14 Q1
A169: 09J_13-14 Q1 | B169: 5 | C169: 2013-14 | D169: 13-14 Q1
A170: 09L_13-14 Q1 | B170: 1 | C170: 2013-14 | D170: 13-14 Q1
A171: 09N_13-14 Q1 | B171: 1 | C171: 2013-14 | D171: 13-14 Q1
A172: 09P_13-14 Q1 | B172: 5 | C172: 2013-14 | D172: 13-14 Q1
A173: 09W_13-14 Q1 | B173: 34 | C173: 2013-14 | D173: 13-14 Q1
A174: 09X_13-14 Q1 | B174: 2 | C174: 2013-14 | D174: 13-14 Q1
A175: 09Y_13-14 Q1 | B175: 10 | C175: 2013-14 | D175: 13-14 Q1
A176: 10A_13-14 Q1 | B176: 2 | C176: 2013-14 | D176: 13-14 Q1
A177: 10C_13-14 Q1 | C177: 2013-14 | D177: 13-14 Q1
A178: 10D_13-14 Q1 | B178: 15 | C178: 2013-14 | D178: 13-14 Q1
A179: 10E_13-14 Q1 | C179: 2013-14 | D179: 13-14 Q1
A180: 10G_13-14 Q1 | C180: 2013-14 | D180: 13-14 Q1
A181: 10H_13-14 Q1 | C181: 2013-14 | D181: 13-14 Q1
A182: 10J_13-14 Q1 | C182: 2013-14 | D182: 13-14 Q1
A183: 10K_13-14 Q1 | C183: 2013-14 | D183: 13-14 Q1
A184: 10L_13-14 Q1 | C184: 2013-14 | D184: 13-14 Q1
A185: 10M_13-14 Q1 | C185: 2013-14 | D185: 13-14 Q1
A186: 10N_13-14 Q1 | C186: 2013-14 | D186: 13-14 Q1
A187: 10Q_13-14 Q1 | C187: 2013-14 | D187: 13-14 Q1
A188: 10R_13-14 Q1 | C188: 2013-14 | D188: 13-14 Q1
A189: 10T_13-14 Q1 | C189: 2013-14 | D189: 13-14 Q1
A190: 10V_13-14 Q1 | B190: 1 | C190: 2013-14 | D190: 13-14 Q1
A191: 10W_13-14 Q1 | C191: 2013-14 | D191: 13-14 Q1
A192: 10X_13-14 Q1 | B192: 2 | C192: 2013-14 | D192: 13-14 Q1
A193: 10Y_13-14 Q1 | B193: 1 | C193: 2013-14 | D193: 13-14 Q1
A194: 11A_13-14 Q1 | B194: 6 | C194: 2013-14 | D194: 13-14 Q1
A195: 11C_13-14 Q1 | C195: 2013-14 | D195: 13-14 Q1
A196: 11D_13-14 Q1 | C196: 2013-14 | D196: 13-14 Q1
A197: 11E_13-14 Q1 | C197: 2013-14 | D197: 13-14 Q1
A198: 11H_13-14 Q1 | C198: 2013-14 | D198: 13-14 Q1
A199: 11J_13-14 Q1 | C199: 2013-14 | D199: 13-14 Q1
A200: 11M_13-14 Q1 | B200: 21 | C200: 2013-14 | D200: 13-14 Q1
... 289 more rows

Sheet CUBE_EXTRACT_CANCER (hidden)
A1: Column1 | B1: 2 Week wait | C1: Breast symptom 2 week wait | D1: 31 day standard | E1: 31 day subsequent surgery | F1: 31 day subsequent surgery drug | G1: 31 day subsequent radiotherapy | H1: 62 Day Standard | I1: 62 Day Screening Standard | J1: 62 Day Upgrade Standard | K1: Year | L1: Period
A2: 00C_13-14 Q1 | B2: 0.9757673667 | C2: 0.9925925926 | D2: 1 | E2: 0.9333333333 | F2: 0.9230769231 | G2: 1 | H2: 0.8 | K2: 2013-14 | L2: 13-14 Q1
A3: 00D_13-14 Q1 | B3: 0.9617706237 | C3: 0.9353846154 | D3: 0.9857142857 | E3: 0.9638554217 | F3: 1 | G3: 1 | H3: 0.8802083333 | I3: 0.9473684211 | J3: 1 | K3: 2013-14 | L3: 13-14 Q1
A4: 00F_13-14 Q1 | B4: 0.928410372 | C4: 0.9509202454 | D4: 0.9829931973 | E4: 1 | F4: 1 | G4: 1 | H4: 0.8848920863 | I4: 0.96 | J4: 0.75 | K4: 2013-14 | L4: 13-14 Q1
A5: 00G_13-14 Q1 | B5: 0.9636898921 | C5: 0.9679487179 | D5: 1 | E5: 1 | F5: 1 | G5: 1 | H5: 0.8888888889 | I5: 0.962962963 | K5: 2013-14 | L5: 13-14 Q1
A6: 00H_13-14 Q1 | B6: 0.9664864865 | C6: 0.9769230769 | D6: 0.9928057554 | E6: 1 | F6: 1 | G6: 1 | H6: 0.9589041096 | I6: 1 | K6: 2013-14 | L6: 13-14 Q1
A7: 00J_13-14 Q1 | B7: 0.9678030303 | C7: 0.9084507042 | D7: 0.9873015873 | E7: 1 | F7: 1 | G7: 1 | H7: 0.9025974026 | I7: 1 | J7: 1 | K7: 2013-14 | L7: 13-14 Q1
A8: 00K_13-14 Q1 | B8: 0.9407407407 | C8: 0.9358600583 | D8: 0.9945652174 | E8: 0.972972973 | F8: 1 | G8: 0.9919354839 | H8: 0.8209876543 | I8: 0.9722222222 | J8: 1 | K8: 2013-14 | L8: 13-14 Q1
A9: 00L_13-14 Q1 | B9: 0.9619128227 | C9: 0.9860627178 | D9: 0.9979338843 | E9: 1 | F9: 1 | G9: 0.993006993 | H9: 0.9159292035 | I9: 1 | J9: 0.6666666667 | K9: 2013-14 | L9: 13-14 Q1
A10: 00M_13-14 Q1 | B10: 0.9647129187 | C10: 0.9818731118 | D10: 0.9825581395 | E10: 0.9868421053 | F10: 1 | G10: 0.9842519685 | H10: 0.8894736842 | I10: 0.9333333333 | J10: 0.8571428571 | K10: 2013-14 | L10: 13-14 Q1
A11: 00N_13-14 Q1 | B11: 0.9538461538 | C11: 0.9553571429 | D11: 0.99 | E11: 1 | F11: 1 | G11: 1 | H11: 0.8924731183 | I11: 0.7142857143 | J11: 1 | K11: 2013-14 | L11: 13-14 Q1
A12: 00P_13-14 Q1 | B12: 0.942694889 | C12: 0.9675925926 | D12: 0.9922879177 | E12: 1 | F12: 1 | G12: 0.9918699187 | H12: 0.8735632184 | I12: 1 | J12: 0.8333333333 | K12: 2013-14 | L12: 13-14 Q1
A13: 00Q_13-14 Q1 | B13: 0.9600431965 | C13: 0.9806451613 | D13: 0.9485294118 | E13: 0.9696969697 | F13: 1 | G13: 0.9444444444 | H13: 0.8076923077 | I13: 1 | J13: 0.7368421053 | K13: 2013-14 | L13: 13-14 Q1
A14: 00R_13-14 Q1 | B14: 0.9326211997 | C14: 0.9556962025 | D14: 0.9809160305 | E14: 1 | F14: 1 | G14: 0.9655172414 | H14: 0.8787878788 | I14: 1 | J14: 0.82 | K14: 2013-14 | L14: 13-14 Q1
A15: 00T_13-14 Q1 | B15: 0.9581297976 | C15: 0.9718309859 | D15: 0.9795918367 | E15: 0.9855072464 | F15: 1 | G15: 0.9908256881 | H15: 0.8778625954 | I15: 0.9 | J15: 0.8823529412 | K15: 2013-14 | L15: 13-14 Q1
A16: 00V_13-14 Q1 | B16: 0.9751152074 | C16: 0.9673202614 | D16: 0.9849246231 | E16: 1 | F16: 1 | G16: 0.9833333333 | H16: 0.8828828829 | I16: 0.9090909091 | J16: 0.8846153846 | K16: 2013-14 | L16: 13-14 Q1
A17: 00W_13-14 Q1 | B17: 0.9596199525 | C17: 0.9877300613 | D17: 1 | E17: 1 | F17: 1 | G17: 1 | H17: 0.9180327869 | I17: 1 | J17: 0.75 | K17: 2013-14 | L17: 13-14 Q1
A18: 00X_13-14 Q1 | B18: 0.9607182941 | C18: 0.954887218 | D18: 0.9743589744 | E18: 0.9591836735 | F18: 1 | G18: 0.972972973 | H18: 0.8834951456 | I18: 0.9583333333 | J18: 0.9056603774 | K18: 2013-14 | L18: 13-14 Q1
A19: 00Y_13-14 Q1 | B19: 0.9633550489 | C19: 0.9793814433 | D19: 0.9925925926 | E19: 1 | F19: 1 | G19: 1 | H19: 0.9025974026 | I19: 1 | J19: 0.9 | K19: 2013-14 | L19: 13-14 Q1
A20: 01A_13-14 Q1 | B20: 0.9687220733 | C20: 0.96875 | D20: 0.9800498753 | E20: 0.9719626168 | F20: 1 | G20: 0.9324324324 | H20: 0.859375 | I20: 0.9230769231 | J20: 0.9482758621 | K20: 2013-14 | L20: 13-14 Q1
A21: 01C_13-14 Q1 | B21: 0.9769894535 | C21: 0.9595959596 | D21: 0.9723320158 | E21: 0.9814814815 | F21: 1 | G21: 1 | H21: 0.8596491228 | I21: 1 | J21: 0.8823529412 | K21: 2013-14 | L21: 13-14 Q1
A22: 01D_13-14 Q1 | B22: 0.9833472107 | C22: 0.9811320755 | D22: 0.983805668 | E22: 0.9787234043 | F22: 1 | G22: 1 | H22: 0.8928571429 | I22: 0.9166666667 | J22: 0.8095238095 | K22: 2013-14 | L22: 13-14 Q1
A23: 01E_13-14 Q1 | B23: 0.9357034796 | C23: 0.9554140127 | D23: 0.9739130435 | E23: 0.9722222222 | F23: 1 | G23: 1 | H23: 0.8294573643 | I23: 1 | J23: 0.8823529412 | K23: 2013-14 | L23: 13-14 Q1
A24: 01F_13-14 Q1 | B24: 0.9407244786 | C24: 0.9583333333 | D24: 0.9941176471 | E24: 1 | F24: 0.9850746269 | G24: 0.962962963 | H24: 0.88 | I24: 1 | J24: 0.9375 | K24: 2013-14 | L24: 13-14 Q1
A25: 01G_13-14 Q1 | B25: 0.9810981098 | C25: 0.9538461538 | D25: 0.9920948617 | E25: 0.9682539683 | F25: 1 | G25: 1 | H25: 0.9298245614 | I25: 0.9285714286 | J25: 0.9756097561 | K25: 2013-14 | L25: 13-14 Q1
A26: 01H_13-14 Q1 | B26: 0.9313081554 | C26: 0.9434931507 | D26: 0.976346912 | E26: 0.9832402235 | F26: 1 | G26: 0.975088968 | H26: 0.7959697733 | I26: 0.890625 | J26: 0.9157894737 | K26: 2013-14 | L26: 13-14 Q1
A27: 01J_13-14 Q1 | B27: 0.9628099174 | C27: 0.953125 | D27: 0.9910714286 | E27: 0.9310344828 | F27: 0.9893617021 | G27: 0.9418604651 | H27: 0.8780487805 | I27: 0.9473684211 | J27: 1 | K27: 2013-14 | L27: 13-14 Q1
A28: 01K_13-14 Q1 | B28: 0.9391824526 | C28: 0.947761194 | D28: 0.9801980198 | E28: 0.9743589744 | F28: 1 | G28: 0.9692307692 | H28: 0.8111111111 | I28: 1 | J28: 0.9206349206 | K28: 2013-14 | L28: 13-14 Q1
A29: 01M_13-14 Q1 | B29: 0.9715261959 | C29: 0.9611111111 | D29: 0.9931506849 | E29: 0.9583333333 | F29: 1 | G29: 1 | H29: 0.8765432099 | I29: 1 | J29: 0.9047619048 | K29: 2013-14 | L29: 13-14 Q1
A30: 01N_13-14 Q1 | B30: 0.9554565702 | C30: 0.96875 | D30: 0.9933333333 | E30: 0.9696969697 | F30: 1 | G30: 1 | H30: 0.8888888889 | I30: 1 | J30: 1 | K30: 2013-14 | L30: 13-14 Q1
A31: 01R_13-14 Q1 | B31: 0.9599198397 | C31: 0.9408602151 | D31: 0.9958506224 | E31: 1 | F31: 1 | G31: 1 | H31: 0.9333333333 | I31: 0.96 | J31: 1 | K31: 2013-14 | L31: 13-14 Q1
A32: 01T_13-14 Q1 | B32: 0.9725925926 | C32: 0.961038961 | D32: 0.9744897959 | E32: 1 | F32: 0.9791666667 | G32: 0.9625 | H32: 0.8617021277 | I32: 0.6666666667 | J32: 0.8333333333 | K32: 2013-14 | L32: 13-14 Q1
A33: 01V_13-14 Q1 | B33: 0.9331983806 | C33: 0.8511904762 | D33: 0.9806763285 | E33: 0.9777777778 | F33: 1 | G33: 0.9649122807 | H33: 0.8229166667 | I33: 1 | J33: 0.7 | K33: 2013-14 | L33: 13-14 Q1
A34: 01W_13-14 Q1 | B34: 0.9531639263 | C34: 0.9538904899 | D34: 0.9771428571 | E34: 0.9764705882 | F34: 1 | G34: 0.9915254237 | H34: 0.8783783784 | I34: 0.962962963 | J34: 0.8536585366 | K34: 2013-14 | L34: 13-14 Q1
A35: 01X_13-14 Q1 | B35: 0.9524663677 | C35: 0.9953271028 | D35: 0.9766536965 | E35: 1 | F35: 1 | G35: 0.9594594595 | H35: 0.8 | I35: 1 | J35: 0.8 | K35: 2013-14 | L35: 13-14 Q1
A36: 01Y_13-14 Q1 | B36: 0.9692408377 | C36: 0.9151943463 | D36: 0.9884615385 | E36: 1 | F36: 1 | G36: 0.9861111111 | H36: 0.9159663866 | I36: 1 | J36: 0.8636363636 | K36: 2013-14 | L36: 13-14 Q1
A37: 02A_13-14 Q1 | B37: 0.9737072743 | C37: 0.9838709677 | D37: 0.9895104895 | E37: 0.9692307692 | F37: 1 | G37: 0.987804878 | H37: 0.8992248062 | I37: 1 | J37: 0.9607843137 | K37: 2013-14 | L37: 13-14 Q1
A38: 02D_13-14 Q1 | B38: 0.9508196721 | C38: 0.9345794393 | D38: 0.9921875 | E38: 1 | F38: 1 | G38: 0.9642857143 | H38: 0.8367346939 | I38: 1 | J38: 1 | K38: 2013-14 | L38: 13-14 Q1
A39: 02E_13-14 Q1 | B39: 0.96 | C39: 0.9568345324 | D39: 0.9857819905 | E39: 0.9230769231 | F39: 1 | G39: 0.9534883721 | H39: 0.8899082569 | I39: 1 | J39: 0.8947368421 | K39: 2013-14 | L39: 13-14 Q1
A40: 02F_13-14 Q1 | B40: 0.9715976331 | C40: 0.9860465116 | D40: 0.9805825243 | E40: 0.9574468085 | F40: 1 | G40: 0.9626865672 | H40: 0.8333333333 | I40: 1 | J40: 0.8979591837 | K40: 2013-14 | L40: 13-14 Q1
A41: 02G_13-14 Q1 | B41: 0.9466292135 | C41: 0.9193548387 | D41: 0.9805194805 | E41: 1 | F41: 0.9850746269 | G41: 1 | H41: 0.9142857143 | I41: 0.6666666667 | J41: 0.9166666667 | K41: 2013-14 | L41: 13-14 Q1
A42: 02H_13-14 Q1 | B42: 0.9866197183 | C42: 0.968973747 | D42: 0.9850746269 | E42: 1 | F42: 0.9923664122 | G42: 1 | H42: 0.9133333333 | I42: 0.9375 | J42: 0.9391304348 | K42: 2013-14 | L42: 13-14 Q1
A43: 02M_13-14 Q1 | B43: 0.9430823117 | C43: 0.9339622642 | D43: 0.9761904762 | E43: 0.9508196721 | F43: 0.9855072464 | G43: 0.9705882353 | H43: 0.8952380952 | I43: 1 | J43: 0.7894736842 | K43: 2013-14 | L43: 13-14 Q1
A44: 02N_13-14 Q1 | B44: 0.9662650602 | C44: 0.9947089947 | D44: 1 | E44: 1 | F44: 1 | G44: 1 | H44: 0.9369369369 | I44: 1 | J44: 1 | K44: 2013-14 | L44: 13-14 Q1
A45: 02P_13-14 Q1 | B45: 0.9568679496 | C45: 0.9652509653 | D45: 0.9844720497 | E45: 0.9850746269 | F45: 1 | G45: 1 | H45: 0.8582089552 | I45: 1 | J45: 0.8214285714 | K45: 2013-14 | L45: 13-14 Q1
A46: 02Q_13-14 Q1 | B46: 0.8849056604 | C46: 0.8549618321 | D46: 0.9875 | E46: 0.9375 | F46: 1 | G46: 1 | H46: 0.8870967742 | I46: 1 | J46: 0.9285714286 | K46: 2013-14 | L46: 13-14 Q1
A47: 02R_13-14 Q1 | B47: 0.9573626374 | C47: 0.9868421053 | D47: 0.984375 | E47: 0.9574468085 | F47: 1 | G47: 0.9813084112 | H47: 0.9112426036 | I47: 1 | J47: 0.875 | K47: 2013-14 | L47: 13-14 Q1
A48: 02T_13-14 Q1 | B48: 0.9643584521 | C48: 0.9466019417 | D48: 0.9843137255 | E48: 1 | F48: 1 | G48: 0.9905660377 | H48: 0.8803418803 | I48: 0.9705882353 | J48: 1 | K48: 2013-14 | L48: 13-14 Q1
A49: 02V_13-14 Q1 | B49: 0.9685908319 | C49: 0.9396984925 | D49: 0.9805825243 | E49: 0.9824561404 | F49: 1 | G49: 0.989010989 | H49: 0.8941176471 | I49: 0.9090909091 | J49: 1 | K49: 2013-14 | L49: 13-14 Q1
A50: 02W_13-14 Q1 | B50: 0.9531680441 | C50: 1 | D50: 0.9787234043 | E50: 0.9 | F50: 1 | G50: 1 | H50: 0.8260869565 | I50: 1 | J50: 1 | K50: 2013-14 | L50: 13-14 Q1
A51: 02X_13-14 Q1 | B51: 0.9519697787 | C51: 0.9555555556 | D51: 0.9796839729 | E51: 0.9846153846 | F51: 1 | G51: 0.9863013699 | H51: 0.880239521 | I51: 0.875 | J51: 0.9047619048 | K51: 2013-14 | L51: 13-14 Q1
A52: 02Y_13-14 Q1 | B52: 0.9446685879 | C52: 0.9142857143 | D52: 0.9776876268 | E52: 0.9677419355 | F52: 0.9857142857 | G52: 0.9705882353 | H52: 0.9012345679 | I52: 0.9285714286 | J52: 1 | K52: 2013-14 | L52: 13-14 Q1
A53: 03A_13-14 Q1 | B53: 0.9602954755 | C53: 0.9367088608 | D53: 0.9911894273 | E53: 0.9807692308 | F53: 1 | G53: 0.9893617021 | H53: 0.9173553719 | I53: 1 | J53: 1 | K53: 2013-14 | L53: 13-14 Q1
A54: 03C_13-14 Q1 | B54: 0.9569471624 | C54: 0.9401041667 | D54: 0.9846938776 | E54: 1 | F54: 1 | G54: 0.9779411765 | H54: 0.8793103448 | I54: 1 | J54: 0.9166666667 | K54: 2013-14 | L54: 13-14 Q1
A55: 03D_13-14 Q1 | B55: 0.94 | C55: 0.9347826087 | D55: 0.9753694581 | E55: 1 | F55: 1 | G55: 1 | H55: 0.8938053097 | I55: 1 | J55: 1 | K55: 2013-14 | L55: 13-14 Q1
A56: 03E_13-14 Q1 | B56: 0.9878345499 | C56: 0.9803921569 | D56: 0.9916666667 | E56: 1 | F56: 1 | G56: 0.9846153846 | H56: 0.9008264463 | I56: 1 | J56: 1 | K56: 2013-14 | L56: 13-14 Q1
A57: 03F_13-14 Q1 | B57: 0.934169279 | C57: 0.9526066351 | D57: 0.9714285714 | E57: 0.9718309859 | F57: 1 | G57: 0.963963964 | H57: 0.8304093567 | I57: 1 | K57: 2013-14 | L57: 13-14 Q1
A58: 03G_13-14 Q1 | B58: 0.9596153846 | C58: 0.9650793651 | D58: 0.9818731118 | E58: 0.9534883721 | F58: 1 | G58: 1 | H58: 0.9424460432 | I58: 1 | J58: 0.875 | K58: 2013-14 | L58: 13-14 Q1
A59: 03H_13-14 Q1 | B59: 0.9852398524 | C59: 0.9802631579 | D59: 0.9894179894 | E59: 1 | F59: 1 | G59: 0.9402985075 | H59: 0.8645833333 | I59: 1 | J59: 1 | K59: 2013-14 | L59: 13-14 Q1
A60: 03J_13-14 Q1 | B60: 0.9707705934 | C60: 0.9367088608 | D60: 0.9859813084 | E60: 0.9777777778 | F60: 1 | G60: 1 | H60: 0.8333333333 | I60: 1 | J60: 0.8181818182 | K60: 2013-14 | L60: 13-14 Q1
A61: 03K_13-14 Q1 | B61: 0.9892588614 | C61: 0.9461538462 | D61: 0.9906103286 | E61: 0.972972973 | F61: 1 | G61: 0.9361702128 | H61: 0.9245283019 | I61: 0.9523809524 | K61: 2013-14 | L61: 13-14 Q1
A62: 03L_13-14 Q1 | B62: 0.954787234 | C62: 0.9272727273 | D62: 0.9965397924 | E62: 1 | F62: 1 | G62: 0.9836065574 | H62: 0.9365079365 | I62: 1 | J62: 0.956043956 | K62: 2013-14 | L62: 13-14 Q1
A63: 03M_13-14 Q1 | B63: 0.9802197802 | C63: 0.9541984733 | D63: 0.9923664122 | E63: 1 | F63: 1 | G63: 1 | H63: 0.8392857143 | I63: 1 | J63: 1 | K63: 2013-14 | L63: 13-14 Q1
A64: 03N_13-14 Q1 | B64: 0.940588057 | C64: 0.9580712788 | D64: 0.9886219975 | E64: 0.9931506849 | F64: 1 | G64: 0.9954954955 | H64: 0.9204545455 | I64: 0.9672131148 | J64: 0.9367088608 | K64: 2013-14 | L64: 13-14 Q1
A65: 03Q_13-14 Q1 | B65: 0.9494001043 | C65: 0.9544159544 | D65: 0.9870967742 | E65: 0.9579831933 | F65: 0.9935897436 | G65: 0.9848484848 | H65: 0.8731707317 | I65: 1 | K65: 2013-14 | L65: 13-14 Q1
A66: 03R_13-14 Q1 | B66: 0.9680992468 | C66: 0.9672727273 | D66: 0.9775784753 | E66: 0.9901960784 | F66: 1 | G66: 0.993902439 | H66: 0.8475336323 | I66: 0.9333333333 | J66: 0.7333333333 | K66: 2013-14 | L66: 13-14 Q1
A67: 12F_13-14 Q1 | B67: 0.9698169223 | C67: 0.9555555556 | D67: 0.9809725159 | E67: 0.9891304348 | F67: 0.9891304348 | G67: 0.9675324675 | H67: 0.8739130435 | I67: 1 | J67: 0.9047619048 | K67: 2013-14 | L67: 13-14 Q1
A68: 99A_13-14 Q1 | B68: 0.9559987338 | C68: 0.9364820847 | D68: 0.9761029412 | E68: 0.9894736842 | F68: 0.9813432836 | G68: 0.961722488 | H68: 0.8854625551 | I68: 0.9032258065 | J68: 0.7954545455 | K68: 2013-14 | L68: 13-14 Q1
A69: 99C_13-14 Q1 | B69: 0.9741324921 | C69: 0.9607843137 | D69: 0.9965156794 | E69: 1 | F69: 1 | G69: 0.9887640449 | H69: 0.8656716418 | I69: 1 | J69: 0.8333333333 | K69: 2013-14 | L69: 13-14 Q1
A70: 03T_13-14 Q1 | B70: 0.9497319035 | C70: 0.9273504274 | D70: 0.9756756757 | E70: 0.9611650485 | F70: 1 | G70: 0.9305555556 | H70: 0.7777777778 | I70: 1 | K70: 2013-14 | L70: 13-14 Q1
A71: 03V_13-14 Q1 | B71: 0.9516908213 | C71: 1 | D71: 1 | E71: 1 | F71: 1 | G71: 1 | H71: 0.8648648649 | I71: 1 | J71: 1 | K71: 2013-14 | L71: 13-14 Q1
A72: 03W_13-14 Q1 | B72: 0.9454845815 | C72: 0.9523809524 | D72: 0.9734042553 | E72: 0.9772727273 | F72: 1 | G72: 0.9934210526 | H72: 0.807106599 | I72: 0.9743589744 | J72: 1 | K72: 2013-14 | L72: 13-14 Q1
A73: 03X_13-14 Q1 | B73: 0.9239302694 | C73: 0.9333333333 | D73: 1 | E73: 0.96875 | F73: 1 | G73: 0.9714285714 | H73: 0.8923076923 | I73: 1 | J73: 1 | K73: 2013-14 | L73: 13-14 Q1
A74: 03Y_13-14 Q1 | B74: 0.9407783418 | C74: 0.9066666667 | D74: 0.9854014599 | E74: 1 | F74: 1 | G74: 1 | H74: 0.8153846154 | I74: 0.75 | J74: 1 | K74: 2013-14 | L74: 13-14 Q1
A75: 04C_13-14 Q1 | B75: 0.9397217929 | C75: 0.9464285714 | D75: 0.979253112 | E75: 0.96 | F75: 1 | G75: 0.9789473684 | H75: 0.8317757009 | I75: 0.875 | K75: 2013-14 | L75: 13-14 Q1
A76: 04D_13-14 Q1 | B76: 0.9438040346 | C76: 0.8927038627 | D76: 0.9494584838 | E76: 0.9508196721 | F76: 1 | G76: 0.9494949495 | H76: 0.731884058 | I76: 0.8620689655 | J76: 1 | K76: 2013-14 | L76: 13-14 Q1
A77: 04E_13-14 Q1 | B77: 0.9490131579 | C77: 0.9673913043 | D77: 0.9904761905 | E77: 1 | F77: 1 | G77: 1 | H77: 0.8928571429 | I77: 1 | J77: 1 | K77: 2013-14 | L77: 13-14 Q1
A78: 04F_13-14 Q1 | B78: 0.9857819905 | C78: 0.944 | D78: 0.9895833333 | E78: 0.9756097561 | F78: 1 | G78: 0.9746835443 | H78: 0.8947368421 | I78: 1 | K78: 2013-14 | L78: 13-14 Q1
A79: 04G_13-14 Q1 | B79: 0.9510029596 | C79: 0.9947506562 | D79: 0.9835164835 | E79: 0.99 | F79: 0.9954751131 | G79: 0.9761904762 | H79: 0.8370165746 | I79: 0.9240506329 | J79: 0.6666666667 | K79: 2013-14 | L79: 13-14 Q1
A80: 04H_13-14 Q1 | B80: 0.9320175439 | C80: 0.962962963 | D80: 0.9945652174 | E80: 0.9117647059 | F80: 1 | G80: 0.9615384615 | H80: 0.9306930693 | I80: 1 | J80: 1 | K80: 2013-14 | L80: 13-14 Q1
A81: 04J_13-14 Q1 | B81: 0.9595959596 | C81: 0.9605263158 | D81: 0.9867549669 | E81: 0.96875 | F81: 1 | G81: 1 | H81: 0.9360730594 | I81: 1 | J81: 0.8235294118 | K81: 2013-14 | L81: 13-14 Q1
A82: 04K_13-14 Q1 | B82: 0.9439359268 | C82: 0.9178082192 | D82: 0.9726027397 | E82: 0.9830508475 | F82: 1 | G82: 1 | H82: 0.8742138365 | I82: 0.6666666667 | J82: 0.6666666667 | K82: 2013-14 | L82: 13-14 Q1
A83: 04L_13-14 Q1 | B83: 0.9650485437 | C83: 0.9444444444 | D83: 0.976744186 | E83: 0.976744186 | F83: 1 | G83: 1 | H83: 0.8623853211 | I83: 1 | J83: 1 | K83: 2013-14 | L83: 13-14 Q1
A84: 04M_13-14 Q1 | B84: 0.948542024 | C84: 0.9666666667 | D84: 0.9782608696 | E84: 0.8333333333 | F84: 1 | G84: 1 | H84: 0.9178082192 | I84: 0.5 | J84: 1 | K84: 2013-14 | L84: 13-14 Q1
A85: 04N_13-14 Q1 | B85: 0.9189497717 | C85: 0.9696969697 | D85: 0.9736842105 | E85: 0.9393939394 | F85: 1 | G85: 0.98 | H85: 0.9142857143 | I85: 1 | K85: 2013-14 | L85: 13-14 Q1
A86: 04Q_13-14 Q1 | B86: 0.9319371728 | C86: 0.8387096774 | D86: 0.9651162791 | E86: 1 | F86: 0.9868421053 | G86: 0.9795918367 | H86: 0.7647058824 | I86: 1 | J86: 1 | K86: 2013-14 | L86: 13-14 Q1
A87: 04R_13-14 Q1 | B87: 0.9394681596 | C87: 0.9502074689 | D87: 0.9808 | E87: 0.9668508287 | F87: 0.9893617021 | G87: 0.9829545455 | H87: 0.8114478114 | I87: 0.9473684211 | J87: 0.9705882353 | K87: 2013-14 | L87: 13-14 Q1
A88: 04V_13-14 Q1 | B88: 0.9467723669 | C88: 0.9330143541 | D88: 0.9854368932 | E88: 0.9605263158 | F88: 1 | G88: 0.9925373134 | H88: 0.8221153846 | I88: 0.9772727273 | J88: 1 | K88: 2013-14 | L88: 13-14 Q1
A89: 04X_13-14 Q1 | B89: 0.9570990807 | C89: 0.9640718563 | D89: 0.9668508287 | E89: 1 | F89: 1 | G89: 1 | H89: 0.9545454545 | I89: 1 | J89: 0.9393939394 | K89: 2013-14 | L89: 13-14 Q1
A90: 04Y_13-14 Q1 | B90: 0.9652509653 | C90: 0.921875 | D90: 0.9877300613 | E90: 1 | F90: 1 | G90: 1 | H90: 0.9010989011 | J90: 0.9795918367 | K90: 2013-14 | L90: 13-14 Q1
A91: 05A_13-14 Q1 | B91: 0.9502744592 | C91: 0.9345794393 | D91: 0.9956236324 | E91: 0.9908256881 | F91: 1 | G91: 0.9461883408 | H91: 0.8208333333 | I91: 0.925 | J91: 1 | K91: 2013-14 | L91: 13-14 Q1
A92: 05C_13-14 Q1 | B92: 0.9646712463 | C92: 0.974789916 | D92: 1 | E92: 0.9772727273 | F92: 1 | G92: 0.9930555556 | H92: 0.86 | I92: 1 | J92: 0.9827586207 | K92: 2013-14 | L92: 13-14 Q1
A93: 05D_13-14 Q1 | B93: 0.9900373599 | C93: 0.9748427673 | D93: 0.972972973 | E93: 0.96 | F93: 1 | G93: 0.9444444444 | H93: 0.8983050847 | I93: 1 | J93: 1 | K93: 2013-14 | L93: 13-14 Q1
A94: 05F_13-14 Q1 | B94: 0.9642126789 | C94: 0.8662420382 | D94: 0.9956709957 | E94: 0.9545454545 | F94: 1 | G94: 1 | H94: 0.8095238095 | I94: 0.9333333333 | J94: 1 | K94: 2013-14 | L94: 13-14 Q1
A95: 05G_13-14 Q1 | B95: 0.9429508197 | C95: 0.9798994975 | D95: 0.986013986 | E95: 0.9591836735 | F95: 1 | G95: 0.9897959184 | H95: 0.8771929825 | I95: 0.9444444444 | J95: 0.9782608696 | K95: 2013-14 | L95: 13-14 Q1
A96: 05H_13-14 Q1 | B96: 0.9756097561 | C96: 0.9540983607 | D96: 0.9724770642 | E96: 1 | F96: 1 | G96: 0.9578947368 | H96: 0.8691588785 | I96: 0.9444444444 | J96: 0.9 | K96: 2013-14 | L96: 13-14 Q1
A97: 05J_13-14 Q1 | B97: 0.9601873536 | C97: 0.96 | D97: 0.9692307692 | E97: 0.9782608696 | F97: 1 | G97: 0.9736842105 | H97: 0.8867924528 | I97: 0.8125 | J97: 1 | K97: 2013-14 | L97: 13-14 Q1
A98: 05L_13-14 Q1 | B98: 0.9436188811 | C98: 0.9523809524 | D98: 0.9679487179 | E98: 0.976744186 | F98: 1 | G98: 0.9941860465 | H98: 0.8808290155 | I98: 1 | J98: 0.8888888889 | K98: 2013-14 | L98: 13-14 Q1
A99: 05N_13-14 Q1 | B99: 0.9420360448 | C99: 0.9477911647 | D99: 0.9806629834 | E99: 0.9325842697 | F99: 0.9838709677 | G99: 0.9677419355 | H99: 0.8295454545 | I99: 1 | J99: 0.9054054054 | K99: 2013-14 | L99: 13-14 Q1
A100: 05P_13-14 Q1 | B100: 0.9355036855 | C100: 0.9471365639 | D100: 0.9896373057 | E100: 0.9875 | F100: 0.9855072464 | G100: 0.9622641509 | H100: 0.921875 | I100: 0.9375 | J100: 1 | K100: 2013-14 | L100: 13-14 Q1
A101: 05Q_13-14 Q1 | B101: 0.9585702681 | C101: 0.9628252788 | D101: 0.9850746269 | E101: 0.9811320755 | F101: 1 | G101: 0.9791666667 | H101: 0.7971014493 | I101: 1 | J101: 0.8888888889 | K101: 2013-14 | L101: 13-14 Q1
A102: 05R_13-14 Q1 | B102: 0.947277937 | C102: 0.9361022364 | D102: 0.9865319865 | E102: 0.9375 | F102: 1 | G102: 0.9696969697 | H102: 0.8407643312 | I102: 1 | J102: 0.9411764706 | K102: 2013-14 | L102: 13-14 Q1
A103: 05T_13-14 Q1 | B103: 0.9564179104 | C103: 0.9649805447 | D103: 0.9715025907 | E103: 0.97 | F103: 1 | G103: 1 | H103: 0.862244898 | I103: 0.9032258065 | J103: 1 | K103: 2013-14 | L103: 13-14 Q1
A104: 05V_13-14 Q1 | B104: 0.9621359223 | C104: 0.9658119658 | D104: 0.9805825243 | E104: 1 | F104: 1 | G104: 0.967032967 | H104: 0.9107142857 | I104: 1 | J104: 0.9420289855 | K104: 2013-14 | L104: 13-14 Q1
A105: 05W_13-14 Q1 | B105: 0.9395667047 | C105: 0.9858657244 | D105: 0.9910447761 | E105: 0.9827586207 | F105: 0.9903846154 | G105: 1 | H105: 0.8538011696 | I105: 0.935483871 | J105: 0.9487179487 | K105: 2013-14 | L105: 13-14 Q1
A106: 05X_13-14 Q1 | B106: 0.9425173439 | C106: 0.9505494505 | D106: 0.9738562092 | E106: 0.8918918919 | F106: 0.9682539683 | G106: 0.9873417722 | H106: 0.7407407407 | I106: 1 | J106: 0.8857142857 | K106: 2013-14 | L106: 13-14 Q1
A107: 05Y_13-14 Q1 | B107: 0.9542772861 | C107: 0.9702380952 | D107: 0.9929328622 | E107: 0.987654321 | F107: 1 | G107: 0.96875 | H107: 0.8974358974 | I107: 1 | J107: 0.9565217391 | K107: 2013-14 | L107: 13-14 Q1
A108: 06A_13-14 Q1 | B108: 0.9395567495 | C108: 0.9381818182 | D108: 0.9870550162 | E108: 0.9827586207 | F108: 1 | G108: 0.9917355372 | H108: 0.9069767442 | I108: 0.9523809524 | J108: 0.9390243902 | K108: 2013-14 | L108: 13-14 Q1
A109: 06D_13-14 Q1 | B109: 0.9605055292 | C109: 0.8818181818 | D109: 0.9605263158 | E109: 0.90625 | F109: 1 | G109: 1 | H109: 0.8048780488 | I109: 0.9411764706 | J109: 1 | K109: 2013-14 | L109: 13-14 Q1
A110: 06F_13-14 Q1 | B110: 0.9481481481 | C110: 0.944598338 | D110: 0.9803571429 | E110: 0.9921875 | F110: 1 | G110: 0.9511111111 | H110: 0.8582995951 | I110: 1 | J110: 0.8666666667 | K110: 2013-14 | L110: 13-14 Q1
A111: 06H_13-14 Q1 | B111: 0.9749804535 | C111: 0.9618421053 | D111: 0.9819095477 | E111: 0.9720930233 | F111: 0.9947916667 | G111: 0.9472361809 | H111: 0.8901960784 | I111: 0.9571428571 | J111: 0.8965517241 | K111: 2013-14 | L111: 13-14 Q1
A112: 06K_13-14 Q1 | B112: 0.968356998 | C112: 0.9577922078 | D112: 0.9859894921 | E112: 0.9927536232 | F112: 1 | G112: 0.9838709677 | H112: 0.8940677966 | I112: 0.9375 | J112: 0.9444444444 | K112: 2013-14 | L112: 13-14 Q1
A113: 06L_13-14 Q1 | B113: 0.9556962025 | C113: 0.9037656904 | D113: 0.9863547758 | E113: 0.97 | F113: 0.9938650307 | G113: 0.981981982 | H113: 0.8677042802 | I113: 0.9803921569 | J113: 0.935483871 | K113: 2013-14 | L113: 13-14 Q1
A114: 06M_13-14 Q1 | B114: 0.9669142471 | C114: 0.963963964 | D114: 0.9868766404 | E114: 0.9459459459 | F114: 1 | G114: 0.9841269841 | H114: 0.8461538462 | I114: 0.9655172414 | J114: 0.9 | K114: 2013-14 | L114: 13-14 Q1
A115: 06N_13-14 Q1 | B115: 0.9498096227 | C115: 0.9193548387 | D115: 0.9770723104 | E115: 1 | F115: 0.99 | G115: 0.9812030075 | H115: 0.8558951965 | I115: 0.9387755102 | J115: 0.9047619048 | K115: 2013-14 | L115: 13-14 Q1
A116: 06P_13-14 Q1 | B116: 0.9538670285 | C116: 0.9289617486 | D116: 1 | E116: 1 | F116: 1 | G116: 0.9583333333 | H116: 0.8783783784 | I116: 1 | J116: 1 | K116: 2013-14 | L116: 13-14 Q1
A117: 06Q_13-14 Q1 | B117: 0.9785714286 | C117: 0.9934354486 | D117: 0.9941860465 | E117: 1 | F117: 1 | G117: 0.9712643678 | H117: 0.8641975309 | I117: 0.9411764706 | J117: 1 | K117: 2013-14 | L117: 13-14 Q1
A118: 06T_13-14 Q1 | B118: 0.9557258408 | C118: 0.9552941176 | D118: 0.9886363636 | E118: 0.975308642 | F118: 1 | G118: 0.9891891892 | H118: 0.921182266 | I118: 0.9166666667 | J118: 0.5 | K118: 2013-14 | L118: 13-14 Q1
A119: 06V_13-14 Q1 | B119: 0.9600840336 | C119: 0.96875 | D119: 0.9817518248 | E119: 0.9436619718 | F119: 1 | G119: 0.9915966387 | H119: 0.918699187 | I119: 0.9444444444 | J119: 1 | K119: 2013-14 | L119: 13-14 Q1
A120: 06W_13-14 Q1 | B120: 0.9622317597 | C120: 0.972972973 | D120: 0.974789916 | E120: 0.9620253165 | F120: 1 | G120: 0.9885057471 | H120: 0.8316831683 | I120: 0.9285714286 | J120: 1 | K120: 2013-14 | L120: 13-14 Q1
A121: 06Y_13-14 Q1 | B121: 0.9744711889 | C121: 0.9633027523 | D121: 0.987987988 | E121: 0.9761904762 | F121: 1 | G121: 0.9855072464 | H121: 0.8913043478 | I121: 0.9285714286 | J121: 1 | K121: 2013-14 | L121: 13-14 Q1
A122: 07G_13-14 Q1 | B122: 0.9647519582 | C122: 0.9739130435 | D122: 0.9830508475 | E122: 0.9756097561 | F122: 0.9714285714 | G122: 0.9814814815 | H122: 0.9024390244 | I122: 0.9333333333 | J122: 1 | K122: 2013-14 | L122: 13-14 Q1
A123: 07H_13-14 Q1 | B123: 0.9566805846 | C123: 0.959752322 | D123: 0.9735099338 | E123: 1 | F123: 1 | G123: 1 | H123: 0.8543046358 | I123: 0.9642857143 | J123: 0.9444444444 | K123: 2013-14 | L123: 13-14 Q1
A124: 07J_13-14 Q1 | B124: 0.980806142 | C124: 0.9949494949 | D124: 0.9961389961 | E124: 0.975308642 | F124: 1 | G124: 0.982300885 | H124: 0.8548387097 | I124: 0.9523809524 | J124: 0.6666666667 | K124: 2013-14 | L124: 13-14 Q1
A125: 07K_13-14 Q1 | B125: 0.940397351 | C125: 0.98 | D125: 0.984375 | E125: 0.984375 | F125: 1 | G125: 0.972972973 | H125: 0.8776978417 | I125: 0.9210526316 | J125: 1 | K125: 2013-14 | L125: 13-14 Q1
A126: 13P_13-14 Q1 | B126: 0.9475226425 | C126: 0.9556313993 | D126: 0.9856957087 | E126: 0.9738562092 | F126: 1 | G126: 0.9841897233 | H126: 0.9044776119 | I126: 1 | J126: 0.9833333333 | K126: 2013-14 | L126: 13-14 Q1
A127: 99D_13-14 Q1 | B127: 0.9619047619 | C127: 0.9428571429 | D127: 0.9871794872 | E127: 1 | F127: 1 | G127: 0.9733333333 | H127: 0.9098360656 | I127: 0.9166666667 | J127: 1 | K127: 2013-14 | L127: 13-14 Q1
A128: 99E_13-14 Q1 | B128: 0.9605355884 | C128: 0.9619565217 | D128: 0.9698996656 | E128: 0.9787234043 | F128: 0.9789473684 | G128: 0.9801980198 | H128: 0.7559055118 | I128: 1 | J128: 0.8333333333 | K128: 2013-14 | L128: 13-14 Q1
A129: 99F_13-14 Q1 | B129: 0.9477958237 | C129: 0.935828877 | D129: 0.961352657 | E129: 0.9428571429 | F129: 1 | G129: 0.9873417722 | H129: 0.8829787234 | I129: 0.75 | J129: 1 | K129: 2013-14 | L129: 13-14 Q1
A130: 99G_13-14 Q1 | B130: 0.949945593 | C130: 0.9488372093 | D130: 0.9714285714 | E130: 0.9615384615 | F130: 1 | G130: 0.9770114943 | H130: 0.8717948718 | I130: 0.8333333333 | K130: 2013-14 | L130: 13-14 Q1
A131: 07L_13-14 Q1 | B131: 0.9653110048 | C131: 0.9157303371 | D131: 0.9689922481 | E131: 1 | F131: 1 | G131: 0.84 | H131: 0.8142857143 | I131: 0.6666666667 | J131: 0.7777777778 | K131: 2013-14 | L131: 13-14 Q1
A132: 07M_13-14 Q1 | B132: 0.9456066946 | C132: 0.9404580153 | D132: 0.9899665552 | E132: 0.9615384615 | F132: 0.9882352941 | G132: 0.9891304348 | H132: 0.8761061947 | I132: 1 | J132: 0.9830508475 | K132: 2013-14 | L132: 13-14 Q1
A133: 07N_13-14 Q1 | B133: 0.9600266489 | C133: 0.9583333333 | D133: 0.9884615385 | E133: 0.9807692308 | F133: 1 | G133: 0.9886363636 | H133: 0.8416666667 | I133: 0.96 | J133: 0.75 | K133: 2013-14 | L133: 13-14 Q1
A134: 07P_13-14 Q1 | B134: 0.96069869 | C134: 0.9675324675 | D134: 0.9583333333 | E134: 0.9444444444 | F134: 0.9885057471 | G134: 0.987012987 | H134: 0.8367346939 | I134: 1 | J134: 1 | K134: 2013-14 | L134: 13-14 Q1
A135: 07Q_13-14 Q1 | B135: 0.9275132275 | C135: 0.9212328767 | D135: 0.9761904762 | E135: 0.9852941176 | F135: 0.9910714286 | G135: 1 | H135: 0.85 | I135: 0.9333333333 | J135: 0.8571428571 | K135: 2013-14 | L135: 13-14 Q1
A136: 07R_13-14 Q1 | B136: 0.956043956 | C136: 0.9413265306 | D136: 0.9935483871 | E136: 1 | F136: 1 | G136: 1 | H136: 0.875 | I136: 1 | K136: 2013-14 | L136: 13-14 Q1
A137: 07T_13-14 Q1 | B137: 0.9641393443 | C137: 0.9596412556 | D137: 0.992 | E137: 0.9642857143 | F137: 1 | G137: 1 | H137: 0.8985507246 | I137: 1 | J137: 0.9428571429 | K137: 2013-14 | L137: 13-14 Q1
A138: 07V_13-14 Q1 | B138: 0.9555330975 | C138: 0.9508196721 | D138: 0.9964412811 | E138: 1 | F138: 1 | G138: 1 | H138: 0.8776978417 | I138: 0.8181818182 | J138: 0.6666666667 | K138: 2013-14 | L138: 13-14 Q1
A139: 07W_13-14 Q1 | B139: 0.9665841584 | C139: 0.9739130435 | D139: 0.9571984436 | E139: 0.9795918367 | F139: 1 | G139: 0.9903846154 | H139: 0.8017241379 | I139: 0.9375 | J139: 0.8620689655 | K139: 2013-14 | L139: 13-14 Q1
A140: 07X_13-14 Q1 | B140: 0.9492084433 | C140: 0.9539951574 | D140: 0.9914893617 | E140: 0.9811320755 | F140: 1 | G140: 0.9885057471 | H140: 0.9099099099 | I140: 0.9 | J140: 0.9615384615 | K140: 2013-14 | L140: 13-14 Q1
A141: 07Y_13-14 Q1 | B141: 0.9418040737 | C141: 0.9459459459 | D141: 0.9842931937 | E141: 1 | F141: 1 | G141: 0.9743589744 | H141: 0.775 | I141: 0.75 | J141: 1 | K141: 2013-14 | L141: 13-14 Q1
A142: 08A_13-14 Q1 | B142: 0.9570552147 | C142: 0.9471365639 | D142: 0.9857142857 | E142: 0.9803921569 | F142: 0.9868421053 | G142: 0.9789473684 | H142: 0.7927927928 | I142: 1 | J142: 0.6 | K142: 2013-14 | L142: 13-14 Q1
A143: 08C_13-14 Q1 | B143: 0.9773013871 | C143: 0.987654321 | D143: 0.9421487603 | E143: 0.9166666667 | F143: 1 | G143: 1 | H143: 0.7083333333 | I143: 1 | J143: 0.9230769231 | K143: 2013-14 | L143: 13-14 Q1
A144: 08D_13-14 Q1 | B144: 0.9652432969 | C144: 0.9223300971 | D144: 0.9873417722 | E144: 0.98 | F144: 1 | G144: 1 | H144: 0.8793103448 | I144: 1 | J144: 0.8846153846 | K144: 2013-14 | L144: 13-14 Q1
A145: 08E_13-14 Q1 | B145: 0.9626078619 | C145: 0.9751552795 | D145: 0.9444444444 | E145: 0.962962963 | F145: 1 | G145: 0.9587628866 | H145: 0.9142857143 | I145: 1 | J145: 1 | K145: 2013-14 | L145: 13-14 Q1
A146: 08F_13-14 Q1 | B146: 0.9701492537 | C146: 0.9134199134 | D146: 0.9836601307 | E146: 1 | F146: 1 | G146: 0.9814814815 | H146: 0.9007092199 | I146: 0.9714285714 | J146: 0.9473684211 | K146: 2013-14 | L146: 13-14 Q1
A147: 08G_13-14 Q1 | B147: 0.9768732655 | C147: 0.941011236 | D147: 0.9626556017 | E147: 0.9512195122 | F147: 0.989010989 | G147: 0.9638554217 | H147: 0.8333333333 | I147: 1 | J147: 0.9466666667 | K147: 2013-14 | L147: 13-14 Q1
A148: 08H_13-14 Q1 | B148: 0.9483870968 | C148: 0.8996865204 | D148: 1 | E148: 0.96875 | F148: 1 | G148: 1 | H148: 0.8823529412 | I148: 1 | J148: 0.8571428571 | K148: 2013-14 | L148: 13-14 Q1
A149: 08J_13-14 Q1 | B149: 0.9680473373 | C149: 0.969924812 | D149: 0.9931506849 | E149: 0.9655172414 | F149: 1 | G149: 0.9807692308 | H149: 0.9178082192 | I149: 0.75 | J149: 1 | K149: 2013-14 | L149: 13-14 Q1
A150: 08K_13-14 Q1 | B150: 0.9586206897 | C150: 0.9496855346 | D150: 0.9827586207 | E150: 1 | F150: 0.988372093 | G150: 0.9550561798 | H150: 0.8269230769 | I150: 1 | J150: 0.8181818182 | K150: 2013-14 | L150: 13-14 Q1
A151: 08L_13-14 Q1 | B151: 0.9505783386 | C151: 0.9150943396 | D151: 0.9910313901 | E151: 1 | F151: 1 | G151: 0.962962963 | H151: 0.8411214953 | I151: 0.9411764706 | J151: 1 | K151: 2013-14 | L151: 13-14 Q1
A152: 08M_13-14 Q1 | B152: 0.9475890985 | C152: 0.9821428571 | D152: 0.9918699187 | E152: 0.9722222222 | F152: 1 | G152: 1 | H152: 0.9333333333 | I152: 0.9411764706 | J152: 0.875 | K152: 2013-14 | L152: 13-14 Q1
A153: 08N_13-14 Q1 | B153: 0.9698608964 | C153: 0.8961038961 | D153: 0.9885057471 | E153: 1 | F153: 1 | G153: 0.9772727273 | H153: 0.904109589 | I153: 0.8666666667 | J153: 0.8461538462 | K153: 2013-14 | L153: 13-14 Q1
A154: 08P_13-14 Q1 | B154: 0.9624145786 | C154: 0.9597701149 | D154: 0.9878787879 | E154: 1 | F154: 1 | G154: 0.9464285714 | H154: 0.9365079365 | I154: 0.8666666667 | J154: 1 | K154: 2013-14 | L154: 13-14 Q1
A155: 08Q_13-14 Q1 | B155: 0.9696092619 | C155: 0.9720496894 | D155: 0.9724770642 | E155: 0.9473684211 | F155: 0.9724770642 | G155: 0.9305555556 | H155: 0.862745098 | I155: 0.9166666667 | J155: 0.8333333333 | K155: 2013-14 | L155: 13-14 Q1
A156: 08R_13-14 Q1 | B156: 0.9781477627 | C156: 0.9707602339 | D156: 0.9868421053 | E156: 0.9333333333 | F156: 1 | G156: 0.9841269841 | H156: 0.875 | I156: 1 | J156: 1 | K156: 2013-14 | L156: 13-14 Q1
A157: 08T_13-14 Q1 | B157: 0.9681978799 | C157: 0.9793814433 | D157: 1 | E157: 1 | F157: 1 | G157: 0.987012987 | H157: 0.8780487805 | I157: 1 | J157: 0.75 | K157: 2013-14 | L157: 13-14 Q1
A158: 08V_13-14 Q1 | B158: 0.9091680815 | C158: 0.968503937 | D158: 0.9775280899 | E158: 0.95 | F158: 1 | G158: 1 | H158: 0.8888888889 | I158: 0.75 | K158: 2013-14 | L158: 13-14 Q1
A159: 08W_13-14 Q1 | B159: 0.9726027397 | C159: 0.973880597 | D159: 0.9821428571 | E159: 0.95 | F159: 1 | G159: 0.9838709677 | H159: 0.875 | I159: 1 | J159: 0.6842105263 | K159: 2013-14 | L159: 13-14 Q1
A160: 08X_13-14 Q1 | B160: 0.9718221666 | C160: 0.9470404984 | D160: 0.9894179894 | E160: 1 | F160: 1 | G160: 0.9770114943 | H160: 0.9058823529 | I160: 0.8823529412 | J160: 1 | K160: 2013-14 | L160: 13-14 Q1
A161: 08Y_13-14 Q1 | B161: 0.9731934732 | C161: 0.9555555556 | D161: 0.9545454545 | E161: 1 | F161: 1 | G161: 0.9782608696 | H161: 0.875 | I161: 0.8333333333 | J161: 0.9 | K161: 2013-14 | L161: 13-14 Q1
A162: 09A_13-14 Q1 | B162: 0.9513157895 | C162: 0.9593023256 | D162: 0.9816513761 | E162: 1 | F162: 1 | G162: 1 | H162: 0.76 | I162: 1 | J162: 1 | K162: 2013-14 | L162: 13-14 Q1
A163: 09C_13-14 Q1 | B163: 0.9616648412 | C163: 0.9436619718 | D163: 0.9931506849 | E163: 0.976744186 | F163: 1 | G163: 1 | H163: 0.875 | I163: 0.75 | J163: 1 | K163: 2013-14 | L163: 13-14 Q1
A164: 09D_13-14 Q1 | B164: 0.9552238806 | C164: 0.9827586207 | D164: 0.9756097561 | E164: 0.9841269841 | F164: 1 | G164: 0.9816513761 | H164: 0.8416666667 | I164: 0.85 | J164: 1 | K164: 2013-14 | L164: 13-14 Q1
A165: 09E_13-14 Q1 | B165: 0.9519172246 | C165: 0.9444444444 | D165: 0.9956331878 | E165: 0.9649122807 | F165: 1 | G165: 0.9896907216 | H165: 0.8857142857 | I165: 0.875 | J165: 0.8888888889 | K165: 2013-14 | L165: 13-14 Q1
A166: 09F_13-14 Q1 | B166: 0.9460610362 | C166: 0.9562043796 | D166: 0.964664311 | E166: 1 | F166: 1 | G166: 1 | H166: 0.7748344371 | I166: 0.8 | J166: 1 | K166: 2013-14 | L166: 13-14 Q1
A167: 09G_13-14 Q1 | B167: 0.9731201089 | C167: 0.9733606557 | D167: 0.9938556068 | E167: 0.9841269841 | F167: 1 | G167: 0.9631578947 | H167: 0.8795180723 | I167: 0.9117647059 | J167: 0.8378378378 | K167: 2013-14 | L167: 13-14 Q1
A168: 09H_13-14 Q1 | B168: 0.9517906336 | C168: 0.9444444444 | D168: 0.9534883721 | E168: 0.972972973 | F168: 0.9836065574 | G168: 0.8571428571 | H168: 0.7826086957 | I168: 1 | J168: 1 | K168: 2013-14 | L168: 13-14 Q1
A169: 09J_13-14 Q1 | B169: 0.947446336 | C169: 0.958677686 | D169: 0.9963898917 | E169: 1 | F169: 0.9863013699 | G169: 1 | H169: 0.8947368421 | I169: 0.9230769231 | J169: 1 | K169: 2013-14 | L169: 13-14 Q1
A170: 09L_13-14 Q1 | B170: 0.9396636993 | C170: 0.9253731343 | D170: 0.9932432432 | E170: 1 | F170: 1 | G170: 0.902173913 | H170: 0.9 | I170: 1 | J170: 1 | K170: 2013-14 | L170: 13-14 Q1
A171: 09N_13-14 Q1 | B171: 0.9294512878 | C171: 0.9160104987 | D171: 1 | E171: 0.9516129032 | F171: 1 | G171: 0.8428571429 | H171: 0.9866666667 | I171: 1 | K171: 2013-14 | L171: 13-14 Q1
A172: 09P_13-14 Q1 | B172: 0.9584261321 | C172: 0.9440559441 | D172: 0.9748953975 | E172: 1 | F172: 1 | G172: 1 | H172: 0.9014084507 | I172: 0.6 | J172: 1 | K172: 2013-14 | L172: 13-14 Q1
A173: 09W_13-14 Q1 | B173: 0.9450904393 | C173: 0.9551569507 | D173: 0.9795918367 | E173: 1 | F173: 1 | G173: 1 | H173: 0.8846153846 | I173: 1 | J173: 1 | K173: 2013-14 | L173: 13-14 Q1
A174: 09X_13-14 Q1 | B174: 0.9379363848 | C174: 0.9554140127 | D174: 0.987704918 | E174: 0.9459459459 | F174: 1 | G174: 0.9814814815 | H174: 0.793814433 | I174: 0.9215686275 | J174: 1 | K174: 2013-14 | L174: 13-14 Q1
A175: 09Y_13-14 Q1 | B175: 0.9723691946 | C175: 0.9662162162 | D175: 0.9945355191 | E175: 0.9642857143 | F175: 1 | G175: 0.9268292683 | H175: 0.8765432099 | I175: 1 | J175: 1 | K175: 2013-14 | L175: 13-14 Q1
A176: 10A_13-14 Q1 | B176: 0.9600266489 | C176: 0.9694656489 | D176: 0.9834710744 | E176: 0.9558823529 | F176: 1 | G176: 0.992248062 | H176: 0.8421052632 | I176: 0.92 | J176: 0.6 | K176: 2013-14 | L176: 13-14 Q1
A177: 10C_13-14 Q1 | B177: 0.94 | C177: 0.984375 | D177: 1 | E177: 1 | F177: 1 | G177: 0.9743589744 | H177: 0.8717948718 | I177: 1 | J177: 1 | K177: 2013-14 | L177: 13-14 Q1
A178: 10D_13-14 Q1 | B178: 0.9363784666 | C178: 0.9259259259 | D178: 1 | E178: 0.9230769231 | F178: 1 | G178: 0.96875 | H178: 0.8536585366 | J178: 1 | K178: 2013-14 | L178: 13-14 Q1
A179: 10E_13-14 Q1 | B179: 0.9349845201 | C179: 0.9433962264 | D179: 0.9838709677 | E179: 1 | F179: 1 | G179: 1 | H179: 0.8421052632 | I179: 0.9333333333 | J179: 0.6666666667 | K179: 2013-14 | L179: 13-14 Q1
A180: 10G_13-14 Q1 | B180: 0.9470967742 | C180: 0.9540229885 | D180: 0.9743589744 | E180: 1 | F180: 1 | G180: 0.9743589744 | H180: 0.8983050847 | J180: 1 | K180: 2013-14 | L180: 13-14 Q1
A181: 10H_13-14 Q1 | B181: 0.9864864865 | C181: 0.9675456389 | D181: 0.9759036145 | E181: 0.972972973 | F181: 1 | G181: 0.9677419355 | H181: 0.8278688525 | I181: 1 | J181: 1 | K181: 2013-14 | L181: 13-14 Q1
A182: 10J_13-14 Q1 | B182: 0.9592641261 | C182: 0.912195122 | D182: 0.9943181818 | E182: 0.9714285714 | F182: 1 | G182: 1 | H182: 0.8939393939 | I182: 0.8 | J182: 1 | K182: 2013-14 | L182: 13-14 Q1
A183: 10K_13-14 Q1 | B183: 0.9424603175 | C183: 0.9411764706 | D183: 0.9715909091 | E183: 0.9761904762 | F183: 1 | G183: 0.9789473684 | H183: 0.8941176471 | I183: 0.8333333333 | J183: 1 | K183: 2013-14 | L183: 13-14 Q1
A184: 10L_13-14 Q1 | B184: 0.9318600368 | C184: 0.918128655 | D184: 0.9871794872 | E184: 1 | F184: 1 | G184: 0.9594594595 | H184: 0.8717948718 | I184: 1 | J184: 1 | K184: 2013-14 | L184: 13-14 Q1
A185: 10M_13-14 Q1 | B185: 0.9316239316 | C185: 0.9836065574 | D185: 0.9763779528 | E185: 1 | F185: 1 | G185: 0.9807692308 | H185: 0.7777777778 | I185: 0.9642857143 | J185: 1 | K185: 2013-14 | L185: 13-14 Q1
A186: 10N_13-14 Q1 | B186: 0.9261447563 | C186: 0.8870967742 | D186: 0.9561403509 | E186: 1 | F186: 0.9666666667 | G186: 1 | H186: 0.935483871 | I186: 0.8333333333 | K186: 2013-14 | L186: 13-14 Q1
A187: 10Q_13-14 Q1 | B187: 0.9543717152 | C187: 0.972972973 | D187: 0.9684684685 | E187: 0.9504132231 | F187: 1 | G187: 0.9777777778 | H187: 0.847715736 | I187: 0.9649122807 | J187: 1 | K187: 2013-14 | L187: 13-14 Q1
A188: 10R_13-14 Q1 | B188: 0.9514450867 | C188: 0.9586206897 | D188: 0.9685534591 | E188: 1 | F188: 1 | G188: 0.9480519481 | H188: 0.859375 | I188: 0.8846153846 | J188: 1 | K188: 2013-14 | L188: 13-14 Q1
A189: 10T_13-14 Q1 | B189: 0.9467275495 | C189: 0.9122807018 | D189: 0.9705882353 | E189: 1 | F189: 1 | G189: 1 | H189: 0.8431372549 | I189: 0.875 | J189: 1 | K189: 2013-14 | L189: 13-14 Q1
A190: 10V_13-14 Q1 | B190: 0.9482936918 | C190: 0.9512195122 | D190: 0.9800995025 | E190: 0.9268292683 | F190: 1 | G190: 0.9534883721 | H190: 0.902173913 | I190: 0.7727272727 | J190: 1 | K190: 2013-14 | L190: 13-14 Q1
A191: 10W_13-14 Q1 | B191: 0.9366438356 | C191: 0.9350649351 | D191: 0.9662921348 | E191: 1 | F191: 1 | G191: 0.9444444444 | H191: 0.8771929825 | I191: 1 | K191: 2013-14 | L191: 13-14 Q1
A192: 10X_13-14 Q1 | B192: 0.9543478261 | C192: 0.9537815126 | D192: 0.9850746269 | E192: 1 | F192: 1 | G192: 0.988372093 | H192: 0.903030303 | I192: 1 | J192: 1 | K192: 2013-14 | L192: 13-14 Q1
A193: 10Y_13-14 Q1 | B193: 0.9914621131 | C193: 0.9876033058 | D193: 0.9868421053 | E193: 1 | F193: 1 | G193: 0.975 | H193: 0.8440366972 | I193: 0.9 | J193: 1 | K193: 2013-14 | L193: 13-14 Q1
A194: 11A_13-14 Q1 | B194: 0.9416265231 | C194: 0.9725685786 | D194: 0.9788135593 | E194: 0.9759036145 | F194: 1 | G194: 0.9777777778 | H194: 0.9052924791 | I194: 0.8888888889 | J194: 0.9107142857 | K194: 2013-14 | L194: 13-14 Q1
A195: 11C_13-14 Q1 | B195: 0.9465370595 | C195: 0.9675324675 | D195: 0.9935483871 | E195: 0.9696969697 | F195: 1 | G195: 0.9743589744 | H195: 0.8333333333 | I195: 1 | J195: 1 | K195: 2013-14 | L195: 13-14 Q1
A196: 11D_13-14 Q1 | B196: 0.937804878 | C196: 0.9638554217 | D196: 0.9689922481 | E196: 0.9285714286 | F196: 1 | G196: 0.9873417722 | H196: 0.8611111111 | I196: 0.75 | K196: 2013-14 | L196: 13-14 Q1
A197: 11E_13-14 Q1 | B197: 0.9550827423 | C197: 0.9822064057 | D197: 0.9920318725 | E197: 0.9861111111 | F197: 0.9861111111 | G197: 0.987012987 | H197: 0.9099099099 | I197: 0.9545454545 | J197: 1 | K197: 2013-14 | L197: 13-14 Q1
A198: 11H_13-14 Q1 | B198: 0.9629027009 | C198: 0.9694656489 | D198: 0.9849246231 | E198: 0.9684210526 | F198: 1 | G198: 0.9942528736 | H198: 0.8711111111 | I198: 0.8333333333 | J198: 1 | K198: 2013-14 | L198: 13-14 Q1
A199: 11J_13-14 Q1 | B199: 0.9589886522 | C199: 0.9620853081 | D199: 0.9817427386 | E199: 0.9865470852 | F199: 1 | G199: 0.9893899204 | H199: 0.8711755233 | I199: 0.9611650485 | J199: 0.972972973 | K199: 2013-14 | L199: 13-14 Q1
A200: 11M_13-14 Q1 | B200: 0.9505208333 | C200: 0.981512605 | D200: 0.9945799458 | E200: 0.9761904762 | F200: 1 | G200: 1 | H200: 0.8060606061 | I200: 0.9855072464 | J200: 0.8571428571 | K200: 2013-14 | L200: 13-14 Q1
... 287 more rows

Sheet CUBE_EXTRACT_AE (hidden)
A1: ID | B1: A&E 4 hour wait performance All Type | C1: Type 1 | D1: Year | E1: Period | F1: Trust name
A2: 2013-14 Q1_RJR | B2: 0.9590909091 | C2: 0.9509880979 | D2: 2013-14 | E2: 2013-14 Q1 | F2: COUNTESS OF CHESTER HOSPITAL NHS FOUNDATION TRUST
A3: 2013-14 Q1_RJN | B3: 0.9721297235 | C3: 0.9687144482 | D3: 2013-14 | E3: 2013-14 Q1 | F3: EAST CHESHIRE NHS TRUST
A4: 2013-14 Q1_RBT | B4: 0.9702314251 | C4: 0.9594746966 | D4: 2013-14 | E4: 2013-14 Q1 | F4: MID CHESHIRE HOSPITALS NHS FOUNDATION TRUST
A5: 2013-14 Q1_RWW | B5: 0.9603064067 | C5: 0.9526013701 | D5: 2013-14 | E5: 2013-14 Q1 | F5: WARRINGTON AND HALTON HOSPITALS NHS FOUNDATION TRUST
A6: 2013-14 Q1_RBL | B6: 0.9543174776 | C6: 0.9424601519 | D6: 2013-14 | E6: 2013-14 Q1 | F6: WIRRAL UNIVERSITY TEACHING HOSPITAL NHS FOUNDATION TRUST
A7: 2013-14 Q1_RXP | B7: 0.9520877324 | C7: 0.8867991369 | D7: 2013-14 | E7: 2013-14 Q1 | F7: COUNTY DURHAM AND DARLINGTON NHS FOUNDATION TRUST
A8: 2013-14 Q1_RVW | B8: 0.9684417285 | C8: 0.9604668044 | D8: 2013-14 | E8: 2013-14 Q1 | F8: NORTH TEES AND HARTLEPOOL NHS FOUNDATION TRUST
A9: 2013-14 Q1_RTR | B9: 0.9632636132 | C9: 0.9433996714 | D9: 2013-14 | E9: 2013-14 Q1 | F9: SOUTH TEES HOSPITALS NHS FOUNDATION TRUST
A10: 2013-14 Q1_RMC | B10: 0.9659240752 | C10: 0.9659240752 | D10: 2013-14 | E10: 2013-14 Q1 | F10: BOLTON NHS FOUNDATION TRUST
A11: 2013-14 Q1_RW3 | B11: 0.9530259086 | C11: 0.9249533872 | D11: 2013-14 | E11: 2013-14 Q1 | F11: CENTRAL MANCHESTER UNIVERSITY HOSPITALS NHS FOUNDATION TRUST
A12: 2013-14 Q1_RW6 | B12: 0.9612001135 | C12: 0.9534996938 | D12: 2013-14 | E12: 2013-14 Q1 | F12: PENNINE ACUTE HOSPITALS NHS TRUST
A13: 2013-14 Q1_RM3 | B13: 0.9501026226 | C13: 0.9501026226 | D13: 2013-14 | E13: 2013-14 Q1 | F13: SALFORD ROYAL NHS FOUNDATION TRUST
A14: 2013-14 Q1_RWJ | B14: 0.9284025821 | C14: 0.9284025821 | D14: 2013-14 | E14: 2013-14 Q1 | F14: STOCKPORT NHS FOUNDATION TRUST
A15: 2013-14 Q1_RMP | B15: 0.9420163767 | C15: 0.9420163767 | D15: 2013-14 | E15: 2013-14 Q1 | F15: TAMESIDE HOSPITAL NHS FOUNDATION TRUST
A16: 2013-14 Q1_RM2 | B16: 0.9549192303 | C16: 0.9549192303 | D16: 2013-14 | E16: 2013-14 Q1 | F16: UNIVERSITY HOSPITAL OF SOUTH MANCHESTER NHS FOUNDATION TRUST
A17: 2013-14 Q1_RRF | B17: 0.9523208221 | C17: 0.9523208221 | D17: 2013-14 | E17: 2013-14 Q1 | F17: WRIGHTINGTON, WIGAN AND LEIGH NHS FOUNDATION TRUST
A18: 2013-14 Q1_RXL | B18: 0.9643856124 | C18: 0.9572751009 | D18: 2013-14 | E18: 2013-14 Q1 | F18: BLACKPOOL TEACHING HOSPITALS NHS FOUNDATION TRUST
A19: 2013-14 Q1_RXR | B19: 0.951085981 | C19: 0.9216563432 | D19: 2013-14 | E19: 2013-14 Q1 | F19: EAST LANCASHIRE HOSPITALS NHS TRUST
A20: 2013-14 Q1_RXN | B20: 0.9361421988 | C20: 0.9361421988 | D20: 2013-14 | E20: 2013-14 Q1 | F20: LANCASHIRE TEACHING HOSPITALS NHS FOUNDATION TRUST
A21: 2013-14 Q1_REM | B21: 0.9406808224 | C21: 0.9406808224 | D21: 2013-14 | E21: 2013-14 Q1 | F21: AINTREE UNIVERSITY HOSPITAL NHS FOUNDATION TRUST
A22: 2013-14 Q1_RBS | B22: 0.975220379 | C22: 0.975220379 | D22: 2013-14 | E22: 2013-14 Q1 | F22: ALDER HEY CHILDREN'S NHS FOUNDATION TRUST
A23: 2013-14 Q1_RQ6 | B23: 0.9501858451 | C23: 0.9408582432 | D23: 2013-14 | E23: 2013-14 Q1 | F23: ROYAL LIVERPOOL AND BROADGREEN UNIVERSITY HOSPITALS NHS TRUST
A24: 2013-14 Q1_RVY | B24: 0.9338694141 | C24: 0.8608120035 | D24: 2013-14 | E24: 2013-14 Q1 | F24: SOUTHPORT AND ORMSKIRK HOSPITAL NHS TRUST
A25: 2013-14 Q1_RBN | B25: 0.9701062668 | C25: 0.9634945019 | D25: 2013-14 | E25: 2013-14 Q1 | F25: ST HELENS AND KNOWSLEY HOSPITALS NHS TRUST
A26: 2013-14 Q1_RLN | B26: 0.9391317593 | C26: 0.9102677872 | D26: 2013-14 | E26: 2013-14 Q1 | F26: CITY HOSPITALS SUNDERLAND NHS FOUNDATION TRUST
A27: 2013-14 Q1_RR7 | B27: 0.9762461305 | C27: 0.9762461305 | D27: 2013-14 | E27: 2013-14 Q1 | F27: GATESHEAD HEALTH NHS FOUNDATION TRUST
A28: 2013-14 Q1_RNL | B28: 0.9518229167 | C28: 0.9518229167 | D28: 2013-14 | E28: 2013-14 Q1 | F28: NORTH CUMBRIA UNIVERSITY HOSPITALS NHS TRUST
A29: 2013-14 Q1_RTF | B29: 0.9781210681 | C29: 0.9747919726 | D29: 2013-14 | E29: 2013-14 Q1 | F29: NORTHUMBRIA HEALTHCARE NHS FOUNDATION TRUST
A30: 2013-14 Q1_RE9 | B30: 0.9868540071 | C30: 0.9573247147 | D30: 2013-14 | E30: 2013-14 Q1 | F30: SOUTH TYNESIDE NHS FOUNDATION TRUST
A31: 2013-14 Q1_RTD | B31: 0.9748487391 | C31: 0.9594712377 | D31: 2013-14 | E31: 2013-14 Q1 | F31: THE NEWCASTLE UPON TYNE HOSPITALS NHS FOUNDATION TRUST
A32: 2013-14 Q1_RTX | B32: 0.9488470713 | C32: 0.9446122392 | D32: 2013-14 | E32: 2013-14 Q1 | F32: UNIVERSITY HOSPITALS OF MORECAMBE BAY NHS FOUNDATION TRUST
A33: 2013-14 Q1_RCD | B33: 0.9792465067 | C33: 0.9689731159 | D33: 2013-14 | E33: 2013-14 Q1 | F33: HARROGATE AND DISTRICT NHS FOUNDATION TRUST
A34: 2013-14 Q1_RWA | B34: 0.9586120529 | C34: 0.9555548266 | D34: 2013-14 | E34: 2013-14 Q1 | F34: HULL AND EAST YORKSHIRE HOSPITALS NHS TRUST
A35: 2013-14 Q1_RJL | B35: 0.9489470509 | C35: 0.9398713717 | D35: 2013-14 | E35: 2013-14 Q1 | F35: NORTHERN LINCOLNSHIRE AND GOOLE HOSPITALS NHS FOUNDATION TRUST
A36: 2013-14 Q1_RCB | B36: 0.9627627222 | C36: 0.9505277045 | D36: 2013-14 | E36: 2013-14 Q1 | F36: YORK TEACHING HOSPITAL NHS FOUNDATION TRUST
A37: 2013-14 Q1_RFF | B37: 0.9317517706 | C37: 0.9317517706 | D37: 2013-14 | E37: 2013-14 Q1 | F37: BARNSLEY HOSPITAL NHS FOUNDATION TRUST
A38: 2013-14 Q1_RP5 | B38: 0.9504491989 | C38: 0.9380518165 | D38: 2013-14 | E38: 2013-14 Q1 | F38: DONCASTER AND BASSETLAW HOSPITALS NHS FOUNDATION TRUST
A39: 2013-14 Q1_RCU | B39: 0.9705244258 | C39: 0.9705244258 | D39: 2013-14 | E39: 2013-14 Q1 | F39: SHEFFIELD CHILDREN'S NHS FOUNDATION TRUST
A40: 2013-14 Q1_RHQ | B40: 0.9529322039 | C40: 0.939690074 | D40: 2013-14 | E40: 2013-14 Q1 | F40: SHEFFIELD TEACHING HOSPITALS NHS FOUNDATION TRUST
A41: 2013-14 Q1_RFR | B41: 0.9417779191 | C41: 0.9417779191 | D41: 2013-14 | E41: 2013-14 Q1 | F41: THE ROTHERHAM NHS FOUNDATION TRUST
A42: 2013-14 Q1_RCF | B42: 0.9427767355 | C42: 0.9427767355 | D42: 2013-14 | E42: 2013-14 Q1 | F42: AIREDALE NHS FOUNDATION TRUST
A43: 2013-14 Q1_RAE | B43: 0.9585365854 | C43: 0.9585365854 | D43: 2013-14 | E43: 2013-14 Q1 | F43: BRADFORD TEACHING HOSPITALS NHS FOUNDATION TRUST
A44: 2013-14 Q1_RWY | B44: 0.9531938633 | C44: 0.9531938633 | D44: 2013-14 | E44: 2013-14 Q1 | F44: CALDERDALE AND HUDDERSFIELD NHS FOUNDATION TRUST
A45: 2013-14 Q1_RR8 | B45: 0.9443368741 | C45: 0.9375469515 | D45: 2013-14 | E45: 2013-14 Q1 | F45: LEEDS TEACHING HOSPITALS NHS TRUST
A46: 2013-14 Q1_RXF | B46: 0.9781646025 | C46: 0.9781646025 | D46: 2013-14 | E46: 2013-14 Q1 | F46: MID YORKSHIRE HOSPITALS NHS TRUST
A47: 2013-14 Q1_RLT | B47: 0.946470695 | C47: 0.946470695 | D47: 2013-14 | E47: 2013-14 Q1 | F47: GEORGE ELIOT HOSPITAL NHS TRUST
A48: 2013-14 Q1_RJC | B48: 0.9172842608 | C48: 0.9078376487 | D48: 2013-14 | E48: 2013-14 Q1 | F48: SOUTH WARWICKSHIRE NHS FOUNDATION TRUST
A49: 2013-14 Q1_RKB | B49: 0.9011990299 | C49: 0.8625863454 | D49: 2013-14 | E49: 2013-14 Q1 | F49: UNIVERSITY HOSPITALS COVENTRY AND WARWICKSHIRE NHS TRUST
A50: 2013-14 Q1_RWP | B50: 0.9319871232 | C50: 0.9197942202 | D50: 2013-14 | E50: 2013-14 Q1 | F50: WORCESTERSHIRE ACUTE HOSPITALS NHS TRUST
A51: 2013-14 Q1_RLQ | B51: 0.9319451887 | C51: 0.9271908272 | D51: 2013-14 | E51: 2013-14 Q1 | F51: WYE VALLEY NHS TRUST
A52: 2013-14 Q1_RQ3 | B52: 0.9810508183 | C52: 0.9810508183 | D52: 2013-14 | E52: 2013-14 Q1 | F52: BIRMINGHAM CHILDREN'S HOSPITAL NHS FOUNDATION TRUST
A53: 2013-14 Q1_RR1 | B53: 0.915720044 | C53: 0.915720044 | D53: 2013-14 | E53: 2013-14 Q1 | F53: HEART OF ENGLAND NHS FOUNDATION TRUST
A54: 2013-14 Q1_RXK | B54: 0.941501283 | C54: 0.910901332 | D54: 2013-14 | E54: 2013-14 Q1 | F54: SANDWELL AND WEST BIRMINGHAM HOSPITALS NHS TRUST
A55: 2013-14 Q1_RNA | B55: 0.9454758321 | C55: 0.9454758321 | D55: 2013-14 | E55: 2013-14 Q1 | F55: THE DUDLEY GROUP NHS FOUNDATION TRUST
A56: 2013-14 Q1_RL4 | B56: 0.9507612932 | C56: 0.9349388662 | D56: 2013-14 | E56: 2013-14 Q1 | F56: THE ROYAL WOLVERHAMPTON NHS TRUST
A57: 2013-14 Q1_RRK | B57: 0.9408451879 | C57: 0.9408451879 | D57: 2013-14 | E57: 2013-14 Q1 | F57: UNIVERSITY HOSPITALS BIRMINGHAM NHS FOUNDATION TRUST
A58: 2013-14 Q1_RBK | B58: 0.9505988024 | C58: 0.9458766138 | D58: 2013-14 | E58: 2013-14 Q1 | F58: WALSALL HEALTHCARE NHS TRUST
A59: 2013-14 Q1_RFS | B59: 0.9628022319 | C59: 0.9628022319 | D59: 2013-14 | E59: 2013-14 Q1 | F59: CHESTERFIELD ROYAL HOSPITAL NHS FOUNDATION TRUST
A60: 2013-14 Q1_RTG | B60: 0.9401463037 | C60: 0.9177293158 | D60: 2013-14 | E60: 2013-14 Q1 | F60: DERBY HOSPITALS NHS FOUNDATION TRUST
A61: 2013-14 Q1_RX1 | B61: 0.953561309 | C61: 0.947606474 | D61: 2013-14 | E61: 2013-14 Q1 | F61: NOTTINGHAM UNIVERSITY HOSPITALS NHS TRUST
A62: 2013-14 Q1_RK5 | B62: 0.9672855083 | C62: 0.956724396 | D62: 2013-14 | E62: 2013-14 Q1 | F62: SHERWOOD FOREST HOSPITALS NHS FOUNDATION TRUST
A63: 2013-14 Q1_RGT | B63: 0.9540495997 | C63: 0.9540495997 | D63: 2013-14 | E63: 2013-14 Q1 | F63: CAMBRIDGE UNIVERSITY HOSPITALS NHS FOUNDATION TRUST
A64: 2013-14 Q1_RQQ | B64: 0.9657492355 | C64: 0.9657492355 | D64: 2013-14 | E64: 2013-14 Q1 | F64: HINCHINGBROOKE HEALTH CARE NHS TRUST
A65: 2013-14 Q1_RGQ | B65: 0.9577632055 | C65: 0.9577632055 | D65: 2013-14 | E65: 2013-14 Q1 | F65: IPSWICH HOSPITAL NHS TRUST
A66: 2013-14 Q1_RGP | B66: 0.9624012819 | C66: 0.9624012819 | D66: 2013-14 | E66: 2013-14 Q1 | F66: JAMES PAGET UNIVERSITY HOSPITALS NHS FOUNDATION TRUST
A67: 2013-14 Q1_RM1 | B67: 0.9520578754 | C67: 0.9465077373 | D67: 2013-14 | E67: 2013-14 Q1 | F67: NORFOLK AND NORWICH UNIVERSITY HOSPITALS NHS FOUNDATION TRUST
A68: 2013-14 Q1_RGN | B68: 0.9189249223 | C68: 0.9110894467 | D68: 2013-14 | E68: 2013-14 Q1 | F68: PETERBOROUGH AND STAMFORD HOSPITALS NHS FOUNDATION TRUST
A69: 2013-14 Q1_RCX | B69: 0.8809661556 | C69: 0.8809661556 | D69: 2013-14 | E69: 2013-14 Q1 | F69: THE QUEEN ELIZABETH HOSPITAL, KING'S LYNN, NHS FOUNDATION TRUST
A70: 2013-14 Q1_RGR | B70: 0.9258077124 | C70: 0.9258077124 | D70: 2013-14 | E70: 2013-14 Q1 | F70: WEST SUFFOLK NHS FOUNDATION TRUST
A71: 2013-14 Q1_RDD | B71: 0.9238508867 | C71: 0.9238508867 | D71: 2013-14 | E71: 2013-14 Q1 | F71: BASILDON AND THURROCK UNIVERSITY HOSPITALS NHS FOUNDATION TRUST
A72: 2013-14 Q1_RDE | B72: 0.9680198071 | C72: 0.9680198071 | D72: 2013-14 | E72: 2013-14 Q1 | F72: COLCHESTER HOSPITAL UNIVERSITY NHS FOUNDATION TRUST
A73: 2013-14 Q1_RQ8 | B73: 0.9596934569 | C73: 0.9588144917 | D73: 2013-14 | E73: 2013-14 Q1 | F73: MID ESSEX HOSPITAL SERVICES NHS TRUST
A74: 2013-14 Q1_RAJ | B74: 0.9102910557 | C74: 0.9102910557 | D74: 2013-14 | E74: 2013-14 Q1 | F74: SOUTHEND UNIVERSITY HOSPITAL NHS FOUNDATION TRUST
A75: 2013-14 Q1_RQW | B75: 0.9609926387 | C75: 0.9609926387 | D75: 2013-14 | E75: 2013-14 Q1 | F75: THE PRINCESS ALEXANDRA HOSPITAL NHS TRUST
A76: 2013-14 Q1_RC1 | B76: 0.941416259 | C76: 0.941416259 | D76: 2013-14 | E76: 2013-14 Q1 | F76: BEDFORD HOSPITAL NHS TRUST
A77: 2013-14 Q1_RWH | B77: 0.9565075639 | C77: 0.9565075639 | D77: 2013-14 | E77: 2013-14 Q1 | F77: EAST AND NORTH HERTFORDSHIRE NHS TRUST
A78: 2013-14 Q1_RNQ | B78: 0.8515549338 | C78: 0.8515549338 | D78: 2013-14 | E78: 2013-14 Q1 | F78: KETTERING GENERAL HOSPITAL NHS FOUNDATION TRUST
A79: 2013-14 Q1_RC9 | B79: 0.9842278799 | C79: 0.976753507 | D79: 2013-14 | E79: 2013-14 Q1 | F79: LUTON AND DUNSTABLE HOSPITAL NHS FOUNDATION TRUST
A80: 2013-14 Q1_RD8 | B80: 0.9466120316 | C80: 0.9055292259 | D80: 2013-14 | E80: 2013-14 Q1 | F80: MILTON KEYNES HOSPITAL NHS FOUNDATION TRUST
A81: 2013-14 Q1_RNS | B81: 0.9253625089 | C81: 0.9189177817 | D81: 2013-14 | E81: 2013-14 Q1 | F81: NORTHAMPTON GENERAL HOSPITAL NHS TRUST
A82: 2013-14 Q1_RWG | B82: 0.9645781525 | C82: 0.9464087598 | D82: 2013-14 | E82: 2013-14 Q1 | F82: WEST HERTFORDSHIRE HOSPITALS NHS TRUST
A83: 2013-14 Q1_RWD | B83: 0.9496100321 | C83: 0.9496100321 | D83: 2013-14 | E83: 2013-14 Q1 | F83: UNITED LINCOLNSHIRE HOSPITALS NHS TRUST
A84: 2013-14 Q1_RWE | B84: 0.8530891197 | C84: 0.7929382678 | D84: 2013-14 | E84: 2013-14 Q1 | F84: UNIVERSITY HOSPITALS OF LEICESTER NHS TRUST
A85: 2013-14 Q1_RJF | B85: 0.9529187107 | C85: 0.9106428214 | D85: 2013-14 | E85: 2013-14 Q1 | F85: BURTON HOSPITALS NHS FOUNDATION TRUST
A86: 2013-14 Q1_RJD | B86: 0.9185880775 | C86: 0.9185880775 | D86: 2013-14 | E86: 2013-14 Q1 | F86: MID STAFFORDSHIRE NHS FOUNDATION TRUST
A87: 2013-14 Q1_RXW | B87: 0.9305036825 | C87: 0.9217291568 | D87: 2013-14 | E87: 2013-14 Q1 | F87: SHREWSBURY AND TELFORD HOSPITAL NHS TRUST
A88: 2013-14 Q1_RJE | B88: 0.9030235747 | C88: 0.8994447454 | D88: 2013-14 | E88: 2013-14 Q1 | F88: UNIVERSITY HOSPITAL OF NORTH STAFFORDSHIRE NHS TRUST
A89: 2013-14 Q1_RTE | B89: 0.9207229545 | C89: 0.9207229545 | D89: 2013-14 | E89: 2013-14 Q1 | F89: GLOUCESTERSHIRE HOSPITALS NHS FOUNDATION TRUST
A90: 2013-14 Q1_RN3 | B90: 0.9408379672 | C90: 0.9082903128 | D90: 2013-14 | E90: 2013-14 Q1 | F90: GREAT WESTERN HOSPITALS NHS FOUNDATION TRUST
A91: 2013-14 Q1_RD1 | B91: 0.9110309938 | C91: 0.9110309938 | D91: 2013-14 | E91: 2013-14 Q1 | F91: ROYAL UNITED HOSPITAL BATH NHS TRUST
A92: 2013-14 Q1_RNZ | B92: 0.9617378866 | C92: 0.9617378866 | D92: 2013-14 | E92: 2013-14 Q1 | F92: SALISBURY NHS FOUNDATION TRUST
A93: 2013-14 Q1_RVJ | B93: 0.9204948358 | C93: 0.8835252936 | D93: 2013-14 | E93: 2013-14 Q1 | F93: NORTH BRISTOL NHS TRUST
A94: 2013-14 Q1_RBA | B94: 0.9654000832 | C94: 0.9654000832 | D94: 2013-14 | E94: 2013-14 Q1 | F94: TAUNTON AND SOMERSET NHS FOUNDATION TRUST
A95: 2013-14 Q1_RA7 | B95: 0.941174447 | C95: 0.9295634921 | D95: 2013-14 | E95: 2013-14 Q1 | F95: UNIVERSITY HOSPITALS BRISTOL NHS FOUNDATION TRUST
A96: 2013-14 Q1_RA3 | B96: 0.9109203693 | C96: 0.9053277118 | D96: 2013-14 | E96: 2013-14 Q1 | F96: WESTON AREA HEALTH NHS TRUST
A97: 2013-14 Q1_RA4 | B97: 0.9621034333 | C97: 0.9621034333 | D97: 2013-14 | E97: 2013-14 Q1 | F97: YEOVIL DISTRICT HOSPITAL NHS FOUNDATION TRUST
A98: 2013-14 Q1_RBZ | B98: 0.9797589575 | C98: 0.9284107579 | D98: 2013-14 | E98: 2013-14 Q1 | F98: NORTHERN DEVON HEALTHCARE NHS TRUST
A99: 2013-14 Q1_RK9 | B99: 0.9450650064 | C99: 0.9450650064 | D99: 2013-14 | E99: 2013-14 Q1 | F99: PLYMOUTH HOSPITALS NHS TRUST
A100: 2013-14 Q1_REF | B100: 0.9028053425 | C100: 0.9028053425 | D100: 2013-14 | E100: 2013-14 Q1 | F100: ROYAL CORNWALL HOSPITALS NHS TRUST
A101: 2013-14 Q1_RH8 | B101: 0.9684725794 | C101: 0.9684725794 | D101: 2013-14 | E101: 2013-14 Q1 | F101: ROYAL DEVON AND EXETER NHS FOUNDATION TRUST
A102: 2013-14 Q1_RA9 | B102: 0.9639270342 | C102: 0.9639270342 | D102: 2013-14 | E102: 2013-14 Q1 | F102: SOUTH DEVON HEALTHCARE NHS FOUNDATION TRUST
A103: 2013-14 Q1_RN7 | B103: 0.953069028 | C103: 0.953069028 | D103: 2013-14 | E103: 2013-14 Q1 | F103: DARTFORD AND GRAVESHAM NHS TRUST
A104: 2013-14 Q1_RVV | B104: 0.9518888097 | C104: 0.9421832544 | D104: 2013-14 | E104: 2013-14 Q1 | F104: EAST KENT HOSPITALS UNIVERSITY NHS FOUNDATION TRUST
A105: 2013-14 Q1_RWF | B105: 0.9601845578 | C105: 0.9601845578 | D105: 2013-14 | E105: 2013-14 Q1 | F105: MAIDSTONE AND TUNBRIDGE WELLS NHS TRUST
A106: 2013-14 Q1_RPA | B106: 0.8715750398 | C106: 0.8715750398 | D106: 2013-14 | E106: 2013-14 Q1 | F106: MEDWAY NHS FOUNDATION TRUST
A107: 2013-14 Q1_RTK | B107: 0.9353231995 | C107: 0.9247962248 | D107: 2013-14 | E107: 2013-14 Q1 | F107: ASHFORD AND ST PETER'S HOSPITALS NHS FOUNDATION TRUST
A108: 2013-14 Q1_RXH | B108: 0.939828531 | C108: 0.9343629344 | D108: 2013-14 | E108: 2013-14 Q1 | F108: BRIGHTON AND SUSSEX UNIVERSITY HOSPITALS NHS TRUST
A109: 2013-14 Q1_RXC | B109: 0.9431773385 | C109: 0.9220387486 | D109: 2013-14 | E109: 2013-14 Q1 | F109: EAST SUSSEX HEALTHCARE NHS TRUST
A110: 2013-14 Q1_RDU | B110: 0.9564441686 | C110: 0.9564441686 | D110: 2013-14 | E110: 2013-14 Q1 | F110: FRIMLEY PARK HOSPITAL NHS FOUNDATION TRUST
A111: 2013-14 Q1_RA2 | B111: 0.956638056 | C111: 0.952632549 | D111: 2013-14 | E111: 2013-14 Q1 | F111: ROYAL SURREY COUNTY HOSPITAL NHS FOUNDATION TRUST
A112: 2013-14 Q1_RTP | B112: 0.9553520321 | C112: 0.9553520321 | D112: 2013-14 | E112: 2013-14 Q1 | F112: SURREY AND SUSSEX HEALTHCARE NHS TRUST
A113: 2013-14 Q1_RYR | B113: 0.9701392725 | C113: 0.9701392725 | D113: 2013-14 | E113: 2013-14 Q1 | F113: WESTERN SUSSEX HOSPITALS NHS TRUST
A114: 2013-14 Q1_RXQ | B114: 0.9642502847 | C114: 0.9522036319 | D114: 2013-14 | E114: 2013-14 Q1 | F114: BUCKINGHAMSHIRE HEALTHCARE NHS TRUST
A115: 2013-14 Q1_RD7 | B115: 0.8903734809 | C115: 0.8681562536 | D115: 2013-14 | E115: 2013-14 Q1 | F115: HEATHERWOOD AND WEXHAM PARK HOSPITALS NHS FOUNDATION TRUST
A116: 2013-14 Q1_RTH | B116: 0.9252639883 | C116: 0.9167680454 | D116: 2013-14 | E116: 2013-14 Q1 | F116: OXFORD UNIVERSITY HOSPITALS NHS TRUST
A117: 2013-14 Q1_RHW | B117: 0.9454755961 | C117: 0.9386523087 | D117: 2013-14 | E117: 2013-14 Q1 | F117: ROYAL BERKSHIRE NHS FOUNDATION TRUST
A118: 2013-14 Q1_RBD | B118: 0.9539524175 | C118: 0.9539524175 | D118: 2013-14 | E118: 2013-14 Q1 | F118: DORSET COUNTY HOSPITAL NHS FOUNDATION TRUST
A119: 2013-14 Q1_RN5 | B119: 0.923018895 | C119: 0.9100637905 | D119: 2013-14 | E119: 2013-14 Q1 | F119: HAMPSHIRE HOSPITALS NHS FOUNDATION TRUST
A120: 2013-14 Q1_R1F | B120: 0.9768291964 | C120: 0.9653200862 | D120: 2013-14 | E120: 2013-14 Q1 | F120: ISLE OF WIGHT NHS TRUST
A121: 2013-14 Q1_RD3 | B121: 0.9507483352 | C121: 0.9507483352 | D121: 2013-14 | E121: 2013-14 Q1 | F121: POOLE HOSPITAL NHS FOUNDATION TRUST
A122: 2013-14 Q1_RDZ | B122: 0.9630413316 | C122: 0.9549071618 | D122: 2013-14 | E122: 2013-14 Q1 | F122: THE ROYAL BOURNEMOUTH AND CHRISTCHURCH HOSPITALS NHS FOUNDATION TRUST
A123: 2013-14 Q1_RHM | B123: 0.9300148741 | C123: 0.8883638754 | D123: 2013-14 | E123: 2013-14 Q1 | F123: UNIVERSITY HOSPITAL SOUTHAMPTON NHS FOUNDATION TRUST
A124: 2013-14 Q1_RF4 | B124: 0.8888117187 | C124: 0.8646559593 | D124: 2013-14 | E124: 2013-14 Q1 | F124: BARKING, HAVERING AND REDBRIDGE UNIVERSITY HOSPITALS NHS TRUST
A125: 2013-14 Q1_RVL | B125: 0.9055032763 | C125: 0.9055032763 | D125: 2013-14 | E125: 2013-14 Q1 | F125: BARNET AND CHASE FARM HOSPITALS NHS TRUST
A126: 2013-14 Q1_R1H | B126: 0.9493323677 | C126: 0.9297982498 | D126: 2013-14 | E126: 2013-14 Q1 | F126: BARTS HEALTH NHS TRUST
A127: 2013-14 Q1_RQM | B127: 0.986025831 | C127: 0.986025831 | D127: 2013-14 | E127: 2013-14 Q1 | F127: CHELSEA AND WESTMINSTER HOSPITAL NHS FOUNDATION TRUST
A128: 2013-14 Q1_RJ6 | B128: 0.954222573 | C128: 0.9096123657 | D128: 2013-14 | E128: 2013-14 Q1 | F128: CROYDON HEALTH SERVICES NHS TRUST
A129: 2013-14 Q1_RC3 | B129: 0.9745352879 | C129: 0.9400912895 | D129: 2013-14 | E129: 2013-14 Q1 | F129: EALING HOSPITAL NHS TRUST
A130: 2013-14 Q1_RVR | B130: 0.9535420655 | C130: 0.9451258877 | D130: 2013-14 | E130: 2013-14 Q1 | F130: EPSOM AND ST HELIER UNIVERSITY HOSPITALS NHS TRUST
A131: 2013-14 Q1_RJ1 | B131: 0.9594469421 | C131: 0.9479212 | D131: 2013-14 | E131: 2013-14 Q1 | F131: GUY'S AND ST THOMAS' NHS FOUNDATION TRUST
A132: 2013-14 Q1_RQX | B132: 0.9583577141 | C132: 0.9583577141 | D132: 2013-14 | E132: 2013-14 Q1 | F132: HOMERTON UNIVERSITY HOSPITAL NHS FOUNDATION TRUST
A133: 2013-14 Q1_RYJ | B133: 0.9624677293 | C133: 0.9247190678 | D133: 2013-14 | E133: 2013-14 Q1 | F133: IMPERIAL COLLEGE HEALTHCARE NHS TRUST
A134: 2013-14 Q1_RJZ | B134: 0.9626253858 | C134: 0.9550646489 | D134: 2013-14 | E134: 2013-14 Q1 | F134: KING'S COLLEGE HOSPITAL NHS FOUNDATION TRUST
A135: 2013-14 Q1_RAX | B135: 0.9600014084 | C135: 0.956683121 | D135: 2013-14 | E135: 2013-14 Q1 | F135: KINGSTON HOSPITAL NHS TRUST
A136: 2013-14 Q1_RJ2 | B136: 0.9555241793 | C136: 0.9555241793 | D136: 2013-14 | E136: 2013-14 Q1 | F136: LEWISHAM HEALTHCARE NHS TRUST
A137: 2013-14 Q1_RAP | B137: 0.9385005507 | C137: 0.9243922408 | D137: 2013-14 | E137: 2013-14 Q1 | F137: NORTH MIDDLESEX UNIVERSITY HOSPITAL NHS TRUST
A138: 2013-14 Q1_RV8 | B138: 0.9259649123 | C138: 0.8466364174 | D138: 2013-14 | E138: 2013-14 Q1 | F138: NORTH WEST LONDON HOSPITALS NHS TRUST
A139: 2013-14 Q1_RAL | B139: 0.9575026455 | C139: 0.9575026455 | D139: 2013-14 | E139: 2013-14 Q1 | F139: ROYAL FREE LONDON NHS FOUNDATION TRUST
A140: 2013-14 Q1_RYQ | B140: 0.9345805252 | C140: 0.896435464 | D140: 2013-14 | E140: 2013-14 Q1 | F140: SOUTH LONDON HEALTHCARE NHS TRUST
A141: 2013-14 Q1_RJ7 | B141: 0.9554861589 | C141: 0.9498912623 | D141: 2013-14 | E141: 2013-14 Q1 | F141: ST GEORGE'S HEALTHCARE NHS TRUST
A142: 2013-14 Q1_RAS | B142: 0.9553297492 | C142: 0.9274260057 | D142: 2013-14 | E142: 2013-14 Q1 | F142: THE HILLINGDON HOSPITALS NHS FOUNDATION TRUST
A143: 2013-14 Q1_RKE | B143: 0.9395668893 | C143: 0.9395668893 | D143: 2013-14 | E143: 2013-14 Q1 | F143: THE WHITTINGTON HOSPITAL NHS TRUST
A144: 2013-14 Q1_RRV | B144: 0.952329257 | C144: 0.952329257 | D144: 2013-14 | E144: 2013-14 Q1 | F144: UNIVERSITY COLLEGE LONDON HOSPITALS NHS FOUNDATION TRUST
A145: 2013-14 Q1_RFW | B145: 0.9716244311 | C145: 0.9321762164 | D145: 2013-14 | E145: 2013-14 Q1 | F145: WEST MIDDLESEX UNIVERSITY HOSPITAL NHS TRUST
A146: 13-14 YTD_RJR | B146: 0.9590909091 | C146: 0.9509880979 | D146: 2013-14 | E146: 13-14 YTD | F146: COUNTESS OF CHESTER HOSPITAL NHS FOUNDATION TRUST
A147: 13-14 YTD_RJN | B147: 0.9721297235 | C147: 0.9687144482 | D147: 2013-14 | E147: 13-14 YTD | F147: EAST CHESHIRE NHS TRUST
A148: 13-14 YTD_RBT | B148: 0.9702314251 | C148: 0.9594746966 | D148: 2013-14 | E148: 13-14 YTD | F148: MID CHESHIRE HOSPITALS NHS FOUNDATION TRUST
A149: 13-14 YTD_RWW | B149: 0.9603064067 | C149: 0.9526013701 | D149: 2013-14 | E149: 13-14 YTD | F149: WARRINGTON AND HALTON HOSPITALS NHS FOUNDATION TRUST
A150: 13-14 YTD_RBL | B150: 0.9543174776 | C150: 0.9424601519 | D150: 2013-14 | E150: 13-14 YTD | F150: WIRRAL UNIVERSITY TEACHING HOSPITAL NHS FOUNDATION TRUST
A151: 13-14 YTD_RXP | B151: 0.9520877324 | C151: 0.8867991369 | D151: 2013-14 | E151: 13-14 YTD | F151: COUNTY DURHAM AND DARLINGTON NHS FOUNDATION TRUST
A152: 13-14 YTD_RVW | B152: 0.9684417285 | C152: 0.9604668044 | D152: 2013-14 | E152: 13-14 YTD | F152: NORTH TEES AND HARTLEPOOL NHS FOUNDATION TRUST
A153: 13-14 YTD_RTR | B153: 0.9632636132 | C153: 0.9433996714 | D153: 2013-14 | E153: 13-14 YTD | F153: SOUTH TEES HOSPITALS NHS FOUNDATION TRUST
A154: 13-14 YTD_RMC | B154: 0.9659240752 | C154: 0.9659240752 | D154: 2013-14 | E154: 13-14 YTD | F154: BOLTON NHS FOUNDATION TRUST
A155: 13-14 YTD_RW3 | B155: 0.9530259086 | C155: 0.9249533872 | D155: 2013-14 | E155: 13-14 YTD | F155: CENTRAL MANCHESTER UNIVERSITY HOSPITALS NHS FOUNDATION TRUST
A156: 13-14 YTD_RW6 | B156: 0.9612001135 | C156: 0.9534996938 | D156: 2013-14 | E156: 13-14 YTD | F156: PENNINE ACUTE HOSPITALS NHS TRUST
A157: 13-14 YTD_RM3 | B157: 0.9501026226 | C157: 0.9501026226 | D157: 2013-14 | E157: 13-14 YTD | F157: SALFORD ROYAL NHS FOUNDATION TRUST
A158: 13-14 YTD_RWJ | B158: 0.9284025821 | C158: 0.9284025821 | D158: 2013-14 | E158: 13-14 YTD | F158: STOCKPORT NHS FOUNDATION TRUST
A159: 13-14 YTD_RMP | B159: 0.9420163767 | C159: 0.9420163767 | D159: 2013-14 | E159: 13-14 YTD | F159: TAMESIDE HOSPITAL NHS FOUNDATION TRUST
A160: 13-14 YTD_RM2 | B160: 0.9549192303 | C160: 0.9549192303 | D160: 2013-14 | E160: 13-14 YTD | F160: UNIVERSITY HOSPITAL OF SOUTH MANCHESTER NHS FOUNDATION TRUST
A161: 13-14 YTD_RRF | B161: 0.9523208221 | C161: 0.9523208221 | D161: 2013-14 | E161: 13-14 YTD | F161: WRIGHTINGTON, WIGAN AND LEIGH NHS FOUNDATION TRUST
A162: 13-14 YTD_RXL | B162: 0.9643856124 | C162: 0.9572751009 | D162: 2013-14 | E162: 13-14 YTD | F162: BLACKPOOL TEACHING HOSPITALS NHS FOUNDATION TRUST
A163: 13-14 YTD_RXR | B163: 0.951085981 | C163: 0.9216563432 | D163: 2013-14 | E163: 13-14 YTD | F163: EAST LANCASHIRE HOSPITALS NHS TRUST
A164: 13-14 YTD_RXN | B164: 0.9361421988 | C164: 0.9361421988 | D164: 2013-14 | E164: 13-14 YTD | F164: LANCASHIRE TEACHING HOSPITALS NHS FOUNDATION TRUST
A165: 13-14 YTD_REM | B165: 0.9406808224 | C165: 0.9406808224 | D165: 2013-14 | E165: 13-14 YTD | F165: AINTREE UNIVERSITY HOSPITAL NHS FOUNDATION TRUST
A166: 13-14 YTD_RBS | B166: 0.975220379 | C166: 0.975220379 | D166: 2013-14 | E166: 13-14 YTD | F166: ALDER HEY CHILDREN'S NHS FOUNDATION TRUST
A167: 13-14 YTD_RQ6 | B167: 0.9501858451 | C167: 0.9408582432 | D167: 2013-14 | E167: 13-14 YTD | F167: ROYAL LIVERPOOL AND BROADGREEN UNIVERSITY HOSPITALS NHS TRUST
A168: 13-14 YTD_RVY | B168: 0.9338694141 | C168: 0.8608120035 | D168: 2013-14 | E168: 13-14 YTD | F168: SOUTHPORT AND ORMSKIRK HOSPITAL NHS TRUST
A169: 13-14 YTD_RBN | B169: 0.9701062668 | C169: 0.9634945019 | D169: 2013-14 | E169: 13-14 YTD | F169: ST HELENS AND KNOWSLEY HOSPITALS NHS TRUST
A170: 13-14 YTD_RLN | B170: 0.9391317593 | C170: 0.9102677872 | D170: 2013-14 | E170: 13-14 YTD | F170: CITY HOSPITALS SUNDERLAND NHS FOUNDATION TRUST
A171: 13-14 YTD_RR7 | B171: 0.9762461305 | C171: 0.9762461305 | D171: 2013-14 | E171: 13-14 YTD | F171: GATESHEAD HEALTH NHS FOUNDATION TRUST
A172: 13-14 YTD_RNL | B172: 0.9518229167 | C172: 0.9518229167 | D172: 2013-14 | E172: 13-14 YTD | F172: NORTH CUMBRIA UNIVERSITY HOSPITALS NHS TRUST
A173: 13-14 YTD_RTF | B173: 0.9781210681 | C173: 0.9747919726 | D173: 2013-14 | E173: 13-14 YTD | F173: NORTHUMBRIA HEALTHCARE NHS FOUNDATION TRUST
A174: 13-14 YTD_RE9 | B174: 0.9868540071 | C174: 0.9573247147 | D174: 2013-14 | E174: 13-14 YTD | F174: SOUTH TYNESIDE NHS FOUNDATION TRUST
A175: 2013-14 Q1_RHU | B175: 0.8892422607 | C175: 0.8525228911 | D175: 2013-14 | E175: 2013-14 Q1 | F175: PORTSMOUTH HOSPITALS NHS TRUST
A176: 13-14 YTD_RTD | B176: 0.9748487391 | C176: 0.9594712377 | D176: 2013-14 | E176: 13-14 YTD | F176: THE NEWCASTLE UPON TYNE HOSPITALS NHS FOUNDATION TRUST
A177: 13-14 YTD_RTX | B177: 0.9488470713 | C177: 0.9446122392 | D177: 2013-14 | E177: 13-14 YTD | F177: UNIVERSITY HOSPITALS OF MORECAMBE BAY NHS FOUNDATION TRUST
A178: 13-14 YTD_RCD | B178: 0.9792465067 | C178: 0.9689731159 | D178: 2013-14 | E178: 13-14 YTD | F178: HARROGATE AND DISTRICT NHS FOUNDATION TRUST
A179: 13-14 YTD_RWA | B179: 0.9586120529 | C179: 0.9555548266 | D179: 2013-14 | E179: 13-14 YTD | F179: HULL AND EAST YORKSHIRE HOSPITALS NHS TRUST
A180: 13-14 YTD_RJL | B180: 0.9489470509 | C180: 0.9398713717 | D180: 2013-14 | E180: 13-14 YTD | F180: NORTHERN LINCOLNSHIRE AND GOOLE HOSPITALS NHS FOUNDATION TRUST
A181: 13-14 YTD_RCB | B181: 0.9627627222 | C181: 0.9505277045 | D181: 2013-14 | E181: 13-14 YTD | F181: YORK TEACHING HOSPITAL NHS FOUNDATION TRUST
A182: 13-14 YTD_RFF | B182: 0.9317517706 | C182: 0.9317517706 | D182: 2013-14 | E182: 13-14 YTD | F182: BARNSLEY HOSPITAL NHS FOUNDATION TRUST
A183: 13-14 YTD_RP5 | B183: 0.9504491989 | C183: 0.9380518165 | D183: 2013-14 | E183: 13-14 YTD | F183: DONCASTER AND BASSETLAW HOSPITALS NHS FOUNDATION TRUST
A184: 13-14 YTD_RCU | B184: 0.9705244258 | C184: 0.9705244258 | D184: 2013-14 | E184: 13-14 YTD | F184: SHEFFIELD CHILDREN'S NHS FOUNDATION TRUST
A185: 13-14 YTD_RHQ | B185: 0.9529322039 | C185: 0.939690074 | D185: 2013-14 | E185: 13-14 YTD | F185: SHEFFIELD TEACHING HOSPITALS NHS FOUNDATION TRUST
A186: 13-14 YTD_RFR | B186: 0.9417779191 | C186: 0.9417779191 | D186: 2013-14 | E186: 13-14 YTD | F186: THE ROTHERHAM NHS FOUNDATION TRUST
A187: 13-14 YTD_RCF | B187: 0.9427767355 | C187: 0.9427767355 | D187: 2013-14 | E187: 13-14 YTD | F187: AIREDALE NHS FOUNDATION TRUST
A188: 13-14 YTD_RAE | B188: 0.9585365854 | C188: 0.9585365854 | D188: 2013-14 | E188: 13-14 YTD | F188: BRADFORD TEACHING HOSPITALS NHS FOUNDATION TRUST
A189: 13-14 YTD_RWY | B189: 0.9531938633 | C189: 0.9531938633 | D189: 2013-14 | E189: 13-14 YTD | F189: CALDERDALE AND HUDDERSFIELD NHS FOUNDATION TRUST
A190: 13-14 YTD_RR8 | B190: 0.9443368741 | C190: 0.9375469515 | D190: 2013-14 | E190: 13-14 YTD | F190: LEEDS TEACHING HOSPITALS NHS TRUST
A191: 13-14 YTD_RXF | B191: 0.9781646025 | C191: 0.9781646025 | D191: 2013-14 | E191: 13-14 YTD | F191: MID YORKSHIRE HOSPITALS NHS TRUST
A192: 13-14 YTD_RLT | B192: 0.946470695 | C192: 0.946470695 | D192: 2013-14 | E192: 13-14 YTD | F192: GEORGE ELIOT HOSPITAL NHS TRUST
A193: 13-14 YTD_RJC | B193: 0.9172842608 | C193: 0.9078376487 | D193: 2013-14 | E193: 13-14 YTD | F193: SOUTH WARWICKSHIRE NHS FOUNDATION TRUST
A194: 13-14 YTD_RKB | B194: 0.9011990299 | C194: 0.8625863454 | D194: 2013-14 | E194: 13-14 YTD | F194: UNIVERSITY HOSPITALS COVENTRY AND WARWICKSHIRE NHS TRUST
A195: 13-14 YTD_RWP | B195: 0.9319871232 | C195: 0.9197942202 | D195: 2013-14 | E195: 13-14 YTD | F195: WORCESTERSHIRE ACUTE HOSPITALS NHS TRUST
A196: 13-14 YTD_RLQ | B196: 0.9319451887 | C196: 0.9271908272 | D196: 2013-14 | E196: 13-14 YTD | F196: WYE VALLEY NHS TRUST
A197: 13-14 YTD_RQ3 | B197: 0.9810508183 | C197: 0.9810508183 | D197: 2013-14 | E197: 13-14 YTD | F197: BIRMINGHAM CHILDREN'S HOSPITAL NHS FOUNDATION TRUST
A198: 13-14 YTD_RR1 | B198: 0.915720044 | C198: 0.915720044 | D198: 2013-14 | E198: 13-14 YTD | F198: HEART OF ENGLAND NHS FOUNDATION TRUST
A199: 13-14 YTD_RXK | B199: 0.941501283 | C199: 0.910901332 | D199: 2013-14 | E199: 13-14 YTD | F199: SANDWELL AND WEST BIRMINGHAM HOSPITALS NHS TRUST
A200: 13-14 YTD_RNA | B200: 0.9454758321 | C200: 0.9454758321 | D200: 2013-14 | E200: 13-14 YTD | F200: THE DUDLEY GROUP NHS FOUNDATION TRUST
... 91 more rows

Sheet CUBE_EXTRACT_AMBULANCE (hidden)
A1: Column1 | B1: Cat A8 (red 1) | C1: Cat A8 (red 2) | D1: Cat A19 | E1: OrgCode | F1: Amblnce Svce
A2: 00C_13-14 Q1 | B2: 0.7665505226 | C2: 0.80012935 | D2: 0.9745493625 | E2: 00C | F2: NE Amblnce
A3: 00D_13-14 Q1 | B3: 0.7665505226 | C3: 0.80012935 | D3: 0.9745493625 | E3: 00D | F3: NE Amblnce
A4: 00F_13-14 Q1 | B4: 0.7665505226 | C4: 0.80012935 | D4: 0.9745493625 | E4: 00F | F4: NE Amblnce
A5: 00G_13-14 Q1 | B5: 0.7665505226 | C5: 0.80012935 | D5: 0.9745493625 | E5: 00G | F5: NE Amblnce
A6: 00H_13-14 Q1 | B6: 0.7665505226 | C6: 0.80012935 | D6: 0.9745493625 | E6: 00H | F6: NE Amblnce
A7: 00J_13-14 Q1 | B7: 0.7665505226 | C7: 0.80012935 | D7: 0.9745493625 | E7: 00J | F7: NE Amblnce
A8: 00K_13-14 Q1 | B8: 0.7665505226 | C8: 0.80012935 | D8: 0.9745493625 | E8: 00K | F8: NE Amblnce
A9: 00L_13-14 Q1 | B9: 0.7665505226 | C9: 0.80012935 | D9: 0.9745493625 | E9: 00L | F9: NE Amblnce
A10: 00M_13-14 Q1 | B10: 0.7665505226 | C10: 0.80012935 | D10: 0.9745493625 | E10: 00M | F10: NE Amblnce
A11: 00N_13-14 Q1 | B11: 0.7665505226 | C11: 0.80012935 | D11: 0.9745493625 | E11: 00N | F11: NE Amblnce
A12: 00P_13-14 Q1 | B12: 0.7665505226 | C12: 0.80012935 | D12: 0.9745493625 | E12: 00P | F12: NE Amblnce
A13: 00Q_13-14 Q1 | B13: 0.7752590674 | C13: 0.8012272753 | D13: 0.9653628453 | E13: 00Q | F13: NW Amblnce
A14: 00R_13-14 Q1 | B14: 0.7752590674 | C14: 0.8012272753 | D14: 0.9653628453 | E14: 00R | F14: NW Amblnce
A15: 00T_13-14 Q1 | B15: 0.7752590674 | C15: 0.8012272753 | D15: 0.9653628453 | E15: 00T | F15: NW Amblnce
A16: 00V_13-14 Q1 | B16: 0.7752590674 | C16: 0.8012272753 | D16: 0.9653628453 | E16: 00V | F16: NW Amblnce
A17: 00W_13-14 Q1 | B17: 0.7752590674 | C17: 0.8012272753 | D17: 0.9653628453 | E17: 00W | F17: NW Amblnce
A18: 00X_13-14 Q1 | B18: 0.7752590674 | C18: 0.8012272753 | D18: 0.9653628453 | E18: 00X | F18: NW Amblnce
A19: 00Y_13-14 Q1 | B19: 0.7752590674 | C19: 0.8012272753 | D19: 0.9653628453 | E19: 00Y | F19: NW Amblnce
A20: 01A_13-14 Q1 | B20: 0.7752590674 | C20: 0.8012272753 | D20: 0.9653628453 | E20: 01A | F20: NW Amblnce
A21: 01C_13-14 Q1 | B21: 0.7752590674 | C21: 0.8012272753 | D21: 0.9653628453 | E21: 01C | F21: NW Amblnce
A22: 01D_13-14 Q1 | B22: 0.7752590674 | C22: 0.8012272753 | D22: 0.9653628453 | E22: 01D | F22: NW Amblnce
A23: 01E_13-14 Q1 | B23: 0.7752590674 | C23: 0.8012272753 | D23: 0.9653628453 | E23: 01E | F23: NW Amblnce
A24: 01F_13-14 Q1 | B24: 0.7752590674 | C24: 0.8012272753 | D24: 0.9653628453 | E24: 01F | F24: NW Amblnce
A25: 01G_13-14 Q1 | B25: 0.7752590674 | C25: 0.8012272753 | D25: 0.9653628453 | E25: 01G | F25: NW Amblnce
A26: 01H_13-14 Q1 | B26: 0.7752590674 | C26: 0.8012272753 | D26: 0.9653628453 | E26: 01H | F26: NW Amblnce
A27: 01J_13-14 Q1 | B27: 0.7752590674 | C27: 0.8012272753 | D27: 0.9653628453 | E27: 01J | F27: NW Amblnce
A28: 01K_13-14 Q1 | B28: 0.7752590674 | C28: 0.8012272753 | D28: 0.9653628453 | E28: 01K | F28: NW Amblnce
A29: 01M_13-14 Q1 | B29: 0.7752590674 | C29: 0.8012272753 | D29: 0.9653628453 | E29: 01M | F29: NW Amblnce
A30: 01N_13-14 Q1 | B30: 0.7752590674 | C30: 0.8012272753 | D30: 0.9653628453 | E30: 01N | F30: NW Amblnce
A31: 01R_13-14 Q1 | B31: 0.7752590674 | C31: 0.8012272753 | D31: 0.9653628453 | E31: 01R | F31: NW Amblnce
A32: 01T_13-14 Q1 | B32: 0.7752590674 | C32: 0.8012272753 | D32: 0.9653628453 | E32: 01T | F32: NW Amblnce
A33: 01V_13-14 Q1 | B33: 0.7752590674 | C33: 0.8012272753 | D33: 0.9653628453 | E33: 01V | F33: NW Amblnce
A34: 01W_13-14 Q1 | B34: 0.7752590674 | C34: 0.8012272753 | D34: 0.9653628453 | E34: 01W | F34: NW Amblnce
A35: 01X_13-14 Q1 | B35: 0.7752590674 | C35: 0.8012272753 | D35: 0.9653628453 | E35: 01X | F35: NW Amblnce
A36: 01Y_13-14 Q1 | B36: 0.7752590674 | C36: 0.8012272753 | D36: 0.9653628453 | E36: 01Y | F36: NW Amblnce
A37: 02A_13-14 Q1 | B37: 0.7752590674 | C37: 0.8012272753 | D37: 0.9653628453 | E37: 02A | F37: NW Amblnce
A38: 02D_13-14 Q1 | B38: 0.7752590674 | C38: 0.8012272753 | D38: 0.9653628453 | E38: 02D | F38: NW Amblnce
A39: 02E_13-14 Q1 | B39: 0.7752590674 | C39: 0.8012272753 | D39: 0.9653628453 | E39: 02E | F39: NW Amblnce
A40: 02F_13-14 Q1 | B40: 0.7752590674 | C40: 0.8012272753 | D40: 0.9653628453 | E40: 02F | F40: NW Amblnce
A41: 02G_13-14 Q1 | B41: 0.7752590674 | C41: 0.8012272753 | D41: 0.9653628453 | E41: 02G | F41: NW Amblnce
A42: 02H_13-14 Q1 | B42: 0.7752590674 | C42: 0.8012272753 | D42: 0.9653628453 | E42: 02H | F42: NW Amblnce
A43: 02M_13-14 Q1 | B43: 0.7752590674 | C43: 0.8012272753 | D43: 0.9653628453 | E43: 02M | F43: NW Amblnce
A44: 02N_13-14 Q1 | B44: 0.7592228234 | C44: 0.7845022249 | D44: 0.9767833476 | E44: 02N | F44: Yrkshr Amblnce
A45: 02P_13-14 Q1 | B45: 0.7592228234 | C45: 0.7845022249 | D45: 0.9767833476 | E45: 02P | F45: Yrkshr Amblnce
A46: 02Q_13-14 Q1 | B46: 0.7448071217 | C46: 0.757533157 | D46: 0.9398180309 | E46: 02Q | F46: E Mdlnds Amblnce
A47: 02R_13-14 Q1 | B47: 0.7592228234 | C47: 0.7845022249 | D47: 0.9767833476 | E47: 02R | F47: Yrkshr Amblnce
A48: 02T_13-14 Q1 | B48: 0.7592228234 | C48: 0.7845022249 | D48: 0.9767833476 | E48: 02T | F48: Yrkshr Amblnce
A49: 02V_13-14 Q1 | B49: 0.7592228234 | C49: 0.7845022249 | D49: 0.9767833476 | E49: 02V | F49: Yrkshr Amblnce
A50: 02W_13-14 Q1 | B50: 0.7592228234 | C50: 0.7845022249 | D50: 0.9767833476 | E50: 02W | F50: Yrkshr Amblnce
A51: 02X_13-14 Q1 | B51: 0.7592228234 | C51: 0.7845022249 | D51: 0.9767833476 | E51: 02X | F51: Yrkshr Amblnce
A52: 02Y_13-14 Q1 | B52: 0.7592228234 | C52: 0.7845022249 | D52: 0.9767833476 | E52: 02Y | F52: Yrkshr Amblnce
A53: 03A_13-14 Q1 | B53: 0.7592228234 | C53: 0.7845022249 | D53: 0.9767833476 | E53: 03A | F53: Yrkshr Amblnce
A54: 03C_13-14 Q1 | B54: 0.7592228234 | C54: 0.7845022249 | D54: 0.9767833476 | E54: 03C | F54: Yrkshr Amblnce
A55: 03D_13-14 Q1 | B55: 0.7592228234 | C55: 0.7845022249 | D55: 0.9767833476 | E55: 03D | F55: Yrkshr Amblnce
A56: 03E_13-14 Q1 | B56: 0.7592228234 | C56: 0.7845022249 | D56: 0.9767833476 | E56: 03E | F56: Yrkshr Amblnce
A57: 03F_13-14 Q1 | B57: 0.7592228234 | C57: 0.7845022249 | D57: 0.9767833476 | E57: 03F | F57: Yrkshr Amblnce
A58: 03G_13-14 Q1 | B58: 0.7592228234 | C58: 0.7845022249 | D58: 0.9767833476 | E58: 03G | F58: Yrkshr Amblnce
A59: 03H_13-14 Q1 | B59: 0.7448071217 | C59: 0.7292920871 | D59: 0.9405961076 | E59: 03H | F59: E Mdlnds Amblnce
A60: 03J_13-14 Q1 | B60: 0.7592228234 | C60: 0.7845022249 | D60: 0.9767833476 | E60: 03J | F60: Yrkshr Amblnce
A61: 03K_13-14 Q1 | B61: 0.7448071217 | C61: 0.7292920871 | D61: 0.9405961076 | E61: 03K | F61: E Mdlnds Amblnce
A62: 03L_13-14 Q1 | B62: 0.7592228234 | C62: 0.7845022249 | D62: 0.9767833476 | E62: 03L | F62: Yrkshr Amblnce
A63: 03M_13-14 Q1 | B63: 0.7592228234 | C63: 0.7845022249 | D63: 0.9767833476 | E63: 03M | F63: Yrkshr Amblnce
A64: 03N_13-14 Q1 | B64: 0.7592228234 | C64: 0.7845022249 | D64: 0.9767833476 | E64: 03N | F64: Yrkshr Amblnce
A65: 03Q_13-14 Q1 | B65: 0.7592228234 | C65: 0.7845022249 | D65: 0.9767833476 | E65: 03Q | F65: Yrkshr Amblnce
A66: 03R_13-14 Q1 | B66: 0.7592228234 | C66: 0.7845022249 | D66: 0.9767833476 | E66: 03R | F66: Yrkshr Amblnce
A67: 12F_13-14 Q1 | B67: 0.7752590674 | C67: 0.8012272753 | D67: 0.9653628453 | E67: 12F | F67: NW Amblnce
A68: 99A_13-14 Q1 | B68: 0.7752590674 | C68: 0.8012272753 | D68: 0.9653628453 | E68: 99A | F68: NW Amblnce
A69: 99C_13-14 Q1 | B69: 0.7665505226 | C69: 0.80012935 | D69: 0.9745493625 | E69: 99C | F69: NE Amblnce
A70: 03T_13-14 Q1 | B70: 0.7448071217 | C70: 0.757533157 | D70: 0.9398180309 | E70: 03T | F70: E Mdlnds Amblnce
A71: 03V_13-14 Q1 | B71: 0.7448071217 | C71: 0.757533157 | D71: 0.9398180309 | E71: 03V | F71: E Mdlnds Amblnce
A72: 03W_13-14 Q1 | B72: 0.7448071217 | C72: 0.757533157 | D72: 0.9398180309 | E72: 03W | F72: E Mdlnds Amblnce
A73: 03X_13-14 Q1 | B73: 0.7448071217 | C73: 0.757533157 | D73: 0.9398180309 | E73: 03X | F73: E Mdlnds Amblnce
A74: 03Y_13-14 Q1 | B74: 0.7448071217 | C74: 0.757533157 | D74: 0.9398180309 | E74: 03Y | F74: E Mdlnds Amblnce
A75: 04C_13-14 Q1 | B75: 0.7448071217 | C75: 0.757533157 | D75: 0.9398180309 | E75: 04C | F75: E Mdlnds Amblnce
A76: 04D_13-14 Q1 | B76: 0.7448071217 | C76: 0.757533157 | D76: 0.9398180309 | E76: 04D | F76: E Mdlnds Amblnce
A77: 04E_13-14 Q1 | B77: 0.7448071217 | C77: 0.757533157 | D77: 0.9398180309 | E77: 04E | F77: E Mdlnds Amblnce
A78: 04F_13-14 Q1 | B78: 0.7448071217 | C78: 0.757533157 | D78: 0.9398180309 | E78: 04F | F78: E Mdlnds Amblnce
A79: 04G_13-14 Q1 | B79: 0.7448071217 | C79: 0.757533157 | D79: 0.9398180309 | E79: 04G | F79: E Mdlnds Amblnce
A80: 04H_13-14 Q1 | B80: 0.7448071217 | C80: 0.757533157 | D80: 0.9398180309 | E80: 04H | F80: E Mdlnds Amblnce
A81: 04J_13-14 Q1 | B81: 0.7448071217 | C81: 0.757533157 | D81: 0.9398180309 | E81: 04J | F81: E Mdlnds Amblnce
A82: 04K_13-14 Q1 | B82: 0.7448071217 | C82: 0.757533157 | D82: 0.9398180309 | E82: 04K | F82: E Mdlnds Amblnce
A83: 04L_13-14 Q1 | B83: 0.7448071217 | C83: 0.757533157 | D83: 0.9398180309 | E83: 04L | F83: E Mdlnds Amblnce
A84: 04M_13-14 Q1 | B84: 0.7448071217 | C84: 0.757533157 | D84: 0.9398180309 | E84: 04M | F84: E Mdlnds Amblnce
A85: 04N_13-14 Q1 | B85: 0.7448071217 | C85: 0.757533157 | D85: 0.9398180309 | E85: 04N | F85: E Mdlnds Amblnce
A86: 04Q_13-14 Q1 | B86: 0.7448071217 | C86: 0.757533157 | D86: 0.9398180309 | E86: 04Q | F86: E Mdlnds Amblnce
A87: 04R_13-14 Q1 | B87: 0.7448071217 | C87: 0.757533157 | D87: 0.9398180309 | E87: 04R | F87: E Mdlnds Amblnce
A88: 04V_13-14 Q1 | B88: 0.7448071217 | C88: 0.757533157 | D88: 0.9398180309 | E88: 04V | F88: E Mdlnds Amblnce
A89: 04X_13-14 Q1 | B89: 0.8248820755 | C89: 0.7562687246 | D89: 0.9768973125 | E89: 04X | F89: W Mdlnds Amblnce
A90: 04Y_13-14 Q1 | B90: 0.8248820755 | C90: 0.7562687246 | D90: 0.9768973125 | E90: 04Y | F90: W Mdlnds Amblnce
A91: 05A_13-14 Q1 | B91: 0.8248820755 | C91: 0.7562687246 | D91: 0.9768973125 | E91: 05A | F91: W Mdlnds Amblnce
A92: 05C_13-14 Q1 | B92: 0.8248820755 | C92: 0.7562687246 | D92: 0.9768973125 | E92: 05C | F92: W Mdlnds Amblnce
A93: 05D_13-14 Q1 | B93: 0.8248820755 | C93: 0.7562687246 | D93: 0.9768973125 | E93: 05D | F93: W Mdlnds Amblnce
A94: 05F_13-14 Q1 | B94: 0.8248820755 | C94: 0.7562687246 | D94: 0.9768973125 | E94: 05F | F94: W Mdlnds Amblnce
A95: 05G_13-14 Q1 | B95: 0.8248820755 | C95: 0.7562687246 | D95: 0.9768973125 | E95: 05G | F95: W Mdlnds Amblnce
A96: 05H_13-14 Q1 | B96: 0.8248820755 | C96: 0.7562687246 | D96: 0.9768973125 | E96: 05H | F96: W Mdlnds Amblnce
A97: 05J_13-14 Q1 | B97: 0.8248820755 | C97: 0.7562687246 | D97: 0.9768973125 | E97: 05J | F97: W Mdlnds Amblnce
A98: 05L_13-14 Q1 | B98: 0.8248820755 | C98: 0.7562687246 | D98: 0.9768973125 | E98: 05L | F98: W Mdlnds Amblnce
A99: 05N_13-14 Q1 | B99: 0.8248820755 | C99: 0.7562687246 | D99: 0.9768973125 | E99: 05N | F99: W Mdlnds Amblnce
A100: 05P_13-14 Q1 | B100: 0.8248820755 | C100: 0.7562687246 | D100: 0.9768973125 | E100: 05P | F100: W Mdlnds Amblnce
A101: 05Q_13-14 Q1 | B101: 0.8248820755 | C101: 0.7562687246 | D101: 0.9768973125 | E101: 05Q | F101: W Mdlnds Amblnce
A102: 05R_13-14 Q1 | B102: 0.8248820755 | C102: 0.7562687246 | D102: 0.9768973125 | E102: 05R | F102: W Mdlnds Amblnce
A103: 05T_13-14 Q1 | B103: 0.8248820755 | C103: 0.7562687246 | D103: 0.9768973125 | E103: 05T | F103: W Mdlnds Amblnce
A104: 05V_13-14 Q1 | B104: 0.8248820755 | C104: 0.7562687246 | D104: 0.9768973125 | E104: 05V | F104: W Mdlnds Amblnce
A105: 05W_13-14 Q1 | B105: 0.8248820755 | C105: 0.7562687246 | D105: 0.9768973125 | E105: 05W | F105: W Mdlnds Amblnce
A106: 05X_13-14 Q1 | B106: 0.8248820755 | C106: 0.7562687246 | D106: 0.9768973125 | E106: 05X | F106: W Mdlnds Amblnce
A107: 05Y_13-14 Q1 | B107: 0.8248820755 | C107: 0.7562687246 | D107: 0.9768973125 | E107: 05Y | F107: W Mdlnds Amblnce
A108: 06A_13-14 Q1 | B108: 0.8248820755 | C108: 0.7562687246 | D108: 0.9768973125 | E108: 06A | F108: W Mdlnds Amblnce
A109: 06D_13-14 Q1 | B109: 0.8248820755 | C109: 0.7562687246 | D109: 0.9768973125 | E109: 06D | F109: W Mdlnds Amblnce
A110: 06F_13-14 Q1 | B110: 0.7595851666 | C110: 0.7292920871 | D110: 0.9405961076 | E110: 06F | F110: E Englnd Amblnce
A111: 06H_13-14 Q1 | B111: 0.7595851666 | C111: 0.7292920871 | D111: 0.9405961076 | E111: 06H | F111: E Englnd Amblnce
A112: 06K_13-14 Q1 | B112: 0.7595851666 | C112: 0.7292920871 | D112: 0.9405961076 | E112: 06K | F112: E Englnd Amblnce
A113: 06L_13-14 Q1 | B113: 0.7595851666 | C113: 0.7292920871 | D113: 0.9405961076 | E113: 06L | F113: E Englnd Amblnce
A114: 06M_13-14 Q1 | B114: 0.7595851666 | C114: 0.7292920871 | D114: 0.9405961076 | E114: 06M | F114: E Englnd Amblnce
A115: 06N_13-14 Q1 | B115: 0.7595851666 | C115: 0.7292920871 | D115: 0.9405961076 | E115: 06N | F115: E Englnd Amblnce
A116: 06P_13-14 Q1 | B116: 0.7595851666 | C116: 0.7292920871 | D116: 0.9405961076 | E116: 06P | F116: E Englnd Amblnce
A117: 06Q_13-14 Q1 | B117: 0.7595851666 | C117: 0.7292920871 | D117: 0.9405961076 | E117: 06Q | F117: E Englnd Amblnce
A118: 06T_13-14 Q1 | B118: 0.7595851666 | C118: 0.7292920871 | D118: 0.9405961076 | E118: 06T | F118: E Englnd Amblnce
A119: 06V_13-14 Q1 | B119: 0.7595851666 | C119: 0.7292920871 | D119: 0.9405961076 | E119: 06V | F119: E Englnd Amblnce
A120: 06W_13-14 Q1 | B120: 0.7595851666 | C120: 0.7292920871 | D120: 0.9405961076 | E120: 06W | F120: E Englnd Amblnce
A121: 06Y_13-14 Q1 | B121: 0.7595851666 | C121: 0.7292920871 | D121: 0.9405961076 | E121: 06Y | F121: E Englnd Amblnce
A122: 07G_13-14 Q1 | B122: 0.7595851666 | C122: 0.7292920871 | D122: 0.9405961076 | E122: 07G | F122: E Englnd Amblnce
A123: 07H_13-14 Q1 | B123: 0.7595851666 | C123: 0.7292920871 | D123: 0.9405961076 | E123: 07H | F123: E Englnd Amblnce
A124: 07J_13-14 Q1 | B124: 0.7595851666 | C124: 0.7292920871 | D124: 0.9405961076 | E124: 07J | F124: E Englnd Amblnce
A125: 07K_13-14 Q1 | B125: 0.7595851666 | C125: 0.7292920871 | D125: 0.9405961076 | E125: 07K | F125: E Englnd Amblnce
A126: 13P_13-14 Q1 | B126: 0.8248820755 | C126: 0.7562687246 | D126: 0.9768973125 | E126: 13P | F126: W Mdlnds Amblnce
A127: 99D_13-14 Q1 | B127: 0.7448071217 | C127: 0.757533157 | D127: 0.9398180309 | E127: 99D | F127: E Mdlnds Amblnce
A128: 99E_13-14 Q1 | B128: 0.7595851666 | C128: 0.7292920871 | D128: 0.9405961076 | E128: 99E | F128: E Englnd Amblnce
A129: 99F_13-14 Q1 | B129: 0.7595851666 | C129: 0.7292920871 | D129: 0.9405961076 | E129: 99F | F129: E Englnd Amblnce
A130: 99G_13-14 Q1 | B130: 0.7595851666 | C130: 0.7292920871 | D130: 0.9405961076 | E130: 99G | F130: E Englnd Amblnce
A131: 07L_13-14 Q1 | B131: 0.7766497462 | C131: 0.7854909432 | D131: 0.982362283 | E131: 07L | F131: Lndn Amblnce
A132: 07M_13-14 Q1 | B132: 0.7766497462 | C132: 0.7854909432 | D132: 0.982362283 | E132: 07M | F132: Lndn Amblnce
A133: 07N_13-14 Q1 | B133: 0.7766497462 | C133: 0.7854909432 | D133: 0.982362283 | E133: 07N | F133: Lndn Amblnce
A134: 07P_13-14 Q1 | B134: 0.7766497462 | C134: 0.7854909432 | D134: 0.982362283 | E134: 07P | F134: Lndn Amblnce
A135: 07Q_13-14 Q1 | B135: 0.7766497462 | C135: 0.7854909432 | D135: 0.982362283 | E135: 07Q | F135: Lndn Amblnce
A136: 07R_13-14 Q1 | B136: 0.7766497462 | C136: 0.7854909432 | D136: 0.982362283 | E136: 07R | F136: Lndn Amblnce
A137: 07T_13-14 Q1 | B137: 0.7766497462 | C137: 0.7854909432 | D137: 0.982362283 | E137: 07T | F137: Lndn Amblnce
A138: 07V_13-14 Q1 | B138: 0.7766497462 | C138: 0.7854909432 | D138: 0.982362283 | E138: 07V | F138: Lndn Amblnce
A139: 07W_13-14 Q1 | B139: 0.7766497462 | C139: 0.7854909432 | D139: 0.982362283 | E139: 07W | F139: Lndn Amblnce
A140: 07X_13-14 Q1 | B140: 0.7766497462 | C140: 0.7854909432 | D140: 0.982362283 | E140: 07X | F140: Lndn Amblnce
A141: 07Y_13-14 Q1 | B141: 0.7766497462 | C141: 0.7854909432 | D141: 0.982362283 | E141: 07Y | F141: Lndn Amblnce
A142: 08A_13-14 Q1 | B142: 0.7766497462 | C142: 0.7854909432 | D142: 0.982362283 | E142: 08A | F142: Lndn Amblnce
A143: 08C_13-14 Q1 | B143: 0.7766497462 | C143: 0.7854909432 | D143: 0.982362283 | E143: 08C | F143: Lndn Amblnce
A144: 08D_13-14 Q1 | B144: 0.7766497462 | C144: 0.7854909432 | D144: 0.982362283 | E144: 08D | F144: Lndn Amblnce
A145: 08E_13-14 Q1 | B145: 0.7766497462 | C145: 0.7854909432 | D145: 0.982362283 | E145: 08E | F145: Lndn Amblnce
A146: 08F_13-14 Q1 | B146: 0.7766497462 | C146: 0.7854909432 | D146: 0.982362283 | E146: 08F | F146: Lndn Amblnce
A147: 08G_13-14 Q1 | B147: 0.7766497462 | C147: 0.7854909432 | D147: 0.982362283 | E147: 08G | F147: Lndn Amblnce
A148: 08H_13-14 Q1 | B148: 0.7766497462 | C148: 0.7854909432 | D148: 0.982362283 | E148: 08H | F148: Lndn Amblnce
A149: 08J_13-14 Q1 | B149: 0.7766497462 | C149: 0.7854909432 | D149: 0.982362283 | E149: 08J | F149: Lndn Amblnce
A150: 08K_13-14 Q1 | B150: 0.7766497462 | C150: 0.7854909432 | D150: 0.982362283 | E150: 08K | F150: Lndn Amblnce
A151: 08L_13-14 Q1 | B151: 0.7766497462 | C151: 0.7854909432 | D151: 0.982362283 | E151: 08L | F151: Lndn Amblnce
A152: 08M_13-14 Q1 | B152: 0.7766497462 | C152: 0.7854909432 | D152: 0.982362283 | E152: 08M | F152: Lndn Amblnce
A153: 08N_13-14 Q1 | B153: 0.7766497462 | C153: 0.7854909432 | D153: 0.982362283 | E153: 08N | F153: Lndn Amblnce
A154: 08P_13-14 Q1 | B154: 0.7766497462 | C154: 0.7854909432 | D154: 0.982362283 | E154: 08P | F154: Lndn Amblnce
A155: 08Q_13-14 Q1 | B155: 0.7766497462 | C155: 0.7854909432 | D155: 0.982362283 | E155: 08Q | F155: Lndn Amblnce
A156: 08R_13-14 Q1 | B156: 0.7766497462 | C156: 0.7854909432 | D156: 0.982362283 | E156: 08R | F156: Lndn Amblnce
A157: 08T_13-14 Q1 | B157: 0.7766497462 | C157: 0.7854909432 | D157: 0.982362283 | E157: 08T | F157: Lndn Amblnce
A158: 08V_13-14 Q1 | B158: 0.7766497462 | C158: 0.7854909432 | D158: 0.982362283 | E158: 08V | F158: Lndn Amblnce
A159: 08W_13-14 Q1 | B159: 0.7766497462 | C159: 0.7854909432 | D159: 0.982362283 | E159: 08W | F159: Lndn Amblnce
A160: 08X_13-14 Q1 | B160: 0.7766497462 | C160: 0.7854909432 | D160: 0.982362283 | E160: 08X | F160: Lndn Amblnce
A161: 08Y_13-14 Q1 | B161: 0.7766497462 | C161: 0.7854909432 | D161: 0.982362283 | E161: 08Y | F161: Lndn Amblnce
A162: 09A_13-14 Q1 | B162: 0.7766497462 | C162: 0.7854909432 | D162: 0.982362283 | E162: 09A | F162: Lndn Amblnce
A163: 09C_13-14 Q1 | B163: 0.7671130952 | C163: 0.7364393891 | D163: 0.9689923683 | E163: 09C | F163: SE Cst Amblnce
A164: 09D_13-14 Q1 | B164: 0.7671130952 | C164: 0.7364393891 | D164: 0.9689923683 | E164: 09D | F164: SE Cst Amblnce
A165: 09E_13-14 Q1 | B165: 0.7671130952 | C165: 0.7364393891 | D165: 0.9689923683 | E165: 09E | F165: SE Cst Amblnce
A166: 09F_13-14 Q1 | B166: 0.7671130952 | C166: 0.7364393891 | D166: 0.9689923683 | E166: 09F | F166: SE Cst Amblnce
A167: 09G_13-14 Q1 | B167: 0.7671130952 | C167: 0.7364393891 | D167: 0.9689923683 | E167: 09G | F167: SE Cst Amblnce
A168: 09H_13-14 Q1 | B168: 0.7671130952 | C168: 0.7364393891 | D168: 0.9689923683 | E168: 09H | F168: SE Cst Amblnce
A169: 09J_13-14 Q1 | B169: 0.7671130952 | C169: 0.7364393891 | D169: 0.9689923683 | E169: 09J | F169: SE Cst Amblnce
A170: 09L_13-14 Q1 | B170: 0.7671130952 | C170: 0.7364393891 | D170: 0.9689923683 | E170: 09L | F170: SE Cst Amblnce
A171: 09N_13-14 Q1 | B171: 0.7671130952 | C171: 0.7364393891 | D171: 0.9689923683 | E171: 09N | F171: SE Cst Amblnce
A172: 09P_13-14 Q1 | B172: 0.7671130952 | C172: 0.7364393891 | D172: 0.9689923683 | E172: 09P | F172: SE Cst Amblnce
A173: 09W_13-14 Q1 | B173: 0.7671130952 | C173: 0.7364393891 | D173: 0.9689923683 | E173: 09W | F173: SE Cst Amblnce
A174: 09X_13-14 Q1 | B174: 0.7671130952 | C174: 0.7364393891 | D174: 0.9689923683 | E174: 09X | F174: SE Cst Amblnce
A175: 09Y_13-14 Q1 | B175: 0.7671130952 | C175: 0.7364393891 | D175: 0.9689923683 | E175: 09Y | F175: SE Cst Amblnce
A176: 10A_13-14 Q1 | B176: 0.7671130952 | C176: 0.7364393891 | D176: 0.9689923683 | E176: 10A | F176: SE Cst Amblnce
A177: 10C_13-14 Q1 | B177: 0.7671130952 | C177: 0.7364393891 | D177: 0.9689923683 | E177: 10C | F177: SE Cst Amblnce
A178: 10D_13-14 Q1 | B178: 0.7671130952 | C178: 0.7364393891 | D178: 0.9689923683 | E178: 10D | F178: SE Cst Amblnce
A179: 10E_13-14 Q1 | B179: 0.7671130952 | C179: 0.7364393891 | D179: 0.9689923683 | E179: 10E | F179: SE Cst Amblnce
A180: 10G_13-14 Q1 | B180: 0.8102040816 | C180: 0.7750519031 | D180: 0.9615683985 | E180: 10G | F180: S Cntrl Amblnce
A181: 10H_13-14 Q1 | B181: 0.8102040816 | C181: 0.7750519031 | D181: 0.9615683985 | E181: 10H | F181: S Cntrl Amblnce
A182: 10J_13-14 Q1 | B182: 0.8102040816 | C182: 0.7750519031 | D182: 0.9615683985 | E182: 10J | F182: S Cntrl Amblnce
A183: 10K_13-14 Q1 | B183: 0.8102040816 | C183: 0.7750519031 | D183: 0.9615683985 | E183: 10K | F183: S Cntrl Amblnce
A184: 10L_13-14 Q1 | B184: 0.7647058824 | C184: 0.7644721907 | D184: 0.972972973 | E184: 10L | F184: Isle of Wight
A185: 10M_13-14 Q1 | B185: 0.8102040816 | C185: 0.7750519031 | D185: 0.9615683985 | E185: 10M | F185: S Cntrl Amblnce
A186: 10N_13-14 Q1 | B186: 0.8102040816 | C186: 0.7750519031 | D186: 0.9615683985 | E186: 10N | F186: S Cntrl Amblnce
A187: 10Q_13-14 Q1 | B187: 0.8102040816 | C187: 0.7750519031 | D187: 0.9615683985 | E187: 10Q | F187: S Cntrl Amblnce
A188: 10R_13-14 Q1 | B188: 0.8102040816 | C188: 0.7750519031 | D188: 0.9615683985 | E188: 10R | F188: S Cntrl Amblnce
A189: 10T_13-14 Q1 | B189: 0.8102040816 | C189: 0.7750519031 | D189: 0.9615683985 | E189: 10T | F189: S Cntrl Amblnce
A190: 10V_13-14 Q1 | B190: 0.8102040816 | C190: 0.7750519031 | D190: 0.9615683985 | E190: 10V | F190: S Cntrl Amblnce
A191: 10W_13-14 Q1 | B191: 0.8102040816 | C191: 0.7750519031 | D191: 0.9615683985 | E191: 10W | F191: S Cntrl Amblnce
A192: 10X_13-14 Q1 | B192: 0.8102040816 | C192: 0.7750519031 | D192: 0.9615683985 | E192: 10X | F192: S Cntrl Amblnce
A193: 10Y_13-14 Q1 | B193: 0.8102040816 | C193: 0.7750519031 | D193: 0.9615683985 | E193: 10Y | F193: S Cntrl Amblnce
A194: 11A_13-14 Q1 | B194: 0.8102040816 | C194: 0.7750519031 | D194: 0.9615683985 | E194: 11A | F194: S Cntrl Amblnce
A195: 11C_13-14 Q1 | B195: 0.8102040816 | C195: 0.7750519031 | D195: 0.9615683985 | E195: 11C | F195: S Cntrl Amblnce
A196: 11D_13-14 Q1 | B196: 0.8102040816 | C196: 0.7750519031 | D196: 0.9615683985 | E196: 11D | F196: S Cntrl Amblnce
A197: 11E_13-14 Q1 | B197: 0.738401142 | C197: 0.7585428505 | D197: 0.9562361602 | E197: 11E | F197: S Wstrn Amblnce
A198: 11H_13-14 Q1 | B198: 0.738401142 | C198: 0.7585428505 | D198: 0.9562361602 | E198: 11H | F198: S Wstrn Amblnce
A199: 11J_13-14 Q1 | B199: 0.738401142 | C199: 0.7585428505 | D199: 0.9562361602 | E199: 11J | F199: S Wstrn Amblnce
A200: 11M_13-14 Q1 | B200: 0.738401142 | C200: 0.7585428505 | D200: 0.9562361602 | E200: 11M | F200: S Wstrn Amblnce
... 287 more rows

Sheet YN_OPTION (hidden)
A1: 1 | B1: Y
A2: 2 | B2: N

Sheet CCG_AF_FINANCE_DOMAIN4 (hidden)
A1: ID | B1: Surplus Underlying | C1: Surplus YTD | D1: Surplus Year End | E1: NR Funds | F1: QIPP YTD | G1: QIPP Year End | H1: Act YTD | I1: Act End Year | J1: Run Cost | K1: Risk | L1: Balance Sheet | M1: Overall rating
A2: 02A_2013-14_June | B2: 0 | C2: AG | D2: G | E2: G | F2: AG | G2: G | H2: 0 | I2: 0 | J2: G | K2: G | L2: 0 | M2: AMBER-GREEN
A3: 03H_2013-14_June | B3: 0 | C3: G | D3: G | E3: G | F3: AG | G3: G | H3: 0 | I3: 0 | J3: G | K3: G | L3: 0 | M3: AMBER-GREEN
A4: 11N_2013-14_June | B4: 0 | C4: G | D4: G | E4: G | F4: G | G4: G | H4: 0 | I4: 0 | J4: G | K4: G | L4: 0 | M4: GREEN
A5: 99M_2013-14_June | B5: 0 | C5: G | D5: G | E5: G | F5: AG | G5: G | H5: 0 | I5: 0 | J5: G | K5: G | L5: 0 | M5: AMBER-GREEN
A6: 02R_2013-14_June | B6: 0 | C6: G | D6: G | E6: G | F6: G | G6: G | H6: 0 | I6: 0 | J6: G | K6: G | L6: 0 | M6: GREEN
A7: 06Q_2013-14_June | B7: 0 | C7: AR | D7: G | E7: G | F7: AR | G7: AG | H7: 0 | I7: 0 | J7: G | K7: AR | L7: 0 | M7: AMBER-GREEN
A8: 07H_2013-14_June | B8: 0 | C8: G | D8: G | E8: G | F8: G | G8: G | H8: 0 | I8: 0 | J8: G | K8: AR | L8: 0 | M8: AMBER-GREEN
A9: 99E_2013-14_June | B9: 0 | C9: R | D9: G | E9: G | F9: R | G9: AR | H9: 0 | I9: 0 | J9: G | K9: G | L9: 0 | M9: RED
A10: 99F_2013-14_June | B10: 0 | C10: G | D10: AG | E10: G | F10: G | G10: AG | H10: 0 | I10: 0 | J10: G | K10: G | L10: 0 | M10: AMBER-GREEN
A11: 01T_2013-14_June | B11: 0 | C11: G | D11: G | E11: G | F11: G | G11: G | H11: 0 | I11: 0 | J11: G | K11: G | L11: 0 | M11: GREEN
A12: 05Q_2013-14_June | B12: 0 | C12: AR | D12: G | E12: G | F12: AR | G12: G | H12: 0 | I12: 0 | J12: G | K12: AR | L12: 0 | M12: AMBER-GREEN
A13: 04V_2013-14_June | B13: 0 | C13: G | D13: G | E13: G | F13: G | G13: G | H13: 0 | I13: 0 | J13: G | K13: G | L13: 0 | M13: GREEN
A14: 02T_2013-14_June | B14: 0 | C14: G | D14: G | E14: G | F14: R | G14: G | H14: 0 | I14: 0 | J14: G | K14: G | L14: 0 | M14: AMBER-RED
A15: 10Q_2013-14_June | B15: 0 | C15: AG | D15: G | E15: G | F15: R | G15: G | H15: 0 | I15: 0 | J15: G | K15: R | L15: 0 | M15: RED
A16: 10W_2013-14_June | B16: 0 | C16: G | D16: G | E16: G | F16: G | G16: G | H16: 0 | I16: 0 | J16: G | K16: G | L16: 0 | M16: GREEN
A17: 11D_2013-14_June | B17: 0 | C17: G | D17: G | E17: G | F17: G | G17: G | H17: 0 | I17: 0 | J17: G | K17: G | L17: 0 | M17: GREEN
A18: 12F_2013-14_June | B18: 0 | C18: G | D18: G | E18: G | F18: G | G18: G | H18: 0 | I18: 0 | J18: G | K18: G | L18: 0 | M18: GREEN
A19: 06H_2013-14_June | B19: 0 | C19: AR | D19: G | E19: R | F19: G | G19: G | H19: 0 | I19: 0 | J19: G | K19: AR | L19: 0 | M19: AMBER-GREEN
A20: 06V_2013-14_June | B20: 0 | C20: G | D20: G | E20: G | F20: G | G20: G | H20: 0 | I20: 0 | J20: G | K20: AR | L20: 0 | M20: AMBER-GREEN
A21: 06Y_2013-14_June | B21: 0 | C21: G | D21: G | E21: R | F21: R | G21: G | H21: 0 | I21: 0 | J21: G | K21: AR | L21: 0 | M21: AMBER-RED
A22: 08N_2013-14_June | B22: 0 | C22: R | D22: G | E22: G | F22: G | G22: G | H22: 0 | I22: 0 | J22: G | K22: AG | L22: 0 | M22: AMBER-RED
A23: 08X_2013-14_June | B23: 0 | C23: G | D23: G | E23: G | F23: G | G23: G | H23: 0 | I23: 0 | J23: G | K23: G | L23: 0 | M23: GREEN
A24: 09H_2013-14_June | B24: 0 | C24: G | D24: G | E24: G | F24: G | G24: G | H24: 0 | I24: 0 | J24: G | K24: R | L24: 0 | M24: AMBER-RED
A25: 09P_2013-14_June | B25: 0 | C25: AG | D25: G | E25: G | F25: G | G25: G | H25: 0 | I25: 0 | J25: G | K25: G | L25: 0 | M25: AMBER-GREEN
A26: 07L_2013-14_June | B26: 0 | C26: AR | D26: G | E26: G | F26: G | G26: G | H26: 0 | I26: 0 | J26: G | K26: AG | L26: 0 | M26: AMBER-GREEN
A27: 07X_2013-14_June | B27: 0 | C27: G | D27: G | E27: G | F27: G | G27: AG | H27: 0 | I27: 0 | J27: G | K27: R | L27: 0 | M27: AMBER-RED
A28: 00F_2013-14_June | B28: 0 | C28: G | D28: G | E28: G | F28: G | G28: G | H28: 0 | I28: 0 | J28: G | K28: G | L28: 0 | M28: GREEN
A29: 05J_2013-14_June | B29: 0 | C29: R | D29: R | E29: G | F29: AG | G29: AG | H29: 0 | I29: 0 | J29: G | K29: R | L29: 0 | M29: RED
A30: 01E_2013-14_June | B30: 0 | C30: AG | D30: G | E30: G | F30: AR | G30: G | H30: 0 | I30: 0 | J30: G | K30: AR | L30: 0 | M30: AMBER-GREEN
A31: 00W_2013-14_June | B31: 0 | C31: G | D31: G | E31: G | F31: G | G31: G | H31: 0 | I31: 0 | J31: G | K31: G | L31: 0 | M31: GREEN
A32: 01M_2013-14_June | B32: 0 | C32: G | D32: G | E32: G | F32: G | G32: G | H32: 0 | I32: 0 | J32: G | K32: G | L32: 0 | M32: GREEN
A33: 02H_2013-14_June | B33: 0 | C33: G | D33: G | E33: G | F33: G | G33: G | H33: 0 | I33: 0 | J33: G | K33: G | L33: 0 | M33: GREEN
A34: 99K_2013-14_June | B34: 0 | C34: G | D34: G | E34: G | F34: AR | G34: AR | H34: 0 | I34: 0 | J34: G | K34: R | L34: 0 | M34: AMBER-RED
A35: 99N_2013-14_June | B35: 0 | C35: G | D35: G | E35: G | F35: G | G35: AR | H35: 0 | I35: 0 | J35: G | K35: G | L35: 0 | M35: AMBER-GREEN
A36: 03M_2013-14_June | B36: 0 | C36: G | D36: G | E36: G | F36: AR | G36: AR | H36: 0 | I36: 0 | J36: G | K36: AR | L36: 0 | M36: AMBER-GREEN
A37: 02E_2013-14_June | B37: 0 | C37: AR | D37: AR | E37: G | F37: G | G37: G | H37: 0 | I37: 0 | J37: G | K37: R | L37: 0 | M37: AMBER-RED
A38: 02Y_2013-14_June | B38: 0 | C38: G | D38: G | E38: G | F38: AR | G38: AR | H38: 0 | I38: 0 | J38: G | K38: G | L38: 0 | M38: AMBER-GREEN
A39: 03A_2013-14_June | B39: 0 | C39: G | D39: G | E39: G | F39: G | G39: G | H39: 0 | I39: 0 | J39: G | K39: G | L39: 0 | M39: GREEN
A40: 08K_2013-14_June | B40: 0 | C40: G | D40: G | E40: G | F40: G | G40: G | H40: 0 | I40: 0 | J40: G | K40: AG | L40: 0 | M40: AMBER-GREEN
A41: 08L_2013-14_June | B41: 0 | C41: G | D41: G | E41: G | F41: G | G41: G | H41: 0 | I41: 0 | J41: G | K41: G | L41: 0 | M41: GREEN
A42: 09X_2013-14_June | B42: 0 | C42: AG | D42: G | E42: G | F42: G | G42: G | H42: 0 | I42: 0 | J42: G | K42: R | L42: 0 | M42: AMBER-RED
A43: 10C_2013-14_June | B43: 0 | C43: G | D43: G | E43: G | F43: R | G43: AR | H43: 0 | I43: 0 | J43: G | K43: G | L43: 0 | M43: AMBER-RED
A44: 05D_2013-14_June | B44: 0 | C44: R | D44: G | E44: G | F44: AR | G44: G | H44: 0 | I44: 0 | J44: G | K44: AR | L44: 0 | M44: AMBER-RED
A45: 05X_2013-14_June | B45: 0 | C45: R | D45: G | E45: G | F45: AR | G45: G | H45: 0 | I45: 0 | J45: G | K45: G | L45: 0 | M45: AMBER-RED
A46: 01A_2013-14_June | B46: 0 | C46: G | D46: G | E46: G | F46: AR | G46: AR | H46: 0 | I46: 0 | J46: G | K46: G | L46: 0 | M46: AMBER-GREEN
A47: 01J_2013-14_June | B47: 0 | C47: G | D47: G | E47: G | F47: G | G47: G | H47: 0 | I47: 0 | J47: G | K47: G | L47: 0 | M47: GREEN
A48: 01R_2013-14_June | B48: 0 | C48: G | D48: G | E48: R | F48: G | G48: G | H48: 0 | I48: 0 | J48: G | K48: R | L48: 0 | M48: AMBER-RED
A49: 09W_2013-14_June | B49: 0 | C49: G | D49: G | E49: G | F49: G | G49: AG | H49: 0 | I49: 0 | J49: G | K49: G | L49: 0 | M49: AMBER-GREEN
A50: 00T_2013-14_June | B50: 0 | C50: G | D50: G | E50: G | F50: G | G50: G | H50: 0 | I50: 0 | J50: G | K50: G | L50: 0 | M50: GREEN
A51: 02V_2013-14_June | B51: 0 | C51: G | D51: G | E51: G | F51: G | G51: G | H51: 0 | I51: 0 | J51: G | K51: G | L51: 0 | M51: GREEN
A52: 03C_2013-14_June | B52: 0 | C52: G | D52: G | E52: G | F52: G | G52: G | H52: 0 | I52: 0 | J52: G | K52: G | L52: 0 | M52: GREEN
A53: 99P_2013-14_June | B53: 0 | C53: G | D53: G | E53: G | F53: AR | G53: G | H53: 0 | I53: 0 | J53: G | K53: G | L53: 0 | M53: AMBER-GREEN
A54: 02X_2013-14_June | B54: 0 | C54: G | D54: G | E54: G | F54: G | G54: G | H54: 0 | I54: 0 | J54: G | K54: G | L54: 0 | M54: GREEN
A55: 02N_2013-14_June | B55: 0 | C55: G | D55: G | E55: G | F55: G | G55: G | H55: 0 | I55: 0 | J55: G | K55: G | L55: 0 | M55: GREEN
A56: 07P_2013-14_June | B56: 0 | C56: G | D56: G | E56: G | F56: AR | G56: AG | H56: 0 | I56: 0 | J56: G | K56: G | L56: 0 | M56: AMBER-GREEN
A57: 03R_2013-14_June | B57: 0 | C57: AG | D57: G | E57: G | F57: R | G57: G | H57: 0 | I57: 0 | J57: G | K57: G | L57: 0 | M57: AMBER-RED
A58: 03Y_2013-14_June | B58: 0 | C58: G | D58: G | E58: G | F58: G | G58: G | H58: 0 | I58: 0 | J58: G | K58: G | L58: 0 | M58: GREEN
A59: 04J_2013-14_June | B59: 0 | C59: G | D59: G | E59: G | F59: G | G59: G | H59: 0 | I59: 0 | J59: G | K59: G | L59: 0 | M59: GREEN
A60: 04N_2013-14_June | B60: 0 | C60: G | D60: G | E60: G | F60: G | G60: G | H60: 0 | I60: 0 | J60: G | K60: G | L60: 0 | M60: GREEN
A61: 02Q_2013-14_June | B61: 0 | C61: G | D61: G | E61: G | F61: G | G61: G | H61: 0 | I61: 0 | J61: G | K61: G | L61: 0 | M61: GREEN
A62: 10N_2013-14_June | B62: 0 | C62: G | D62: G | E62: G | F62: G | G62: G | H62: 0 | I62: 0 | J62: G | K62: G | L62: 0 | M62: GREEN
A63: 10T_2013-14_June | B63: 0 | C63: G | D63: G | E63: G | F63: AG | G63: G | H63: 0 | I63: 0 | J63: G | K63: G | L63: 0 | M63: AMBER-GREEN
A64: 11J_2013-14_June | B64: 0 | C64: G | D64: G | E64: G | F64: G | G64: G | H64: 0 | I64: 0 | J64: G | K64: G | L64: 0 | M64: GREEN
A65: 06W_2013-14_June | B65: 0 | C65: G | D65: G | E65: R | F65: AR | G65: G | H65: 0 | I65: 0 | J65: G | K65: AR | L65: 0 | M65: AMBER-GREEN
A66: 08D_2013-14_June | B66: 0 | C66: AR | D66: G | E66: G | F66: G | G66: G | H66: 0 | I66: 0 | J66: G | K66: G | L66: 0 | M66: AMBER-GREEN
A67: 09D_2013-14_June | B67: 0 | C67: G | D67: G | E67: G | F67: AG | G67: AR | H67: 0 | I67: 0 | J67: G | K67: G | L67: 0 | M67: AMBER-GREEN
A68: 09F_2013-14_June | B68: 0 | C68: AG | D68: G | E68: G | F68: AR | G68: AR | H68: 0 | I68: 0 | J68: G | K68: R | L68: 0 | M68: AMBER-RED
A69: 09L_2013-14_June | B69: 0 | C69: G | D69: G | E69: G | F69: R | G69: AR | H69: 0 | I69: 0 | J69: G | K69: R | L69: 0 | M69: RED
A70: 10K_2013-14_June | B70: 0 | C70: G | D70: G | E70: G | F70: G | G70: G | H70: 0 | I70: 0 | J70: G | K70: G | L70: 0 | M70: GREEN
A71: 07N_2013-14_June | B71: 0 | C71: G | D71: G | E71: G | F71: G | G71: G | H71: 0 | I71: 0 | J71: G | K71: G | L71: 0 | M71: GREEN
A72: 00Q_2013-14_June | B72: 0 | C72: G | D72: G | E72: G | F72: AR | G72: G | H72: 0 | I72: 0 | J72: G | K72: AG | L72: 0 | M72: AMBER-GREEN
A73: 07Q_2013-14_June | B73: 0 | C73: G | D73: G | E73: G | F73: G | G73: G | H73: 0 | I73: 0 | J73: G | K73: G | L73: 0 | M73: GREEN
A74: 09J_2013-14_June | B74: 0 | C74: G | D74: G | E74: G | F74: G | G74: G | H74: 0 | I74: 0 | J74: G | K74: G | L74: 0 | M74: GREEN
A75: 10A_2013-14_June | B75: 0 | C75: G | D75: G | E75: G | F75: G | G75: G | H75: 0 | I75: 0 | J75: G | K75: AG | L75: 0 | M75: AMBER-GREEN
A76: 10D_2013-14_June | B76: 0 | C76: G | D76: G | E76: G | F76: G | G76: G | H76: 0 | I76: 0 | J76: G | K76: G | L76: 0 | M76: GREEN
A77: 01N_2013-14_June | B77: 0 | C77: G | D77: G | E77: G | F77: G | G77: G | H77: 0 | I77: 0 | J77: G | K77: G | L77: 0 | M77: GREEN
A78: 01Y_2013-14_June | B78: 0 | C78: G | D78: G | E78: G | F78: G | G78: G | H78: 0 | I78: 0 | J78: G | K78: G | L78: 0 | M78: GREEN
A79: 99A_2013-14_June | B79: 0 | C79: G | D79: G | E79: G | F79: G | G79: G | H79: 0 | I79: 0 | J79: G | K79: G | L79: 0 | M79: GREEN
A80: 99H_2013-14_June | B80: 0 | C80: G | D80: G | E80: G | F80: AR | G80: G | H80: 0 | I80: 0 | J80: G | K80: AG | L80: 0 | M80: AMBER-GREEN
A81: 00L_2013-14_June | B81: 0 | C81: AR | D81: G | E81: G | F81: G | G81: G | H81: 0 | I81: 0 | J81: G | K81: AG | L81: 0 | M81: AMBER-GREEN
A82: 08W_2013-14_June | B82: 0 | C82: AG | D82: G | E82: G | F82: AR | G82: AR | H82: 0 | I82: 0 | J82: G | K82: R | L82: 0 | M82: AMBER-RED
A83: 08E_2013-14_June | B83: 0 | C83: G | D83: G | E83: G | F83: AR | G83: AG | H83: 0 | I83: 0 | J83: G | K83: G | L83: 0 | M83: AMBER-GREEN
A84: 07W_2013-14_June | B84: 0 | C84: G | D84: G | E84: G | F84: AR | G84: AR | H84: 0 | I84: 0 | J84: G | K84: G | L84: 0 | M84: AMBER-GREEN
A85: 03K_2013-14_June | B85: 0 | C85: G | D85: G | E85: G | F85: AR | G85: G | H85: 0 | I85: 0 | J85: G | K85: G | L85: 0 | M85: AMBER-GREEN
A86: 03Q_2013-14_June | B86: 0 | C86: R | D86: R | E86: G | F86: AR | G86: AR | H86: 0 | I86: 0 | J86: G | K86: AR | L86: 0 | M86: RED
A87: 04C_2013-14_June | B87: 0 | C87: G | D87: G | E87: G | F87: G | G87: G | H87: 0 | I87: 0 | J87: G | K87: G | L87: 0 | M87: GREEN
A88: 04M_2013-14_June | B88: 0 | C88: G | D88: G | E88: G | F88: G | G88: G | H88: 0 | I88: 0 | J88: G | K88: G | L88: 0 | M88: GREEN
A89: 02D_2013-14_June | B89: 0 | C89: G | D89: G | E89: G | F89: G | G89: G | H89: 0 | I89: 0 | J89: G | K89: AG | L89: 0 | M89: AMBER-GREEN
A90: 03D_2013-14_June | B90: 0 | C90: G | D90: G | E90: G | F90: G | G90: G | H90: 0 | I90: 0 | J90: G | K90: G | L90: 0 | M90: GREEN
A91: 10M_2013-14_June | B91: 0 | C91: G | D91: G | E91: G | F91: G | G91: G | H91: 0 | I91: 0 | J91: G | K91: G | L91: 0 | M91: GREEN
A92: 10R_2013-14_June | B92: 0 | C92: G | D92: G | E92: G | F92: G | G92: G | H92: 0 | I92: 0 | J92: G | K92: G | L92: 0 | M92: GREEN
A93: 11C_2013-14_June | B93: 0 | C93: AG | D93: G | E93: G | F93: G | G93: AG | H93: 0 | I93: 0 | J93: G | K93: G | L93: 0 | M93: AMBER-GREEN
A94: 11M_2013-14_June | B94: 0 | C94: G | D94: G | E94: G | F94: G | G94: G | H94: 0 | I94: 0 | J94: G | K94: G | L94: 0 | M94: GREEN
A95: 08A_2013-14_June | B95: 0 | C95: G | D95: G | E95: G | F95: G | G95: G | H95: 0 | I95: 0 | J95: G | K95: AR | L95: 0 | M95: AMBER-GREEN
A96: 08M_2013-14_June | B96: 0 | C96: G | D96: G | E96: G | F96: AG | G96: AG | H96: 0 | I96: 0 | J96: G | K96: AG | L96: 0 | M96: AMBER-GREEN
A97: 08Q_2013-14_June | B97: 0 | C97: G | D97: G | E97: G | F97: G | G97: G | H97: 0 | I97: 0 | J97: G | K97: G | L97: 0 | M97: GREEN
A98: 09E_2013-14_June | B98: 0 | C98: G | D98: G | E98: G | F98: G | G98: G | H98: 0 | I98: 0 | J98: G | K98: G | L98: 0 | M98: GREEN
A99: 07V_2013-14_June | B99: 0 | C99: G | D99: G | E99: G | F99: AG | G99: AG | H99: 0 | I99: 0 | J99: G | K99: G | L99: 0 | M99: AMBER-GREEN
A100: 04X_2013-14_June | B100: 0 | C100: G | D100: G | E100: G | F100: G | G100: G | H100: 0 | I100: 0 | J100: G | K100: G | L100: 0 | M100: GREEN
A101: 00K_2013-14_June | B101: 0 | C101: G | D101: G | E101: G | F101: G | G101: G | H101: 0 | I101: 0 | J101: G | K101: G | L101: 0 | M101: GREEN
A102: 05P_2013-14_June | B102: 0 | C102: G | D102: G | E102: G | F102: G | G102: G | H102: 0 | I102: 0 | J102: G | K102: G | L102: 0 | M102: GREEN
A103: 05Y_2013-14_June | B103: 0 | C103: G | D103: G | E103: G | F103: G | G103: G | H103: 0 | I103: 0 | J103: G | K103: G | L103: 0 | M103: GREEN
A104: 01C_2013-14_June | B104: 0 | C104: G | D104: G | E104: R | F104: G | G104: G | H104: 0 | I104: 0 | J104: G | K104: R | L104: 0 | M104: AMBER-RED
A105: 01X_2013-14_June | B105: 0 | C105: G | D105: G | E105: G | F105: G | G105: G | H105: 0 | I105: 0 | J105: G | K105: G | L105: 0 | M105: GREEN
A106: 04D_2013-14_June | B106: 0 | C106: G | D106: G | E106: G | F106: G | G106: G | H106: 0 | I106: 0 | J106: G | K106: G | L106: 0 | M106: GREEN
A107: 08G_2013-14_June | B107: 0 | C107: G | D107: G | E107: G | F107: AR | G107: AG | H107: 0 | I107: 0 | J107: G | K107: G | L107: 0 | M107: AMBER-GREEN
A108: 09N_2013-14_June | B108: 0 | C108: G | D108: G | E108: G | F108: R | G108: AR | H108: 0 | I108: 0 | J108: G | K108: G | L108: 0 | M108: AMBER-RED
A109: 06T_2013-14_June | B109: 0 | C109: G | D109: G | E109: G | F109: G | G109: AG | H109: 0 | I109: 0 | J109: G | K109: AR | L109: 0 | M109: AMBER-GREEN
A110: 07R_2013-14_June | B110: 0 | C110: G | D110: G | E110: G | F110: AR | G110: AR | H110: 0 | I110: 0 | J110: G | K110: G | L110: 0 | M110: AMBER-GREEN
A111: 05C_2013-14_June | B111: 0 | C111: G | D111: G | E111: G | F111: G | G111: G | H111: 0 | I111: 0 | J111: G | K111: G | L111: 0 | M111: GREEN
A112: 03W_2013-14_June | B112: 0 | C112: G | D112: G | E112: G | F112: G | G112: G | H112: 0 | I112: 0 | J112: G | K112: G | L112: 0 | M112: GREEN
A113: 04R_2013-14_June | B113: 0 | C113: AG | D113: AG | E113: G | F113: G | G113: G | H113: 0 | I113: 0 | J113: G | K113: G | L113: 0 | M113: AMBER-GREEN
A114: 03E_2013-14_June | B114: 0 | C114: G | D114: G | E114: G | F114: AG | G114: AG | H114: 0 | I114: 0 | J114: G | K114: AG | L114: 0 | M114: AMBER-GREEN
A115: 06D_2013-14_June | B115: 0 | C115: G | D115: G | E115: G | F115: G | G115: G | H115: 0 | I115: 0 | J115: G | K115: G | L115: 0 | M115: GREEN
A116: 10Y_2013-14_June | B116: 0 | C116: G | D116: G | E116: G | F116: AR | G116: G | H116: 0 | I116: 0 | J116: G | K116: G | L116: 0 | M116: AMBER-GREEN
A117: 11E_2013-14_June | B117: 0 | C117: G | D117: G | E117: G | F117: G | G117: G | H117: 0 | I117: 0 | J117: G | K117: G | L117: 0 | M117: GREEN
A118: 06N_2013-14_June | B118: 0 | C118: G | D118: G | E118: G | F118: AG | G118: G | H118: 0 | I118: 0 | J118: G | K118: AG | L118: 0 | M118: AMBER-GREEN
A119: 07J_2013-14_June | B119: 0 | C119: G | D119: G | E119: G | F119: AR | G119: G | H119: 0 | I119: 0 | J119: G | K119: AR | L119: 0 | M119: AMBER-GREEN
A120: 08J_2013-14_June | B120: 0 | C120: G | D120: G | E120: G | F120: G | G120: G | H120: 0 | I120: 0 | J120: G | K120: G | L120: 0 | M120: GREEN
A121: 08R_2013-14_June | B121: 0 | C121: G | D121: G | E121: G | F121: AG | G121: G | H121: 0 | I121: 0 | J121: G | K121: G | L121: 0 | M121: AMBER-GREEN
A122: 07T_2013-14_June | B122: 0 | C122: R | D122: G | E122: G | F122: AR | G122: AG | H122: 0 | I122: 0 | J122: G | K122: G | L122: 0 | M122: AMBER-RED
A123: 00P_2013-14_June | B123: 0 | C123: G | D123: G | E123: G | F123: G | G123: G | H123: 0 | I123: 0 | J123: G | K123: G | L123: 0 | M123: GREEN
A124: 05G_2013-14_June | B124: 0 | C124: R | D124: G | E124: G | F124: G | G124: G | H124: 0 | I124: 0 | J124: G | K124: G | L124: 0 | M124: AMBER-RED
A125: 05H_2013-14_June | B125: 0 | C125: G | D125: G | E125: G | F125: AR | G125: G | H125: 0 | I125: 0 | J125: G | K125: AR | L125: 0 | M125: AMBER-GREEN
A126: 05N_2013-14_June | B126: 0 | C126: G | D126: G | E126: G | F126: G | G126: G | H126: 0 | I126: 0 | J126: G | K126: AR | L126: 0 | M126: AMBER-GREEN
A127: 05T_2013-14_June | B127: 0 | C127: R | D127: R | E127: G | F127: AG | G127: AG | H127: 0 | I127: 0 | J127: G | K127: G | L127: 0 | M127: RED
A128: 01F_2013-14_June | B128: 0 | C128: G | D128: G | E128: G | F128: G | G128: G | H128: 0 | I128: 0 | J128: G | K128: G | L128: 0 | M128: GREEN
A129: 09C_2013-14_June | B129: 0 | C129: G | D129: G | E129: G | F129: G | G129: G | H129: 0 | I129: 0 | J129: G | K129: AG | L129: 0 | M129: AMBER-GREEN
A130: 00Y_2013-14_June | B130: 0 | C130: G | D130: G | E130: G | F130: AR | G130: G | H130: 0 | I130: 0 | J130: G | K130: G | L130: 0 | M130: AMBER-GREEN
A131: 01G_2013-14_June | B131: 0 | C131: G | D131: G | E131: G | F131: G | G131: G | H131: 0 | I131: 0 | J131: G | K131: G | L131: 0 | M131: GREEN
A132: 99Q_2013-14_June | B132: 0 | C132: G | D132: G | E132: G | F132: G | G132: G | H132: 0 | I132: 0 | J132: G | K132: G | L132: 0 | M132: GREEN
A133: 01W_2013-14_June | B133: 0 | C133: G | D133: G | E133: G | F133: AR | G133: G | H133: 0 | I133: 0 | J133: G | K133: G | L133: 0 | M133: AMBER-GREEN
A134: 99C_2013-14_June | B134: 0 | C134: G | D134: G | E134: G | F134: G | G134: G | H134: 0 | I134: 0 | J134: G | K134: AG | L134: 0 | M134: AMBER-GREEN
A135: 05F_2013-14_June | B135: 0 | C135: R | D135: G | E135: G | F135: G | G135: G | H135: 0 | I135: 0 | J135: G | K135: G | L135: 0 | M135: AMBER-RED
A136: 03L_2013-14_June | B136: 0 | C136: G | D136: G | E136: G | F136: G | G136: G | H136: 0 | I136: 0 | J136: G | K136: G | L136: 0 | M136: GREEN
A137: 03J_2013-14_June | B137: 0 | C137: G | D137: G | E137: G | F137: G | G137: G | H137: 0 | I137: 0 | J137: G | K137: G | L137: 0 | M137: GREEN
A138: 03V_2013-14_June | B138: 0 | C138: G | D138: G | E138: G | F138: G | G138: G | H138: 0 | I138: 0 | J138: G | K138: AG | L138: 0 | M138: AMBER-GREEN
A139: 13P_2013-14_June | B139: 0 | C139: G | D139: G | E139: G | F139: AR | G139: AR | H139: 0 | I139: 0 | J139: G | K139: G | L139: 0 | M139: AMBER-GREEN
A140: 02F_2013-14_June | B140: 0 | C140: G | D140: G | E140: G | F140: G | G140: G | H140: 0 | I140: 0 | J140: G | K140: G | L140: 0 | M140: GREEN
A141: 03F_2013-14_June | B141: 0 | C141: G | D141: G | E141: G | F141: G | G141: G | H141: 0 | I141: 0 | J141: G | K141: G | L141: 0 | M141: GREEN
A142: 10X_2013-14_June | B142: 0 | C142: G | D142: G | E142: G | F142: AG | G142: G | H142: 0 | I142: 0 | J142: G | K142: G | L142: 0 | M142: AMBER-GREEN
A143: 11X_2013-14_June | B143: 0 | C143: G | D143: G | E143: G | F143: G | G143: G | H143: 0 | I143: 0 | J143: G | K143: G | L143: 0 | M143: GREEN
A144: 06M_2013-14_June | B144: 0 | C144: G | D144: G | E144: G | F144: AG | G144: G | H144: 0 | I144: 0 | J144: G | K144: G | L144: 0 | M144: AMBER-GREEN
A145: 08C_2013-14_June | B145: 0 | C145: G | D145: G | E145: G | F145: G | G145: AG | H145: 0 | I145: 0 | J145: G | K145: G | L145: 0 | M145: AMBER-GREEN
A146: 08F_2013-14_June | B146: 0 | C146: R | D146: G | E146: G | F146: G | G146: G | H146: 0 | I146: 0 | J146: G | K146: AG | L146: 0 | M146: AMBER-RED
A147: 08H_2013-14_June | B147: 0 | C147: G | D147: G | E147: G | F147: AG | G147: AG | H147: 0 | I147: 0 | J147: G | K147: G | L147: 0 | M147: AMBER-GREEN
A148: 08T_2013-14_June | B148: 0 | C148: G | D148: G | E148: G | F148: AG | G148: AR | H148: 0 | I148: 0 | J148: G | K148: G | L148: 0 | M148: AMBER-GREEN
A149: 10G_2013-14_June | B149: 0 | C149: G | D149: G | E149: G | F149: R | G149: AR | H149: 0 | I149: 0 | J149: G | K149: G | L149: 0 | M149: AMBER-RED
A150: 10L_2013-14_June | B150: 0 | C150: G | D150: G | E150: G | F150: G | G150: G | H150: 0 | I150: 0 | J150: G | K150: G | L150: 0 | M150: GREEN
A151: 07Y_2013-14_June | B151: 0 | C151: G | D151: G | E151: G | F151: AR | G151: AG | H151: 0 | I151: 0 | J151: G | K151: AR | L151: 0 | M151: AMBER-GREEN
A152: 00J_2013-14_June | B152: 0 | C152: G | D152: G | E152: G | F152: G | G152: G | H152: 0 | I152: 0 | J152: G | K152: G | L152: 0 | M152: GREEN
A153: 01V_2013-14_June | B153: 0 | C153: G | D153: G | E153: G | F153: G | G153: G | H153: 0 | I153: 0 | J153: G | K153: G | L153: 0 | M153: GREEN
A154: 00V_2013-14_June | B154: 0 | C154: G | D154: G | E154: G | F154: G | G154: G | H154: 0 | I154: 0 | J154: G | K154: AR | L154: 0 | M154: AMBER-GREEN
A155: 01K_2013-14_June | B155: 0 | C155: G | D155: G | E155: G | F155: AR | G155: AR | H155: 0 | I155: 0 | J155: G | K155: AG | L155: 0 | M155: AMBER-GREEN
A156: 99D_2013-14_June | B156: 0 | C156: G | D156: G | E156: G | F156: R | G156: G | H156: 0 | I156: 0 | J156: G | K156: G | L156: 0 | M156: AMBER-RED
A157: 01D_2013-14_June | B157: 0 | C157: G | D157: G | E157: G | F157: AG | G157: G | H157: 0 | I157: 0 | J157: G | K157: G | L157: 0 | M157: AMBER-GREEN
A158: 08Y_2013-14_June | B158: 0 | C158: R | D158: G | E158: G | F158: AG | G158: AG | H158: 0 | I158: 0 | J158: G | K158: G | L158: 0 | M158: AMBER-RED
A159: 02M_2013-14_June | B159: 0 | C159: G | D159: G | E159: G | F159: AR | G159: G | H159: 0 | I159: 0 | J159: G | K159: AG | L159: 0 | M159: AMBER-GREEN
A160: 01H_2013-14_June | B160: 0 | C160: G | D160: G | E160: G | F160: G | G160: G | H160: 0 | I160: 0 | J160: G | K160: AG | L160: 0 | M160: AMBER-GREEN
A161: 99J_2013-14_June | B161: 0 | C161: G | D161: G | E161: G | F161: G | G161: G | H161: 0 | I161: 0 | J161: G | K161: AG | L161: 0 | M161: AMBER-GREEN
A162: 04H_2013-14_June | B162: 0 | C162: G | D162: G | E162: G | F162: G | G162: G | H162: 0 | I162: 0 | J162: G | K162: G | L162: 0 | M162: GREEN
A163: 03N_2013-14_June | B163: 0 | C163: G | D163: G | E163: G | F163: G | G163: G | H163: 0 | I163: 0 | J163: G | K163: G | L163: 0 | M163: GREEN
A164: 03X_2013-14_June | B164: 0 | C164: G | D164: G | E164: G | F164: G | G164: G | H164: 0 | I164: 0 | J164: G | K164: G | L164: 0 | M164: GREEN
A165: 06A_2013-14_June | B165: 0 | C165: G | D165: G | E165: G | F165: G | G165: G | H165: 0 | I165: 0 | J165: G | K165: G | L165: 0 | M165: GREEN
A166: 11A_2013-14_June | B166: 0 | C166: G | D166: G | E166: G | F166: G | G166: G | H166: 0 | I166: 0 | J166: G | K166: G | L166: 0 | M166: GREEN
